Workbook

Sheet RESUMO MODULO TOTAL
B1: EXECUÇÃO DE SERVIÇOS DE IMPLANTAÇÃO DE PAVIMENTAÇÃO EM BLOCO DE CONCRETO INTERTRAVADO, EM VIAS DE MUNICÍPIOS DIVERSOS INSERIDOS NA ÁREA DE ATUAÇÃO DA CODEVASF, NO ESTADO DO RIO GRANDE DO NORTE (REGIÃO 3) | N1: xxxxxxx
M2: SICRO: | N2: ='SINTÉTICO SICRO'!B2 -> Rio Grande do Norte - Abril/2024
M3: SINAPI: | N3: =RIGHT('INSUMOS SINAPI'!A3,7) -> 06/2024
M4: Data base orçamento: | N4: 2024-08-01
B5: =B1 -> EXECUÇÃO DE SERVIÇOS DE IMPLANTAÇÃO DE PAVIMENTAÇÃO EM BLOCO DE CONCRETO INTERTRAVADO, EM VIAS DE MUNICÍPIOS DIVERSOS INSERIDOS NA ÁREA DE ATUAÇÃO DA CODEVASF, NO ESTADO DO RIO GRANDE DO NORTE (REGIÃO 3)
B6: ITEM | C6: ORIGEM COMPOSIÇÃO | D6: CÓDIGO COMPOSIÇÃO | E6: DISCRIMINAÇÃO DOS SERVIÇOS | I6: BDI % = | J6: =BDI!C17 -> 0.2339 | K6: BDI DIFERENCIADO% = | L6: =BDI!C72 -> 0.15 | M6: R$/m² = | N6: =N52/I8 -> 246.49 | P6: 22484000
I7: Total de m² | J7: Encargos Sociais: | K7: Horista (%) | L7: Mensalista (%) | M7: PREÇO UNITÁRIO COM BDI | N7: PREÇO TOTAL COM BDI
I8: ='MC MODULO'!G1*'MC MODULO'!C1*'MC MODULO'!C2 -> 98000 | K8: ='ENC. SOCIAIS'!E47 -> 116.21 | L8: ='ENC. SOCIAIS'!F47 -> 71.48
I9: UND | J9: QTDE. | K9: BDI | L9: PREÇO UNITÁRIO | AB9: TOTAL
E10: MOBILIZAÇÃO/DESMOBILIZAÇÃO
B11: 1 | C11: Codevasf | D11: Mob | E11: Mobilização | I11: kmxfrente | J11: =Mob!B65*Mob!H6 -> 1106 | K11: =(M11/L11-1) -> 0.2339 | L11: =Mob!B62 -> 74.515595 | M11: =Mob!B64 -> 91.94479267 | N11: =ROUND(ROUND(J11,2)*ROUND(M11,6),2) -> 101690.94 | O11: =N11/$N$52 -> 0.004209755581 | P11: INCC | R11: N1 | S11: TERRAPLENAGEM | T11: =(SUMIF(P:P,"TERRAPLENAGEM",N:N)/$N$52) -> 0.01163667442 | U11: =(SUMIF(P:P,"TERRAPLENAGEM",N:N)) -> 281095.74 | AA11: 57163.47
B12: 2 | C12: Codevasf | D12: Mob | E12: Desmobilização | I12: kmxfrente | J12: =Mob!B65*Mob!H6 -> 1106 | K12: =(M12/L12-1) -> 0.2339 | L12: =Mob!B62 -> 74.515595 | M12: =Mob!B64 -> 91.94479267 | N12: =ROUND(ROUND(J12,2)*ROUND(M12,6),2) -> 101690.94 | O12: =N12/$N$52 -> 0.004209755581 | P12: INCC | R12: N2 | S12: PAVIMENTAÇÃO | T12: =SUMIF(P:P,"PAVIMENTAÇÃO",N:N)/$N$52 -> 0.8282260824 | U12: =(SUMIF(P:P,"PAVIMENTAÇÃO",N:N)) -> 20006645.81 | AA12: 57163.47
E13: INSTALAÇÃO DE CANTEIRO | R13: N3 | S13: CONSULTORIA | T13: =SUMIF(P:P,"CONSULTORIA",N:N)/$N$52 -> 0 | U13: =(SUMIF(P:P,"CONSULTORIA",N:N)) -> 0
B14: 3 | C14: Codevasf | D14: Canteiro | E14: Canteiro de Obras | I14: frente | J14: ='MC MODULO'!G1 -> 7 | K14: =(M14/L14-1) -> 0.2339 | L14: =' Canteiro'!F11 -> 19147.44 | M14: =' Canteiro'!F13 -> 23626.02622 | N14: =ROUND(ROUND(J14,2)*ROUND(M14,6),2) -> 165382.18 | P14: INCC | R14: N4 | S14: DRENAGEM | T14: =SUMIF(P:P,"DRENAGEM",N:N)/$N$52 -> 0.04255000203 | U14: =(SUMIF(P:P,"DRENAGEM",N:N)) -> 1027838.7 | AA14: 190291.53
B15: 4 | C15: SICRO | D15: 903808 | E15: =VLOOKUP(D15,'SINTÉTICO SICRO'!A:D,2,FALSE) -> Instalação da usina misturadora de solos com capacidade de 300 t/h | I15: frente | J15: 3 | K15: 0.2339 | L15: =VLOOKUP(D15,'SINTÉTICO SICRO'!A:D,4,FALSE) -> 108635.66 | M15: =L15*(1+K15) -> 134045.5409 | N15: =ROUND(ROUND(J15,2)*ROUND(M15,6),2) -> 402136.62 | P15: INCC
B16: 5 | C16: SINAPI | D16: 103689 | E16: Fornecimento e instalação de placa de obra com chapa galvanizada e estrutura de madeira. af_03/2022_ps | I16: m² | J16: ='MC MODULO'!H25 -> 112 | K16: =(M16/L16-1) -> 0.2339 | L16: =VLOOKUP(D16,'COMP Sint. Sinapi'!$G$7:$K$7524,5,0) -> 319.64 | M16: =L16*(1+$J$6) -> 394.403796 | N16: =ROUND(ROUND(J16,2)*ROUND(M16,6),2) -> 44173.23 | P16: INCC | R16: N5 | S16: ADMINISTRAÇÃO LOCAL | T16: =SUMIF(P:P,"ADMINISTRAÇÃO LOCAL",N:N)/$N$52 -> 0 | U16: =(SUMIF(P:P,"ADMINISTRAÇÃO LOCAL",N:N)) -> 0
E17: ADMINISTRAÇÃO LOCAL DA OBRA | R17: N6 | S17: SINALIZAÇÃO VERTICAL | T17: =SUMIF(P:P,"SINALIZAÇÃO VERTICAL",N:N)/$N$52 -> 0 | U17: =(SUMIF(P:P,"SINALIZAÇÃO VERTICAL",N:N)) -> 0
B18: 6 | C18: Codevasf | D18: Adm Local | E18: Administração Local da Obra | I18: und | J18: 1 | K18: =(M18/L18-1) -> 0.2339 | L18: ='Adm Local'!J248 -> 1234732.91 | M18: ='Adm Local'!I250 -> 1523536.938 | N18: =ROUND(ROUND(J18,2)*ROUND(M18,6),2) -> 1523536.94 | O18: =N18/N52 -> 0.06307069376 | P18: INCC | R18: N7 | S18: SINALIZAÇÃO HORIZONTAL | T18: =SUMIF(P:P,"SINALIZAÇÃO HORIZONTAL",N:N)/$N$52 -> 0 | U18: =(SUMIF(P:P,"SINALIZAÇÃO HORIZONTAL",N:N)) -> 0
E19: TERRAPLANAGEM | R19: N8 | S19: CAP | T19: =(SUMIF(P:P,"CAP",N:N))/$N$52 -> 0 | U19: =(SUMIF(P:P,"CAP",N:N)) -> 0
B20: 7 | C20: SICRO | D20: 5502114 | E20: =VLOOKUP(D20,'SINTÉTICO SICRO'!$A$4:$D$1048576,2,0) -> Escavação, carga e transporte de material de 1ª categoria - DMT de 1.000 a 1.200 m - caminho de serviço em leito natural - com escavadeira e caminhão basculante de 14 m³ | I20: m³ | J20: ='MC MODULO'!H37 -> 26460 | K20: =M20/L20-1 -> 0.2339 | L20: =ROUND(IF(C20="CODEVASF",VLOOKUP(D20,'CPU CODEVASF'!E:I,5,FALSE),VLOOKUP(D20,'SINTÉTICO SICRO'!A:D,4,FALSE)),6) -> 7.88 | M20: =ROUND(IF(C20="CODEVASF",VLOOKUP(D20,'CPU CODEVASF'!E:H,4,FALSE),VLOOKUP(D20,'SINTÉTICO SICRO'!A:D,4,FALSE)*(1+$J$6)),6) -> 9.723132 | N20: =ROUND(ROUND(J20,2)*ROUND(M20,6),2) -> 257274.07 | P20: TERRAPLENAGEM | R20: N9 | S20: IMPRIMAÇÃO | T20: =(SUMIF(P:P,"IMPRIMAÇÃO",N:N))/$N$52 -> 0 | U20: =(SUMIF(P:P,"IMPRIMAÇÃO",N:N)) -> 0 | AB20: 366912
B21: 8 | C21: SICRO | D21: 4413942 | E21: =VLOOKUP(D21,'SINTÉTICO SICRO'!$A$4:$D$1048576,2,0) -> Espalhamento de material em bota-fora | I21: m³ | J21: ='MC MODULO'!H44 -> 9800 | K21: 0.2339 | L21: =ROUND(IF(C21="CODEVASF",VLOOKUP(D21,'CPU CODEVASF'!E:I,5,FALSE),VLOOKUP(D21,'SINTÉTICO SICRO'!A:D,4,FALSE)),6) -> 1.97 | M21: =ROUND(IF(C21="CODEVASF",VLOOKUP(D21,'CPU CODEVASF'!E:H,4,FALSE),VLOOKUP(D21,'SINTÉTICO SICRO'!A:D,4,FALSE)*(1+$J$6)),6) -> 2.430783 | N21: 23821.67 | P21: TERRAPLENAGEM | R21: N10 | S21: EMULSÃO ASFÁLTICA | T21: =(SUMIF(P:P,"EMULSÃO ASFÁLTICA",N:N))/$N$52 -> 0 | U21: =(SUMIF(P:P,"EMULSÃO ASFÁLTICA",N:N)) -> 0 | AB21: 84084 | AG21: 1
E22: PAVIMENTAÇÃO | R22: N11 | S22: OBRAS COMPLEMENTARES | T22: =(SUMIF(P:P,"OBRAS COMPLEMENTARES",N:N))/$N$52 -> 0 | U22: =(SUMIF(P:P,"OBRAS COMPLEMENTARES",N:N)) -> 0
B23: 9 | C23: SINAPI | D23: 36170 | E23: bloquete/piso intertravado de concreto - modelo onda/16 faces/retangular/t ijolinho/paver/holandes/paralelepipedo, *22 cm x 11* cm, e = 8 cm, resistencia de 35 mpa (nbr 9781), cor natural | I23: m² | J23: =J24*'CPU SINAPI'!E8 -> 98392 | K23: =M23/L23-1 -> 0.15 | L23: =ROUND(VLOOKUP(D23,'INSUMOS SINAPI'!A:E,5,0),6) -> 61.33 | M23: =ROUND(VLOOKUP(D23,'INSUMOS SINAPI'!A:E,5,0)*(1+$L$6),6) -> 70.5295 | N23: =ROUND(ROUND(J23,2)*ROUND(M23,6),2) -> 6939538.56 | P23: PAVIMENTAÇÃO | R23: N12 | S23: MOBILIZAÇÃO | T23: =(SUMIF(P:P,"MOBILIZAÇÃO",N:N))/$N$52 -> 0 | U23: =(SUMIF(P:P,"MOBILIZAÇÃO",N:N)) -> 0
B24: 10 | C24: SINAPI | D24: ='CPU SINAPI'!B5 -> 92404 ADAPTADA | E24: execução de pavimento em piso intertravado, com bloco 16 faces de 22 x 11 cm, espessura 8 cm. af_10/2022 - exclusive fornecimento de bloquete | I24: m² | J24: ='MC MODULO'!H51 -> 98000 | K24: 0.2336114422 | L24: =ROUND('CPU SINAPI'!G15,6) -> 16.78 | M24: =ROUND('CPU SINAPI'!G17,6) -> 20.7 | N24: 2028600 | P24: PAVIMENTAÇÃO | R24: N13 | S24: INCC | T24: =(SUMIF(P:P,"INCC",N:N))/$N$52 -> 0.117587276 | U24: =(SUMIF(P:P,"INCC",N:N)) -> 2840440.59 | AB24: 13037300.31
B25: 11 | C25: SICRO | D25: 5915014 | E25: =VLOOKUP(D25,'SINTÉTICO SICRO'!$A$4:$D$1048576,2,0) -> Transporte com caminhão carroceria com capacidade de 11 t e com guindauto de 45 t.m - rodovia pavimentada | I25: tkm | J25: ='MC MODULO'!H56 -> 1379840 | K25: 0.2339 | L25: =ROUND(IF(C25="CODEVASF",VLOOKUP(D25,'CPU CODEVASF'!E:I,5,FALSE),VLOOKUP(D25,'SINTÉTICO SICRO'!A:D,4,FALSE)),6) -> 1.42 | M25: =L25+(L25*J6) -> 1.752138 | N25: 2417670.1 | P25: PAVIMENTAÇÃO
B26: 12 | C26: SICRO | D26: 5915321 | E26: Transporte com caminhão basculante de 14 m³ - rodovia pavimentada (areia) | I26: tkm | J26: ='MC MODULO'!H62 -> 372204 | K26: =M26/L26-1 -> 0.2339 | L26: =ROUND(IF(C26="CODEVASF",VLOOKUP(D26,'CPU CODEVASF'!E:I,5,FALSE),VLOOKUP(D26,'SINTÉTICO SICRO'!A:D,4,FALSE)),6) -> 0.65 | M26: =L26+(L26*J6) -> 0.802035 | N26: =ROUND(ROUND(J26,2)*ROUND(M26,6),2) -> 298520.64 | P26: PAVIMENTAÇÃO
B27: 13 | C27: SICRO | D27: 5915321 | E27: Transporte com caminhão basculante de 14 m³ - rodovia pavimentada (pó de pedra) | I27: tkm | J27: ='MC MODULO'!H67 -> 83745.9 | K27: =M27/L27-1 -> 0.2339 | L27: =ROUND(IF(C27="CODEVASF",VLOOKUP(D27,'CPU CODEVASF'!E:I,5,FALSE),VLOOKUP(D27,'SINTÉTICO SICRO'!A:D,4,FALSE)),6) -> 0.65 | M27: =L27+(L27*J6) -> 0.802035 | N27: =ROUND(ROUND(J27,2)*ROUND(M27,6),2) -> 67167.14 | P27: PAVIMENTAÇÃO
B28: 14 | C28: SICRO | D28: 4011268 | E28: =VLOOKUP(D28,'SINTÉTICO SICRO'!$A$4:$D$1048576,2,0) -> Base estabilizada granulometricamente com mistura solo brita (70% - 30%) em usina com material de jazida e brita comercial | I28: m³ | J28: ='MC MODULO'!H72 -> 14700 | K28: 0.2339 | L28: =ROUND(IF(C28="CODEVASF",VLOOKUP(D28,'CPU CODEVASF'!E:I,5,FALSE),VLOOKUP(D28,'SINTÉTICO SICRO'!A:D,4,FALSE)),6) -> 82.27 | M28: =ROUND(IF(C28="CODEVASF",VLOOKUP(D28,'CPU CODEVASF'!E:H,4,FALSE),VLOOKUP(D28,'SINTÉTICO SICRO'!A:D,4,FALSE)*(1+$J$6)),6) -> 101.512953 | N28: 1492240.41 | P28: PAVIMENTAÇÃO | AB28: 15919722
B29: 15 | C29: SICRO | D29: 4011209 | E29: =VLOOKUP(D29,'SINTÉTICO SICRO'!$A$4:$D$1048576,2,0) -> Regularização do subleito | I29: m² | J29: ='MC MODULO'!H77 -> 98000 | K29: 0.2339 | L29: =ROUND(IF(C29="CODEVASF",VLOOKUP(D29,'CPU CODEVASF'!E:I,5,FALSE),VLOOKUP(D29,'SINTÉTICO SICRO'!A:D,4,FALSE)),6) -> 1.16 | M29: =ROUND(IF(C29="CODEVASF",VLOOKUP(D29,'CPU CODEVASF'!E:H,4,FALSE),VLOOKUP(D29,'SINTÉTICO SICRO'!A:D,4,FALSE)*(1+$J$6)),6) -> 1.431324 | N29: 140269.75 | P29: PAVIMENTAÇÃO | AB29: 540540
E30: SINALIZAÇÃO
B31: 16 | C31: SICRO | D31: 5213440 | E31: =VLOOKUP(D31,'SINTÉTICO SICRO'!$A$4:$D$1048576,2,0) -> Placa de regulamentação em aço D = 0,60 m - película retrorrefletiva tipo I + SI - fornecimento e implantação | I31: und | J31: ='MC MODULO'!H84 -> 42 | K31: =M31/L31-1 -> 0.2339 | L31: =ROUND(IF(C31="CODEVASF",VLOOKUP(D31,'CPU CODEVASF'!E:I,5,FALSE),VLOOKUP(D31,'SINTÉTICO SICRO'!A:D,4,FALSE)),6) -> 260.02 | M31: =ROUND(IF(C31="CODEVASF",VLOOKUP(D31,'CPU CODEVASF'!E:H,4,FALSE),VLOOKUP(D31,'SINTÉTICO SICRO'!A:D,4,FALSE)*(1+$J$6)),6) -> 320.838678 | N31: =ROUND(ROUND(J31,2)*ROUND(M31,6),2) -> 13475.22 | P31: INCC | AB31: 9985.95
B32: 17 | C32: SICRO | D32: 5213464 | E32: =VLOOKUP(D32,'SINTÉTICO SICRO'!$A$4:$D$1048576,2,0) -> Placa de advertência em aço, lado de 0,60 m - película retrorrefletiva tipo I + SI - fornecimento e implantação | I32: und | J32: ='MC MODULO'!H89 -> 42 | K32: 0.2339 | L32: =ROUND(IF(C32="CODEVASF",VLOOKUP(D32,'CPU CODEVASF'!E:I,5,FALSE),VLOOKUP(D32,'SINTÉTICO SICRO'!A:D,4,FALSE)),6) -> 260.05 | M32: =ROUND(IF(C32="CODEVASF",VLOOKUP(D32,'CPU CODEVASF'!E:H,4,FALSE),VLOOKUP(D32,'SINTÉTICO SICRO'!A:D,4,FALSE)*(1+$J$6)),6) -> 320.875695 | N32: 13476.78 | P32: INCC
B33: 18 | C33: SICRO | D33: 5213863 | E33: Suporte metálico galvanizado para placa de advertência ou regulamentação - lado ou diâmetro de 0,60 m - fornecimento e implantação | I33: und | J33: ='MC MODULO'!H95 -> 84 | K33: 0.2339 | L33: =ROUND(IF(C33="CODEVASF",VLOOKUP(D33,'CPU CODEVASF'!E:I,5,FALSE),VLOOKUP(D33,'SINTÉTICO SICRO'!A:D,4,FALSE)),6) -> 454.56 | M33: =ROUND(IF(C33="CODEVASF",VLOOKUP(D33,'CPU CODEVASF'!E:H,4,FALSE),VLOOKUP(D33,'SINTÉTICO SICRO'!A:D,4,FALSE)*(1+$J$6)),6) -> 560.881584 | N33: 47114.05 | P33: INCC | AB33: 13086.06
B34: 19 | C34: SICRO | D34: 5213400 | E34: Pintura de faixa com tinta acrílica - espessura de 0,4 mm | I34: m² | J34: ='MC MODULO'!H100+'MC MODULO'!H105 -> 3360 | K34: 0.2339 | L34: =ROUND(IF(C34="CODEVASF",VLOOKUP(D34,'CPU CODEVASF'!E:I,5,FALSE),VLOOKUP(D34,'SINTÉTICO SICRO'!A:D,4,FALSE)),6) -> 24.82 | M34: =ROUND(IF(C34="CODEVASF",VLOOKUP(D34,'CPU CODEVASF'!E:H,4,FALSE),VLOOKUP(D34,'SINTÉTICO SICRO'!A:D,4,FALSE)*(1+$J$6)),6) -> 30.625398 | N34: 102901.34 | P34: INCC
E35: DRENAGEM
B36: 20 | C36: SICRO | D36: 2003943 | E36: =VLOOKUP(D36,'SINTÉTICO SICRO'!$A$4:$D$1048576,2,0) -> Meio-fio de concreto - MFC 03 moldado no local com extrusora e concreto usinado - areia e brita comerciais | I36: m | J36: ='MC MODULO'!H112 -> 28000 | K36: =M36/L36-1 -> 0.2339 | L36: =ROUND(IF(C36="CODEVASF",VLOOKUP(D36,'CPU CODEVASF'!E:I,5,FALSE),VLOOKUP(D36,'SINTÉTICO SICRO'!A:D,4,FALSE)),6) -> 29.75 | M36: =ROUND(IF(C36="CODEVASF",VLOOKUP(D36,'CPU CODEVASF'!E:H,4,FALSE),VLOOKUP(D36,'SINTÉTICO SICRO'!A:D,4,FALSE)*(1+$J$6)),6) -> 36.708525 | N36: =ROUND(ROUND(J36,2)*ROUND(M36,6),2) -> 1027838.7 | P36: DRENAGEM | AB36: 4514640
B37: 21 | C37: SICRO | D37: 4915724 | E37: =VLOOKUP(D37,'SINTÉTICO SICRO'!$A$4:$D$1048576,2,0) -> Caiação mecanizada com fixador de cal | I37: m² | J37: ='MC MODULO'!H117 -> 3360 | K37: =(M37/L37-1) -> 0.2339 | L37: =ROUND(IF(C37="CODEVASF",VLOOKUP(D37,'CPU CODEVASF'!E:I,5,FALSE),VLOOKUP(D37,'SINTÉTICO SICRO'!A:D,4,FALSE)),6) -> 1.94 | M37: =ROUND(IF(C37="CODEVASF",VLOOKUP(D37,'CPU CODEVASF'!E:H,4,FALSE),VLOOKUP(D37,'SINTÉTICO SICRO'!A:D,4,FALSE)*(1+$J$6)),6) -> 2.393766 | N37: =ROUND(ROUND(J37,2)*ROUND(M37,6),2) -> 8043.05 | P37: INCC | Y37: 4514640
E38: SERVIÇOS COMPLEMENTARES
B39: 22 | C39: Codevasf | D39: CPU-02 | E39: Conserto de quebra no ramal na rua sem pavimento com fornecimento de material hidráulico | I39: m | J39: ='MC MODULO'!H124 -> 1400 | K39: =M39/L39-1 -> 0.2339000318 | L39: =ROUND(IF(C39="CODEVASF",VLOOKUP(D39,'CPU CODEVASF'!E:I,5,FALSE),VLOOKUP(D39,'SINTÉTICO SICRO'!A:D,4,FALSE)),6) -> 15.06739 | M39: =ROUND(IF(C39="CODEVASF",VLOOKUP(D39,'CPU CODEVASF'!E:H,4,FALSE),VLOOKUP(D39,'SINTÉTICO SICRO'!A:D,4,FALSE)*(1+$J$6)),6) -> 18.591653 | N39: =ROUND(ROUND(J39,2)*ROUND(M39,6),2) -> 26028.31 | P39: INCC | AB39: 139854
E40: PROJETO EXECUTIVO
B41: 23 | C41: Codevasf | D41: Composição Própria | E41: Projeto Executivo | I41: m² | J41: ='MC MODULO'!H131 -> 98000 | K41: =M41/L41-1 -> 0.2338998056 | L41: =ROUND(('Projeto Executivo'!G29)/(1+$J$6),6) -> 2.404778 | M41: ='Projeto Executivo'!G29 -> 2.967255107 | N41: =ROUND(ROUND(J41,2)*ROUND(M41,6),2) -> 290790.99 | P41: INCC | AB41: 763671.38
E42: MOMENTO DE TRANSPORTE
B43: 24 | C43: SICRO | D43: 5914359 | E43: =VLOOKUP(D43,'SINTÉTICO SICRO'!$A$4:$D$1048576,2,0) -> Transporte com caminhão basculante de 10 m³ - rodovia em leito natural | I43: tkm | J43: =SUMIF('MOMENTO DE TRANSPORTE - PRINC'!A:A,'RESUMO MODULO TOTAL'!D43,'MOMENTO DE TRANSPORTE - PRINC'!K:K)+SUMIF('MOMENTO DE TRANSPORTE - AUX'!A:A,'RESUMO MODULO TOTAL'!D43,'MOMENTO DE TRANSPORTE - AUX'!K:K) -> 0 | K43: =M43/L43-1 -> 0.2339 | L43: =ROUND(IF(C43="CODEVASF",VLOOKUP(D43,'CPU CODEVASF'!E:I,5,FALSE),VLOOKUP(D43,'SINTÉTICO SICRO'!A:D,4,FALSE)),6) -> 1.23 | M43: =ROUND(IF(C43="CODEVASF",VLOOKUP(D43,'CPU CODEVASF'!E:H,4,FALSE),VLOOKUP(D43,'SINTÉTICO SICRO'!A:D,4,FALSE)*(1+$J$6)),6) -> 1.517697 | N43: =ROUND(ROUND(J43,2)*ROUND(M43,6),2) -> 0 | P43: PAVIMENTAÇÃO
B44: 25 | C44: SICRO | D44: 5914374 | E44: =VLOOKUP(D44,'SINTÉTICO SICRO'!$A$4:$D$1048576,2,0) -> Transporte com caminhão basculante de 10 m³ - rodovia em revestimento primário | I44: tkm | J44: =SUMIF('MOMENTO DE TRANSPORTE - PRINC'!A:A,'RESUMO MODULO TOTAL'!D44,'MOMENTO DE TRANSPORTE - PRINC'!K:K)+SUMIF('MOMENTO DE TRANSPORTE - AUX'!A:A,'RESUMO MODULO TOTAL'!D44,'MOMENTO DE TRANSPORTE - AUX'!K:K) -> 612745.6223 | K44: 0.2339 | L44: =ROUND(IF(C44="CODEVASF",VLOOKUP(D44,'CPU CODEVASF'!E:I,5,FALSE),VLOOKUP(D44,'SINTÉTICO SICRO'!A:D,4,FALSE)),6) -> 0.99 | M44: =ROUND(IF(C44="CODEVASF",VLOOKUP(D44,'CPU CODEVASF'!E:H,4,FALSE),VLOOKUP(D44,'SINTÉTICO SICRO'!A:D,4,FALSE)*(1+$J$6)),6) -> 1.221561 | N44: 748506.15 | P44: PAVIMENTAÇÃO
B45: 26 | C45: SICRO | D45: 5914389 | E45: =VLOOKUP(D45,'SINTÉTICO SICRO'!$A$4:$D$1048576,2,0) -> Transporte com caminhão basculante de 10 m³ - rodovia pavimentada | I45: tkm | J45: =SUMIF('MOMENTO DE TRANSPORTE - PRINC'!A:A,'RESUMO MODULO TOTAL'!D45,'MOMENTO DE TRANSPORTE - PRINC'!K:K)+SUMIF('MOMENTO DE TRANSPORTE - AUX'!A:A,'RESUMO MODULO TOTAL'!D45,'MOMENTO DE TRANSPORTE - AUX'!K:K) -> 5514710.6 | K45: 0.2339 | L45: =ROUND(IF(C45="CODEVASF",VLOOKUP(D45,'CPU CODEVASF'!E:I,5,FALSE),VLOOKUP(D45,'SINTÉTICO SICRO'!A:D,4,FALSE)),6) -> 0.81 | M45: =ROUND(IF(C45="CODEVASF",VLOOKUP(D45,'CPU CODEVASF'!E:H,4,FALSE),VLOOKUP(D45,'SINTÉTICO SICRO'!A:D,4,FALSE)*(1+$J$6)),6) -> 0.999459 | N45: 5511727.14 | P45: PAVIMENTAÇÃO
B46: 27 | C46: SICRO | D46: 5914449 | E46: =VLOOKUP(D46,'SINTÉTICO SICRO'!$A$4:$D$1048576,2,0) -> Transporte com caminhão carroceria de 15 t - rodovia em leito natural | I46: tkm | J46: =SUMIF('MOMENTO DE TRANSPORTE - PRINC'!A:A,'RESUMO MODULO TOTAL'!D46,'MOMENTO DE TRANSPORTE - PRINC'!K:K)+SUMIF('MOMENTO DE TRANSPORTE - AUX'!A:A,'RESUMO MODULO TOTAL'!D46,'MOMENTO DE TRANSPORTE - AUX'!K:K) -> 0 | K46: 0.2339 | L46: =ROUND(IF(C46="CODEVASF",VLOOKUP(D46,'CPU CODEVASF'!E:I,5,FALSE),VLOOKUP(D46,'SINTÉTICO SICRO'!A:D,4,FALSE)),6) -> 1.1 | M46: =ROUND(IF(C46="CODEVASF",VLOOKUP(D46,'CPU CODEVASF'!E:H,4,FALSE),VLOOKUP(D46,'SINTÉTICO SICRO'!A:D,4,FALSE)*(1+$J$6)),6) -> 1.35729 | N46: 0 | P46: PAVIMENTAÇÃO
B47: 28 | C47: SICRO | D47: 5914464 | E47: =VLOOKUP(D47,'SINTÉTICO SICRO'!$A$4:$D$1048576,2,0) -> Transporte com caminhão carroceria de 15 t - rodovia em revestimento primário | I47: tkm | J47: =SUMIF('MOMENTO DE TRANSPORTE - PRINC'!A:A,'RESUMO MODULO TOTAL'!D47,'MOMENTO DE TRANSPORTE - PRINC'!K:K)+SUMIF('MOMENTO DE TRANSPORTE - AUX'!A:A,'RESUMO MODULO TOTAL'!D47,'MOMENTO DE TRANSPORTE - AUX'!K:K) -> 433.0572568 | K47: 0.2339 | L47: =ROUND(IF(C47="CODEVASF",VLOOKUP(D47,'CPU CODEVASF'!E:I,5,FALSE),VLOOKUP(D47,'SINTÉTICO SICRO'!A:D,4,FALSE)),6) -> 0.88 | M47: =ROUND(IF(C47="CODEVASF",VLOOKUP(D47,'CPU CODEVASF'!E:H,4,FALSE),VLOOKUP(D47,'SINTÉTICO SICRO'!A:D,4,FALSE)*(1+$J$6)),6) -> 1.085832 | N47: 470.23 | P47: PAVIMENTAÇÃO
B48: 29 | C48: SICRO | D48: 5914479 | E48: =VLOOKUP(D48,'SINTÉTICO SICRO'!$A$4:$D$1048576,2,0) -> Transporte com caminhão carroceria de 15 t - rodovia pavimentada | I48: tkm | J48: =SUMIF('MOMENTO DE TRANSPORTE - PRINC'!A:A,'RESUMO MODULO TOTAL'!D48,'MOMENTO DE TRANSPORTE - PRINC'!K:K)+SUMIF('MOMENTO DE TRANSPORTE - AUX'!A:A,'RESUMO MODULO TOTAL'!D48,'MOMENTO DE TRANSPORTE - AUX'!K:K) -> 3897.515311 | K48: 0.2339 | L48: =ROUND(IF(C48="CODEVASF",VLOOKUP(D48,'CPU CODEVASF'!E:I,5,FALSE),VLOOKUP(D48,'SINTÉTICO SICRO'!A:D,4,FALSE)),6) -> 0.73 | M48: =ROUND(IF(C48="CODEVASF",VLOOKUP(D48,'CPU CODEVASF'!E:H,4,FALSE),VLOOKUP(D48,'SINTÉTICO SICRO'!A:D,4,FALSE)*(1+$J$6)),6) -> 0.900747 | N48: 3510.68 | P48: PAVIMENTAÇÃO
B49: 30 | C49: SICRO | D49: 5914569 | E49: =VLOOKUP(D49,'SINTÉTICO SICRO'!$A$4:$D$1048576,2,0) -> Transporte com caminhão betoneira - rodovia pavimentada | I49: tkm | J49: =SUMIF('MOMENTO DE TRANSPORTE - PRINC'!A:A,'RESUMO MODULO TOTAL'!D49,'MOMENTO DE TRANSPORTE - PRINC'!K:K)+SUMIF('MOMENTO DE TRANSPORTE - AUX'!A:A,'RESUMO MODULO TOTAL'!D49,'MOMENTO DE TRANSPORTE - AUX'!K:K) -> 393724.8 | K49: =M49/L49-1 -> 0.2339 | L49: =ROUND(IF(C49="CODEVASF",VLOOKUP(D49,'CPU CODEVASF'!E:I,5,FALSE),VLOOKUP(D49,'SINTÉTICO SICRO'!A:D,4,FALSE)),6) -> 0.65 | M49: =ROUND(IF(C49="CODEVASF",VLOOKUP(D49,'CPU CODEVASF'!E:H,4,FALSE),VLOOKUP(D49,'SINTÉTICO SICRO'!A:D,4,FALSE)*(1+$J$6)),6) -> 0.802035 | N49: =ROUND(ROUND(J49,2)*ROUND(M49,6),2) -> 315781.07 | P49: PAVIMENTAÇÃO
B50: 31 | C50: SICRO | D50: 5914554 | E50: =VLOOKUP(D50,'SINTÉTICO SICRO'!$A$4:$D$1048576,2,0) -> Transporte com caminhão betoneira - rodovia em revestimento primário | I50: tkm | J50: =SUMIF('MOMENTO DE TRANSPORTE - PRINC'!A:A,'RESUMO MODULO TOTAL'!D50,'MOMENTO DE TRANSPORTE - PRINC'!K:K)+SUMIF('MOMENTO DE TRANSPORTE - AUX'!A:A,'RESUMO MODULO TOTAL'!D50,'MOMENTO DE TRANSPORTE - AUX'!K:K) -> 43747.2 | K50: 0.2339 | L50: =ROUND(IF(C50="CODEVASF",VLOOKUP(D50,'CPU CODEVASF'!E:I,5,FALSE),VLOOKUP(D50,'SINTÉTICO SICRO'!A:D,4,FALSE)),6) -> 0.79 | M50: =ROUND(IF(C50="CODEVASF",VLOOKUP(D50,'CPU CODEVASF'!E:H,4,FALSE),VLOOKUP(D50,'SINTÉTICO SICRO'!A:D,4,FALSE)*(1+$J$6)),6) -> 0.974781 | N50: 42643.94 | P50: PAVIMENTAÇÃO
B51: 32 | C51: SICRO | D51: 5914539 | E51: =VLOOKUP(D51,'SINTÉTICO SICRO'!$A$4:$D$1048576,2,0) -> Transporte com caminhão betoneira - rodovia em leito natural | I51: tkm | J51: =SUMIF('MOMENTO DE TRANSPORTE - PRINC'!A:A,'RESUMO MODULO TOTAL'!D51,'MOMENTO DE TRANSPORTE - PRINC'!K:K)+SUMIF('MOMENTO DE TRANSPORTE - AUX'!A:A,'RESUMO MODULO TOTAL'!D51,'MOMENTO DE TRANSPORTE - AUX'!K:K) -> 0 | K51: 0.2339 | L51: =ROUND(IF(C51="CODEVASF",VLOOKUP(D51,'CPU CODEVASF'!E:I,5,FALSE),VLOOKUP(D51,'SINTÉTICO SICRO'!A:D,4,FALSE)),6) -> 0.98 | M51: =ROUND(IF(C51="CODEVASF",VLOOKUP(D51,'CPU CODEVASF'!E:H,4,FALSE),VLOOKUP(D51,'SINTÉTICO SICRO'!A:D,4,FALSE)*(1+$J$6)),6) -> 1.209222 | N51: 0 | P51: PAVIMENTAÇÃO
B52: VALOR TOTAL DO SRP | N52: =INT(SUM(N10:N51)) -> 24156020 | AB52: =SUM(AB19:AB41) -> 35389795.7
B53: Obs.: Os valores estão apresentados com apenas 2 casas decimais, mas os valores da presente planilha foram calculados utilizando a precisão de 6 casa decimais.
N56: =246.49*I8 -> 24156020

Sheet CRONOGRAMA TOTAL
A2: ='RESUMO MODULO TOTAL'!B1 -> EXECUÇÃO DE SERVIÇOS DE IMPLANTAÇÃO DE PAVIMENTAÇÃO EM BLOCO DE CONCRETO INTERTRAVADO, EM VIAS DE MUNICÍPIOS DIVERSOS INSERIDOS NA ÁREA DE ATUAÇÃO DA CODEVASF, NO ESTADO DO RIO GRANDE DO NORTE (REGIÃO 3)
A3: Cronograma Físico e Financeiro
A4: Item | B4: Descrição | C4: Total Por Etapa | D4: 30 DIAS | E4: 60 DIAS | F4: 90 DIAS | G4: 120 DIAS | H4: 150 DIAS | I4: 180 DIAS | J4: 210 DIAS | K4: 240 DIAS | L4: 270 DIAS | M4: 300 DIAS | N4: 330 DIAS | O4: 360 DIAS
B5: ='RESUMO MODULO TOTAL'!E10 -> MOBILIZAÇÃO/DESMOBILIZAÇÃO | C5: =SUM(D5:O5) -> 1 | D5: 0.5 | O5: 0.5
C6: =SUM('RESUMO MODULO TOTAL'!N11:N12) -> 203381.88 | D6: =$C$6*D5 -> 101690.94 | O6: =$C$6*O5 -> 101690.94 | P6: =SUM(D6:O6) -> 203381.88 | Q6: =IF(P6=C6,"OK","") -> OK
B7: ='RESUMO MODULO TOTAL'!E13 -> INSTALAÇÃO DE CANTEIRO | C7: =SUM(D7:O7) -> 1 | D7: 0.1 | E7: 0.5 | F7: 0.4
C8: =SUM('RESUMO MODULO TOTAL'!N14:N16) -> 611692.03 | D8: =$C$8*D7 -> 61169.203 | E8: =$C$8*E7 -> 305846.015 | F8: 244676.812 | G8: 0 | H8: 0 | I8: 0 | J8: 0 | K8: 0 | L8: 0 | M8: 0 | N8: 0 | O8: 0 | P8: =SUM(D8:O8) -> 611692.03 | Q8: =IF(P8=C8,"OK","") -> OK
B9: ='RESUMO MODULO TOTAL'!E17 -> ADMINISTRAÇÃO LOCAL DA OBRA | C9: =SUM(D9:O9) -> 1.000000037 | D9: =(D6+D8+D12+D14+D16+D18+D20+D22+D24)/($O$31-$C$10) -> 0.007195858385 | E9: =(E6+E8+E12+E14+E16+E18+E20+E22+E24)/($O$31-$C$10) -> 0.01351358639 | F9: 0.04317752787 | G9: 0.03236665876 | H9: 0.03879085422 | I9: =(I6+I8+I12+I14+I16+I18+I20+I22+I24)/($O$31-$C$10) -> 0.1519821342 | J9: 0.1278221077 | K9: 0.1278221077 | L9: 0.1278221077 | M9: 0.1278221077 | N9: 0.1512819742 | O9: 0.05040301223
C10: =SUM('RESUMO MODULO TOTAL'!N18) -> 1523536.94 | D10: =$C$10*D9 -> 10963.15606 | E10: =$C$10*E9 -> 20588.44805 | F10: =$C$10*F9 -> 65782.55868 | G10: 49311.80024 | H10: 59099.29934 | I10: 231550.3957 | J10: 194741.7029 | K10: 194741.7029 | L10: 194741.7029 | M10: 194741.7029 | N10: 230483.676 | O10: 76790.85102 | P10: =SUM(D10:O10) -> 1523536.997 | Q10: =IF(P10=C10,"OK","") -> 
B11: ='RESUMO MODULO TOTAL'!E19 -> TERRAPLANAGEM | C11: =SUM(D11:O11) -> 1 | F11: =1/4 -> 0.25 | G11: =1/4 -> 0.25 | H11: =1/4 -> 0.25 | I11: =1/4 -> 0.25
C12: =SUM('RESUMO MODULO TOTAL'!N20:N21) -> 281095.74 | D12: =$C$14*D11 -> 0 | E12: =$C$12*E11 -> 0 | F12: 70273.935 | G12: 70273.935 | H12: 70273.935 | I12: 70273.935 | J12: 0 | K12: 0 | L12: 0 | M12: 0 | N12: 0 | O12: 0 | P12: =SUM(D12:O12) -> 281095.74 | Q12: =IF(P12=C12,"OK","") -> OK
B13: ='RESUMO MODULO TOTAL'!E22 -> PAVIMENTAÇÃO | C13: =SUM(D13:O13) -> 1 | I13: =1/6 -> 0.1666666667 | J13: =1/6 -> 0.1666666667 | K13: 0.1666666667 | L13: 0.1666666667 | M13: 0.1666666667 | N13: 0.1666666667
C14: =SUM('RESUMO MODULO TOTAL'!N23:N29) -> 13384006.6 | D14: =$C$14*D13 -> 0 | E14: =$C$14*E13 -> 0 | F14: 0 | G14: 0 | H14: 0 | I14: 2230667.767 | J14: 2230667.767 | K14: 2230667.767 | L14: 2230667.767 | M14: 2230667.767 | N14: 2230667.767 | O14: 0 | P14: =SUM(D14:O14) -> 13384006.6 | Q14: =IF(P14=C14,"OK","") -> OK
B15: ='RESUMO MODULO TOTAL'!E30 -> SINALIZAÇÃO | C15: =SUM(D15:O15) -> 1 | O15: 1
C16: =SUM('RESUMO MODULO TOTAL'!N31:N34) -> 176967.39 | D16: =$C$16*D15 -> 0 | E16: =$C$16*E15 -> 0 | F16: 0 | G16: 0 | H16: 0 | I16: 0 | J16: 0 | K16: 0 | L16: 0 | M16: 0 | N16: 0 | O16: 176967.39 | P16: =SUM(D16:O16) -> 176967.39 | Q16: =IF(P16=C16,"OK","") -> OK
B17: ='RESUMO MODULO TOTAL'!E35 -> DRENAGEM | C17: =SUM(D17:O17) -> 1 | N17: 0.5 | O17: 0.5
C18: =SUM('RESUMO MODULO TOTAL'!N36:N37) -> 1035881.75 | D18: =$C$18*D17 -> 0 | E18: =$C$18*E17 -> 0 | F18: 0 | G18: 0 | H18: 0 | I18: 0 | J18: 0 | K18: 0 | L18: 0 | M18: 0 | N18: 517940.875 | O18: 517940.875 | P18: =SUM(D18:O18) -> 1035881.75 | Q18: =IF(P18=C18,"OK","") -> OK
B19: ='RESUMO MODULO TOTAL'!E38 -> SERVIÇOS COMPLEMENTARES | C19: =SUM(D19:O19) -> 1 | N19: 0.5 | O19: 0.5
C20: =SUM('RESUMO MODULO TOTAL'!N39) -> 26028.31 | D20: =$C$20*D19 -> 0 | E20: =$C$20*E19 -> 0 | F20: 0 | G20: 0 | H20: 0 | I20: 0 | J20: 0 | K20: 0 | L20: 0 | M20: 0 | N20: 13014.155 | O20: 13014.155 | P20: =SUM(D20:O20) -> 26028.31 | Q20: =IF(P20=C20,"OK","") -> OK
B21: ='RESUMO MODULO TOTAL'!E40 -> PROJETO EXECUTIVO | C21: =SUM(D21:O21) -> 1 | H21: 0.5 | I21: 0.5
C22: =SUM('RESUMO MODULO TOTAL'!N41) -> 290790.99 | D22: =$C$22*D21 -> 0 | E22: =$C$22*E21 -> 0 | F22: 0 | G22: 0 | H22: 145395.495 | I22: 145395.495 | J22: 0 | K22: 0 | L22: 0 | M22: 0 | N22: 0 | O22: 0 | P22: =SUM(D22:O22) -> 290790.99 | Q22: =IF(P22=C22,"OK","") -> OK
B23: ='RESUMO MODULO TOTAL'!E42 -> MOMENTO DE TRANSPORTE | C23: =SUM(D23:O23) -> 1 | F23: 0.1 | G23: 0.1 | H23: 0.1 | I23: 0.15 | J23: 0.1 | K23: 0.1 | L23: 0.1 | M23: 0.1 | N23: 0.1 | O23: 0.05
C24: =SUM('RESUMO MODULO TOTAL'!N43:N51) -> 6622639.21 | D24: =$C$24*D23 -> 0 | E24: =$C$24*E23 -> 0 | F24: 662263.921 | G24: 662263.921 | H24: 662263.921 | I24: 993395.8815 | J24: 662263.921 | K24: 662263.921 | L24: 662263.921 | M24: 662263.921 | N24: 662263.921 | O24: 331131.9605 | P24: =SUM(D24:O24) -> 6622639.21 | Q24: =IF(P24=C24,"OK","") -> OK
A26: Porcentagem | D26: =SUM(D6+D8+D10+D12+D14+D16+D18+D20+D22+D24)/$O$31 -> 0.007195858385 | E26: =SUM(E6+E8+E10+E12+E14+E16+E18+E20+E22+E24)/$O$31 -> 0.01351358639 | F26: 0.04317752787 | G26: 0.03236665876 | H26: 0.03879085422 | I26: 0.1519821342 | J26: 0.1278221077 | K26: 0.1278221077 | L26: 0.1278221077 | M26: 0.1278221077 | N26: 0.1512819742 | O26: 0.05040301223
A27: Custo | D27: =$O$31*D26 -> 173823.2991 | E27: =$O$31*E26 -> 326434.4631 | F27: =$O$31*F26 -> 1042997.227 | G27: 781849.6562 | H27: 937032.6503 | I27: 3671283.474 | J27: 3087673.391 | K27: 3087673.391 | L27: 3087673.391 | M27: 3087673.391 | N27: 3654370.394 | O27: 1217536.172
A28: Porcentagem Acumulado | D28: =D26 -> 0.007195858385 | E28: =D28+E26 -> 0.02070944477 | F28: =E28+F26 -> 0.06388697264 | G28: 0.09625363139 | H28: 0.1350444856 | I28: 0.2870266198 | J28: 0.4148487276 | K28: 0.5426708353 | L28: 0.670492943 | M28: 0.7983150507 | N28: 0.9495970249 | O28: =N28+O26 -> 1.000000037
A29: Custo Acumulado | D29: =D27 -> 173823.2991 | E29: =D29+E27 -> 500257.7621 | F29: 1543254.989 | G29: 2325104.645 | H29: 3262137.295 | I29: 6933420.769 | J29: 10021094.16 | K29: 13108767.55 | L29: 16196440.94 | M29: 19284114.33 | N29: 22938484.73 | O29: =INT(N29+O27) -> 24156020
D31: Total Geral | N31: R$ | O31: =INT(C6+C8+C10+C12+C14+C16+C18+C20+C22+C24) -> 24156020
O34: =O29-O31 -> 0
O36: ='RESUMO MODULO TOTAL'!N52 -> 24156020

Sheet Mob
A4: ='RESUMO MODULO TOTAL'!B1 -> EXECUÇÃO DE SERVIÇOS DE IMPLANTAÇÃO DE PAVIMENTAÇÃO EM BLOCO DE CONCRETO INTERTRAVADO, EM VIAS DE MUNICÍPIOS DIVERSOS INSERIDOS NA ÁREA DE ATUAÇÃO DA CODEVASF, NO ESTADO DO RIO GRANDE DO NORTE (REGIÃO 3)
A5: MOBILIZAÇÃO/DESMOBILIZAÇÃO (MOB) | F5: Frentes de serviços | H5: ='MC MODULO'!G1 -> 7
F6: Distância da Capital ao Canteiro: | H6: 158 | I6: Fica a cargo de cada SR colocar a distancia adequada de acordo com o historico de mobilização
F8: Velocidade média de transporte (pavim.): | H8: 60
A10: Transporte dos equipamentos
A11: CODIGO | B11: EQUIPAMENTO | C11: VEÍCULO TRANSPORTADOR | D11: QTDE | E11: K | F11: FU | G11: CUSTO DO TRANSPORTE
G12: (R$/h) | H12: (R$)/km
A13: E9524 | B13: =VLOOKUP(A13,Equipamentos!$A:$K,2,FALSE) -> Motoniveladora - 93 kW | C13: =IFERROR(INDEX('Tabelas 2 e 3 mob'!A:K,MATCH(A13,'Tabelas 2 e 3 mob'!A:A,0),9),"ERRO") -> E9665 | D13: 1 | E13: 2 | F13: 1 | G13: =IF(C13="Veículo(s) da própria frota.",0,INDEX(Equipamentos!B:K,MATCH(C13,Equipamentos!A:A,0),10)) -> 128.1995 | H13: =((D13*E13*F13)/$H$8)*G13 -> 4.273316667
A14: E9526 | B14: =VLOOKUP(A14,Equipamentos!$A:$K,2,FALSE) -> Retroescavadeira de pneus - capacidade da caçamba da pá-carregadeira de 0,76 m³ e da retroescavadeira de 0,29 m³ - 58 kW | C14: =IFERROR(INDEX('Tabelas 2 e 3 mob'!A:K,MATCH(A14,'Tabelas 2 e 3 mob'!A:A,0),9),"ERRO") -> E9665 | D14: 1 | E14: 2 | F14: 1 | G14: =IF(C14="Veículo(s) da própria frota.",0,INDEX(Equipamentos!B:K,MATCH(C14,Equipamentos!A:A,0),10)) -> 128.1995 | H14: =((D14*E14*F14)/$H$8)*G14 -> 4.273316667
A15: E9577 | B15: =VLOOKUP(A15,Equipamentos!$A:$K,2,FALSE) -> Trator agrícola sobre pneus - 77 kW | C15: =IFERROR(INDEX('Tabelas 2 e 3 mob'!A:K,MATCH(A15,'Tabelas 2 e 3 mob'!A:A,0),9),"ERRO") -> E9665 | D15: 1 | E15: 2 | F15: 0.5 | G15: =IF(C15="Veículo(s) da própria frota.",0,INDEX(Equipamentos!B:K,MATCH(C15,Equipamentos!A:A,0),10)) -> 128.1995 | H15: 2.136658333
A16: E9518 | B16: =VLOOKUP(A16,Equipamentos!$A:$K,2,FALSE) -> Grade de 24 discos rebocável de D = 60 cm (24") | C16: =IFERROR(INDEX('Tabelas 2 e 3 mob'!A:K,MATCH(A16,'Tabelas 2 e 3 mob'!A:A,0),9),"ERRO") -> Veículo(s) da própria frota. | D16: 1 | E16: 2 | F16: 0 | G16: =IF(C16="Veículo(s) da própria frota.",0,INDEX(Equipamentos!B:K,MATCH(C16,Equipamentos!A:A,0),10)) -> 0 | H16: 0
A17: E9615 | B17: =VLOOKUP(A17,Equipamentos!$A:$K,2,FALSE) -> Usina misturadora de solos com capacidade de 300 t/h - 44 kW | C17: =IFERROR(INDEX('Tabelas 2 e 3 mob'!A:K,MATCH(A17,'Tabelas 2 e 3 mob'!A:A,0),9),"ERRO") -> E9018 | D17: 1 | E17: 2 | F17: 2 | G17: =IF(C17="Veículo(s) da própria frota.",0,INDEX(Equipamentos!B:K,MATCH(C17,Equipamentos!A:A,0),10)) -> 167.9804 | H17: 11.19869333
A18: E9530 | B18: =VLOOKUP(A18,Equipamentos!$A:$K,2,FALSE) -> Rolo compactador liso vibratório autopropelido por pneus de 11 t - 97 kW | C18: =IFERROR(INDEX('Tabelas 2 e 3 mob'!A:K,MATCH(A18,'Tabelas 2 e 3 mob'!A:A,0),9),"ERRO") -> E9666 | D18: 1 | E18: 2 | F18: 0.5 | G18: =IF(C18="Veículo(s) da própria frota.",0,INDEX(Equipamentos!B:K,MATCH(C18,Equipamentos!A:A,0),10)) -> 133.3255 | H18: 2.222091667
A19: E9558 | B19: =VLOOKUP(A19,Equipamentos!$A:$K,2,FALSE) -> Tanque de estocagem de asfalto com capacidade de 30.000 l | C19: =IFERROR(INDEX('Tabelas 2 e 3 mob'!A:K,MATCH(A19,'Tabelas 2 e 3 mob'!A:A,0),9),"ERRO") -> E9665 | D19: 0 | E19: 2 | F19: 1 | G19: =IF(C19="Veículo(s) da própria frota.",0,INDEX(Equipamentos!B:K,MATCH(C19,Equipamentos!A:A,0),10)) -> 128.1995 | H19: 0
A20: E9758 | B20: =VLOOKUP(A20,Equipamentos!$A:$K,2,FALSE) -> Vibroacabadora de asfalto sobre pneus - 82 kW | C20: =IFERROR(INDEX('Tabelas 2 e 3 mob'!A:K,MATCH(A20,'Tabelas 2 e 3 mob'!A:A,0),9),"ERRO") -> E9018 | D20: 0 | E20: 2 | F20: 0.5 | G20: =IF(C20="Veículo(s) da própria frota.",0,INDEX(Equipamentos!B:K,MATCH(C20,Equipamentos!A:A,0),10)) -> 167.9804 | H20: 0
A21: E9685 | B21: =VLOOKUP(A21,Equipamentos!$A:$K,2,FALSE) -> Rolo compactador pé de carneiro vibratório autopropelido por pneus de 11,6 t - 82 kW | C21: =IFERROR(INDEX('Tabelas 2 e 3 mob'!A:K,MATCH(A21,'Tabelas 2 e 3 mob'!A:A,0),9),"ERRO") -> E9666 | D21: 1 | E21: 2 | F21: 0.5 | G21: =IF(C21="Veículo(s) da própria frota.",0,INDEX(Equipamentos!B:K,MATCH(C21,Equipamentos!A:A,0),10)) -> 133.3255 | H21: 2.222091667
A22: E9605 | B22: =VLOOKUP(A22,Equipamentos!$A:$K,2,FALSE) -> Caminhão tanque com capacidade de 6.000 l - 136 kW | C22: =IFERROR(INDEX('Tabelas 2 e 3 mob'!A:K,MATCH(A22,'Tabelas 2 e 3 mob'!A:A,0),9),"ERRO") -> E9605 | D22: 1 | E22: 1 | F22: 1 | G22: =IF(C22="Veículo(s) da própria frota.",0,INDEX(Equipamentos!B:K,MATCH(C22,Equipamentos!A:A,0),10)) -> 74.5082 | H22: 1.241803333
A23: E9579 | B23: =VLOOKUP(A23,Equipamentos!$A:$K,2,FALSE) -> Caminhão basculante com capacidade de 10 m³ - 210 kW | C23: =IFERROR(INDEX('Tabelas 2 e 3 mob'!A:K,MATCH(A23,'Tabelas 2 e 3 mob'!A:A,0),9),"ERRO") -> E9579 | D23: 5 | E23: 1 | F23: 1 | G23: =IF(C23="Veículo(s) da própria frota.",0,INDEX(Equipamentos!B:K,MATCH(C23,Equipamentos!A:A,0),10)) -> 90.2153 | H23: 7.517941667
A24: E9509 | B24: =VLOOKUP(A24,Equipamentos!$A:$K,2,FALSE) -> Caminhão tanque distribuidor de asfalto com capacidade de 6.000 l - 7 kW/136 kW | C24: =IFERROR(INDEX('Tabelas 2 e 3 mob'!A:K,MATCH(A24,'Tabelas 2 e 3 mob'!A:A,0),9),"ERRO") -> E9509 | D24: 0 | E24: 1 | F24: 1 | G24: =IF(C24="Veículo(s) da própria frota.",0,INDEX(Equipamentos!B:K,MATCH(C24,Equipamentos!A:A,0),10)) -> 76.9186 | H24: 0
A25: E9762 | B25: =VLOOKUP(A25,Equipamentos!$A:$K,2,FALSE) -> Rolo compactador de pneus autopropelido de 27 t - 85 kW | C25: =IFERROR(INDEX('Tabelas 2 e 3 mob'!A:K,MATCH(A25,'Tabelas 2 e 3 mob'!A:A,0),9),"ERRO") -> E9666 | D25: 1 | E25: 2 | F25: 0.5 | G25: =IF(C25="Veículo(s) da própria frota.",0,INDEX(Equipamentos!B:K,MATCH(C25,Equipamentos!A:A,0),10)) -> 133.3255 | H25: 2.222091667
A26: E9681 | B26: =VLOOKUP(A26,Equipamentos!$A:$K,2,FALSE) -> Rolo compactador liso tandem vibratório autopropelido de 10,4 t - 82 kW | C26: =IFERROR(INDEX('Tabelas 2 e 3 mob'!A:K,MATCH(A26,'Tabelas 2 e 3 mob'!A:A,0),9),"ERRO") -> E9666 | D26: 0 | E26: 2 | F26: 0.5 | G26: =IF(C26="Veículo(s) da própria frota.",0,INDEX(Equipamentos!B:K,MATCH(C26,Equipamentos!A:A,0),10)) -> 133.3255 | H26: 0
A27: E9545 | B27: =VLOOKUP(A27,Equipamentos!$A:$K,2,FALSE) -> Vibroacabadora de asfalto sobre esteiras - 82 kW | C27: =IFERROR(INDEX('Tabelas 2 e 3 mob'!A:K,MATCH(A27,'Tabelas 2 e 3 mob'!A:A,0),9),"ERRO") -> E9018 | D27: 0 | E27: 2 | F27: 0.5 | G27: =IF(C27="Veículo(s) da própria frota.",0,INDEX(Equipamentos!B:K,MATCH(C27,Equipamentos!A:A,0),10)) -> 167.9804 | H27: 0
A28: E9571 | B28: =VLOOKUP(A28,Equipamentos!$A:$K,2,FALSE) -> Caminhão tanque com capacidade de 10.000 l - 188 kW | C28: =IFERROR(INDEX('Tabelas 2 e 3 mob'!A:K,MATCH(A28,'Tabelas 2 e 3 mob'!A:A,0),9),"ERRO") -> E9571 | D28: 1 | E28: 1 | F28: 1 | G28: =IF(C28="Veículo(s) da própria frota.",0,INDEX(Equipamentos!B:K,MATCH(C28,Equipamentos!A:A,0),10)) -> 87.2592 | H28: 1.45432
A29: E9514 | B29: =VLOOKUP(A29,Equipamentos!$A:$K,2,FALSE) -> Distribuidor de agregados sobre pneus autopropelido - 130 kW | C29: =IFERROR(INDEX('Tabelas 2 e 3 mob'!A:K,MATCH(A29,'Tabelas 2 e 3 mob'!A:A,0),9),"ERRO") -> E9665 | D29: 1 | E29: 2 | F29: 0.5 | G29: =IF(C29="Veículo(s) da própria frota.",0,INDEX(Equipamentos!B:K,MATCH(C29,Equipamentos!A:A,0),10)) -> 128.1995 | H29: 2.136658333
A30: E9511 | B30: =VLOOKUP(A30,Equipamentos!$A:$K,2,FALSE) -> Carregadeira de pneus com capacidade de 3,40 m³ - 195 kW | C30: =IFERROR(INDEX('Tabelas 2 e 3 mob'!A:K,MATCH(A30,'Tabelas 2 e 3 mob'!A:A,0),9),"ERRO") -> E9665 | D30: 1 | E30: 2 | F30: 1 | G30: =IF(C30="Veículo(s) da própria frota.",0,INDEX(Equipamentos!B:K,MATCH(C30,Equipamentos!A:A,0),10)) -> 128.1995 | H30: 4.273316667
A31: E9779 | B31: =VLOOKUP(A31,Equipamentos!$A:$K,2,FALSE) -> Grupo gerador - 113 kVA | C31: =IFERROR(INDEX('Tabelas 2 e 3 mob'!A:K,MATCH(A31,'Tabelas 2 e 3 mob'!A:A,0),9),"ERRO") -> Veículo(s) da própria frota. | D31: 1 | E31: 2 | F31: 0 | G31: =IF(C31="Veículo(s) da própria frota.",0,INDEX(Equipamentos!B:K,MATCH(C31,Equipamentos!A:A,0),10)) -> 0 | H31: 0
A32: E9559 | B32: =VLOOKUP(A32,Equipamentos!$A:$K,2,FALSE) -> Aquecedor de fluido térmico - 12 kW | C32: =IFERROR(INDEX('Tabelas 2 e 3 mob'!A:K,MATCH(A32,'Tabelas 2 e 3 mob'!A:A,0),9),"ERRO") -> Veículo(s) da própria frota. | D32: 1 | E32: 2 | F32: 0 | G32: =IF(C32="Veículo(s) da própria frota.",0,INDEX(Equipamentos!B:K,MATCH(C32,Equipamentos!A:A,0),10)) -> 0 | H32: 0
A33: E9584 | B33: =VLOOKUP(A33,Equipamentos!$A:$K,2,FALSE) -> Carregadeira de pneus com capacidade de 1,72 m³ - 113 kW | C33: =IFERROR(INDEX('Tabelas 2 e 3 mob'!A:K,MATCH(A33,'Tabelas 2 e 3 mob'!A:A,0),9),"ERRO") -> E9665 | D33: 1 | E33: 2 | F33: 1 | G33: =IF(C33="Veículo(s) da própria frota.",0,INDEX(Equipamentos!B:K,MATCH(C33,Equipamentos!A:A,0),10)) -> 128.1995 | H33: 4.273316667
A34: E9021 | B34: =VLOOKUP(A34,Equipamentos!$A:$K,2,FALSE) -> Grupo gerador - 456 kVA | C34: =IFERROR(INDEX('Tabelas 2 e 3 mob'!A:K,MATCH(A34,'Tabelas 2 e 3 mob'!A:A,0),9),"ERRO") -> E9508 | D34: 1 | E34: 2 | F34: 1 | G34: =IF(C34="Veículo(s) da própria frota.",0,INDEX(Equipamentos!B:K,MATCH(C34,Equipamentos!A:A,0),10)) -> 74.1716 | H34: 2.472386667
A35: E9687 | B35: =VLOOKUP(A35,Equipamentos!$A:$K,2,FALSE) -> Caminhão carroceria com capacidade de 5 t - 115 kW | C35: =IFERROR(INDEX('Tabelas 2 e 3 mob'!A:K,MATCH(A35,'Tabelas 2 e 3 mob'!A:A,0),9),"ERRO") -> E9687 | D35: 1 | E35: 1 | F35: 1 | G35: =IF(C35="Veículo(s) da própria frota.",0,INDEX(Equipamentos!B:K,MATCH(C35,Equipamentos!A:A,0),10)) -> 62.9872 | H35: 1.049786667
A36: E9667 | B36: =VLOOKUP(A36,Equipamentos!$A:$K,2,FALSE) -> Caminhão basculante com capacidade de 14 m³ - 210 kW | C36: =IFERROR(INDEX('Tabelas 2 e 3 mob'!A:K,MATCH(A36,'Tabelas 2 e 3 mob'!A:A,0),9),"ERRO") -> E9667 | D36: 1 | E36: 1 | F36: 1 | G36: =IF(C36="Veículo(s) da própria frota.",0,INDEX(Equipamentos!B:K,MATCH(C36,Equipamentos!A:A,0),10)) -> 90.7798 | H36: 1.512996667
A37: E9644 | B37: =VLOOKUP(A37,Equipamentos!$A:$K,2,FALSE) -> Caminhão demarcador de faixas com sistema de pintura a frio - 28 kW/115 kW | C37: =IFERROR(INDEX('Tabelas 2 e 3 mob'!A:K,MATCH(A37,'Tabelas 2 e 3 mob'!A:A,0),9),"ERRO") -> E9644 | D37: 1 | E37: 1 | F37: 1 | G37: =IF(C37="Veículo(s) da própria frota.",0,INDEX(Equipamentos!B:K,MATCH(C37,Equipamentos!A:A,0),10)) -> 159.1031 | H37: 2.651718333
A38: E9592 | B38: =VLOOKUP(A38,Equipamentos!$A:$K,2,FALSE) -> Caminhão carroceria com capacidade de 15 t - 188 kW | C38: =IFERROR(INDEX('Tabelas 2 e 3 mob'!A:K,MATCH(A38,'Tabelas 2 e 3 mob'!A:A,0),9),"ERRO") -> E9592 | D38: 1 | E38: 1 | F38: 1 | G38: =IF(C38="Veículo(s) da própria frota.",0,INDEX(Equipamentos!B:K,MATCH(C38,Equipamentos!A:A,0),10)) -> 81.8378 | H38: 1.363963333
A39: E9540 | B39: =VLOOKUP(A39,Equipamentos!$A:$K,2,FALSE) -> Trator sobre esteiras com lâmina - 127 kW | C39: =IFERROR(INDEX('Tabelas 2 e 3 mob'!A:K,MATCH(A39,'Tabelas 2 e 3 mob'!A:A,0),9),"ERRO") -> E9018 | D39: 1 | E39: 2 | F39: 0.5 | G39: =IF(C39="Veículo(s) da própria frota.",0,INDEX(Equipamentos!B:K,MATCH(C39,Equipamentos!A:A,0),10)) -> 167.9804 | H39: 2.799673333
A40: E9515 | B40: =VLOOKUP(A40,Equipamentos!$A:$K,2,FALSE) -> Escavadeira hidráulica sobre esteiras com caçamba com capacidade de 1,56 m³ - 118 kW | C40: =IFERROR(INDEX('Tabelas 2 e 3 mob'!A:K,MATCH(A40,'Tabelas 2 e 3 mob'!A:A,0),9),"ERRO") -> E9666 | D40: 1 | E40: 2 | F40: 1 | G40: =IF(C40="Veículo(s) da própria frota.",0,INDEX(Equipamentos!B:K,MATCH(C40,Equipamentos!A:A,0),10)) -> 133.3255 | H40: 4.444183333
A41: E9506 | B41: =VLOOKUP(A41,Equipamentos!$A:$K,2,FALSE) -> Caminhão basculante com capacidade de 6 m³ - 136 kW | C41: =IFERROR(INDEX('Tabelas 2 e 3 mob'!A:K,MATCH(A41,'Tabelas 2 e 3 mob'!A:A,0),9),"ERRO") -> E9506 | D41: 1 | E41: 1 | F41: 1 | G41: =IF(C41="Veículo(s) da própria frota.",0,INDEX(Equipamentos!B:K,MATCH(C41,Equipamentos!A:A,0),10)) -> 74.3782 | H41: 1.239636667
A42: E9256 | B42: =VLOOKUP(A42,Equipamentos!$A:$K,2,FALSE) -> Equipamento para pintura com cal rebocável com dois bicos aplicadores e capacidade de 2.200 l | C42: =IFERROR(INDEX('Tabelas 2 e 3 mob'!A:K,MATCH(A42,'Tabelas 2 e 3 mob'!A:A,0),9),"ERRO") -> Veículo(s) da própria frota. | D42: 1 | E42: 2 | F42: 0 | G42: =IF(C42="Veículo(s) da própria frota.",0,INDEX(Equipamentos!B:K,MATCH(C42,Equipamentos!A:A,0),10)) -> 0 | H42: 0
A43: E9156 | B43: =VLOOKUP(A43,Equipamentos!$A:$K,2,FALSE) -> Soprador de ar costal - 2,6 kW | C43: =IFERROR(INDEX('Tabelas 2 e 3 mob'!A:K,MATCH(A43,'Tabelas 2 e 3 mob'!A:A,0),9),"ERRO") -> Veículo(s) da própria frota. | D43: 1 | E43: 2 | F43: 0 | G43: =IF(C43="Veículo(s) da própria frota.",0,INDEX(Equipamentos!B:K,MATCH(C43,Equipamentos!A:A,0),10)) -> 0 | H43: 0
A44: E9146 | B44: =VLOOKUP(A44,Equipamentos!$A:$K,2,FALSE) -> Caminhão silo com capacidade de 30 m³ - 265 kW | C44: =IFERROR(INDEX('Tabelas 2 e 3 mob'!A:K,MATCH(A44,'Tabelas 2 e 3 mob'!A:A,0),9),"ERRO") -> E9146 | D44: 1 | E44: 1 | F44: 1 | G44: =IF(C44="Veículo(s) da própria frota.",0,INDEX(Equipamentos!B:K,MATCH(C44,Equipamentos!A:A,0),10)) -> 116.1772 | H44: 1.936286667
A45: E9599 | B45: =VLOOKUP(A45,Equipamentos!$A:$K,2,FALSE) -> Central de concreto com capacidade de 30 m³/h - dosadora RS | C45: =IFERROR(INDEX('Tabelas 2 e 3 mob'!A:K,MATCH(A45,'Tabelas 2 e 3 mob'!A:A,0),9),"ERRO") -> E9018 | D45: 1 | E45: 2 | F45: 1 | G45: =IF(C45="Veículo(s) da própria frota.",0,INDEX(Equipamentos!B:K,MATCH(C45,Equipamentos!A:A,0),10)) -> 167.9804 | H45: 5.599346667
A46: E9103 | B46: =VLOOKUP(A46,Equipamentos!$A:$K,2,FALSE) -> Extrusora para meio-fio de concreto - 10,44 kW | C46: =IFERROR(INDEX('Tabelas 2 e 3 mob'!A:K,MATCH(A46,'Tabelas 2 e 3 mob'!A:A,0),9),"ERRO") -> Veículo(s) da própria frota. | D46: 1 | E46: 2 | F46: 0 | G46: =IF(C46="Veículo(s) da própria frota.",0,INDEX(Equipamentos!B:K,MATCH(C46,Equipamentos!A:A,0),10)) -> 0 | H46: 0
A47: E9071 | B47: =VLOOKUP(A47,Equipamentos!$A:$K,2,FALSE) -> Transportador manual carrinho de mão com capacidade de 80 l | C47: =IFERROR(INDEX('Tabelas 2 e 3 mob'!A:K,MATCH(A47,'Tabelas 2 e 3 mob'!A:A,0),9),"ERRO") -> Veículo(s) da própria frota. | D47: 0 | E47: 2 | F47: 0 | G47: =IF(C47="Veículo(s) da própria frota.",0,INDEX(Equipamentos!B:K,MATCH(C47,Equipamentos!A:A,0),10)) -> 0 | H47: 0
A48: E9064 | B48: =VLOOKUP(A48,Equipamentos!$A:$K,2,FALSE) -> Transportador manual gerica com capacidade de 180 l | C48: =IFERROR(INDEX('Tabelas 2 e 3 mob'!A:K,MATCH(A48,'Tabelas 2 e 3 mob'!A:A,0),9),"ERRO") -> Veículo(s) da própria frota. | D48: 0 | E48: 2 | F48: 0 | G48: =IF(C48="Veículo(s) da própria frota.",0,INDEX(Equipamentos!B:K,MATCH(C48,Equipamentos!A:A,0),10)) -> 0 | H48: 0
A49: E9066 | B49: =VLOOKUP(A49,Equipamentos!$A:$K,2,FALSE) -> Grupo gerador - 14 kVA | C49: =IFERROR(INDEX('Tabelas 2 e 3 mob'!A:K,MATCH(A49,'Tabelas 2 e 3 mob'!A:A,0),9),"ERRO") -> Veículo(s) da própria frota. | D49: 0 | E49: 2 | F49: 0 | G49: =IF(C49="Veículo(s) da própria frota.",0,INDEX(Equipamentos!B:K,MATCH(C49,Equipamentos!A:A,0),10)) -> 0 | H49: 0
A50: E9535 | B50: =VLOOKUP(A50,Equipamentos!$A:$K,2,FALSE) -> Serra circular com bancada - D = 30 cm - 4 kW | C50: =IFERROR(INDEX('Tabelas 2 e 3 mob'!A:K,MATCH(A50,'Tabelas 2 e 3 mob'!A:A,0),9),"ERRO") -> Veículo(s) da própria frota. | D50: 0 | E50: 2 | F50: 0 | G50: =IF(C50="Veículo(s) da própria frota.",0,INDEX(Equipamentos!B:K,MATCH(C50,Equipamentos!A:A,0),10)) -> 0 | H50: 0
A51: E9507 | B51: =VLOOKUP(A51,Equipamentos!$A:$K,2,FALSE) -> Plotadora de recorte com computador e programa computacional | C51: =IFERROR(INDEX('Tabelas 2 e 3 mob'!A:K,MATCH(A51,'Tabelas 2 e 3 mob'!A:A,0),9),"ERRO") -> Veículo(s) da própria frota. | D51: 0 | E51: 2 | F51: 0 | G51: =IF(C51="Veículo(s) da própria frota.",0,INDEX(Equipamentos!B:K,MATCH(C51,Equipamentos!A:A,0),10)) -> 0 | H51: 0
A52: E9568 | B52: =VLOOKUP(A52,Equipamentos!$A:$K,2,FALSE) -> Furadeira de impacto de 12,5 mm - 0,80 kW | C52: =IFERROR(INDEX('Tabelas 2 e 3 mob'!A:K,MATCH(A52,'Tabelas 2 e 3 mob'!A:A,0),9),"ERRO") -> Veículo(s) da própria frota. | D52: 0 | E52: 2 | F52: 0 | G52: =IF(C52="Veículo(s) da própria frota.",0,INDEX(Equipamentos!B:K,MATCH(C52,Equipamentos!A:A,0),10)) -> 0 | H52: 0
A53: E9753 | B53: =VLOOKUP(A53,Equipamentos!$A:$K,2,FALSE) -> Grupo gerador - 23 kVA | C53: =IFERROR(INDEX('Tabelas 2 e 3 mob'!A:K,MATCH(A53,'Tabelas 2 e 3 mob'!A:A,0),9),"ERRO") -> Veículo(s) da própria frota. | D53: 0 | E53: 2 | F53: 0 | G53: =IF(C53="Veículo(s) da própria frota.",0,INDEX(Equipamentos!B:K,MATCH(C53,Equipamentos!A:A,0),10)) -> 0 | H53: 0
A54: E9623 | B54: =VLOOKUP(A54,Equipamentos!$A:$K,2,FALSE) -> Máquina de bancada guilhotina - 4,00 kW | C54: =IFERROR(INDEX('Tabelas 2 e 3 mob'!A:K,MATCH(A54,'Tabelas 2 e 3 mob'!A:A,0),9),"ERRO") -> Veículo(s) da própria frota. | D54: 0 | E54: 2 | F54: 0 | G54: =IF(C54="Veículo(s) da própria frota.",0,INDEX(Equipamentos!B:K,MATCH(C54,Equipamentos!A:A,0),10)) -> 0 | H54: 0
A55: E9622 | B55: =VLOOKUP(A55,Equipamentos!$A:$K,2,FALSE) -> Máquina de bancada universal para corte de chapa - 1,50 kW | C55: =IFERROR(INDEX('Tabelas 2 e 3 mob'!A:K,MATCH(A55,'Tabelas 2 e 3 mob'!A:A,0),9),"ERRO") -> Veículo(s) da própria frota. | D55: 0 | E55: 2 | F55: 0 | G55: =IF(C55="Veículo(s) da própria frota.",0,INDEX(Equipamentos!B:K,MATCH(C55,Equipamentos!A:A,0),10)) -> 0 | H55: 0
A56: E9678 | B56: =VLOOKUP(A56,Equipamentos!$A:$K,2,FALSE) -> Fresadora a frio - 455 kW | C56: =IFERROR(INDEX('Tabelas 2 e 3 mob'!A:K,MATCH(A56,'Tabelas 2 e 3 mob'!A:A,0),9),"ERRO") -> E9666 | D56: 0 | E56: 2 | F56: 1 | G56: =IF(C56="Veículo(s) da própria frota.",0,INDEX(Equipamentos!B:K,MATCH(C56,Equipamentos!A:A,0),10)) -> 133.3255 | H56: 0
G57: TOTAL | H57: =SUM(H13:H56) -> 74.515595
A60: CUSTO TOTAL MOBILIZAÇÃO E DESMOBILIZAÇÃO
A61: DESCRIÇÃO | B61: VALOR
A62: Custo Mobilização (km) | B62: =H57 -> 74.515595
A63: BDI (%) | B63: =BDI!C17 -> 0.2339
A64: Custo Mobilização (R$/km) com BDI | B64: =B62+(B62*B63) -> 91.94479267
A65: Total de Frentes | B65: ='MC MODULO'!G1 -> 7
A66: Custo Mobilização (frentes x distancia) | B66: =B64*H6*B65 -> 101690.9407

Sheet Canteiro
A4: CANTEIRO DE OBRAS PARA CONSTRUÇAO RODOVIÁRIA
A5: Descrição dos serviços | B5: Tipo de container | C5: Unidade | D5: Quantidade | E5: Preço unitário (R$) | F5: Total (R$)
A6: Escritório e seção técnica
A7: =VLOOKUP(B7,'INSUMOS SINAPI'!A:E,2,0) -> LOCACAO DE CONTAINER 2,30 X 6,00 M, ALT. 2,50 M, PARA ESCRITORIO, SEM DIVISORIAS INTERNAS E SEM SANITARIO (NAO INCLUI MOBILIZACAO/DESMOBILIZACAO) | B7: 10776 | C7: und | D7: 1 | E7: =VLOOKUP(B7,'INSUMOS SINAPI'!A:E,5,0) -> 650.39 | F7: =TRUNC(D7*E7,2) -> 650.39
A8: Banheiro e vestiário
A9: =VLOOKUP(B9,'INSUMOS SINAPI'!A:E,2,0) -> LOCACAO DE CONTAINER 2,30 X 4,30 M, ALT. 2,50 M, PARA SANITARIO, COM 3 BACIAS, 4 CHUVEIROS, 1 LAVATORIO E 1 MICTORIO (NAO INCLUI MOBILIZACAO/DESMOBILIZACAO) | B9: 10777 | C9: und | D9: 1 | E9: =VLOOKUP(B9,'INSUMOS SINAPI'!A:E,5,0) -> 945.23 | F9: =TRUNC(D9*E9,2) -> 945.23
D10: TOTAL DO CANTEIRO | F10: =SUM(F7:F9) -> 1595.62
D11: DURAÇÃO (MESES) | E11: 12 | F11: =F10*E11 -> 19147.44
D12: BDI | F12: =BDI!C17 -> 0.2339
D13: TOTAL DO CANTEIRO (com BDI) | F13: =F11+(F11*F12) -> 23626.02622

Sheet MOMENTO DE TRANSPORTE - PRINC
B5: ='RESUMO MODULO TOTAL'!B1 -> EXECUÇÃO DE SERVIÇOS DE IMPLANTAÇÃO DE PAVIMENTAÇÃO EM BLOCO DE CONCRETO INTERTRAVADO, EM VIAS DE MUNICÍPIOS DIVERSOS INSERIDOS NA ÁREA DE ATUAÇÃO DA CODEVASF, NO ESTADO DO RIO GRANDE DO NORTE (REGIÃO 3)
B6: DATA BASE: | C6: ='RESUMO MODULO TOTAL'!N2 -> Rio Grande do Norte - Abril/2024
C8: RESUMO DO TRANSPORTE PRINCIPAL
B9: CODIGO | C9: DESCRIÇÃO | D9: TKM
B10: 5914359 | C10: =VLOOKUP(B10,'SINTÉTICO SICRO'!$A:$D,2,0) -> Transporte com caminhão basculante de 10 m³ - rodovia em leito natural | D10: =ROUND(SUMIF('MOMENTO DE TRANSPORTE - PRINC'!A:A,B10,'MOMENTO DE TRANSPORTE - PRINC'!K:K),2) -> 0
B11: 5914374 | C11: =VLOOKUP(B11,'SINTÉTICO SICRO'!$A:$D,2,0) -> Transporte com caminhão basculante de 10 m³ - rodovia em revestimento primário | D11: =ROUND(SUMIF('MOMENTO DE TRANSPORTE - PRINC'!A:A,B11,'MOMENTO DE TRANSPORTE - PRINC'!K:K),2) -> 470054.55
B12: 5914389 | C12: =VLOOKUP(B12,'SINTÉTICO SICRO'!$A:$D,2,0) -> Transporte com caminhão basculante de 10 m³ - rodovia pavimentada | D12: =ROUND(SUMIF('MOMENTO DE TRANSPORTE - PRINC'!A:A,B12,'MOMENTO DE TRANSPORTE - PRINC'!K:K),2) -> 4230490.95
B13: 5914539 | C13: =VLOOKUP(B13,'SINTÉTICO SICRO'!$A:$D,2,0) -> Transporte com caminhão betoneira - rodovia em leito natural | D13: =ROUND(SUMIF('MOMENTO DE TRANSPORTE - PRINC'!A:A,B13,'MOMENTO DE TRANSPORTE - PRINC'!K:K),2) -> 0
B14: 5914554 | C14: =VLOOKUP(B14,'SINTÉTICO SICRO'!$A:$D,2,0) -> Transporte com caminhão betoneira - rodovia em revestimento primário | D14: =ROUND(SUMIF('MOMENTO DE TRANSPORTE - PRINC'!A:A,B14,'MOMENTO DE TRANSPORTE - PRINC'!K:K),2) -> 43747.2
B15: 5914569 | C15: =VLOOKUP(B15,'SINTÉTICO SICRO'!$A:$D,2,0) -> Transporte com caminhão betoneira - rodovia pavimentada | D15: =ROUND(SUMIF('MOMENTO DE TRANSPORTE - PRINC'!A:A,B15,'MOMENTO DE TRANSPORTE - PRINC'!K:K),2) -> 393724.8
B17: TIPO (P, RP ou LN) | C17: DMT ESTIMADA (DISTRIBUIÇÃO DO ITEM NA PISTA
B18: P | C18: =155*0.9 -> 139.5
B20: SISTEMA DE CUSTOS REFERENCIAIS DE OBRAS - SICRO
B21: Custo Unitário de Referência | D21: =$C$6 -> Rio Grande do Norte - Abril/2024 | I21: Quantitativo | K21: un
B22: 4011268 | C22: Base estabilizada granulometricamente com mistura solo brita (70% - 30%) em usina com material de jazida e brita comercial | I22: =(SUMIF('RESUMO MODULO TOTAL'!D:D,B22,'RESUMO MODULO TOTAL'!J:J)) -> 14700
B23: D - ATIVIDADES AUXILIARES | D23: Quantidade | E23: Unidade
B24: 6416030 | C24: Usinagem de solo brita (70% - 30%) com material de jazida e brita comercial em usina de 300 t/h | D24: 1 | E24: m³
B26: F - MOMENTO DE TRANSPORTE | D26: Quantidade | E26: Unidade | F26: CÓDIGO TRANSPORTE
F27: LN | G27: RP | H27: P | I27: TIPO (P, RP ou LN) | J27: DMT ESTIMADA (km) | K27: QUANTITATIVO TOTAL DE TRANSPORTE (tkm)
A28: =IF(I28="P",H28,IF(I28="RP",G28,IF(I28="LN",F28,""))) -> 5914389 | B28: 6416030 | C28: Usinagem de solo brita (70% - 30%) com material de jazida e brita comercial em usina de 300 t/h - Caminhão basculante 10 m³ | D28: 2.063 | E28: tkm | F28: 5914359 | G28: 5914374 | H28: 5914389 | I28: =$B$18 -> P | J28: =C18 -> 139.5 | K28: =IF(ISBLANK(J28),"",J28*D28)*I22 -> 4230490.95
B30: Obs.
B32: SISTEMA DE CUSTOS REFERENCIAIS DE OBRAS - SICRO
B33: Custo Unitário de Referência | D33: =$C$6 -> Rio Grande do Norte - Abril/2024 | I33: Quantitativo | K33: m
B34: 2003943 | C34: =VLOOKUP(B34,'SINTÉTICO SICRO'!A:D,2,0) -> Meio-fio de concreto - MFC 03 moldado no local com extrusora e concreto usinado - areia e brita comerciais | I34: =(SUMIF('RESUMO MODULO TOTAL'!D:D,B34,'RESUMO MODULO TOTAL'!J:J)) -> 28000
B35: D - ATIVIDADES AUXILIARES | D35: Quantidade | E35: Unidade
B36: 1107928 | C36: Concreto fck = 20 MPa - confecção em betoneira e lançamento manual - areia e brita comerciais | D36: 0.042 | E36: m³
B37: 2003842 | C37: Enchimento de junta de concreto com argamassa asfáltica de densidade 1.700 kg/m³ - espessura de 1 cm | D37: 0.0595 | E37: kg
B38: 4805750 | C38: Escavação manual em material de 1ª categoria na profundidade de até 1 m | D38: 0.03 | E38: m³
B40: F - MOMENTO DE TRANSPORTE | D40: Quantidade | E40: Unidade | F40: CÓDIGO TRANSPORTE
F41: LN | G41: RP | H41: P | I41: TIPO (P, RP ou LN) | J41: DMT ESTIMADA (km) | K41: QUANTITATIVO TOTAL DE TRANSPORTE (tkm)
A42: =IF(I42="P",H42,IF(I42="RP",G42,IF(I42="LN",F42,""))) -> 5914569 | B42: 1107928 | C42: =VLOOKUP(B42,'SINTÉTICO SICRO'!A:D,2,0) -> Concreto fck = 20 MPa - confecção em central dosadora de 30 m³/h - areia e brita comerciais | D42: 0.1008 | E42: tkm | F42: 5914539 | G42: 5914554 | H42: 5914569 | I42: =$B$18 -> P | J42: =C18 -> 139.5 | K42: =IF(ISBLANK(J42),"",J42*D42)*I34 -> 393724.8
B44: TIPO (P, RP ou LN) | C44: DMT ESTIMADA (DISTRIBUIÇÃO DO ITEM NA PISTA
B45: LN | C45: 0
B47: SISTEMA DE CUSTOS REFERENCIAIS DE OBRAS - SICRO
B48: Custo Unitário de Referência | D48: =$C$6 -> Rio Grande do Norte - Abril/2024 | I48: Quantitativo | K48: un
B49: 4011268 | C49: Base estabilizada granulometricamente com mistura solo brita (70% - 30%) em usina com material de jazida e brita comercial | I49: =(SUMIF('RESUMO MODULO TOTAL'!D:D,B49,'RESUMO MODULO TOTAL'!J:J))*0 -> 0
B50: D - ATIVIDADES AUXILIARES | D50: Quantidade | E50: Unidade
B51: 6416030 | C51: Usinagem de solo brita (70% - 30%) com material de jazida e brita comercial em usina de 300 t/h | D51: 1 | E51: m³
B53: F - MOMENTO DE TRANSPORTE | D53: Quantidade | E53: Unidade | F53: CÓDIGO TRANSPORTE
F54: LN | G54: RP | H54: P | I54: TIPO (P, RP ou LN) | J54: DMT ESTIMADA (km) | K54: QUANTITATIVO TOTAL DE TRANSPORTE (tkm)
A55: =IF(I55="P",H55,IF(I55="RP",G55,IF(I55="LN",F55,""))) -> 5914359 | B55: 6416030 | C55: Usinagem de solo brita (70% - 30%) com material de jazida e brita comercial em usina de 300 t/h - Caminhão basculante 10 m³ | D55: 2.063 | E55: tkm | F55: 5914359 | G55: 5914374 | H55: 5914389 | I55: =$B$45 -> LN | J55: =C45 -> 0 | K55: =IF(ISBLANK(J55),"",J55*D55)*I49 -> 0
B57: Obs.
B58: SISTEMA DE CUSTOS REFERENCIAIS DE OBRAS - SICRO
B59: Custo Unitário de Referência | D59: =$C$6 -> Rio Grande do Norte - Abril/2024 | I59: Quantitativo | K59: m
B60: 2003943 | C60: =VLOOKUP(B60,'SINTÉTICO SICRO'!A:D,2,0) -> Meio-fio de concreto - MFC 03 moldado no local com extrusora e concreto usinado - areia e brita comerciais | I60: =(SUMIF('RESUMO MODULO TOTAL'!D:D,B60,'RESUMO MODULO TOTAL'!J:J))*0 -> 0
B61: D - ATIVIDADES AUXILIARES | D61: Quantidade | E61: Unidade
B62: 1107928 | C62: Concreto fck = 20 MPa - confecção em betoneira e lançamento manual - areia e brita comerciais | D62: 0.042 | E62: m³
B63: 2003842 | C63: Enchimento de junta de concreto com argamassa asfáltica de densidade 1.700 kg/m³ - espessura de 1 cm | D63: 0.0595 | E63: kg
B64: 4805750 | C64: Escavação manual em material de 1ª categoria na profundidade de até 1 m | D64: 0.03 | E64: m³
B66: F - MOMENTO DE TRANSPORTE | D66: Quantidade | E66: Unidade | F66: CÓDIGO TRANSPORTE
F67: LN | G67: RP | H67: P | I67: TIPO (P, RP ou LN) | J67: DMT ESTIMADA (km) | K67: QUANTITATIVO TOTAL DE TRANSPORTE (tkm)
A68: =IF(I68="P",H68,IF(I68="RP",G68,IF(I68="LN",F68,""))) -> 5914539 | B68: 1107928 | C68: =VLOOKUP(B68,'SINTÉTICO SICRO'!A:D,2,0) -> Concreto fck = 20 MPa - confecção em central dosadora de 30 m³/h - areia e brita comerciais | D68: 0.1008 | E68: tkm | F68: 5914539 | G68: 5914554 | H68: 5914569 | I68: =$B$45 -> LN | J68: =C58 -> 0 | K68: =IF(ISBLANK(J68),"",J68*D68)*I60 -> 0
B70: TIPO (P, RP ou LN) | C70: DMT ESTIMADA (DISTRIBUIÇÃO DO ITEM NA PISTA
B71: RP | C71: =155*0.1 -> 15.5
B73: SISTEMA DE CUSTOS REFERENCIAIS DE OBRAS - SICRO
B74: Custo Unitário de Referência | D74: =$C$6 -> Rio Grande do Norte - Abril/2024 | I74: Quantitativo | K74: un
B75: 4011268 | C75: Base estabilizada granulometricamente com mistura solo brita (70% - 30%) em usina com material de jazida e brita comercial | I75: =(SUMIF('RESUMO MODULO TOTAL'!D:D,B75,'RESUMO MODULO TOTAL'!J:J)) -> 14700
B76: D - ATIVIDADES AUXILIARES | D76: Quantidade | E76: Unidade
B77: 6416030 | C77: Usinagem de solo brita (70% - 30%) com material de jazida e brita comercial em usina de 300 t/h | D77: 1 | E77: m³
B79: F - MOMENTO DE TRANSPORTE | D79: Quantidade | E79: Unidade | F79: CÓDIGO TRANSPORTE
F80: LN | G80: RP | H80: P | I80: TIPO (P, RP ou LN) | J80: DMT ESTIMADA (km) | K80: QUANTITATIVO TOTAL DE TRANSPORTE (tkm)
A81: =IF(I81="P",H81,IF(I81="RP",G81,IF(I81="LN",F81,""))) -> 5914374 | B81: 6416030 | C81: Usinagem de solo brita (70% - 30%) com material de jazida e brita comercial em usina de 300 t/h - Caminhão basculante 10 m³ | D81: 2.063 | E81: tkm | F81: 5914359 | G81: 5914374 | H81: 5914389 | I81: =$B$71 -> RP | J81: =C71 -> 15.5 | K81: =IF(ISBLANK(J81),"",J81*D81)*I75 -> 470054.55
B83: Obs.
B84: SISTEMA DE CUSTOS REFERENCIAIS DE OBRAS - SICRO
B85: Custo Unitário de Referência | D85: =$C$6 -> Rio Grande do Norte - Abril/2024 | I85: Quantitativo | K85: m
B86: 2003943 | C86: =VLOOKUP(B86,'SINTÉTICO SICRO'!A:D,2,0) -> Meio-fio de concreto - MFC 03 moldado no local com extrusora e concreto usinado - areia e brita comerciais | I86: =(SUMIF('RESUMO MODULO TOTAL'!D:D,B86,'RESUMO MODULO TOTAL'!J:J)) -> 28000
B87: D - ATIVIDADES AUXILIARES | D87: Quantidade | E87: Unidade
B88: 1107928 | C88: Concreto fck = 20 MPa - confecção em betoneira e lançamento manual - areia e brita comerciais | D88: 0.042 | E88: m³
B89: 2003842 | C89: Enchimento de junta de concreto com argamassa asfáltica de densidade 1.700 kg/m³ - espessura de 1 cm | D89: 0.0595 | E89: kg
B90: 4805750 | C90: Escavação manual em material de 1ª categoria na profundidade de até 1 m | D90: 0.03 | E90: m³
B92: F - MOMENTO DE TRANSPORTE | D92: Quantidade | E92: Unidade | F92: CÓDIGO TRANSPORTE
F93: LN | G93: RP | H93: P | I93: TIPO (P, RP ou LN) | J93: DMT ESTIMADA (km) | K93: QUANTITATIVO TOTAL DE TRANSPORTE (tkm)
A94: =IF(I94="P",H94,IF(I94="RP",G94,IF(I94="LN",F94,""))) -> 5914554 | B94: 1107928 | C94: =VLOOKUP(B94,'SINTÉTICO SICRO'!A:D,2,0) -> Concreto fck = 20 MPa - confecção em central dosadora de 30 m³/h - areia e brita comerciais | D94: 0.1008 | E94: tkm | F94: 5914539 | G94: 5914554 | H94: 5914569 | I94: =$B$71 -> RP | J94: =C71 -> 15.5 | K94: =IF(ISBLANK(J94),"",J94*D94)*I86 -> 43747.2

Sheet MOMENTO DE TRANSPORTE - AUX
B5: ='RESUMO MODULO TOTAL'!B1 -> EXECUÇÃO DE SERVIÇOS DE IMPLANTAÇÃO DE PAVIMENTAÇÃO EM BLOCO DE CONCRETO INTERTRAVADO, EM VIAS DE MUNICÍPIOS DIVERSOS INSERIDOS NA ÁREA DE ATUAÇÃO DA CODEVASF, NO ESTADO DO RIO GRANDE DO NORTE (REGIÃO 3)
B6: DATA BASE: | C6: ='RESUMO MODULO TOTAL'!N2 -> Rio Grande do Norte - Abril/2024
C8: RESUMO DO TRANSPORTE AUXILIAR
B9: CODIGO | C9: DESCRIÇÃO | D9: TKM
B10: 5914359 | C10: =VLOOKUP(B10,'SINTÉTICO SICRO'!$A:$D,2,0) -> Transporte com caminhão basculante de 10 m³ - rodovia em leito natural | D10: =ROUND(SUMIF($A:$A,B10,$K:$K),2) -> 0
B11: 5914374 | C11: =VLOOKUP(B11,'SINTÉTICO SICRO'!$A:$D,2,0) -> Transporte com caminhão basculante de 10 m³ - rodovia em revestimento primário | D11: 142691.07
B12: 5914389 | C12: =VLOOKUP(B12,'SINTÉTICO SICRO'!$A:$D,2,0) -> Transporte com caminhão basculante de 10 m³ - rodovia pavimentada | D12: 1284219.65
B13: 5914449 | C13: =VLOOKUP(B13,'SINTÉTICO SICRO'!$A:$D,2,0) -> Transporte com caminhão carroceria de 15 t - rodovia em leito natural | D13: 0
B14: 5914464 | C14: =VLOOKUP(B14,'SINTÉTICO SICRO'!$A:$D,2,0) -> Transporte com caminhão carroceria de 15 t - rodovia em revestimento primário | D14: 433.06
B15: 5914479 | C15: =VLOOKUP(B15,'SINTÉTICO SICRO'!$A:$D,2,0) -> Transporte com caminhão carroceria de 15 t - rodovia pavimentada | D15: 3897.52
B17: TIPO (P, RP ou LN) | C17: DMT ATÉ 50 KM NÃO DEVE SER PAGA | D17: SOMENTE DEVE SER ADICIONADO A DISTÂNCIA EXCEDENTE A 50 KM
B18: P | D18: =(63.3-50)*0.9 -> 11.97
B20: SISTEMA DE CUSTOS REFERENCIAIS DE OBRAS - SICRO | I20: Quantitivo
B21: Custo Unitário de Referência | E21: =$C$6 -> Rio Grande do Norte - Abril/2024 | I21: (Coeficiente na composição principal) x (quantidade da principal no orçamento) | K21: m³
B22: 1107892 | C22: Concreto fck = 20 MPa - confecção em betoneira e lançamento manual - areia e brita comerciais | I22: =('MOMENTO DE TRANSPORTE - PRINC'!$D$36*VLOOKUP(C31,'RESUMO MODULO TOTAL'!D:R,7,FALSE)) -> 1176
B23: F - MOMENTO DE TRANSPORTE | D23: Quantidade | E23: Unidade | F23: DMT
F24: LN | G24: RP | H24: P | I24: TIPO (P, RP ou LN) | J24: DMT ESTIMADA (km) | K24: QUANTITATIVO TOTAL DE TRANSPORTE DE MATERIAL (tkm)
A25: =IF(I25="P",H25,IF(I25="RP",G25,IF(I25="LN",F25,""))) -> 5914479 | B25: M0030 | C25: Aditivo plastificante e retardador de pega para concreto e argamassa - Caminhão carroceria 15 t | D25: 0.00082 | E25: tkm | F25: 5914449 | G25: 5914464 | H25: 5914479 | I25: =$B$18 -> P | J25: =$D$18 -> 11.97 | K25: =IF(ISBLANK(J25),"",J25*(D25*$I$22)) -> 11.5429104
A26: =IF(I26="P",H26,IF(I26="RP",G26,IF(I26="LN",F26,""))) -> 5914389 | B26: M0082 | C26: Areia média lavada - Caminhão basculante 10 m³ | D26: 0.95639 | E26: tkm | F26: 5914359 | G26: 5914374 | H26: 5914389 | I26: =$B$18 -> P | J26: =$D$18 -> 11.97 | K26: =IF(ISBLANK(J26),"",J26*(D26*$I$22)) -> 13462.83424
A27: 5914389 | B27: M0191 | C27: Brita 1 - Caminhão basculante 10 m³ | D27: 0.55131 | E27: tkm | F27: 5914359 | G27: 5914374 | H27: 5914389 | I27: P | J27: 11.97 | K27: =IF(ISBLANK(J27),"",J27*(D27*$I$22)) -> 7760.636503
A28: 5914389 | B28: M0192 | C28: Brita 2 - Caminhão basculante 10 m³ | D28: 0.55131 | E28: tkm | F28: 5914359 | G28: 5914374 | H28: 5914389 | I28: P | J28: 11.97 | K28: =IF(ISBLANK(J28),"",J28*(D28*$I$22)) -> 7760.636503
A29: 5914479 | B29: M0424 | C29: Cimento Portland CP II - 32 - saco - Caminhão carroceria 15 t | D29: 0.27464 | E29: tkm | F29: 5914449 | G29: 5914464 | H29: 5914479 | I29: P | J29: 11.97 | K29: =IF(ISBLANK(J29),"",J29*(D29*$I$22)) -> 3866.030381
B31: PRINCIPAL: | C31: 2003943
B32: SISTEMA DE CUSTOS REFERENCIAIS DE OBRAS - SICRO | I32: Quantitivo
B33: Custo Unitário de Referência | E33: =$C$6 -> Rio Grande do Norte - Abril/2024 | H33: m² | I33: (Coeficiente na composição principal) x (quantidade da principal no orçamento) | K33: kg
B34: 2003842 | C34: Enchimento de junta de concreto com argamassa asfáltica de densidade 1.700 kg/m³ - espessura de 1 cm | I34: =('MOMENTO DE TRANSPORTE - PRINC'!$D$37*VLOOKUP(C39,'RESUMO MODULO TOTAL'!D:R,7,FALSE)) -> 1666
B35: F - MOMENTO DE TRANSPORTE | D35: Quantidade | E35: Unidade | F35: DMT
F36: LN | G36: RP | H36: P | I36: TIPO (P, RP ou LN) | J36: DMT ESTIMADA (km) | K36: QUANTITATIVO TOTAL DE TRANSPORTE DE MATERIAL (tkm)
A37: =IF(I37="P",H37,IF(I37="RP",G37,IF(I37="LN",F37,""))) -> 5914479 | B37: M2158 | C37: Argamassa asfáltica - Caminhão carroceria com capacidade de 15 t - 188 Kw | D37: 0.001 | E37: tkm | F37: 5914449 | G37: 5914464 | H37: 5914479 | I37: =$B$18 -> P | J37: =$D$18 -> 11.97 | K37: =IF(ISBLANK(J37),"",J37*(D37*$I$34)) -> 19.94202
B39: PRINCIPAL: | C39: 2003943
A40: =IF(I40="P",H40,IF(I40="RP",G40,IF(I40="LN",F40,""))) ->  | B40: SISTEMA DE CUSTOS REFERENCIAIS DE OBRAS - SICRO | I40: Quantitivo
B41: Custo Unitário de Referência | E41: =$C$6 -> Rio Grande do Norte - Abril/2024 | I41: (Coeficiente na composição principal) x (quantidade da principal no orçamento) | K41: m³
B42: 6416030 | C42: Usinagem de solo brita (70% - 30%) com material de jazida e brita comercial em usina de 300 t/h | I42: =('MOMENTO DE TRANSPORTE - PRINC'!D24*VLOOKUP(C48,'RESUMO MODULO TOTAL'!D:Q,7,FALSE)) -> 14700
B43: F - MOMENTO DE TRANSPORTE | D43: Quantidade | E43: Unidade | F43: DMT
F44: LN | G44: RP | H44: P | I44: TIPO (P, RP ou LN) | J44: DMT ESTIMADA (km) | K44: QUANTITATIVO TOTAL DE TRANSPORTE DE MATERIAL (tkm)
A45: 5914389 | B45: 4016096 | C45: Escavação e carga de material de jazida com escavadeira hidráulica de 1,56 m³ - Caminhão basculante 10 m³ | D45: 1.44411 | E45: tkm | F45: 5914359 | G45: 5914374 | H45: 5914389 | I45: =$B$18 -> P | J45: =(110-50)*0.9 -> 54 | K45: =IF(ISBLANK(J45),"",J45*(D45*$I$42)) -> 1146334.518
A46: 5914389 | B46: M0191 | C46: Brita 1 - Caminhão basculante 10 m³ | D46: 0.6189 | E46: tkm | F46: 5914359 | G46: 5914374 | H46: 5914389 | I46: P | J46: =$D$18 -> 11.97 | K46: =IF(ISBLANK(J46),"",J46*(D46*$I$42)) -> 108901.0251
B48: PRINCIPAL: | C48: 4011268
B50: TIPO (P, RP ou LN) | C50: DMT ATÉ 50 KM NÃO DEVE SER PAGA | D50: SOMENTE DEVE SER ADICIONADO A DISTÂNCIA EXCEDENTE A 50 KM
B51: LN | D51: 0
B53: SISTEMA DE CUSTOS REFERENCIAIS DE OBRAS - SICRO | I53: Quantitivo
B54: Custo Unitário de Referência | E54: =$C$6 -> Rio Grande do Norte - Abril/2024 | I54: (Coeficiente na composição principal) x (quantidade da principal no orçamento) | K54: m³
B55: 1107892 | C55: Concreto fck = 20 MPa - confecção em betoneira e lançamento manual - areia e brita comerciais | I55: =('MOMENTO DE TRANSPORTE - PRINC'!D62*VLOOKUP(C64,'RESUMO MODULO TOTAL'!D:R,7,FALSE))*0 -> 0
B56: F - MOMENTO DE TRANSPORTE | D56: Quantidade | E56: Unidade | F56: DMT
F57: LN | G57: RP | H57: P | I57: TIPO (P, RP ou LN) | J57: DMT ESTIMADA (km) | K57: QUANTITATIVO TOTAL DE TRANSPORTE DE MATERIAL (tkm)
A58: =IF(I58="P",H58,IF(I58="RP",G58,IF(I58="LN",F58,""))) -> 5914449 | B58: M0030 | C58: Aditivo plastificante e retardador de pega para concreto e argamassa - Caminhão carroceria 15 t | D58: 0.00082 | E58: tkm | F58: 5914449 | G58: 5914464 | H58: 5914479 | I58: =$B$51 -> LN | J58: =$D$51 -> 0 | K58: =IF(ISBLANK(J58),"",J58*(D58*$I$55)) -> 0
A59: =IF(I59="P",H59,IF(I59="RP",G59,IF(I59="LN",F59,""))) -> 5914359 | B59: M0082 | C59: Areia média lavada - Caminhão basculante 10 m³ | D59: 0.95639 | E59: tkm | F59: 5914359 | G59: 5914374 | H59: 5914389 | I59: =$B$51 -> LN | J59: =$D$51 -> 0 | K59: =IF(ISBLANK(J59),"",J59*(D59*$I$55)) -> 0
A60: 5914359 | B60: M0191 | C60: Brita 1 - Caminhão basculante 10 m³ | D60: 0.55131 | E60: tkm | F60: 5914359 | G60: 5914374 | H60: 5914389 | I60: LN | J60: 0 | K60: =IF(ISBLANK(J60),"",J60*(D60*$I$55)) -> 0
A61: 5914359 | B61: M0192 | C61: Brita 2 - Caminhão basculante 10 m³ | D61: 0.55131 | E61: tkm | F61: 5914359 | G61: 5914374 | H61: 5914389 | I61: LN | J61: 0 | K61: 0
A62: 5914449 | B62: M0424 | C62: Cimento Portland CP II - 32 - saco - Caminhão carroceria 15 t | D62: 0.27464 | E62: tkm | F62: 5914449 | G62: 5914464 | H62: 5914479 | I62: LN | J62: 0 | K62: 0
B64: PRINCIPAL: | C64: 2003943
B65: SISTEMA DE CUSTOS REFERENCIAIS DE OBRAS - SICRO | I65: Quantitivo
B66: Custo Unitário de Referência | E66: =$C$6 -> Rio Grande do Norte - Abril/2024 | H66: m² | I66: (Coeficiente na composição principal) x (quantidade da principal no orçamento) | K66: kg
B67: 2003842 | C67: Enchimento de junta de concreto com argamassa asfáltica de densidade 1.700 kg/m³ - espessura de 1 cm | I67: =('MOMENTO DE TRANSPORTE - PRINC'!D63*VLOOKUP(C72,'RESUMO MODULO TOTAL'!D:R,7,FALSE))*0 -> 0
B68: F - MOMENTO DE TRANSPORTE | D68: Quantidade | E68: Unidade | F68: DMT
F69: LN | G69: RP | H69: P | I69: TIPO (P, RP ou LN) | J69: DMT ESTIMADA (km) | K69: QUANTITATIVO TOTAL DE TRANSPORTE DE MATERIAL (tkm)
A70: =IF(I70="P",H70,IF(I70="RP",G70,IF(I70="LN",F70,""))) -> 5914479 | B70: M2158 | C70: Argamassa asfáltica - Caminhão carroceria com capacidade de 15 t - 188 Kw | D70: 0.001 | E70: tkm | F70: 5914449 | G70: 5914464 | H70: 5914479 | I70: =$B$18 -> P | J70: =$D$51 -> 0 | K70: =IF(ISBLANK(J70),"",J70*(D70*$I$67)) -> 0
B72: PRINCIPAL: | C72: 2003943
A73: =IF(I73="P",H73,IF(I73="RP",G73,IF(I73="LN",F73,""))) ->  | B73: SISTEMA DE CUSTOS REFERENCIAIS DE OBRAS - SICRO | I73: Quantitivo
B74: Custo Unitário de Referência | E74: =$C$6 -> Rio Grande do Norte - Abril/2024 | I74: (Coeficiente na composição principal) x (quantidade da principal no orçamento) | K74: m³
B75: 6416030 | C75: Usinagem de solo brita (70% - 30%) com material de jazida e brita comercial em usina de 300 t/h | I75: =('MOMENTO DE TRANSPORTE - PRINC'!D51*VLOOKUP(C81,'RESUMO MODULO TOTAL'!D:Q,7,FALSE))*0.1 -> 1470
B76: F - MOMENTO DE TRANSPORTE | D76: Quantidade | E76: Unidade | F76: DMT
F77: LN | G77: RP | H77: P | I77: TIPO (P, RP ou LN) | J77: DMT ESTIMADA (km) | K77: QUANTITATIVO TOTAL DE TRANSPORTE DE MATERIAL (tkm)
A78: 5914389 | B78: 4016096 | C78: Escavação e carga de material de jazida com escavadeira hidráulica de 1,56 m³ - Caminhão basculante 10 m³ | D78: 1.44411 | E78: tkm | F78: 5914359 | G78: 5914374 | H78: 5914389 | I78: =$B$18 -> P | J78: 0 | K78: =IF(ISBLANK(J78),"",J78*(D78*$I$75)) -> 0
A79: 5914389 | B79: M0191 | C79: Brita 1 - Caminhão basculante 10 m³ | D79: 0.6189 | E79: tkm | F79: 5914359 | G79: 5914374 | H79: 5914389 | I79: P | J79: =$D$51 -> 0 | K79: =IF(ISBLANK(J79),"",J79*(D79*$I$75)) -> 0
B81: PRINCIPAL: | C81: 4011268
B82: TIPO (P, RP ou LN) | C82: DMT ATÉ 50 KM NÃO DEVE SER PAGA | D82: SOMENTE DEVE SER ADICIONADO A DISTÂNCIA EXCEDENTE A 50 KM
B83: RP | D83: =(63.3-50)*0.1 -> 1.33
B85: SISTEMA DE CUSTOS REFERENCIAIS DE OBRAS - SICRO | I85: Quantitivo
B86: Custo Unitário de Referência | E86: =$C$6 -> Rio Grande do Norte - Abril/2024 | I86: (Coeficiente na composição principal) x (quantidade da principal no orçamento) | K86: m³
B87: 1107892 | C87: Concreto fck = 20 MPa - confecção em betoneira e lançamento manual - areia e brita comerciais | I87: =('MOMENTO DE TRANSPORTE - PRINC'!D88*VLOOKUP(C96,'RESUMO MODULO TOTAL'!D:R,7,FALSE)) -> 1176
B88: F - MOMENTO DE TRANSPORTE | D88: Quantidade | E88: Unidade | F88: DMT
F89: LN | G89: RP | H89: P | I89: TIPO (P, RP ou LN) | J89: DMT ESTIMADA (km) | K89: QUANTITATIVO TOTAL DE TRANSPORTE DE MATERIAL (tkm)
A90: =IF(I90="P",H90,IF(I90="RP",G90,IF(I90="LN",F90,""))) -> 5914464 | B90: M0030 | C90: Aditivo plastificante e retardador de pega para concreto e argamassa - Caminhão carroceria 15 t | D90: 0.00082 | E90: tkm | F90: 5914449 | G90: 5914464 | H90: 5914479 | I90: =$B$83 -> RP | J90: =$D$83 -> 1.33 | K90: =IF(ISBLANK(J90),"",J90*(D90*$I$87)) -> 1.2825456
A91: =IF(I91="P",H91,IF(I91="RP",G91,IF(I91="LN",F91,""))) -> 5914374 | B91: M0082 | C91: Areia média lavada - Caminhão basculante 10 m³ | D91: 0.95639 | E91: tkm | F91: 5914359 | G91: 5914374 | H91: 5914389 | I91: =$B$83 -> RP | J91: =$D$83 -> 1.33 | K91: =IF(ISBLANK(J91),"",J91*(D91*$I$87)) -> 1495.870471
A92: 5914374 | B92: M0191 | C92: Brita 1 - Caminhão basculante 10 m³ | D92: 0.55131 | E92: tkm | F92: 5914359 | G92: 5914374 | H92: 5914389 | I92: RP | J92: 1.33 | K92: 862.2929448
A93: 5914374 | B93: M0192 | C93: Brita 2 - Caminhão basculante 10 m³ | D93: 0.55131 | E93: tkm | F93: 5914359 | G93: 5914374 | H93: 5914389 | I93: RP | J93: 1.33 | K93: 862.2929448
A94: 5914464 | B94: M0424 | C94: Cimento Portland CP II - 32 - saco - Caminhão carroceria 15 t | D94: 0.27464 | E94: tkm | F94: 5914449 | G94: 5914464 | H94: 5914479 | I94: RP | J94: 1.33 | K94: 429.5589312
B96: PRINCIPAL: | C96: 2003943
B97: SISTEMA DE CUSTOS REFERENCIAIS DE OBRAS - SICRO | I97: Quantitivo
B98: Custo Unitário de Referência | E98: =$C$6 -> Rio Grande do Norte - Abril/2024 | H98: m² | I98: (Coeficiente na composição principal) x (quantidade da principal no orçamento) | K98: kg
B99: 2003842 | C99: Enchimento de junta de concreto com argamassa asfáltica de densidade 1.700 kg/m³ - espessura de 1 cm | I99: =('MOMENTO DE TRANSPORTE - PRINC'!D89*VLOOKUP(C104,'RESUMO MODULO TOTAL'!D:R,7,FALSE)) -> 1666
B100: F - MOMENTO DE TRANSPORTE | D100: Quantidade | E100: Unidade | F100: DMT
F101: LN | G101: RP | H101: P | I101: TIPO (P, RP ou LN) | J101: DMT ESTIMADA (km) | K101: QUANTITATIVO TOTAL DE TRANSPORTE DE MATERIAL (tkm)
A102: =IF(I102="P",H102,IF(I102="RP",G102,IF(I102="LN",F102,""))) -> 5914464 | B102: M2158 | C102: Argamassa asfáltica - Caminhão carroceria com capacidade de 15 t - 188 Kw | D102: 0.001 | E102: tkm | F102: 5914449 | G102: 5914464 | H102: 5914479 | I102: =$B$83 -> RP | J102: =$D$83 -> 1.33 | K102: =IF(ISBLANK(J102),"",J102*(D102*$I$99)) -> 2.21578
B104: PRINCIPAL: | C104: 2003943
A105: =IF(I105="P",H105,IF(I105="RP",G105,IF(I105="LN",F105,""))) ->  | B105: SISTEMA DE CUSTOS REFERENCIAIS DE OBRAS - SICRO | I105: Quantitivo
B106: Custo Unitário de Referência | E106: =$C$6 -> Rio Grande do Norte - Abril/2024 | I106: (Coeficiente na composição principal) x (quantidade da principal no orçamento) | K106: m³
B107: 6416030 | C107: Usinagem de solo brita (70% - 30%) com material de jazida e brita comercial em usina de 300 t/h | I107: =('MOMENTO DE TRANSPORTE - PRINC'!D77*VLOOKUP(C113,'RESUMO MODULO TOTAL'!D:Q,7,FALSE)) -> 14700
B108: F - MOMENTO DE TRANSPORTE | D108: Quantidade | E108: Unidade | F108: DMT
F109: LN | G109: RP | H109: P | I109: TIPO (P, RP ou LN) | J109: DMT ESTIMADA (km) | K109: QUANTITATIVO TOTAL DE TRANSPORTE DE MATERIAL (tkm)
A110: 5914374 | B110: 4016096 | C110: Escavação e carga de material de jazida com escavadeira hidráulica de 1,56 m³ - Caminhão basculante 10 m³ | D110: 1.44411 | E110: tkm | F110: 5914359 | G110: 5914374 | H110: 5914389 | I110: =$B$83 -> RP | J110: =(110-50)*0.1 -> 6 | K110: =IF(ISBLANK(J110),"",J110*(D110*$I$107)) -> 127370.502
A111: 5914374 | B111: M0191 | C111: Brita 1 - Caminhão basculante 10 m³ | D111: 0.6189 | E111: tkm | F111: 5914359 | G111: 5914374 | H111: 5914389 | I111: RP | J111: =$D$83 -> 1.33 | K111: =IF(ISBLANK(J111),"",J111*(D111*$I$107)) -> 12100.1139
B113: PRINCIPAL: | C113: 4011268
A115: =IF(I115="P",H115,IF(I115="RP",G115,IF(I115="LN",F115,""))) -> 

Sheet Adm Local
A4: parcela fixa da administração local (mão de obra)
A5: Código | B5: Discriminação | C5: Unidade | D5: Quantidade | F5: Custo Unitário (R$) | H5: Custo Total (R$)
B6: Mão de Obra
B7: Gerência Técnica
B8: Geral
A9: P9955 | B9: Engenheiro chefe | C9: mês | D9: 0.5 | F9: =VLOOKUP(A9,'Pessoal Sicro'!$A$6:$G$118,6,0) -> 30481.4614 | H9: =F9*D9 -> 15240.7307
A10: P9840 | B10: Encarregado geral | C10: mês | D10: 0.5 | F10: =VLOOKUP(A10,'Pessoal Sicro'!$A$6:$G$118,6,0) -> 11487.6434 | H10: =F10*D10 -> 5743.8217
A11: P9897 | B11: Técnico de meio ambiente | C11: mês | D11: 0 | F11: =VLOOKUP(A11,'Pessoal Sicro'!$A$6:$G$118,6,0) -> 7697.2018 | H11: =F11*D11 -> 0
A12: P9948 | B12: Motorista | C12: mês | D12: 0 | F12: =VLOOKUP(A12,'Pessoal Sicro'!$A$6:$G$118,6,0) -> 5495.4724 | H12: =F12*D12 -> 0
A13: P9878 | B13: Secretária | C13: mês | D13: 0 | F13: =VLOOKUP(A13,'Pessoal Sicro'!$A$6:$G$118,6,0) -> 6273.3494 | H13: =F13*D13 -> 0
F14: Subtotal do Item 1.1 | H14: =SUM(H9:I13) -> 20984.5524
B15: Auxiliar
A16: P9946 | B16: Engenheiro auxiliar | C16: mês | D16: 1 | F16: =VLOOKUP(A16,'Pessoal Sicro'!$A$6:$G$118,6,0) -> 22410.7945 | H16: =D16*F16 -> 22410.7945
A17: P9903 | B17: Auxiliar técnico | C17: mês | D17: 0 | F17: =VLOOKUP(A17,'Pessoal Sicro'!$A$6:$G$118,6,0) -> 4458.696 | H17: =D17*F17 -> 0
F18: Subtotal do Item 1.2 | H18: =SUM(H16:I17) -> 22410.7945
B19: Gerência Administrativa
B20: Geral
A21: P9883 | B21: Chefe do setor administrativo | C21: mês | D21: 1 | F21: =VLOOKUP(A21,'Pessoal Sicro'!$A$6:$G$118,6,0) -> 7821.9597 | H21: =F21*D21 -> 7821.9597
A22: P9809 | B22: Encarregado administrativo | C22: mês | D22: 0 | F22: =VLOOKUP(A22,'Pessoal Sicro'!$A$6:$G$118,6,0) -> 7821.3231 | H22: =F22*D22 -> 0
A23: P9896 | B23: Porteiro | C23: mês | D23: 0 | F23: =VLOOKUP(A23,'Pessoal Sicro'!$A$6:$G$118,6,0) -> 3895.4164 | H23: =F23*D23 -> 0
A24: P9827 | B24: Vigia | C24: mês | D24: 0 | F24: =VLOOKUP(A24,'Pessoal Sicro'!$A$6:$G$118,6,0) -> 5133.8264 | H24: =F24*D24 -> 0
A25: P9948 | B25: Motorista | C25: mês | D25: 0 | F25: =VLOOKUP(A25,'Pessoal Sicro'!$A$6:$G$118,6,0) -> 5495.4724 | H25: =F25*D25 -> 0
F26: Subtotal do Item 1.3 | H26: =SUM(H21:I25) -> 7821.9597
B27: Auxiliar
A28: P9806 | B28: Auxiliar administrativo | C28: mês | D28: 1 | F28: =VLOOKUP(A28,'Pessoal Sicro'!$A$6:$G$118,6,0) -> 4395.3606 | H28: =F28*D28 -> 4395.3606
A29: P9842 | B29: Faxineiro | C29: mês | D29: 0 | F29: =VLOOKUP(A29,'Pessoal Sicro'!$A$6:$G$118,6,0) -> 3895.4469 | H29: =F29*D29 -> 0
F30: Subtotal do Item 1.4 | H30: =SUM(H28:I29) -> 4395.3606
H31: Total da Mão de Obra da Parcela Fixa | I31: =H30+H26+H18+H14 -> 55612.6672
A33: parcela fixa da administração local (veículos)
A34: Código | B34: Discriminação | C34: Unidade | D34: Quantidade | E34: Utilização Produtiva | F34: Utilização Improdutiva | G34: Custo Horário Produtivo (R$) | H34: Custo Horário Improdutivo (R$) | I34: Custo Total (R$)
A35: 2 | B35: Veículos
B36: Gerência Técnica
A37: 2.1 | B37: Geral
A38: E9093 | B38: Veículo Leve 53 kw | C38: mês | D38: 1 | E38: 44 | F38: 176 | G38: =VLOOKUP(A38,Equipamentos!$A$4:$K$541,10,0) -> 34.8989 | H38: =VLOOKUP(A38,Equipamentos!$A$4:$K$541,11,0) -> 6.1542 | I38: =((E38*G38)+(F38*H38))*D38 -> 2618.6908
A39: E9560 | B39: Ônibus coletivo - 175 kw | C39: mês | D39: 0 | E39: 44 | F39: 176 | G39: =VLOOKUP(A39,Equipamentos!$A$4:$K$541,10,0) -> 357.462 | H39: =VLOOKUP(A39,Equipamentos!$A$4:$K$541,11,0) -> 106.6233 | I39: =((E39*G39)+(F39*H39))*D39 -> 0
H40: Subtotal do Item 2 | I40: =SUM(I38:I39) -> 2618.6908
A41: 2.2 | B41: Auxiliar
A42: E9093 | B42: Veículo Leve 53 kw | C42: mês | D42: 0 | E42: 44 | F42: 176 | G42: =G38 -> 34.8989 | H42: =H38 -> 6.1542 | I42: =((E42*G42)+(F42*H42))*D42 -> 0
H43: Subtotal do Item 2 | I43: =SUM(I42) -> 0
A44: 2.3 | B44: Gerência Administrativa
A45: E9093 | B45: Veículo Leve 53 kw | C45: mês | D45: 0 | E45: 44 | F45: 176 | G45: =G38 -> 34.8989 | H45: =H38 -> 6.1542 | I45: =((E45*G45)+(F45*H45))*D45 -> 0
H46: Subtotal do Item 2 | I46: =I45 -> 0
H47: Total dos Veículos da Parcela Fixa | I47: =I46+I43+I40 -> 2618.6908
A49: Composição de custo da equipe de produção de terraplenagem
A50: Código | B50: Discriminação | C50: Unidade | D50: Quantidade | F50: Custo Unitário (R$) | H50: Custo Total (R$)
B51: Equipe de Produção de Terraplenagem
A52: 3.1 | B52: Mão de Obra
A53: P9893 | B53: Encarregado de produção | C53: mês | D53: 1 | F53: =VLOOKUP(A53,'Pessoal Sicro'!$A$6:$G$118,6,0) -> 7826.5052 | H53: =F53*D53 -> 7826.5052
F54: Subtotal do Item 3.1 | H54: =SUM(H53:H53) -> 7826.5052
A55: Código | B55: Discriminação | C55: Unidade | D55: Quantidade | E55: Utilização Produtiva | F55: Utilização Improdutiva | G55: Custo Horário Produtivo (R$) | H55: Custo Horário Improdutivo (R$) | I55: Custo Total (R$)
A56: 3.2 | B56: Veículos
B57: Veículo Leve 53 kw | C57: mês | D57: 1 | E57: 44 | F57: 176 | G57: =G38 -> 34.8989 | H57: =H38 -> 6.1542 | I57: =((E57*G57)+(F57*H57))*D57 -> 2618.6908
H58: Subtotal do Item 3.2 | I58: =SUM(I57:I57) -> 2618.6908
H59: Total da Equipe de Produção de Terraplenagem | I59: =I58+H54 -> 10445.196
A61: Composição de custo da equipe de produção de pavimentação
A62: Código | B62: Discriminação | C62: Unidade | D62: Quantidade | F62: Custo Unitário (R$) | H62: Custo Total (R$)
B63: Equipe de Produção de Pavimentação
A64: 3.1 | B64: Mão de Obra
A65: P9893 | B65: Encarregado de produção | C65: mês | D65: 1 | F65: =VLOOKUP(A65,'Pessoal Sicro'!$A$6:$G$118,6,0) -> 7826.5052 | H65: =F65*D65 -> 7826.5052
F66: Subtotal do Item 3.1 | H66: =SUM(H65:H65) -> 7826.5052
A67: Código | B67: Discriminação | C67: Unidade | D67: Quantidade | E67: Utilização Produtiva | F67: Utilização Improdutiva | G67: Custo Horário Produtivo (R$) | H67: Custo Horário Improdutivo (R$) | I67: Custo Total (R$)
A68: 3.2 | B68: Veículos
B69: Veículo Leve 53 kw | C69: mês | D69: 1 | E69: 44 | F69: 176 | G69: =G38 -> 34.8989 | H69: =H38 -> 6.1542 | I69: =((E69*G69)+(F69*H69))*D69 -> 2618.6908
H70: Subtotal do Item 3.2 | I70: =SUM(I69:I69) -> 2618.6908
H71: Total da Equipe de Produção de Pavimentação | I71: =I70+H66 -> 10445.196
A73: Composição de custo da equipe de produção de drenagem
A74: Código | B74: Discriminação | C74: Unidade | D74: Quantidade | F74: Custo Unitário (R$) | H74: Custo Total (R$)
B75: Equipe de Produção de Pavimentação
A76: 3.1 | B76: Mão de Obra
A77: P9893 | B77: Encarregado de produção | C77: mês | D77: 1 | F77: =VLOOKUP(A77,'Pessoal Sicro'!$A$6:$G$118,6,0) -> 7826.5052 | H77: =F77*D77 -> 7826.5052
F78: Subtotal do Item 3.1 | H78: =SUM(H77:H77) -> 7826.5052
A79: Código | B79: Discriminação | C79: Unidade | D79: Quantidade | E79: Utilização Produtiva | F79: Utilização Improdutiva | G79: Custo Horário Produtivo (R$) | H79: Custo Horário Improdutivo (R$) | I79: Custo Total (R$)
A80: 3.2 | B80: Veículos
B81: Veículo Leve 53 kw | C81: mês | D81: 1 | E81: 44 | F81: 176 | G81: =G38 -> 34.8989 | H81: =H38 -> 6.1542 | I81: =((E81*G81)+(F81*H81))*D81 -> 2618.6908
H82: Subtotal do Item 3.2 | I82: =SUM(I81:I81) -> 2618.6908
H83: Total da Equipe de Produção de Pavimentação | I83: =I82+H78 -> 10445.196
A85: Composição de custo da equipe de produção de sinalização
A86: Código | B86: Discriminação | C86: Unidade | D86: Quantidade | F86: Custo Unitário (R$) | H86: Custo Total (R$)
B87: Equipe de Produção de Pavimentação
A88: 3.1 | B88: Mão de Obra
A89: P9893 | B89: Encarregado de produção | C89: mês | D89: 1 | F89: =VLOOKUP(A89,'Pessoal Sicro'!$A$6:$G$118,6,0) -> 7826.5052 | H89: =F89*D89 -> 7826.5052
F90: Subtotal do Item 3.1 | H90: =SUM(H89:H89) -> 7826.5052
A91: Código | B91: Discriminação | C91: Unidade | D91: Quantidade | E91: Utilização Produtiva | F91: Utilização Improdutiva | G91: Custo Horário Produtivo (R$) | H91: Custo Horário Improdutivo (R$) | I91: Custo Total (R$)
A92: 3.2 | B92: Veículos
B93: Veículo Leve 53 kw | C93: mês | D93: 1 | E93: 44 | F93: 176 | G93: =G38 -> 34.8989 | H93: =H38 -> 6.1542 | I93: =((E93*G93)+(F93*H93))*D93 -> 2618.6908
H94: Subtotal do Item 3.2 | I94: =SUM(I93:I93) -> 2618.6908
H95: Total da Equipe de Produção de Pavimentação | I95: =I94+H90 -> 10445.196
A97: Composição de custo da equipe topografia
A98: Código | B98: Discriminação | C98: Unidade | D98: Quantidade | F98: Custo Unitário (R$) | H98: Custo Total (R$)
B99: Equipe de Topografia
A100: 3.1 | B100: Mão de Obra
A101: P9949 | B101: Topográfo | C101: mês | D101: 1 | F101: =VLOOKUP(A101,'Pessoal Sicro'!$A$6:$G$118,6,0) -> 8508.0663 | H101: =F101*D101 -> 8508.0663
A102: P9950 | B102: Auxiliar de topografia | C102: mês | D102: 1 | F102: =VLOOKUP(A102,'Pessoal Sicro'!$A$6:$G$118,6,0) -> 5561.4546 | H102: =F102*D102 -> 5561.4546
F103: Subtotal do Item 3.1 | H103: =SUM(H101:I102) -> 14069.5209
A104: Código | B104: Discriminação | C104: Unidade | D104: Quantidade | E104: Utilização Produtiva | F104: Utilização Improdutiva | G104: Custo Horário Produtivo (R$) | H104: Custo Horário Improdutivo (R$) | I104: Custo Total (R$)
A105: 3.2 | B105: Veículos
B106: Veículo Leve 53 kw | C106: mês | D106: 1 | E106: 44 | F106: 176 | G106: =G38 -> 34.8989 | H106: =H38 -> 6.1542 | I106: =((E106*G106)+(F106*H106))*D106 -> 2618.6908
H107: Subtotal do Item 3.2 | I107: =SUM(I106:I106) -> 2618.6908
H108: Total da Equipe de Produção de Topografia | I108: =I107+H103 -> 16688.2117
A110: Composição de custo do setor de medicina e segurança do trabalho
A111: Código | B111: Discriminação | C111: Unidade | D111: Quantidade | F111: Custo Unitário (R$) | H111: Custo Total (R$)
A112: 4 | B112: Setor de Medicina e Segurança do Trabalho
A113: P9876 | B113: Técnico de segurança do trabalho | C113: mês | D113: 1 | F113: =VLOOKUP(A113,'Pessoal Sicro'!$A$6:$G$118,6,0) -> 7081.3754 | H113: =F113*D113 -> 7081.3754
A114: P9864 | B114: Engenheiro de segurança do trabalho | C114: mês | D114: 0 | F114: =VLOOKUP(A114,'Pessoal Sicro'!$A$6:$G$118,6,0) -> 22933.1739 | H114: =F114*D114 -> 0
A115: P9851 | B115: Médico do trabalho | C115: mês | D115: 0 | F115: =VLOOKUP(A115,'Pessoal Sicro'!$A$6:$G$118,6,0) -> 18352.249 | H115: =F115*D115 -> 0
A116: P9951 | B116: Médico de câmara hiperbárica | C116: mês | D116: 0 | F116: =VLOOKUP(A116,'Pessoal Sicro'!$A$6:$G$118,6,0) -> 20300.9664 | H116: =F116*D116 -> 0
F117: Subtotal do Item 4 | H117: =SUM(H113:I116) -> 7081.3754
A119: Parcela Variável - Composição de custo da equipe de frente de serviço
A120: Código | B120: Discriminação | C120: Unidade | D120: Quantidade | F120: Custo Unitário (R$) | H120: Custo Total (R$)
A121: 5 | B121: Equipe de Frente de Serviço | C121: equipexmês
A122: P9875 | B122: Encarregado de Turma | C122: mês | D122: 1 | F122: =VLOOKUP(A122,'Pessoal Sicro'!$A$6:$G$118,6,0) -> 5227.0497 | H122: =F122*D122 -> 5227.0497
A123: P9804 | B123: Apontador | C123: mês | D123: 0.5 | F123: =VLOOKUP(A123,'Pessoal Sicro'!$A$6:$G$118,6,0) -> 4710.754 | H123: =F123*D123 -> 2355.377
F124: Subtotal do Item 5 | H124: =SUM(H122:I123) -> 7582.4267
A126: Parcela Variável - Composição de custo da equipe de frente de serviço (Terraplenagem) - Somente Compactação
A127: Código | B127: Discriminação | C127: Unidade | D127: Quantidade | F127: Produção Horária (und/h) | H127: Efs
A128: 5.1 | B128: Equipe de Frente de Serviço | C128: equipexmês
C129: mês | H129: =(D129)/(F129*182.49) -> 
C130: mês | H130: =(D130)/(F130*182.49) -> 
C131: mês | H131: =(D131)/(F131*182.49) -> 
F132: Total de Equipes para Terraplenagem | H132: =SUM(H131:I131) -> 
A134: Parcela Variável - Composição de custo da acompanhamento das frentes de serviço de pavimentação
A135: Código | B135: Discriminação | C135: Unidade | D135: Quantidade | F135: Produção Horária (und/h) | H135: Efs
A136: 5.2 | B136: Equipe de Frente de Serviço | C136: equipe x mês
A137: 36170 | B137: Bloquete/piso intertravado de concreto - modelo onda/16 faces/retangular/t ijolinho/paver/holandes/paralelepipedo, *22 cm x 11* cm, e = 8 cm, resistencia de 35 mpa (nbr 9781), cor natural | C137: ='[204]RESUMO MODULO TOTAL'!I22 -> m² | D137: ='RESUMO MODULO TOTAL'!J23 -> 98392 | F137: 99.6 | H137: =(D137)/(F137*182.49) -> 5.413291062
A138: 92404 ADAPTADA | B138: Execução de pavimento em piso intertravado, com bloco 16 faces de 22 x 11 cm, espessura 8 cm. af_10/2022 - exclusive fornecimento de bloquete | C138: ='[204]RESUMO MODULO TOTAL'!I23 -> m² | D138: ='RESUMO MODULO TOTAL'!J24 -> 98000 | F138: 1125 | H138: 0.4773473128
A139: 5915014 | B139: =VLOOKUP(A139,'SINTÉTICO SICRO'!A:D,2,0) -> Transporte com caminhão carroceria com capacidade de 11 t e com guindauto de 45 t.m - rodovia pavimentada | C139: ='[204]RESUMO MODULO TOTAL'!I24 -> tkm | D139: ='RESUMO MODULO TOTAL'!J25 -> 1379840 | F139: 1500 | H139: 5.040787623
A140: 5915321 | B140: =VLOOKUP(A140,'SINTÉTICO SICRO'!A:D,2,0) -> Transporte com caminhão basculante de 14 m³ - rodovia pavimentada | C140: ='[204]RESUMO MODULO TOTAL'!I25 -> tkm | D140: ='RESUMO MODULO TOTAL'!J26 -> 372204 | F140: 120.7 | H140: 16.89797623
A141: 5915321 | B141: =VLOOKUP(A141,'SINTÉTICO SICRO'!A:D,2,0) -> Transporte com caminhão basculante de 14 m³ - rodovia pavimentada | C141: ='[204]RESUMO MODULO TOTAL'!I26 -> tkm | D141: ='RESUMO MODULO TOTAL'!J27 -> 83745.9 | F141: 120.7 | H141: 3.802044651
A142: 4011268 | B142: =VLOOKUP(A142,'SINTÉTICO SICRO'!A:D,2,0) -> Base estabilizada granulometricamente com mistura solo brita (70% - 30%) em usina com material de jazida e brita comercial | C142: ='[204]RESUMO MODULO TOTAL'!I27 -> m³ | D142: ='RESUMO MODULO TOTAL'!J28 -> 14700 | F142: 120.7 | H142: 0.6673766283
A143: 4011209 | B143: =VLOOKUP(A143,'SINTÉTICO SICRO'!A:D,2,0) -> Regularização do subleito | C143: ='[204]RESUMO MODULO TOTAL'!I28 -> m² | D143: ='RESUMO MODULO TOTAL'!J29 -> 98000 | F143: 1121.33 | H143: 0.4789096224
F144: Total de Equipes para Pavimentação | H144: =SUM(H137:I143) -> 32.77773313
A146: Parcela Variável - Composição de custo da acompanhamento das frentes de serviço de drenagem
A147: Código | B147: Discriminação | C147: Unidade | D147: Quantidade | F147: Efsdu | H147: Efs
A148: 5.3 | B148: Frentes de Serviço para Drenagem | C148: equipe x mês
A149: 2003373 | B149: =VLOOKUP(A149,'SINTÉTICO SICRO'!$A$4:$D$6373,2,0) -> Meio-fio de concreto - MFC 03 - areia e brita comerciais - fôrma de madeira | C149: m | D149: ='RESUMO MODULO TOTAL'!J36 -> 28000 | F149: 0.00021 | H149: =D149*F149 -> 5.88
F150: Total de Equipes para Drenagem | H150: =H149 -> 5.88
A152: Parcela Variável - Composição de custo da acompanhamento das frentes de serviço de sinalização
A153: Código | B153: Discriminação | C153: Unidade | D153: Quantidade | F153: Produção Horária (und/h) | H153: Efs
A154: 5.4 | B154: Frentes de Serviço para Sinalização | C154: equipe x mês
A155: 5213440 | B155: =VLOOKUP(A155,'SINTÉTICO SICRO'!$A$4:$D$6373,2,0) -> Placa de regulamentação em aço D = 0,60 m - película retrorrefletiva tipo I + SI - fornecimento e implantação | C155: ='[204]RESUMO MODULO TOTAL'!I30 -> und | D155: =VLOOKUP(A155,'RESUMO MODULO TOTAL'!D:J,7,FALSE) -> 42 | F155: 3 | H155: =0.2*((D155)/(F155*182.49)) -> 0.01534330648
A156: 5213464 | B156: =VLOOKUP(A156,'SINTÉTICO SICRO'!$A$4:$D$6373,2,0) -> Placa de advertência em aço, lado de 0,60 m - película retrorrefletiva tipo I + SI - fornecimento e implantação | C156: ='[204]RESUMO MODULO TOTAL'!I31 -> und | D156: =VLOOKUP(A156,'RESUMO MODULO TOTAL'!D:J,7,FALSE) -> 42 | F156: 4.1 | H156: =0.2*((D156)/(F156*182.49)) -> 0.01122680962
A157: 5213863 | B157: =VLOOKUP(A157,'SINTÉTICO SICRO'!$A$4:$D$6373,2,0) -> Suporte metálico galvanizado para placa de advertência ou regulamentação - lado ou diâmetro de 0,60 m - fornecimento e implantação | C157: ='[204]RESUMO MODULO TOTAL'!I32 -> und | D157: =VLOOKUP(A157,'RESUMO MODULO TOTAL'!D:J,7,FALSE) -> 84 | F157: 4.1 | H157: 0.02245361924
A158: 5213400 | B158: =VLOOKUP(A158,'SINTÉTICO SICRO'!$A$4:$D$6373,2,0) -> Pintura de faixa com tinta acrílica - espessura de 0,4 mm | C158: ='[204]RESUMO MODULO TOTAL'!I33 -> m² | D158: =VLOOKUP(A158,'RESUMO MODULO TOTAL'!D:J,7,FALSE) -> 3360 | F158: 177.07 | H158: 0.02079625886
F159: Total de Equipes para Sinalização | H159: =SUM(H155:I158) -> 0.0698199942
A161: 3. PARCELA VARIÁVEL - EQUIPE DE CONTROLE TECNOLÓGICO
A162: LABORATÓRIO DE SOLOS
A163: Item | B163: Discriminação | F163: Unidade | G163: Quantidade | H163: Custo Unitário (R$) | I163: Custo Total (R$)
B164: Laboratório de Solos (equipe x mês)
B165: Mão de Obra
A166: P9858 | B166: Laboratorista | F166: func./mês | G166: 1 | H166: =VLOOKUP(A166,'Pessoal Sicro'!$A$6:$G$118,6,0) -> 7199.4012 | I166: =TRUNC(G166*H166,2) -> 7199.4
A167: P9833 | B167: Auxiliar de laboratório | F167: func./mês | G167: 1 | H167: =VLOOKUP(A167,'Pessoal Sicro'!$A$6:$G$118,6,0) -> 5528.7453 | I167: =TRUNC(G167*H167,2) -> 5528.74
H168: Subtotal do Item | I168: =SUM(I166:I167) -> 12728.14
A169: Item | B169: Discriminação | C169: Und | D169: Quant | E169: Utilização Produtiva | F169: Utilização Improdutiva | G169: Horário Produtivo (R$) | H169: Horário Improdutivo (R$) | I169: Total (R$)
B170: Equipe de Controle Tecnológico
B171: Veículos
A172: E9125 | B172: Van furgão a diesel - 93 kW | C172: veic./mês | D172: 0.5 | E172: 44 | F172: 176 | G172: =VLOOKUP(A172,Equipamentos!$A$4:$K$533,10,0) -> 84.3517 | H172: =VLOOKUP(A172,Equipamentos!$A$4:$K$533,11,0) -> 47.4188 | I172: =D172*((E172*G172)+(F172*H172)) -> 6028.5918
H173: Subtotal do Item | I173: =SUM(I172:I172) -> 6028.5918
H174: Total da Equipe do Laboratório de Solos | I174: =I168+I173 -> 18756.7318
A176: 3. PARCELA VARIÁVEL - EQUIPE DE CONTROLE TECNOLÓGICO
A177: LABORATÓRIO DE CONCRETO
A178: Item | B178: Discriminação | F178: Unidade | G178: Quantidade | H178: Custo Unitário (R$) | I178: Custo Total (R$)
B179: Laboratório de Solos (equipe x mês)
B180: Mão de Obra
A181: P9858 | B181: Laboratorista | F181: func./mês | G181: 1 | H181: =VLOOKUP(A181,'Pessoal Sicro'!$A$6:$G$118,6,0) -> 7199.4012 | I181: =TRUNC(G181*H181,2) -> 7199.4
A182: P9833 | B182: Auxiliar de laboratório | F182: func./mês | G182: 1 | H182: =VLOOKUP(A182,'Pessoal Sicro'!$A$6:$G$118,6,0) -> 5528.7453 | I182: =TRUNC(G182*H182,2) -> 5528.74
H183: Subtotal do Item | I183: =SUM(I181:I182) -> 12728.14
A184: Item | B184: Discriminação | C184: Und | D184: Quant | E184: Utilização Produtiva | F184: Utilização Improdutiva | G184: Horário Produtivo (R$) | H184: Horário Improdutivo (R$) | I184: Total (R$)
B185: Equipe de Controle Tecnológico
B186: Veículos
A187: E9125 | B187: Van furgão a diesel - 93 kW | C187: veic./mês | D187: 0.5 | E187: 44 | F187: 176 | G187: =VLOOKUP(A187,Equipamentos!$A$4:$K$533,10,0) -> 84.3517 | H187: =VLOOKUP(A187,Equipamentos!$A$4:$K$533,11,0) -> 47.4188 | I187: =D187*((E187*G187)+(F187*H187)) -> 6028.5918
H188: Subtotal do Item | I188: =SUM(I187:I187) -> 6028.5918
H189: Total da Equipe do Laboratório de Concreto | I189: =I183+I188 -> 18756.7318
A191: Equipes de laboratório de solos para pavimentação
A192: Item | B192: Discriminação | F192: Und | G192: Quant | H192: QE | I192: Els
A193: 4011268 | B193: =VLOOKUP(A193,'SINTÉTICO SICRO'!A:D,2,0) -> Base estabilizada granulometricamente com mistura solo brita (70% - 30%) em usina com material de jazida e brita comercial | F193: =VLOOKUP(A193,'[204]SINTÉTICO SICRO'!A:D,3,0) -> m³ | G193: =VLOOKUP(A193,'RESUMO MODULO TOTAL'!D:J,7,FALSE) -> 14700 | H193: 21900 | I193: =G193/H193 -> 0.6712328767
H194: Total de equipes de Laboratório de Solos para Pavimentação | I194: =I193 -> 0.6712328767
A196: Equipes de laboratório de Concreto
A197: Item | B197: Discriminação | F197: Und | G197: Quant | H197: QE | I197: Ela
A198: 36170 | B198: BLOQUETE/PISO INTERTRAVADO DE CONCRETO - MODELO ONDA/16 FACES/RETANGULAR/T IJOLINHO/PAVER/HOLANDES/PARALELEPIPEDO, *22 CM X 11* CM, E = 8 CM, RESISTENCIA DE 35 MPA (NBR 9781), COR NATURAL | F198: ='[204]RESUMO MODULO TOTAL'!I22 -> m² | G198: =VLOOKUP(A198,'RESUMO MODULO TOTAL'!D:J,7,FALSE) -> 98392 | H198: 9000 | I198: =G198/H198 -> 10.93244444
H199: Total de equipes de Laboratório de Concreto | I199: =SUM(I198:I198) -> 10.93244444
A201: manutenção do canteiro de obras e acampamentos
A202: Código | B202: Discriminação | C202: Unidade | D202: Quantidade | F202: Custo Unitário (R$) | H202: Custo Total (R$)
B203: Manutenção do Canteiro de Obras e Acampamentos
A204: 6.1 | B204: Mão de Obra
A205: P9952 | B205: Pedreiro | C205: mês | D205: 0 | F205: =VLOOKUP(A205,'Pessoal Sicro'!$A$6:$G$118,6,0) -> 4768.7493 | H205: =F205*D205 -> 0
A206: P9954 | B206: Servente | C206: mês | D206: 0 | F206: =VLOOKUP(A206,'Pessoal Sicro'!$A$6:$G$118,6,0) -> 4030.0175 | H206: =F206*D206 -> 0
A207: P9953 | B207: Eletricista | C207: mês | D207: 0 | F207: =VLOOKUP(A207,'Pessoal Sicro'!$A$6:$G$118,6,0) -> 5651.8909 | H207: =F207*D207 -> 0
F208: Subtotal do Item 6.1 | H208: =SUM(H205:I207) -> 0
A210: Código | B210: Discriminação | C210: Unidade | D210: Quantidade | F210: Custo Produtivo (R$) | H210: Custo Total (R$)
A211: 6.2 | B211: Equipamentos
B212: Caminhão guindauto de 6 toneladas | C212: h/mês | D212: 0 | H212: =F212*D212 -> 0
B213: Caminhão tanque de 8.000 litros | C213: h/mês | D213: 0 | H213: =F213*D213 -> 0
A214: E9524 | B214: Motoniveladora | C214: h/mês | D214: 0 | F214: =VLOOKUP(A214,Equipamentos!$A$4:$K$533,10,0) -> 290.0451 | H214: =F214*D214 -> 0
F215: Subtotal do Item 6.2 | H215: =SUM(H212:I214) -> 0
G216: Total da Manutenção do Canteiro de Obras e Acampamentos | H216: =H215+H208 -> 0
A220: Resumo das parcelas de administração local
A221: Código | B221: Discriminação | C221: Unidade | D221: Quantidade | F221: Custo Unitário (R$) | H221: Custo Total (R$)
B222: Parcela Fixa
B223: Mão de Obra | C223: mês | D223: 5 | F223: =H14+H18+H26+H30 -> 55612.6672 | H223: =F223*D223 -> 278063.336
B224: Veículos | C224: mês | D224: 5 | F224: =I47 -> 2618.6908 | H224: =F224*D224 -> 13093.454
... 26 more rows

Sheet Projeto Executivo
A4: COMPOSIÇAO PREÇO PROJETO EXECUTIVO
A6: DISCRIMINAÇAO | F6: Pr. Unit. | G6: Pr. Total
A8: A· EOUIPE TECNICA | G8: =G9+G12 -> 17167.7347
B9: A. 1 - Pessoal de Nível Superior | C9: Unidade | D9: Quantitativo | E9: SICRO e Rel.Custos Gerais | G9: =G10+G11 -> 14243.20487
B10: Engenheiro | C10: mês | D10: 0.5 | E10: P9812 | F10: =VLOOKUP(E10,'Pessoal Sicro'!A:G,6,0) -> 24232.3766 | G10: =F10*D10 -> 12116.1883
B11: Topógrafo | C11: mês | D11: 0.25 | E11: P9949 | F11: =VLOOKUP(E11,'Pessoal Sicro'!A:G,6,0) -> 8508.0663 | G11: =F11*D11 -> 2127.016575
B12: A.2 - Pessoal de Nível Técnico e Aux. | G12: =G13+G14 -> 2924.529825
B13: Auxiliar de topógrafo | C13: mês | D13: 0.125 | E13: P9950 | F13: =VLOOKUP(E13,'Pessoal Sicro'!A:G,6,0) -> 5561.4546 | G13: =F13*D13 -> 695.181825
B14: Auxiliar Técnico/Assistente de Engenharia | C14: mês | D14: 0.5 | E14: P9903 | F14: =VLOOKUP(E14,'Pessoal Sicro'!A:G,6,0) -> 4458.696 | G14: =F14*D14 -> 2229.348
A15: B - ENCARGOS SOCIAIS | G15: =G16 -> 0
B16: =CONCATENATE("Taxas ",'ENC. SOCIAIS'!E51,"%") -> Taxas % | C16: JÁ INCLUSAS EM "A"
A17: C - DESPESAS GERAIS | G17: =G18+G20+G19 -> 12848.36728
B18: C.1 - MATERIAIS DE CONSUMO | C18: Estimativa % como referência de equipe técnica com encargos sociais | D18: 0.03 | F18: =G8+G16 -> 17167.7347 | G18: =F18*D18 -> 515.032041
B19: C.2 - VEÍCULOS (Veículo leve picape 4 x 4 com capacidade de 1,10 t - 147 kW) | C19: h | D19: 110 | E19: E9684 | F19: =VLOOKUP(E19,Equipamentos!A:K,10,0) -> 109.2041 | G19: =F19*D19 -> 12012.451
B20: C.3 - Estação total eletrônica com alcance máximo de 3.000 m | C20: h | D20: 63.24586925 | E20: E9553 | F20: =VLOOKUP(E20,Equipamentos!A:K,10,0) -> 5.0736 | G20: =F20*D20 -> 320.8842422
A21: D - ENSAIOS | G21: =SUM(G22:G25) -> 3650.784712
B22: Laboratorista | C22: mês | D22: =1/4 -> 0.25 | E22: P9858 | F22: =VLOOKUP(E22,'Pessoal Sicro'!A:G,6,0) -> 7199.4012 | G22: =F22*D22 -> 1799.8503
B23: Auxiliar de Laboratório | C23: mês | D23: =1/8 -> 0.125 | E23: P9833 | F23: =VLOOKUP(E23,'Pessoal Sicro'!A:G,6,0) -> 5528.7453 | G23: =F23*D23 -> 691.0931625
B24: Laboratório de solos | C24: mês | D24: =1/8 -> 0.125 | E24: B8957 | F24: =VLOOKUP(E24,'Tabelas 1 e 2'!C14:G23,5,0) -> 4073.25 | G24: =F24*D24 -> 509.15625
B25: Laboratório de asfalto | C25: mês | D25: 0.125 | E25: B8955 | F25: =VLOOKUP(E25,'Tabelas 1 e 2'!C15:G24,5,0) -> 5205.48 | G25: =F25*D25 -> 650.685
A26: I - SOMA (A+B+C+D) | G26: =G8+G15+G17+G21 -> 33666.8867
A27: II - CUSTOS ADMINISTRATIVOS | D27: =BDI!C17 -> 0.2339 | G27: =D27*G26 -> 7874.684798
A28: TOTAL | G28: =G26+G27 -> 41541.57149
F29: Por m²: | G29: =G28/('MC MODULO'!C1*'MC MODULO'!C2) -> 2.967255107

Sheet CPU CODEVASF
A4: ='RESUMO MODULO TOTAL'!B1 -> EXECUÇÃO DE SERVIÇOS DE IMPLANTAÇÃO DE PAVIMENTAÇÃO EM BLOCO DE CONCRETO INTERTRAVADO, EM VIAS DE MUNICÍPIOS DIVERSOS INSERIDOS NA ÁREA DE ATUAÇÃO DA CODEVASF, NO ESTADO DO RIO GRANDE DO NORTE (REGIÃO 3)
F5: BDI %: | G5: =BDI!$C$17 -> 0.2339
E6: Encargos Sociais: | G6: Horista | H6: Mensalista
G7: ='ENC. SOCIAIS'!E51/100 -> 0 | H7: ='ENC. SOCIAIS'!F51/100 -> 0
A8: COMPOSIÇÕES DE CUSTO UNITARIO
A9: CPU-02 | B9: CODEVASF | D9: Correção de vazamentos no ramal na rua sem pavimento com fornecimento do material hidráulico | E9: m | F9: COEF. | G9: PRECO UNITÁRIO (R$) | H9: TOTAL (R$)
A11: SICRO | B11: SICRO | C11: P9824 | D11: =VLOOKUP(C11,'Pessoal Sicro'!$A$5:$G$1048576,2,0) -> Servente | E11: H | F11: 0.2 | G11: =VLOOKUP(C11,'Pessoal Sicro'!$A$5:$G$1048576,6,0) -> 21.7533 | H11: =F11*G11 -> 4.35066
A12: SICRO | B12: SICRO | C12: P9807 | D12: =VLOOKUP(C12,'Pessoal Sicro'!$A$5:$G$1048576,2,0) -> Bombeiro hidráulico | E12: H | F12: 0.1 | G12: =VLOOKUP(C12,'Pessoal Sicro'!$A$5:$G$1048576,6,0) -> 31.3673 | H12: 3.13673
A13: INS. SINAPI | B13: SINAPI | C13: 9867 | D13: TUBO PVC, SOLDAVEL, DN 20 MM, AGUA FRIA (NBR-5648) | E13: m | F13: 1 | G13: =IFERROR(VLOOKUP(C13,'INSUMOS SINAPI'!A:E,5,FALSE),VLOOKUP(C13,'COMP Sint. Sinapi'!G:K,5,FALSE)) -> 3.25 | H13: 3.25
A14: INSUMO | B14: ORSE | C14: 10585 | D14: Arco de serra | E14: un | F14: 0.1 | G14: 19.9 | H14: 1.99
A15: INS. SINAPI | B15: SINAPI | C15: 3859 | D15: LUVA SOLDAVEL COM ROSCA, PVC, 20 MM X 1/2", PARA AGUA FRIA PREDIAL | E15: un | F15: 2 | G15: =IFERROR(VLOOKUP(C15,'INSUMOS SINAPI'!A:E,5,FALSE),VLOOKUP(C15,'COMP Sint. Sinapi'!G:K,5,FALSE)) -> 1.17 | H15: 2.34
E16: Sub total: | H16: =SUM(H11:H15) -> 15.06739
F17: BDI | G17: =BDI!$C$17 -> 0.2339 | H17: =H16*G17 -> 3.524262521
G18: Total Serviços: | H18: =H16+H17 -> 18.59165252
E19: =A9 -> CPU-02 | F19: PREÇO UNITÁRIO TOTAL: | H19: =H18 -> 18.59165252 | I19: =H16 -> 15.06739
A21: CPU-04 | B21: CODEVASF | D21: CONTROLE TECNOLÓGICO - PROJETO | E21: m² | F21: COEF. | G21: PRECO UNITÁRIO (R$) | H21: TOTAL (R$)
A23: Insumo | B23: SICRO | C23: P9858 | D23: Laboratorista | E23: mês | F23: =0.15/14000 -> 1.071428571e-05 | G23: 7199.4 | H23: =F23*G23 -> 0.07713642857
A24: Composição | B24: SICRO | C24: P9833 | D24: Auxiliar de Laboratório | E24: mês | F24: =0.15/14000 -> 1.071428571e-05 | G24: 4988 | H24: 0.05344285714
A25: Composição | B25: SICRO | C25: *B8957 | D25: Laboratório de Solos | E25: mês | F25: 1.071428571e-05 | G25: =VLOOKUP(I25,'Tabelas 1 e 2'!$C:$G,5,0) -> 4073.25 | H25: 0.04364196429 | I25: B8957
A26: Composição | B26: SICRO | C26: *B8956 | D26: Laboratório de concreto | E26: mês | F26: 1.071428571e-05 | G26: =VLOOKUP(I26,'Tabelas 1 e 2'!$C:$G,5,0) -> 5205.48 | H26: 0.055773 | I26: B8955
B27: *Relatório de Custos Gerais do DNIT, página 1 | E27: Sub total: | H27: =SUM(H23:H26) -> 0.22999425
F28: BDI | G28: =BDI!$C$17 -> 0.2339 | H28: =H27*G28 -> 0.05379565507
E29: CPU-20 | F29: PREÇO UNITÁRIO TOTAL: | H29: =H27+H28 -> 0.2837899051 | I29: =H27 -> 0.22999425

Sheet CPU SINAPI
A1: SINAPI - SISTEMA NACIONAL DE PESQUISA DE CUSTOS E ÍNDICES DA CONSTRUÇÃO CIVIL | F1: XXXX
A2: PCI.818.01 - COMPOSIÇÕES ATIVAS ANALÍTICAS COM CUSTO | C2: ABRANGENCIA: NACIONAL DATA DE PREÇO : 10/2023 DATA REFERENCIA TECNICA: 16/11/2023
A3: * Composições constantes nos Relatórios publicados de Composições Analíticas para as 27 Unidades da Federação
A4: MACROCLASSE.CLASSE.GRUPO | B4: CÓDIGOS | C4: DESCRIÇÃO | D4: UNIDADE | E4: COEFICIENTE | F4: PREÇO UNITÁRIO | G4: PREÇO TOTAL
A5: 03.PAVI.INTE.004/001 | B5: 92404 ADAPTADA | C5: EXECUÇÃO DE PAVIMENTO EM PISO INTERTRAVADO, COM BLOCO 16 FACES DE 22 X 11 CM, ESPESSURA 8 CM. AF_10/2022 - EXCLUSIVE FORNECIMENTO DE BLOQUETE | D5: M2 | F5: Pavimento Intertravado | G5: =G17 -> 20.7
A6: INSUMO | B6: 370 | C6: AREIA MEDIA - POSTO JAZIDA/FORNECEDOR (RETIRADO NA JAZIDA, SEM TRANSPORTE) | D6: M3 | E6: 0.0568 | F6: =VLOOKUP($B6,'INSUMOS SINAPI'!A8:E5204,5,0) -> 89.1 | G6: =ROUND(ROUND(E6,5)*ROUND(F6,2),2) -> 5.06
A7: INSUMO | B7: 4741 | C7: PO DE PEDRA (POSTO PEDREIRA/FORNECEDOR, SEM FRETE) | D7: M3 | E7: 0.0098 | F7: =VLOOKUP($B7,'INSUMOS SINAPI'!A10:E5206,5,0) -> 159.74 | G7: =ROUND(ROUND(E7,5)*ROUND(F7,2),2) -> 1.57
A8: INSUMO | B8: 36170 | C8: BLOQUETE/PISO INTERTRAVADO DE CONCRETO - MODELO ONDA/16 FACES/RETANGULAR/T IJOLINHO/PAVER/HOLANDES/PARALELEPIPEDO, *22 CM X 11* CM, E = 8 CM, RESISTENCIA DE 35 MPA (NBR 9781), COR NATURAL | D8: M2 | E8: 1.004 | F8: 0 | G8: 0
A9: COMPOSICAO | B9: 88260 | C9: CALCETEIRO COM ENCARGOS COMPLEMENTARES | D9: H | E9: 0.2129 | F9: =VLOOKUP(B9,'COMP Sint. Sinapi'!G:K,5,0) -> 25.52 | G9: 5.43
A10: COMPOSICAO | B10: 88316 | C10: SERVENTE COM ENCARGOS COMPLEMENTARES | D10: H | E10: 0.2129 | F10: =VLOOKUP(B10,'COMP Sint. Sinapi'!G:K,5,0) -> 20.75 | G10: 4.42
A11: COMPOSICAO | B11: 91277 | C11: PLACA VIBRATÓRIA REVERSÍVEL COM MOTOR 4 TEMPOS A GASOLINA, FORÇA CENTRÍFUG A DE 25 KN (2500 KGF), POTÊNCIA 5,5 CV - CHP DIURNO. AF_08/2015 | D11: CHP | E11: 0.0055 | F11: =VLOOKUP(B11,'COMP Sint. Sinapi'!G9:K7324,5,0) -> 10.23 | G11: 0.06
A12: COMPOSICAO | B12: 91278 | C12: =VLOOKUP(B12,'COMP Sint. Sinapi'!G11:K7326,2,0) -> PLACA VIBRATÓRIA REVERSÍVEL COM MOTOR 4 TEMPOS A GASOLINA, FORÇA CENTRÍFUGA DE 25 KN (2500 KGF), POTÊNCIA 5,5 CV - CHI DIURNO. AF_08/2015 | D12: CHP | E12: 0.101 | F12: =VLOOKUP(B12,'COMP Sint. Sinapi'!G11:K7326,5,0) -> 0.68 | G12: 0.07
A13: COMPOSICAO | B13: 91283 | C13: =VLOOKUP(B13,'COMP Sint. Sinapi'!G12:K7327,2,0) -> CORTADORA DE PISO COM MOTOR 4 TEMPOS A GASOLINA, POTÊNCIA DE 13 HP, COM DISCO DE CORTE DIAMANTADO SEGMENTADO PARA CONCRETO, DIÂMETRO DE 350 MM, FURO DE 1" (14 X 1") - CHP DIURNO. AF_08/2015 | D13: CHI | E13: 0.0038 | F13: =VLOOKUP(B13,'COMP Sint. Sinapi'!G11:K7326,5,0) -> 11.43 | G13: =ROUND(ROUND(E13,5)*ROUND(F13,2),2) -> 0.04
A14: COMPOSICAO | B14: 91285 | C14: =VLOOKUP(B14,'COMP Sint. Sinapi'!G13:K7328,2,0) -> CORTADORA DE PISO COM MOTOR 4 TEMPOS A GASOLINA, POTÊNCIA DE 13 HP, COM DISCO DE CORTE DIAMANTADO SEGMENTADO PARA CONCRETO, DIÂMETRO DE 350 MM, FURO DE 1" (14 X 1") - CHI DIURNO. AF_08/2015 | D14: CHI | E14: 0.1027 | F14: =VLOOKUP(B14,'COMP Sint. Sinapi'!G12:K7327,5,0) -> 1.23 | G14: 0.13
D15: Sub total: | G15: =SUM(G6:G14) -> 16.78
F16: BDI | G16: =BDI!C17 -> 0.2339
D17: Total Serviços: | G17: =ROUND(ROUND(G15,2)*ROUND(1+G16,4),2) -> 20.7

Sheet BDI
A2: OBRA:
A3: LOCAL:
A4: DATA BASE:
A5: DETALHAMENTO DO BDI - SEM DESONERAÇÃO
A6: ='RESUMO MODULO TOTAL'!B1 -> EXECUÇÃO DE SERVIÇOS DE IMPLANTAÇÃO DE PAVIMENTAÇÃO EM BLOCO DE CONCRETO INTERTRAVADO, EM VIAS DE MUNICÍPIOS DIVERSOS INSERIDOS NA ÁREA DE ATUAÇÃO DA CODEVASF, NO ESTADO DO RIO GRANDE DO NORTE (REGIÃO 3)
A7: DESCRIÇÃO DOS SERVIÇOS | B7: PREÇO DE VENDA (%) | C7: CUSTO DIRETO (%)
A8: ADMINISTRAÇÃO CENTRAL | C8: 0.06
A9: DESPESAS FINANCEIRAS | B9: 0.0102
A10: SEGUROS E GARANTIAS CONTRATUAIS | B10: 0.0025
A11: RISCOS | B11: 0.005
A12: LUCRO OPERACIONAL | C12: 0.07
A13: PIS | B13: 0.0065
A14: COFINS | B14: 0.03
A15: ISSQN | B15: 0.03
A16: Contribuição Previdenciaria | B16: 0
B17: BDI | C17: =ROUND((1+(C8+C12))/(1-(B9+B10+B11+B13+B14+B15+B16))-1,4) -> 0.2339
A18: Observação: O percentual de ISSQN aqui utilizado consiste apenas em um referencial médio.
B19: O valor real do ISSQN a ser adotado deve ser aquele proveniente das alíquotas dos municípios situados na área de
B20: influência das obras.
A59: DETALHAMENTO DO BDI DIFERENCIADO - SEM DESONERAÇÃO
A60: ='RESUMO MODULO TOTAL'!B5 -> EXECUÇÃO DE SERVIÇOS DE IMPLANTAÇÃO DE PAVIMENTAÇÃO EM BLOCO DE CONCRETO INTERTRAVADO, EM VIAS DE MUNICÍPIOS DIVERSOS INSERIDOS NA ÁREA DE ATUAÇÃO DA CODEVASF, NO ESTADO DO RIO GRANDE DO NORTE (REGIÃO 3)
A62: DESCRIÇÃO DOS SERVIÇOS | B62: PREÇO DE VENDA (%) | C62: CUSTO DIRETO (%)
A63: ADMINISTRAÇÃO CENTRAL | C63: 0.0377
A64: DESPESA FINANCEIRAS | B64: 0.0102
A65: SEGUROS E GARANTIAS CONTRATUAIS | B65: 0.0025
A66: RISCOS | B66: 0.005
A67: LUCRO OPERACIONAL | C67: 0.05
A68: PIS | B68: 0.0065
A69: COFINS | B69: 0.03
A70: ISSQN | B70: 0
A71: Contribuição Previdenciaria | B71: 0
B72: BDI | C72: =ROUND((1+(C63+C67))/(1-(B64+B65+B66+B68+B69+B70+B71))-1,4) -> 0.15
A73: Fonte da composição, valores de referência e fórmula do BDI: Instrução Normativa N° 62/DNIT SEDE

Sheet ENC. SOCIAIS
A5: ='[205]RESUMO MODULO TOTAL'!$B$1 -> EXECUÇÃO DE CAPA ASFÁLTICA EM CONCRETO BETUMINOSO USINADO A QUENTE (CBUQ), EM VIAS DE MUNICÍPIOS DIVERSOS INSERIDOS NA ÁREA DE ATUAÇÃO DA CODEVASF, NO ESTADO DO RIO GRANDE DO NORTE (REGIÃO 1)
A7: DETALHAMENTO DOS ENCARGOS SOCIAIS (%)
A8: VIGÊNCIA A PARTIR DE 12/2023 | C8: COM DESONERAÇÃO | E8: SEM DESONERAÇÃO
C10: HORISTA | D10: MENSALISTA | E10: HORISTA | F10: MENSALISTA
A12: GRUPO A
A13: A1 | B13: INSS | C13: 0 | D13: 0 | E13: 20 | F13: 20
A14: A2 | B14: SESI | C14: 1.5 | D14: 1.5 | E14: 1.5 | F14: 1.5
A15: A3 | B15: SENAI | C15: 1 | D15: 1 | E15: 1 | F15: 1
A16: A4 | B16: INCRA | C16: 0.2 | D16: 0.2 | E16: 0.2 | F16: 0.2
A17: A5 | B17: SEBRAE | C17: 0.6 | D17: 0.6 | E17: 0.6 | F17: 0.6
A18: A6 | B18: Salário Educação | C18: 2.5 | D18: 2.5 | E18: 2.5 | F18: 2.5
A19: A7 | B19: Seguro Contra Acidentes de Trabalho | C19: 3 | D19: 3 | E19: 3 | F19: 3
A20: A8 | B20: FGTS | C20: 8 | D20: 8 | E20: 8 | F20: 8
A21: A9 | B21: SECONCI | C21: 1 | D21: 1 | E21: 0
A22: A | B22: Total | C22: =SUM(C13:C21) -> 17.8 | D22: =SUM(D13:D21) -> 17.8 | E22: =SUM(E13:E21) -> 36.8 | F22: =SUM(F13:F21) -> 36.8
A23: GRUPO B
A24: B1 | B24: Repouso Semanal Remunerado | C24: 17.88 | D24: - | E24: 17.97 | F24: -
A25: B2 | B25: Feriados | C25: 3.94 | D25: - | E25: 4.28 | F25: -
A26: B3 | B26: Auxílio-enfermidade | C26: 0.91 | D26: 0.69 | E26: 0.86 | F26: 0.64
A27: B4 | B27: 13° salário | C27: 10.98 | D27: 8.33 | E27: 11.2 | F27: 8.33
A28: B5 | B28: Licença-paternidade | C28: 0.07 | D28: 0.06 | E28: 0.06 | F28: 0.04
A29: B6 | B29: Faltas Justificadas | C29: 0.73 | D29: 0.56 | E29: 0.75 | F29: 0.56
A30: B7 | B30: Dias de chuva | C30: 1.45 | D30: - | E30: 1.75 | F30: -
A31: B8 | B31: Auxílio Acidente de Trabalho | C31: 0.11 | D31: 0.09 | E31: 0.1 | F31: 0.08
A32: B9 | B32: Férias Gozadas | C32: 11.35 | D32: 8.62 | E32: 14.03 | F32: 10.44
A33: B10 | B33: Salário Maternidade | C33: 0.03 | D33: 0.03 | E33: 0.04 | F33: 0.03
A34: B | B34: Total | C34: =SUM(C24:C33) -> 47.45 | D34: =SUM(D24:D33) -> 18.38 | E34: =SUM(E24:E33) -> 51.04 | F34: =SUM(F24:F33) -> 20.12
A35: GRUPO C
A36: C1 | B36: Aviso Prévio Indenizado | C36: 6.76 | D36: 5.14 | E36: 5.25 | F36: 3.91
A37: C2 | B37: Aviso Prévio Trabalhado | C37: 0.16 | D37: 0.12 | E37: 0.12 | F37: 0.09
A38: C3 | B38: Férias Indenizadas | C38: 2.28 | D38: 1.73 | E38: 0.88 | F38: 0.66
A39: C4 | B39: Depósito Rescisão Sem Justa Causa | C39: 3.81 | D39: 2.89 | E39: 2.44 | F39: 1.82
A40: C5 | B40: Indenização Adicional | C40: 0.57 | D40: 0.43 | E40: 0.44 | F40: 0.33
A41: C | B41: Total | C41: =SUM(C36:C40) -> 13.58 | D41: =SUM(D36:D40) -> 10.31 | E41: =SUM(E36:E40) -> 9.13 | F41: =SUM(F36:F40) -> 6.81
A42: GRUPO D
A43: D1 | B43: Reincidência de A sobre B | C43: 8.45 | D43: 3.27 | E43: 18.78 | F43: 7.4
A44: D2 | B44: Reincidência de Grupo A sobre Aviso Prévio Trabalhado e Reincidência do FGTS sobre Aviso Prévio Indenizado | C44: 0.57 | D44: 0.43 | E44: 0.46 | F44: 0.35
A45: D | B45: Total | C45: =SUM(C43:C44) -> 9.02 | D45: =SUM(D43:D44) -> 3.7 | E45: =SUM(E43:E44) -> 19.24 | F45: =SUM(F43:F44) -> 7.75
A47: T O T A L (%) | C47: =C22+C34+C41+C45 -> 87.85 | D47: =D22+D34+D41+D45 -> 50.19 | E47: =E22+E34+E41+E45 -> 116.21 | F47: =F22+F34+F41+F45 -> 71.48
H55: Fonte: Sinapi Cálculos e Parâmetros 5ª Edição - Atualizada em Agosto 2023

Sheet MC MODULO
A1: Extensão | B1: = | C1: 2000 | D1: m | F1: QUANTIDADE DE MODULOS | G1: 7
A2: Largura | B2: = | C2: 7 | D2: m
A4: Extensão | B4: = | C4: 2 | D4: km
B6: MOBUILIZAÇÃO
A7: 1 | B7: Implantação da obra
B9: Módulos(un) | D9: Módulos(un)
B10: =G1 -> 7 | C10: = | D10: =B10 -> 7
A12: 2 | B12: Administração da obra
B14: Módulos(un) | D14: Módulos(un)
B15: =G1 -> 7 | C15: = | D15: =B15 -> 7
A17: 3 | B17: Canteiro de Obras e Almoxarifado
B19: Módulos(un) | D19: Módulos(un)
B20: =G1 -> 7 | C20: = | D20: =B20 -> 7
A22: 4 | B22: Placa de Obra em Chapa de Aço Galvanizado
B24: Módulos(un) | C24: Comprimento(m) | D24: Largura (m) | H24: Total de Area de placa (m²)
B25: =G1 -> 7 | C25: 2 | D25: 4 | H25: =C25*D25*B25*2 -> 112
B27: TERRAPLENAGEM
A29: 5 | B29: serviços topográficos para pavimentação, inclusive notas de serviços, acompanhamento e greide
B31: Extensão (m) | D31: Largura (m) | H31: area (m2)
B32: =C1*$G$1 -> 14000 | C32: x | D32: =$C$2 -> 7 | G32: = | H32: =B32*D32 -> 98000
A34: 6 | B34: Escavação, carga e transporte de material de 1ª categoria - DMT de 1.000 a 1.200 m - caminho de serviço em leito natural - com escavadeira e caminhão basculante de 14 m³
B36: Extensão (m) | D36: Largura (m) | F36: Espessura (m) | H36: Volume (m3)
B37: =C1*$G$1 -> 14000 | C37: x | D37: =$C$2 -> 7 | E37: x | F37: =0.15+0.08+0.04 -> 0.27 | G37: = | H37: =B37*D37*F37 -> 26460
A41: 7 | B41: Espalhamento de material em bota-fora
B43: Extensão (m) | D43: Largura (m) | F43: Espessura (m) | H43: Volume (m3)
B44: =C1*$G$1 -> 14000 | C44: x | D44: =$C$2 -> 7 | E44: x | F44: 0.1 | G44: = | H44: =B44*D44*F44 -> 9800
B46: PAVIMENTAÇÃO
A48: 8 | B48: Execução de Pavimento em Piso Intertravado, com Bloco Sextavado de 25 X 25 cm, espessura 8 cm. AF_12/2015
B50: Extensão (m) | C50: Largura (m) | H50: area (m2)
B51: =$C$1*G1 -> 14000 | C51: =$C$2 -> 7 | G51: = | H51: =C51*B51 -> 98000
A53: 8 | B53: TRANSPORTE COM CAMINHÃO CARROCERIA COM GUINDAUTO (MUNCK), MOMENTO MÁXIMO DE CARGA 11,7 TM, EM VIA URBANA PAVIMENTADA, DMT ATÉ 30KM AF_07/2020 (bloquete)
B55: Dimensoes (m³) | C55: Densidade bloco Intertravado (t/m³) | D55: Peso total (t) | E55: Distancia (km) | H55: TKM
B56: =H51*0.08 -> 7840 | C56: 2.2 | D56: =C56*B56 -> 17248 | E56: 80 | G56: = | H56: =D56*E56 -> 1379840
A59: 8 | B59: TRANSPORTE COM CAMINHÃO BASCULANTE DE 10 M³, EM VIA URBANA PAVIMENTADA , DMT ATÉ 30 KM (UNIDADE: TXKM). AF_07/2020 (areia) | U59: =7*20 -> 140
U60: =26*5 -> 130
B61: Area | C61: Densidade areia (t/m³) | D61: Peso total (t) | E61: Distancia (km) | H61: TKM | U61: =23*5 -> 115
B62: =H51 -> 98000 | C62: 1.5 | D62: =B62*C62*0.04 -> 5880 | E62: 63.3 | G62: = | H62: =D62*E62 -> 372204 | U62: =U59+U60+U61 -> 385
A64: 8 | B64: TRANSPORTE COM CAMINHÃO BASCULANTE DE 10 M³, EM VIA URBANA PAVIMENTADA , DMT ATÉ 30 KM (UNIDADE: TXKM). AF_07/2020 (PO DE PEDRA) | U64: =7*20 -> 140
D65: 0.009 | U65: =26*5 -> 130
B66: Area | C66: Densidade pó de pedra (t/m³) | D66: Quantidade total de pó de pedra (m³) | E66: Peso total (t) | F66: Distancia (km) | H66: TKM | U66: =23*5 -> 115
B67: =H51 -> 98000 | C67: 1.5 | D67: =B67*D65 -> 882 | E67: =D67*C67 -> 1323 | F67: 63.3 | G67: = | H67: =E67*F67 -> 83745.9 | U67: =U64+U65+U66 -> 385
A69: 9 | B69: Base ou sub-base de brita graduada com brita comercial
B71: Extensão (m) | D71: Largura (m) | F71: Espessura (m) | H71: Volume (m3)
B72: =C1*$G$1 -> 14000 | C72: x | D72: =$C$2 -> 7 | E72: x | F72: 0.15 | G72: = | H72: =B72*D72*F72 -> 14700
A74: 10 | B74: Regularização do subleito
B76: Extensão (m) | D76: Largura (m) | H76: area (m2)
B77: =C1*$G$1 -> 14000 | C77: x | D77: =$C$2 -> 7 | G77: = | H77: =B77*D77 -> 98000
B79: SINALIZAÇÃO
A81: 11 | B81: Fornecimento e implantação de placa de regulamentação em aço D = 0,60 m - película retrorrefletiva tipo I + SI
B83: Extensão (km) | D83: Quant. (un) | H83: Quant. (un)
B84: =$C$4*$G$1 -> 14 | C84: x | D84: 3 | G84: = | H84: =B84*D84 -> 42
A86: 11 | B86: Fornecimento e implantação de placa de advertencia
B88: Extensão (km) | D88: Quant. (un) | H88: Quant. (un)
B89: =$C$4*$G$1 -> 14 | C89: x | D89: 3 | G89: = | H89: =B89*D89 -> 42
A92: 12 | B92: Fornecimento e implantação de suporte metálico galvanizado para placa de regulamentação - D = 0,60 m
B94: Extensão (km) | D94: Quant. (un) | H94: Quant. (un)
B95: =$C$4*$G$1 -> 14 | C95: x | D95: 0.5 | G95: = | H95: =H89+H84 -> 84
A97: 13 | B97: Pintura de faixa com tinta acrílica - espessura de 0,4 mm (bordos)
B99: Extensão (m) | D99: Espessura (m) | H99: Quant. (m²)
B100: =C1*G1 -> 14000 | C100: x | D100: 0.1 | G100: = | H100: =B100*D100*2 -> 2800
B102: Pintura de faixa com tinta acrílica - espessura de 0,4 mm (faixa central)
H104: Quant. (m²)
H105: =B100*D100*0.4 -> 560
B108: DRENAGEM
A109: 14 | B109: Meio-fio de concreto - MFC 03 - areia e brita comerciais - fôrma de madeira
B111: Extensão (m) | D111: Quant. (un) | H111: Extensão(m)
B112: =$C$1*$G$1 -> 14000 | C112: x | D112: 2 | G112: = | H112: =B112*D112 -> 28000
A114: 19 | B114: Caiação mecanizada com fixador de cal
B116: Extensão (m) | D116: Perimetro (m) | H116: Area (m²)
B117: =$C$1*$G$1 -> 14000 | C117: x | D117: =0.24 -> 0.24 | G117: = | H117: =B117*D117 -> 3360
B120: SERVIÇOS COMPLEMENTARES
A121: 15
B123: Extensão (m) | D123: Largura (m) | G123: 0.1 | H123: extensão (m)
B124: =$C$1*G1 -> 14000 | C124: x | D124: 1 | E124: x | G124: = | H124: =G123*B124 -> 1400
B127: PROJETO EXECUTIVO
A128: 16 | B128: Projeto Executivo
B130: Extensão (m) | D130: Largura (m) | F130: Quant. (un) | H130: Área (m²)
B131: =$C$1*G1 -> 14000 | C131: x | D131: =C2 -> 7 | E131: x | F131: 1 | G131: = | H131: =B131*D131 -> 98000
B133: CONTROLE TECNOLOGICO - OBRA
A134: 17 | B134: Projeto Executivo
B136: Extensão (m) | D136: Largura (m) | F136: Quant. (un) | H136: meses
G137: = | H137: =0.5*G1 -> 3.5

Sheet Material Sicro
A1: CGCIT | B1: SISTEMA DE CUSTOS REFERENCIAIS DE OBRAS - SICRO | D1: DNIT
B2: Rio Grande do Norte - Abril/2024
A3: Código | B3: Descrição | C3: Unidade | D3: Preço Unitário (R$)
A4: M0003 | B4: Aço CA 25 | C4: kg | D4: 6.818
A5: M0004 | B5: Aço CA 50 | C5: kg | D5: 6.5744
A6: M0005 | B6: Brita 0 | C6: m³ | D6: 147.2312
A7: M0006 | B7: Fibra de poliamida para concreto | C7: kg | D7: 27.882
A8: M0007 | B8: Fibra de aço para concreto | C8: kg | D8: 13.6193
A9: M0008 | B9: Detergente líquido neutro | C9: l | D9: 4.6122
A10: M0009 | B10: Aço CP 175 RB | C10: kg | D10: 9.0024
A11: M0010 | B11: Aditivo superplastificante para concreto e argamassa | C11: kg | D11: 16.2705
A12: M0011 | B12: Aditivo modificador de viscosidade para concreto e argamassa | C12: kg | D12: 11.1545
A13: M0012 | B13: Silicato de alumínio | C13: kg | D13: 2.1324
A14: M0013 | B14: Grampo de ancoragem em aço CA 50 - D = 12,5 mm | C14: kg | D14: 6.5744
A15: M0014 | B15: Aço CA 60 | C15: kg | D15: 8.2681
A16: M0015 | B16: Espoleta elétrica Nº 8 - D = 6,0 mm | C16: un | D16: 21.7439
A17: M0016 | B17: Grampo sargento em ferro fundido tipo C com abertura útil de 105 mm (4") | C17: un | D17: 52.5499
A18: M0017 | B18: Saco de aniagem ou de ráfia de 50 kg - C = 95 cm e L = 65 cm | C18: un | D18: 2.9309
A19: M0018 | B19: Grampo pesado em aço-carbono para cabo de aço - D = 13 mm (1/2") | C19: un | D19: 18.7552
A20: M0019 | B20: Esticador em aço tipo olhal x olhal para cabo de aço - D = 13 mm | C20: un | D20: 144.2421
A21: M0020 | B21: Grampo de ancoragem em aço CA 50 - D = 6,3 mm | C21: kg | D21: 8.5
A22: M0021 | B22: Herbicida glifosato para áreas contínuas | C22: l | D22: 26.779
A23: M0025 | B23: Adesivo plástico para tubos de PVC | C23: kg | D23: 53.0964
A24: M0026 | B24: Aditivo aglutinante para argamassa | C24: l | D24: 8.1595
A25: M0028 | B25: Areia média | C25: m³ | D25: 125.8443
A26: M0029 | B26: Sílica ativa para concreto e argamassa (microssílica) | C26: kg | D26: 1.9372
A27: M0030 | B27: Aditivo plastificante e retardador de pega para concreto e argamassa | C27: kg | D27: 7.3074
A28: M0032 | B28: Adesivo de contato para laminado elastoplástico | C28: kg | D28: 46.847
A29: M0035 | B29: Diluente tipo aguarrás para tintas e vernizes | C29: l | D29: 15.168
A30: M0039 | B30: Gasolina comum | C30: l | D30: 5.1261
A31: M0041 | B31: Contêiner com 2 banheiros - L = 2,44 m e C = 6,09 m (1 TEU) | C31: un | D31: 89481.2475
A32: M0042 | B32: Contêiner com janela - L = 2,44 m e C = 6,09 m (1 TEU) | C32: un | D32: 63133.1949
A33: M0043 | B33: Óleo diesel | C33: l | D33: 5.4189
A34: M0044 | B34: Abrasivo de vidro com granulometria de 210 a 420 micra | C34: kg | D34: 9.46
A35: M0045 | B35: Barreira plástica monobloco para canalização de trânsito - C = 100 cm, L = 50 cm e H = 55 cm | C35: un | D35: 505.0821
A36: M0046 | B36: Barreira plástica para canalização de trânsito - C = 60 cm, L = 45 cm e H = 60 cm | C36: un | D36: 319.5651
A37: M0047 | B37: Cone de sinalização em polietileno - H = 75 cm e base quadrada de 40 x 40 cm | C37: un | D37: 102.95
A38: M0048 | B38: Balizador cônico refletivo em polietileno semiflexível - H = 114 cm e base octogonal de D = 40 cm | C38: un | D38: 147.9354
A39: M0049 | B39: Delimitador de tráfego flexível com chumbador e duas faixas refletivas - H = 77 cm e D = 21 cm | C39: un | D39: 181.8899
A40: M0050 | B40: Aditivo natural tipo goma xantana para hidrossemeadura | C40: kg | D40: 103.4805
A41: M0051 | B41: Cilindro canalizador de tráfego em polietileno - H = 117 cm e base quadrada de 60 x 60 cm | C41: un | D41: 208.1951
A42: M0052 | B42: Fita adesiva de PVC - L = 50 mm e C = 50 m | C42: m | D42: 0.1043
A43: M0053 | B43: Tela plástica em polipropileno na cor laranja para tapume - L = 1,2 m | C43: m | D43: 1.9406
A44: M0054 | B44: Fita zebrada de cor laranja e branca - L = 7 a 8 cm | C44: m | D44: 0.0742
A45: M0055 | B45: Barreira plástica articulável modular - C = 240 cm e H = 100 cm | C45: un | D45: 1279.349
A46: M0056 | B46: Ferramenta de corte para removedora de faixa de sinalização (Smith Cutter) | C46: un | D46: 7244.8924
A47: M0057 | B47: Contêiner com janela - L = 4,88 m e C = 6,09 m (1 TEU duplo) | C47: un | D47: 120731.2084
A48: M0058 | B48: Contêiner com janela e 2 banheiros - L = 4,88 m e C = 6,09 m (1 TEU duplo) | C48: un | D48: 125120.8606
A49: M0059 | B49: Contêiner com revestimento térmico, janela e banheiro - L = 2,44 m e C = 6,09 m (1 TEU) | C49: un | D49: 86806.2606
A50: M0060 | B50: Contêiner com janela - L = 2,44 m e C = 4,58 m (3/4 TEU) | C50: un | D50: 59771.2986
A51: M0065 | B51: Contêiner com janela e banheiro - L = 2,44 m e 4,58 m (3/4 TEU) | C51: un | D51: 72598.1015
A52: M0066 | B52: Contêiner com revestimento térmico, janela e banheiro - L = 2,44 m e C = 12,90 m (2 TEU) | C52: un | D52: 119091.4351
A53: M0067 | B53: Tubo PEAD PE 100 PN 10 com flanges - D = 160 mm | C53: m | D53: 178.4556
A54: M0068 | B54: Caibro de pinho - L = 7,5 cm e E = 10,0 cm | C54: m | D54: 23.1042
A55: M0069 | B55: Arame farpado em aço galvanizado - D = 1,60 mm | C55: m | D55: 0.7666
A56: M0071 | B56: Contêiner com 3 janelas para guarita - L = 2,44 m e C = 3,05 m (1/2 TEU) | C56: un | D56: 42100.8858
A57: M0072 | B57: Arame liso em aço galvanizado - D = 2,10 mm (14 BWG) | C57: kg | D57: 18.5
A58: M0073 | B58: Muda de árvore com altura de 0,30 a 0,80 m | C58: un | D58: 14.6944
A59: M0074 | B59: Muda de arbusto com altura até 0,50 m | C59: un | D59: 21.567
A60: M0075 | B60: Arame liso recozido em aço-carbono - D = 1,24 mm (18 BWG) | C60: kg | D60: 11.4083
A61: M0076 | B61: Disco de corte abrasivo para policorte - D = 300 mm | C61: un | D61: 15.3805
A62: M0080 | B62: Areia fina | C62: m³ | D62: 131.5539
A63: M0081 | B63: Areia grossa | C63: m³ | D63: 122.0491
A64: M0082 | B64: Areia média lavada | C64: m³ | D64: 135.1479
A65: M0083 | B65: Argamassa pré-dosada para grauteamento | C65: kg | D65: 1.64
A66: M0084 | B66: Argamassa pré-dosada autoadensável para grauteamento | C66: kg | D66: 1.6396
A67: M0085 | B67: Ancoragem ativa para 4 cordoalhas - D = 12,7 mm | C67: un | D67: 382.2457
A68: M0086 | B68: Ancoragem ativa para 6 cordoalhas - D = 12,7 mm | C68: un | D68: 494.0471
A69: M0087 | B69: Ancoragem ativa para 7 cordoalhas - D = 12,7 mm | C69: un | D69: 570.7866
A70: M0088 | B70: Ancoragem ativa para 8 cordoalhas - D = 12,7 mm | C70: un | D70: 667.0345
A71: M0089 | B71: Ancoragem ativa para 9 cordoalhas - D = 12,7 mm | C71: un | D71: 753.4931
A72: M0091 | B72: Ancoragem ativa para 10 cordoalhas - D = 12,7 mm | C72: un | D72: 836.5955
A73: M0092 | B73: Ancoragem ativa para 12 cordoalhas - D = 12,7 mm | C73: un | D73: 1057.7169
A74: M0093 | B74: Ancoragem ativa para 15 cordoalhas - D = 12,7 mm | C74: un | D74: 1467.4408
A75: M0094 | B75: Ancoragem ativa para 19 cordoalhas - D = 12,7 mm | C75: un | D75: 1865.6634
A76: M0098 | B76: Bambu com diâmetro médio de 10 cm | C76: m | D76: 21.3573
A77: M0099 | B77: Equipamentos para a fábrica de dormentes de concreto protendido | C77: ISF | D77: 567.856
A78: M0100 | B78: Ancoragem ativa para 22 cordoalhas - D = 12,7 mm | C78: un | D78: 2415.5598
A79: M0101 | B79: Ancoragem ativa para 27 cordoalhas - D = 12,7 mm | C79: un | D79: 2951.4542
A80: M0102 | B80: Ancoragem ativa para 31 cordoalhas - D = 12,7 mm | C80: un | D80: 3184.1939
A81: M0103 | B81: Aditivo acelerador de pega para concreto e argamassa projetados | C81: kg | D81: 7.4826
A82: M0104 | B82: Asfalto diluído de petróleo - CM-30 | C82: t | D82: -
A83: M0105 | B83: Ancoragem ativa para 4 cordoalhas - D = 15,2 mm | C83: un | D83: 473.8117
A84: M0106 | B84: Ancoragem ativa para 6 cordoalhas - D = 15,2 mm | C84: un | D84: 630.1384
A85: M0107 | B85: Geocomposto para drenagem | C85: m² | D85: 40.891
A86: M0108 | B86: Ancoragem ativa para 7 cordoalhas - D = 15,2 mm | C86: un | D86: 741.672
A87: M0109 | B87: Geodreno vertical - L = 10 cm e E = 5 mm | C87: m | D87: 5.18
A88: M0110 | B88: Ancoragem ativa para 10 cordoalhas - D = 15,2 mm | C88: un | D88: 1145.0766
A89: M0111 | B89: Ancoragem ativa para 9 cordoalhas - D = 15,2 mm | C89: un | D89: 1020.5241
A90: M0112 | B90: Disco diamantado segmentado para corte de pavimento - D = 1.000 mm | C90: un | D90: 5880.9681
A91: M0113 | B91: Ancoragem ativa para 12 cordoalhas - D = 15,2 mm | C91: un | D91: 1399.3471
A92: M0114 | B92: Disco diamantado segmentado para corte de pavimento - D = 1.500 mm | C92: un | D92: 26165.3954
A93: M0115 | B93: Biomanta vegetal de fibras de coco entrelaçadas com fios de polipropileno biodegradáveis - densidade 0,4 kg/m² | C93: m² | D93: 6.51
A94: M0116 | B94: Mangote flangeado de borracha reforçada com lonas sintéticas - C = 1,80 m e D = 0,30 m | C94: un | D94: 16656.7554
A95: M0117 | B95: Mangote flangeado de borracha reforçada com lonas sintéticas - C = 1,80 m e D = 0,40 m | C95: un | D95: 22803.3773
A96: M0118 | B96: Mangote flangeado de borracha reforçada com lonas sintéticas - C = 1,80 m e D = 0,45 m | C96: un | D96: 25487.481
A97: M0119 | B97: Mangote flangeado de borracha reforçada com lonas sintéticas - C = 1,80 m e D = 0,50 m | C97: un | D97: 28690.7609
A98: M0120 | B98: Tubo PEAD PE 100 PN 8 com flanges - D = 250 mm | C98: m | D98: 316.1183
A99: M0121 | B99: Tubo PEAD PE 100 PN 8 com flanges - D = 400 mm | C99: m | D99: 2027.7699
A100: M0122 | B100: Tubo PEAD PE 100 PN 8 com flanges - D = 450 mm | C100: m | D100: 2547.1535
A101: M0123 | B101: Tubo PEAD PE 100 PN 8 com flanges - D = 500 mm | C101: m | D101: 2852.3427
A102: M0124 | B102: Flutuador bipartido em polietileno com núcleo de espuma em poliuretano para tubos - D = 0,30 m | C102: un | D102: 4350.7076
A103: M0125 | B103: Flutuador bipartido em polietileno com núcleo de espuma em poliuretano para tubos - D = 0,40 m | C103: un | D103: 5988.5953
A104: M0126 | B104: Flutuador bipartido em polietileno com núcleo de espuma em poliuretano para tubos - D = 0,45 m | C104: un | D104: 6866.0452
A105: M0127 | B105: Flutuador bipartido em polietileno com núcleo de espuma em poliuretano para tubos - D = 0,50 m | C105: un | D105: 7420.8238
A106: M0128 | B106: Biomanta vegetal de fibras de palha entrelaçadas com fios de polipropileno biodegradáveis - densidade 0,6 kg/m² | C106: m² | D106: 5.71
A107: M0129 | B107: Retentor de sedimento em fibras vegetais - D = 20 cm | C107: m | D107: 59.7201
A108: M0130 | B108: Ancoragem ativa para 15 cordoalhas - D = 15,2 mm | C108: un | D108: 1842.1347
A109: M0131 | B109: Tubo PEAD corrugado com paredes estruturadas para drenagem - D = 400 mm | C109: m | D109: 236.2745
A110: M0132 | B110: Tubo PEAD corrugado com paredes estruturadas para drenagem - D = 450 mm | C110: m | D110: 288.7629
A111: M0133 | B111: Tubo PEAD corrugado com paredes estruturadas para drenagem - D = 500 mm | C111: m | D111: 389.1202
A112: M0134 | B112: Tubo PEAD corrugado com paredes estruturadas para drenagem - D = 600 mm | C112: m | D112: 567.099
A113: M0135 | B113: Tubo PEAD corrugado com paredes estruturadas para drenagem - D = 750 mm | C113: m | D113: 768.523
A114: M0136 | B114: Tubo PEAD corrugado com paredes estruturadas para drenagem - D = 800 mm | C114: m | D114: 846.5476
A115: M0137 | B115: Tubo PEAD corrugado com paredes estruturadas para drenagem - D = 900 mm | C115: m | D115: 1125.1892
A116: M0138 | B116: Ancoragem ativa para 19 cordoalhas - D = 15,2 mm | C116: un | D116: 2396.6883
A117: M0139 | B117: Tubo PEAD corrugado com paredes estruturadas para drenagem - D = 1.000 mm | C117: m | D117: 1485.5589
A118: M0140 | B118: Bentonita | C118: kg | D118: 2.7496
A119: M0141 | B119: Tubo PEAD corrugado com paredes estruturadas para drenagem - D = 1.050 mm | C119: m | D119: 1471.2403
A120: M0142 | B120: Tubo PEAD corrugado com paredes estruturadas para drenagem - D = 1.200 mm | C120: m | D120: 2088.7243
A121: M0143 | B121: Tubo PEAD corrugado com paredes estruturadas para drenagem - D = 1.500 mm | C121: m | D121: 2411.0231
A122: M0145 | B122: Ancoragem ativa para 22 cordoalhas - D = 15,2 mm | C122: un | D122: 3106.4278
A123: M0146 | B123: Ancoragem ativa para 27 cordoalhas - D = 15,2 mm | C123: un | D123: 4067.7708
A124: M0148 | B124: Ancoragem ativa para lajes para 1 cordoalha - D = 12,7 mm | C124: un | D124: 89.908
A125: M0151 | B125: Ancoragem ativa para lajes para 2 cordoalhas - D = 12,7 mm | C125: un | D125: 167.1687
A126: M0152 | B126: Ancoragem ativa para lajes para 3 cordoalhas - D = 12,7 mm | C126: un | D126: 232.7745
A127: M0153 | B127: Ancoragem ativa para lajes para 4 cordoalhas - D = 12,7 mm | C127: un | D127: 310.9876
A128: M0156 | B128: Bloco de concreto - L = 19 cm, A = 19 cm e C = 39 cm | C128: un | D128: 4.437
A129: M0158 | B129: Tela metálica galvanizada dobrada em L - C = 2,0 m, L = 0,4 m e H = 0,4 m | C129: un | D129: 432.6216
A130: M0160 | B130: Extintor de incêndio tipo espuma mecânica - V = 10 l | C130: un | D130: 614.1207
A131: M0161 | B131: Barra de fibra de vidro (vergalhão) - D = 25,0 mm | C131: m | D131: 61.2754
A132: M0162 | B132: Corrente de elo soldado em aço galvanizado com acabamento polido - D = 3,18 mm (1/8") | C132: m | D132: 7.1839
A133: M0163 | B133: Gonzo com aba em aço galvanizado - D = 12,7 mm (1/2") | C133: un | D133: 2.8833
A134: M0164 | B134: Tubo em aço galvanizado - E = 1,50 mm e seção de 20 x 20 mm | C134: m | D134: 12.7369
A135: M0166 | B135: Tubo em aço galvanizado - E = 2,25 mm e D = 20 mm (3/4") | C135: m | D135: 31.4562
A136: M0167 | B136: Tela de poliamida industrial - E = 0,40 mm e malha de 1,6 mm | C136: m² | D136: 15.7567
A137: M0168 | B137: Abraçadeira de poliamida - E = 3,6 mm e C = 200 mm | C137: un | D137: 0.2221
A138: M0169 | B138: Roda em aço e pneu com câmara de ar 83/203 mm (3,25"/8") para carrinho de mão | C138: un | D138: 64.39
A139: M0173 | B139: Ancoragem ativa para lajes para 1 cordoalha - D = 15,2 mm | C139: un | D139: 101.0715
A140: M0178 | B140: Ancoragem ativa para lajes para 2 cordoalhas - D = 15,2 mm | C140: un | D140: 218.5355
A141: M0181 | B141: Ancoragem ativa para lajes para 3 cordoalhas - D = 15,2 mm | C141: un | D141: 284.8194
A142: M0184 | B142: Ancoragem ativa para lajes para 4 cordoalhas - D = 15,2 mm | C142: un | D142: 376.0814
A143: M0191 | B143: Brita 1 | C143: m³ | D143: 135.5546
A144: M0192 | B144: Brita 2 | C144: m³ | D144: 134.0237
A145: M0193 | B145: Brita 3 | C145: m³ | D145: 132.9061
A146: M0194 | B146: Escória de aciaria | C146: m³ | D146: 13.8851
A147: M0198 | B147: Parafuso de cabeça chata em aço - D = 4,5 mm e bucha plástica - D = 8 mm (S8) | C147: un | D147: 0.3322
A148: M0199 | B148: Coroa de botões cruzados linha R32 - D = 43 mm (1 11/16’’) | C148: un | D148: 321.1998
A149: M0201 | B149: Coroa de botões esféricos linha T38 - D = 89 mm (3 1/2") | C149: un | D149: 872.4226
A150: M0202 | B150: Coroa de botões esféricos linha T45 - D = 76 mm (3") | C150: un | D150: 674.376
A151: M0204 | B151: Instalações físicas para a central de pré-moldagem de dormentes de concreto protendido | C151: CMCC | D151: 1750.55
A152: M0217 | B152: Enxofre | C152: kg | D152: 4.7081
A153: M0220 | B153: Adubo à base de nitrogênio, fósforo e potássio (NPK) | C153: kg | D153: 3.4129
A154: M0222 | B154: Filer calcário | C154: kg | D154: 0.1911
A155: M0223 | B155: Sementes para hidrossemeadura | C155: kg | D155: 30.7268
A156: M0224 | B156: Guia-chapéu pré-moldada - C = 120 cm | C156: un | D156: 65.0621
A157: M0225 | B157: Adubo orgânico composto | C157: kg | D157: 0.2567
A158: M0229 | B158: Gabião tipo colchão em liga de zinco e alumínio revestido com polímero de malha hexagonal - E = 0,17 m | C158: m² | D158: 214.9289
A159: M0230 | B159: Gabião tipo caixa em liga de zinco e alumínio de malha hexagonal - C = 2,00 m, L = 1,00 m e H = 0,50 m | C159: un | D159: 643.2526
A160: M0231 | B160: Gabião tipo caixa em liga de zinco e alumínio de malha hexagonal - C = 2,00 m, L = 1,00 m e H = 1,00 m | C160: un | D160: 982.5769
A161: M0232 | B161: Gabião tipo caixa em liga de zinco e alumínio revestido com polímero de malha hexagonal - C = 2,00 m, L = 1,00 m e H = 0,50 m | C161: un | D161: 796.7913
A162: M0233 | B162: Gabião tipo caixa em liga de zinco e alumínio revestido com polímero de malha hexagonal - C = 2,00 m, L = 1,00 m e H = 1,00 m | C162: un | D162: 1116.052
A163: M0234 | B163: Gabião tipo saco em liga de zinco e alumínio revestido com polímero de malha hexagonal - D = 0,65 m | C163: m³ | D163: 594.0622
A164: M0235 | B164: Gabião tipo colchão em liga de zinco e alumínio revestido com polímero de malha hexagonal - E = 0,23 m | C164: m² | D164: 224.9353
A165: M0236 | B165: Gabião tipo colchão em liga de zinco e alumínio revestido com polímero de malha hexagonal - E = 0,30 m | C165: m² | D165: 247.4379
A166: M0237 | B166: Energia elétrica | C166: kWh | D166: 0.8921
A167: M0253 | B167: Cabo de cobre flexível antichama isolado em PVC - tensão de 450/750 V e seção de 16 mm² | C167: m | D167: 13.512
A168: M0254 | B168: Mistura gasosa de argônio e dióxido de carbono para solda MIG/MAG | C168: m³ | D168: 49.1738
A169: M0256 | B169: Tinta à base de etil silicato de zinco bicomponente para fundo preparador de pintura | C169: l | D169: 87.7584
A170: M0257 | B170: Diluente para tinta à base de etil silicato de zinco | C170: l | D170: 33.1262
A171: M0260 | B171: Cabo de cobre PP flexível isolado em PVC - tensão de 300/500 V e seção de 3 x 1,5 mm² | C171: m | D171: 4.6918
A172: M0264 | B172: Bomba de combustível industrial eletrônica simples | C172: un | D172: 26702.7127
A173: M0265 | B173: Tanque de combustível aéreo horizontal com escada para visita - capacidade de 5.000 l | C173: un | D173: 20660.1359
A174: M0266 | B174: Cabo de cobre flexível antichama isolado em PVC - tensão de 0,6/1,0 kV e seção de 240 mm² | C174: m | D174: 166.6155
A175: M0267 | B175: Módulo de torre de elevador de cremalheira | C175: un | D175: 3888.2219
A176: M0268 | B176: Módulo de ancoragem de torre de elevador de cremalheira | C176: un | D176: 2943.5593
A177: M0269 | B177: Cabo de cobre flexível antichama isolado em PVC - tensão de 0,6/1,0 kV e seção de 50 mm² | C177: m | D177: 35.8401
A178: M0284 | B178: Caibro de pinho - L = 7,5 cm e E = 7,5 cm | C178: m | D178: 16.9469
A179: M0285 | B179: Pontalete para escoramento - D = 15 cm | C179: m | D179: 9.1791
A180: M0286 | B180: Tábua - E = 2,5 cm e L = 30 cm | C180: m | D180: 17.4619
A181: M0289 | B181: Tábua - E = 2,5 cm e L = 15 cm | C181: m | D181: 8.527
A182: M0290 | B182: Tábua - E = 2,5 cm e L = 10 cm | C182: m | D182: 5.6854
A183: M0291 | B183: Estrutura modular com 2 banheiros - L = 2,44 m e C = 6,06 m (1 TEU) | C183: un | D183: 72966.5297
A184: M0292 | B184: Estrutura modular com janela - L = 2,44 m e C = 6,06 m (1 TEU) | C184: un | D184: 58642.3377
A185: M0293 | B185: Estrutura modular com janela - L = 4,88 m e C = 6,06 m (1 TEU duplo) | C185: un | D185: 103309.7098
A186: M0294 | B186: Estrutura modular com janela e 2 banheiros - L = 4,88 m e C = 6,06 m (1 TEU duplo) | C186: un | D186: 114835.52
A187: M0295 | B187: Estrutura modular com revestimento térmico, janela e banheiro - L = 2,44 m e C = 6,06 m (1 TEU) | C187: un | D187: 65997.4
A188: M0296 | B188: Estrutura modular com revestimento térmico, janela e banheiro - L = 2,44 m e C = 12,19 m (2 TEU) | C188: un | D188: 122521.1627
A189: M0297 | B189: Estrutura modular com 3 janelas para guarita - L = 2,44 m e C = 3,05 m (1/2 TEU) | C189: un | D189: 41239.2001
A190: M0301 | B190: Pontalete para escoramento - D = 10 cm | C190: m | D190: 4.0816
A191: M0310 | B191: Peça de madeira - L = 7,5 cm e E = 2,5 cm | C191: m | D191: 5.5917
A192: M0311 | B192: Filtro de aspiração de ar externo com capacidade 3,58 l/s para compressor de ar respirável | C192: un | D192: 200.0031
A193: M0312 | B193: Filtro de purificação de ar comprimido com capacidade de 35 MPa para compressor de ar respirável | C193: un | D193: 222.0691
A194: M0344 | B194: Cal hidratada - a granel | C194: kg | D194: 0.5111
A195: M0345 | B195: Cal hidratada - saco | C195: kg | D195: 0.8393
A196: M0346 | B196: Disco de aço para bomba de projeção via seca | C196: un | D196: 330
A197: M0347 | B197: Disco de aço para bomba de projeção via úmida | C197: un | D197: 1262.5862
A198: M0348 | B198: Disco de borracha para bomba de projeção via seca | C198: un | D198: 265
A199: M0349 | B199: Disco de borracha para bomba de projeção via úmida | C199: un | D199: 600.6
A200: M0350 | B200: Bico para bomba de projeção | C200: un | D200: 298.3352
... 1476 more rows

Sheet Pessoal Sicro
A1: CGCIT | B1: SISTEMA DE CUSTOS REFERENCIAIS DE OBRAS - SICRO | G1: DNIT
A3: Rio Grande do Norte - Abril/2024
A4: Sem desoneração
A5: Código | B5: Descrição | C5: Unidade | D5: Salário (R$) | E5: Encargos Totais | F5: Custo (R$) | G5: Periculosidade/ Insalubridade
A6: P9801 | B6: Ajudante | C6: h | D6: 6.839 | E6: 2.183034 | F6: 21.7687 | G6: 0
A7: P9802 | B7: Ajudante especializado | C7: h | D7: 8.2142 | E7: 2.095562 | F7: 25.4275 | G7: 0
A8: P9803 | B8: Almoxarife | C8: mês | D8: 2699.4 | E8: 1.253068 | F8: 6081.9317 | G8: 0
A9: P9804 | B9: Apontador | C9: mês | D9: 1877.6405 | E9: 1.508869 | F9: 4710.754 | G9: 0
A10: P9805 | B10: Armador | C10: h | D10: 10.8106 | E10: 1.788111 | F10: 30.1411 | G10: 0
A11: P9806 | B11: Auxiliar administrativo | C11: mês | D11: 1742.8649 | E11: 1.521917 | F11: 4395.3606 | G11: 0
A12: P9807 | B12: Bombeiro hidráulico | C12: h | D12: 11.0195 | E12: 1.846529 | F12: 31.3673 | G12: 0
A13: P9808 | B13: Carpinteiro | C13: h | D13: 8.7175 | E13: 1.95519 | F13: 25.7618 | G13: 0
A14: P9809 | B14: Encarregado administrativo | C14: mês | D14: 3743.2324 | E14: 1.089457 | F14: 7821.3231 | G14: 0
A15: P9810 | B15: Eletricista | C15: h | D15: 10.7762 | E15: 1.836559 | F15: 30.5673 | G15: 0
A16: P9811 | B16: Encarregado especializado | C16: mês | D16: 3681.9645 | E16: 1.125633 | F16: 7826.5052 | G16: 0
A17: P9812 | B17: Engenheiro | C17: mês | D17: 13036.5772 | E17: 0.858799 | F17: 24232.3766 | G17: 0
A18: P9814 | B18: Operacional | C18: mês | D18: 1570.3441 | E18: 1.489277 | F18: 3909.0214 | G18: 0
A19: P9815 | B19: Jardineiro | C19: h | D19: 9.63 | E19: 1.868637 | F19: 27.6249 | G19: 0
A20: P9819 | B20: Engenheiro supervisor | C20: mês | D20: 13036.5772 | E20: 0.858799 | F20: 24232.3766 | G20: 0
A21: P9821 | B21: Pedreiro | C21: h | D21: 8.7175 | E21: 1.953346 | F21: 25.7457 | G21: 0
A22: P9822 | B22: Pintor | C22: h | D22: 10.8106 | E22: 1.79484 | F22: 30.2138 | G22: 0
A23: P9823 | B23: Serralheiro | C23: h | D23: 9.8194 | E23: 1.857349 | F23: 28.0574 | G23: 0
A24: P9824 | B24: Servente | C24: h | D24: 6.839 | E24: 2.180774 | F24: 21.7533 | G24: 0
A25: P9825 | B25: Soldador | C25: h | D25: 12.6749 | E25: 1.692373 | F25: 34.1255 | G25: 0
A26: P9826 | B26: Chefe setor de finanças | C26: mês | D26: 12413.5749 | E26: 0.864841 | F26: 23149.3434 | G26: 0
A27: P9827 | B27: Vigia | C27: mês | D27: 1657.3 | E27: 1.797705 | F27: 5133.8264 | G27: 0.3
A28: P9830 | B28: Montador | C28: h | D28: 10.835 | E28: 1.862797 | F28: 31.0184 | G28: 0
A29: P9833 | B29: Auxiliar de laboratório | C29: mês | D29: 2378.3386 | E29: 1.324625 | F29: 5528.7453 | G29: 0
A30: P9837 | B30: Oceanógrafo | C30: mês | D30: 5313.4666 | E30: 0.967307 | F30: 10453.22 | G30: 0
A31: P9840 | B31: Encarregado geral | C31: mês | D31: 5757.5564 | E31: 0.995229 | F31: 11487.6434 | G31: 0
A32: P9842 | B32: Faxineiro | C32: mês | D32: 1454.2 | E32: 1.678756 | F32: 3895.4469 | G32: 0
A33: P9843 | B33: Operador de equipamento leve | C33: h | D33: 9.4316 | E33: 1.873014 | F33: 27.0971 | G33: 0
A34: P9845 | B34: Operador de equipamento pesado | C34: h | D34: 12.921 | E34: 1.66263 | F34: 34.4038 | G34: 0
A35: P9846 | B35: Operador de equipamento especial | C35: h | D35: 17.1555 | E35: 1.512899 | F35: 43.11 | G35: 0
A36: P9847 | B36: Perfurador de tubulão | C36: h | D36: 6.8213 | E36: 2.180151 | F36: 21.6927 | G36: 0
A37: P9848 | B37: Desenhista | C37: mês | D37: 3282.7894 | E37: 1.144458 | F37: 7039.8039 | G37: 0
A38: P9849 | B38: Condutor maquinista fluvial | C38: mês | D38: 2497.4354 | E38: 1.203174 | F38: 5502.2847 | G38: 0
A39: P9850 | B39: Copeiro | C39: mês | D39: 1579.6 | E39: 1.582049 | F39: 4078.6046 | G39: 0
A40: P9851 | B40: Médico do trabalho | C40: mês | D40: 9683.7414 | E40: 0.895161 | F40: 18352.249 | G40: 0
A41: P9852 | B41: Blaster | C41: h | D41: 11.0884 | E41: 2.113667 | F41: 37.8521 | G41: 0.3
A42: P9853 | B42: Pré-marcador | C42: h | D42: 6.8206 | E42: 2.156626 | F42: 21.53 | G42: 0
A43: P9854 | B43: Recepcionista | C43: mês | D43: 1633.1119 | E43: 1.527705 | F43: 4128.0251 | G43: 0
A44: P9855 | B44: Marinheiro de máquinas | C44: mês | D44: 2228.695 | E44: 1.253325 | F44: 5021.9741 | G44: 0
A45: P9856 | B45: Marinheiro de convés | C45: h | D45: 9.888 | E45: 1.708729 | F45: 26.7839 | G45: 0
A46: P9857 | B46: Marinheiro de convés - mensalista | C46: mês | D46: 2175.3666 | E46: 1.264919 | F46: 4927.0291 | G46: 0
A47: P9858 | B47: Laboratorista | C47: mês | D47: 3319.8 | E47: 1.168625 | F47: 7199.4012 | G47: 0
A48: P9859 | B48: Trabalhador de via | C48: h | D48: 6.4182 | E48: 2.263141 | F48: 20.9434 | G48: 0
A49: P9861 | B49: Selecionador de material pétreo | C49: h | D49: 6.8206 | E49: 2.167294 | F49: 21.6028 | G49: 0
A50: P9864 | B50: Engenheiro de segurança do trabalho | C50: mês | D50: 12257.0437 | E50: 0.87102 | F50: 22933.1739 | G50: 0
A51: P9866 | B51: Motorista de caminhão | C51: h | D51: 11.9926 | E51: 1.692391 | F51: 32.2887 | G51: 0
A52: P9867 | B52: Técnico especializado - mensalista | C52: mês | D52: 3179.1677 | E52: 1.182521 | F52: 6938.6002 | G52: 0
A53: P9869 | B53: Encarregado de obras de artes especiais | C53: mês | D53: 3681.9645 | E53: 1.125633 | F53: 7826.5052 | G53: 0
A54: P9870 | B54: Motorista de veículo leve | C54: h | D54: 10.8106 | E54: 1.751824 | F54: 29.7488 | G54: 0
A55: P9871 | B55: Motorista de veículo especial | C55: h | D55: 12.4607 | E55: 1.669972 | F55: 33.2697 | G55: 0
A56: P9875 | B56: Encarregado de turma | C56: mês | D56: 2208.2661 | E56: 1.367038 | F56: 5227.0497 | G56: 0
A57: P9876 | B57: Técnico de segurança do trabalho | C57: mês | D57: 3262.6 | E57: 1.17047 | F57: 7081.3754 | G57: 0
A58: P9878 | B58: Secretária | C58: mês | D58: 2855.4435 | E58: 1.196979 | F58: 6273.3494 | G58: 0
A59: P9880 | B59: Piloto fluvial | C59: mês | D59: 3456.53 | E59: 1.073971 | F59: 7168.7429 | G59: 0
A60: P9882 | B60: Técnico especializado | C60: h | D60: 14.4508 | E60: 1.598256 | F60: 37.5468 | G60: 0
A61: P9883 | B61: Chefe do setor administrativo | C61: mês | D61: 3743.5944 | E61: 1.089425 | F61: 7821.9597 | G61: 0
A62: P9884 | B62: Encarregado de terraplenagem | C62: mês | D62: 3681.9645 | E62: 1.125633 | F62: 7826.5052 | G62: 0
A63: P9885 | B63: Frentista de túnel | C63: h | D63: 6.8206 | E63: 2.239498 | F63: 22.0953 | G63: 0
A64: P9889 | B64: Técnico da qualidade | C64: mês | D64: 3566.9485 | E64: 1.135718 | F64: 7617.9961 | G64: 0
A65: P9892 | B65: Auxiliar de blaster | C65: h | D65: 9.7647 | E65: 2.206804 | F65: 34.2428 | G65: 0.3
A66: P9893 | B66: Encarregado de pavimentação | C66: mês | D66: 3681.9645 | E66: 1.125633 | F66: 7826.5052 | G66: 0
A67: P9896 | B67: Porteiro | C67: mês | D67: 1454.2 | E67: 1.678735 | F67: 3895.4164 | G67: 0
A68: P9897 | B68: Técnico de meio ambiente | C68: mês | D68: 3587.8754 | E68: 1.145337 | F68: 7697.2018 | G68: 0
A69: P9900 | B69: Comprador | C69: mês | D69: 3365.3083 | E69: 1.152221 | F69: 7242.8871 | G69: 0
A70: P9901 | B70: Encarregado de superestrutura ferroviária | C70: mês | D70: 3681.9645 | E70: 1.125633 | F70: 7826.5052 | G70: 0
A71: P9903 | B71: Auxiliar técnico | C71: mês | D71: 1786.8663 | E71: 1.49526 | F71: 4458.696 | G71: 0
A72: P9907 | B72: Comandante de longo curso | C72: mês | D72: 11259.3057 | E72: 0.85216 | F72: 20854.0356 | G72: 0
A73: P9908 | B73: Imediato | C73: mês | D73: 8904.606 | E73: 0.878143 | F73: 16724.1234 | G73: 0
A74: P9909 | B74: Oficial de náutica | C74: mês | D74: 2834.3491 | E74: 1.14877 | F74: 6090.3643 | G74: 0
A75: P9910 | B75: Oficial de máquinas | C75: mês | D75: 2921.1265 | E75: 1.133052 | F75: 6230.9147 | G75: 0
A76: P9913 | B76: Draguista | C76: mês | D76: 3595.3388 | E76: 1.061613 | F76: 7412.1972 | G76: 0
A77: P9915 | B77: Maquinista | C77: h | D77: 12.7694 | E77: 1.659625 | F77: 33.9618 | G77: 0
A78: P9916 | B78: Encarregado de conservação rodoviária | C78: mês | D78: 3681.9645 | E78: 1.125633 | F78: 7826.5052 | G78: 0
A79: P9920 | B79: Mestre fluvial | C79: mês | D79: 4677.0464 | E79: 0.990445 | F79: 9309.4036 | G79: 0
A80: P9921 | B80: Mergulhador raso autônomo de emergência | C80: h | D80: 9.9237 | E80: 2.46323 | F80: 36.9353 | G80: 0.2587
A81: P9922 | B81: Mergulhador raso dependente de emergência | C81: h | D81: 9.9208 | E81: 2.539431 | F81: 38.0902 | G81: 0.3
A82: P9924 | B82: Mergulhador raso dependente | C82: h | D82: 9.9208 | E82: 3.855917 | F82: 51.1508 | G82: 0.3
A83: P9925 | B83: Mergulhador raso autônomo | C83: h | D83: 9.9237 | E83: 3.48923 | F83: 47.117 | G83: 0.2587
A84: P9926 | B84: Mergulhador raso auxiliar de superfície | C84: h | D84: 9.9237 | E84: 2.237032 | F84: 34.6905 | G84: 0.2587
A85: P9927 | B85: Frentista de túnel com periculosidade | C85: h | D85: 6.8206 | E85: 2.567011 | F85: 26.3753 | G85: 0.3
A86: P9930 | B86: Eletricista com periculosidade | C86: h | D86: 10.7762 | E86: 2.164403 | F86: 37.333 | G86: 0.3
A87: P9931 | B87: Operador de equipamento de mergulho | C87: h | D87: 18.0118 | E87: 1.800995 | F87: 53.0176 | G87: 0.1425
A88: P9932 | B88: Operador de equipamento pesado com periculosidade | C88: h | D88: 12.921 | E88: 1.99137 | F88: 42.5277 | G88: 0.3
A89: P9933 | B89: Supervisor de mergulho raso | C89: mês | D89: 3962.5981 | E89: 1.326142 | F89: 9782.236 | G89: 0.1425
A90: P9934 | B90: Motorista de veículo especial com periculosidade | C90: h | D90: 12.4607 | E90: 1.998651 | F90: 41.1035 | G90: 0.3
A91: P9938 | B91: Operador de equipamento leve com periculosidade | C91: h | D91: 9.4316 | E91: 2.201756 | F91: 33.0271 | G91: 0.3
A92: P9939 | B92: Operador de equipamento leve com insalubridade | C92: h | D92: 9.4316 | E92: 2.308563 | F92: 33.7723 | G92: 0.2722
A93: P9942 | B93: Marinheiro de convés com periculosidade | C93: h | D93: 9.888 | E93: 2.037139 | F93: 32.9976 | G93: 0.3
A94: P9944 | B94: Operador de equipamento especial com periculosidade | C94: h | D94: 17.1555 | E94: 1.841636 | F94: 53.8963 | G94: 0.3
A95: P9946 | B95: Engenheiro auxiliar | C95: mês | D95: 12002 | E95: 0.867255 | F95: 22410.7945 | G95: 0
A96: P9947 | B96: Técnico florestal | C96: mês | D96: 3587.8754 | E96: 1.145337 | F96: 7697.2018 | G96: 0
A97: P9948 | B97: Motorista de veículo leve - mensalista | C97: mês | D97: 2378.3386 | E97: 1.310635 | F97: 5495.4724 | G97: 0
A98: P9949 | B98: Topógrafo | C98: mês | D98: 4037 | E98: 1.107522 | F98: 8508.0663 | G98: 0
A99: P9950 | B99: Auxiliar de topografia | C99: mês | D99: 2378.3386 | E99: 1.338378 | F99: 5561.4546 | G99: 0
A100: P9951 | B100: Médico de câmara hiperbárica | C100: mês | D100: 9683.7414 | E100: 1.038097 | F100: 20300.9664 | G100: 0.0583
A101: P9952 | B101: Pedreiro - mensalista | C101: mês | D101: 1917.86 | E101: 1.486495 | F101: 4768.7493 | G101: 0
A102: P9953 | B102: Eletricista - mensalista | C102: mês | D102: 2370.7666 | E102: 1.383993 | F102: 5651.8909 | G102: 0
A103: P9954 | B103: Servente - mensalista | C103: mês | D103: 1504.58 | E103: 1.6785 | F103: 4030.0175 | G103: 0
A104: P9955 | B104: Engenheiro chefe | C104: mês | D104: 16585.7794 | E104: 0.837807 | F104: 30481.4614 | G104: 0
A105: P9956 | B105: Motorista de caminhão com periculosidade | C105: h | D105: 11.9926 | E105: 2.021073 | F105: 39.8283 | G105: 0.3
A106: P9972 | B106: Técnico de batimetria | C106: mês | D106: 3322.76 | E106: 1.108568 | F106: 7006.2654 | G106: 0

Sheet Equipamentos
A1: CGCIT | B1: SISTEMA DE CUSTOS REFERENCIAIS DE OBRAS - SICRO | K1: DNIT
B2: Rio Grande do Norte - Abril/2024
A3: Código | B3: Descrição | C3: Valor de Aquisição (R$) | D3: Depreciação (R$/h) | E3: Oportunidade de Capital (R$/h) | F3: Seguros e Impostos (R$/h) | G3: Manutenção (R$/h) | H3: Operação (R$/h) | I3: Mão de Obra de Operação (R$/h) | J3: Custo Produtivo (R$/h) | K3: Custo Improdutivo (R$/h)
A4: E9001 | B4: Conjunto vibratório para tubos de concreto com encaixe PB e 3 jogos de fôrmas - D = 0,60 m - 2,20 kW | C4: 67349.8015 | D4: 8.98 | E4: 2.0777 | F4: 0 | G4: 6.735 | H4: 0 | I4: 0 | J4: 17.7927 | K4: 11.0577
A5: E9002 | B5: Conjunto vibratório para tubos de concreto com encaixe PB e 3 jogos de fôrmas - D = 0,80 m - 2,20 kW | C5: 83920.8108 | D5: 11.1894 | E5: 2.589 | F5: 0 | G5: 8.3921 | H5: 0 | I5: 0 | J5: 22.1705 | K5: 13.7784
A6: E9003 | B6: Conjunto vibratório para tubos de concreto com encaixe PB e 3 jogos de fôrmas - D = 1,00 m - 2,20 kW | C6: 103484.0978 | D6: 13.7979 | E6: 3.1925 | F6: 0 | G6: 10.3484 | H6: 0 | I6: 0 | J6: 27.3388 | K6: 16.9904
A7: E9004 | B7: Conjunto vibratório para tubos de concreto com encaixe PB e 3 jogos de fôrmas - D = 1,20 m - 2,20 kW | C7: 109692.7382 | D7: 14.6257 | E7: 3.384 | F7: 0 | G7: 10.9693 | H7: 0 | I7: 0 | J7: 28.979 | K7: 18.0097
A8: E9005 | B8: Conjunto vibratório para tubos de concreto com encaixe PB e 3 jogos de fôrmas - D = 1,50 m - 2,20 kW | C8: 114386.7113 | D8: 15.2516 | E8: 3.5288 | F8: 0 | G8: 11.4387 | H8: 0 | I8: 0 | J8: 30.2191 | K8: 18.7804
A9: E9006 | B9: Equipamento para sondagem manual | C9: 3007.8151 | D9: 0.5113 | E9: 0.1113 | F9: 0 | G9: 0.3008 | H9: 0 | I9: 0 | J9: 0.9234 | K9: 0.6226
A10: E9007 | B10: Bomba de pistão triplex com capacidade de 7,80 m³/h (130 l/min) - 8,20 kW | C10: 158221.3484 | D10: 12.6577 | E10: 2.9287 | F10: 0 | G10: 11.0755 | H10: 8.4426 | I10: 0 | J10: 35.1045 | K10: 15.5864
A11: E9008 | B11: Transportador manual de tubos de concreto com capacidade de 1 t | C11: 1892.3743 | D11: 1.7031 | E11: 0.1168 | F11: 0 | G11: 0.9462 | H11: 0 | I11: 0 | J11: 2.7661 | K11: 1.8199
A12: E9009 | B12: Embarcação rebocadora - 268 kW | C12: 633202.4844 | D12: 8.2448 | E12: 3.674 | F12: 0 | G12: 18.3218 | H12: 275.9304 | I12: 135.4673 | J12: 441.6383 | K12: 147.3861
A13: E9010 | B13: Balança plataforma digital à bateria, com mesa de 75 x 75 cm e capacidade de 500 kg | C13: 5142.97 | D13: 0.7714 | E13: 0.1058 | F13: 0 | G13: 0.4286 | H13: 0 | I13: 0 | J13: 1.3058 | K13: 0.8772
A14: E9011 | B14: Carro manual modelo plataforma de 200 x 80 cm com capacidade de 800 kg | C14: 1916.3475 | D14: 0.3449 | E14: 0.0709 | F14: 0 | G14: 0.1916 | H14: 0 | I14: 0 | J14: 0.6074 | K14: 0.4158
A15: E9014 | B15: Deflectômetro de impacto (FWD) instalado em picape com reboque e faixa de carga de 7 a 120 kN - 147 kW | C15: 2141825.942 | D15: 171.3461 | E15: 39.6452 | F15: 0 | G15: 107.0913 | H15: 0 | I15: 33.2697 | J15: 351.3523 | K15: 244.261
A16: E9015 | B16: Elevador de obra com capacidade de 1.000 kg - 9 kW | C16: 65864.4441 | D16: 5.2692 | E16: 1.2192 | F16: 0 | G16: 4.6105 | H16: 0 | I16: 27.0971 | J16: 38.196 | K16: 33.5855
A17: E9016 | B17: Usina misturadora móvel de reciclagem a frio com sistema de espuma de asfalto - 129,40 kW | C17: 10042312.37 | D17: 585.8016 | E17: 180.7198 | F17: 0 | G17: 753.1734 | H17: 98.1688 | I17: 43.11 | J17: 1660.9736 | K17: 809.6314
A18: E9017 | B18: Escavadeira hidráulica sobre esteira com capacidade de 0,4 m³ - 64 kW | C18: 718620.0809 | D18: 50.3034 | E18: 13.3017 | F18: 0 | G18: 50.3034 | H18: 45.0852 | I18: 34.4038 | J18: 193.3975 | K18: 98.0089
A19: E9020 | B19: Recicladora a frio - 455 kW | C19: 5015386.372 | D19: 292.5642 | E19: 90.2561 | F19: 0 | G19: 417.9489 | H19: 493.1199 | I19: 43.11 | J19: 1336.9991 | K19: 425.9303
A20: E9021 | B20: Grupo gerador - 456 kVA | C20: 355099.1297 | D20: 17.755 | E20: 6.2599 | F20: 0 | G20: 12.6821 | H20: 375.8007 | I20: 0 | J20: 412.4977 | K20: 24.0149
A21: E9022 | B21: Pórtico metálico rolante com capacidade de 25 t - 30 kW | C21: 959466.9709 | D21: 43.176 | E21: 16.2798 | F21: 0 | G21: 33.5813 | H21: 0 | I21: 27.0971 | J21: 120.1342 | K21: 86.5529
A22: E9023 | B22: Guindaste móvel sobre esteiras com dragline com capacidade de 1,9 a 2,3 m³ - 270 kW | C22: 3558706.534 | D22: 124.5547 | E22: 60.3824 | F22: 0 | G22: 177.9353 | H22: 73.1552 | I22: 43.11 | J22: 479.1376 | K22: 228.0471
A23: E9024 | B23: Misturador de nata cimento - 1,50 kW | C23: 8223.2034 | D23: 0.6579 | E23: 0.1522 | F23: 0 | G23: 0.5756 | H23: 0 | I23: 27.0971 | J23: 28.4828 | K23: 27.9072
A24: E9025 | B24: Conjunto bomba e macaco hidráulico para protensão com capacidade de 7.000 kN - 15 kW | C24: 100919.312 | D24: 5.7668 | E24: 1.7791 | F24: 0 | G24: 5.7668 | H24: 0 | I24: 43.11 | J24: 56.4227 | K24: 50.6559
A25: E9026 | B25: Bomba para injeção de nata de cimento com capacidade de 2 MPa - 2,20 kW | C25: 31863.4853 | D25: 2.5491 | E25: 0.5898 | F25: 0 | G25: 2.2304 | H25: 0 | I25: 0 | J25: 5.3693 | K25: 3.1389
A26: E9028 | B26: Bomba de alta pressão para hidrojateamento com capacidade de 18 MPa - 5,20 kW | C26: 4788.1169 | D26: 0.383 | E26: 0.0886 | F26: 0 | G26: 0.4309 | H26: 9.3295 | I26: 27.0971 | J26: 37.3291 | K26: 27.5687
A27: E9029 | B27: Conjunto bomba e macaco hidráulico para protensão com capacidade de 8.000 kN - 20 kW | C27: 128291.8413 | D27: 7.331 | E27: 2.2616 | F27: 0 | G27: 7.331 | H27: 0 | I27: 43.11 | J27: 60.0336 | K27: 52.7026
A28: E9030 | B28: Bomba de protensão com leitura digital para tensionamento de estais - 3 kW | C28: 13860.0726 | D28: 0.792 | E28: 0.2443 | F28: 0 | G28: 0.792 | H28: 0 | I28: 0 | J28: 1.8283 | K28: 1.0363
A29: E9031 | B29: Elevador de cremalheira com cabine simples, com capacidade de 1.500 kg e altura de até 100 m - 15 kW | C29: 339424.4824 | D29: 27.154 | E29: 6.2827 | F29: 0 | G29: 23.7597 | H29: 0 | I29: 27.0971 | J29: 84.2935 | K29: 60.5338
A30: E9032 | B30: Equipamento para regulagem final de estais com até 37 cordoalhas - D = 15,7 mm - 20 kW | C30: 75208.594 | D30: 4.2976 | E30: 1.3258 | F30: 0 | G30: 4.2976 | H30: 0 | I30: 43.11 | J30: 53.031 | K30: 48.7334
A31: E9033 | B31: Equipamento para regulagem final de estais de 38 a 55 cordoalhas - D = 15,7 mm - 30 kW | C31: 107440.8485 | D31: 6.1395 | E31: 1.894 | F31: 0 | G31: 6.1395 | H31: 0 | I31: 43.11 | J31: 57.283 | K31: 51.1435
A32: E9034 | B32: Equipamento para regulagem final de estais de 56 a 73 cordoalhas - D = 15,7 mm - 40 kW | C32: 161161.2728 | D32: 9.2092 | E32: 2.841 | F32: 0 | G32: 9.2092 | H32: 0 | I32: 43.11 | J32: 64.3694 | K32: 55.1602
A33: E9035 | B33: Equipamento para regulagem final de estais de 74 a 91 cordoalhas - D = 15,7 mm - 50 kW | C33: 214881.6971 | D33: 12.279 | E33: 3.7881 | F33: 0 | G33: 12.279 | H33: 0 | I33: 43.11 | J33: 71.4561 | K33: 59.1771
A34: E9036 | B34: Grua fixa para alturas de 60 a 102 m, com alcance de 60 m com capacidade de 1.500 kg na ponta da lança - 37 kW | C34: 3214869.372 | D34: 160.7435 | E34: 56.6736 | F34: 0 | G34: 183.7068 | H34: 0 | I34: 43.11 | J34: 444.2339 | K34: 260.5271
A35: E9038 | B35: Macaco hidráulico monocordoalha para tensionamento de estais - 3 kW | C35: 17408.8961 | D35: 0.9948 | E35: 0.3069 | F35: 0 | G35: 0.9948 | H35: 0 | I35: 43.11 | J35: 45.4065 | K35: 44.4117
A36: E9039 | B36: Máquina de solda por termofusão para tubos PEAD com gerador de 4 kW | C36: 117741.6173 | D36: 6.7281 | E36: 2.0756 | F36: 0 | G36: 6.7281 | H36: 4.1184 | I36: 43.11 | J36: 62.7602 | K36: 51.9137
A37: E9040 | B37: Serra mármore - 1,45 kW | C37: 465.011 | D37: 0.0419 | E37: 0.0086 | F37: 0 | G37: 0.0233 | H37: 0 | I37: 0 | J37: 0.0738 | K37: 0.0505
A38: E9042 | B38: Trator sobre esteiras com lâmina - 97 kW | C38: 1335965.247 | D38: 51.9542 | E38: 22.897 | F38: 0 | G38: 74.2203 | H38: 73.5887 | I38: 34.4038 | J38: 257.064 | K38: 109.255
A39: E9043 | B39: Embarcação de alumínio com comprimento de 6 m e motor de popa - 18,60 kW | C39: 25153.8887 | D39: 0.393 | E39: 0.1482 | F39: 0 | G39: 0.4367 | H39: 38.1382 | I39: 39.2829 | J39: 78.399 | K39: 39.8241
A40: E9044 | B40: Central de concreto com capacidade de 150 m³/h - dosadora e misturadora | C40: 2342362.396 | D40: 133.8493 | E40: 41.2925 | F40: 0 | G40: 117.1181 | H40: 0 | I40: 43.11 | J40: 335.3699 | K40: 218.2518
A41: E9045 | B41: Conjunto bomba e macaco hidráulico para elevação com capacidade de 496 kN | C41: 60122.9991 | D41: 4.8098 | E41: 1.1129 | F41: 0 | G41: 4.8098 | H41: 5.9053 | I41: 43.11 | J41: 59.7478 | K41: 49.0327
A42: E9046 | B42: Conjunto bomba e macaco hidráulico para elevação com capacidade de 929 kN | C42: 73007.2301 | D42: 5.8406 | E42: 1.3514 | F42: 0 | G42: 5.8406 | H42: 5.9053 | I42: 43.11 | J42: 62.0479 | K42: 50.302
A43: E9047 | B43: Conjunto bomba e macaco hidráulico para elevação com capacidade de 1.390 kN | C43: 103681.655 | D43: 8.2945 | E43: 1.9191 | F43: 0 | G43: 8.2945 | H43: 5.9053 | I43: 43.11 | J43: 67.5234 | K43: 53.3236
A44: E9048 | B44: Conjunto bomba e macaco hidráulico para elevação com capacidade de 1.859 kN | C44: 120362.524 | D44: 9.629 | E44: 2.2279 | F44: 0 | G44: 9.629 | H44: 5.9053 | I44: 43.11 | J44: 70.5012 | K44: 54.9669
A45: E9049 | B45: Bomba de alta pressão para hidrojateamento com capacidade de 250 MPa - 72 kW | C45: 703621.8506 | D45: 56.2897 | E45: 13.024 | F45: 0 | G45: 63.326 | H45: 58.5241 | I45: 27.0971 | J45: 218.2609 | K45: 96.4108
A46: E9050 | B46: Guindaste móvel sobre pneus com 2 eixos com capacidade de 18 t - 97 kW | C46: 2839728.222 | D46: 141.9864 | E46: 50.0604 | F46: 0 | G46: 182.554 | H46: 26.2817 | I46: 33.2697 | J46: 434.1522 | K46: 225.3165
A47: E9051 | B47: Máquina levantadora e posicionadora de via - 7,40 kW | C47: 783572.9998 | D47: 62.6858 | E47: 14.5039 | F47: 0 | G47: 54.8501 | H47: 10.6213 | I47: 27.0971 | J47: 169.7582 | K47: 104.2868
A48: E9052 | B48: Empilhadeira a diesel com capacidade de 10 t - 82 kW | C48: 752188.4608 | D48: 60.1751 | E48: 13.923 | F48: 0 | G48: 52.6532 | H48: 66.6525 | I48: 27.0971 | J48: 220.5009 | K48: 101.1952
A49: E9053 | B49: Perfuratriz hidráulica montada em flutuante - 32 kW | C49: 352717.8547 | D49: 11.0224 | E49: 2.2669 | F49: 0 | G49: 9.7977 | H49: 17.3405 | I49: 33.0271 | J49: 73.4546 | K49: 46.3164
A50: E9054 | B50: Equipamento sobre forma-trilho para execução e acabamento de pavimento de concreto - 13,40 kW | C50: 1379986.283 | D50: 110.3989 | E50: 25.5435 | F50: 0 | G50: 68.9993 | H50: 19.2331 | I50: 27.0971 | J50: 251.2719 | K50: 163.0395
A51: E9055 | B51: Guincho pneumático com capacidade de 2,5 t | C51: 526425.3171 | D51: 47.3783 | E51: 9.7441 | F51: 0 | G51: 26.3213 | H51: 0 | I51: 0 | J51: 83.4437 | K51: 57.1224
A52: E9056 | B52: Plataforma autoelevatória de 12 x 24 m com capacidade de 150 t | C52: 858859.7476 | D52: 6.7098 | E52: 4.83 | F52: 0 | G52: 14.9108 | H52: 0 | I52: 103.8473 | J52: 130.2979 | K52: 115.3871
A53: E9057 | B53: Batelão sem propulsão com capacidade de 66 m³ | C53: 229672.1037 | D53: 1.7943 | E53: 1.2916 | F53: 0 | G53: 2.9905 | H53: 0 | I53: 26.7839 | J53: 32.8603 | K53: 29.8698
A54: E9058 | B54: Plataforma flutuante de 12 x 24 x 1,8 m com capacidade de 150 t | C54: 686910.1879 | D54: 5.3665 | E54: 3.863 | F54: 0 | G54: 8.9441 | H54: 0 | I54: 26.7839 | J54: 44.9575 | K54: 36.0134
A55: E9059 | B55: Plataforma autoelevatória de 12 x 24 m montada na obra com capacidade de 150 t | C55: 858859.7476 | D55: 6.7098 | E55: 4.83 | F55: 0 | G55: 14.9108 | H55: 0 | I55: 103.8473 | J55: 130.2979 | K55: 115.3871
A56: E9060 | B56: Perfuratriz pneumática rotopercussiva montada em flutuante com pressão de 0,70 MPa e capacidade de 2.500 gpm | C56: 32255.9661 | D56: 1.008 | E56: 0.2073 | F56: 0 | G56: 0.896 | H56: 0 | I56: 66.0542 | J56: 68.1655 | K56: 67.2695
A57: E9061 | B57: Lixadeira elétrica manual angular - 2 kW | C57: 1388.1427 | D57: 0.1111 | E57: 0.0257 | F57: 0 | G57: 0.0694 | H57: 0 | I57: 0 | J57: 0.2062 | K57: 0.1368
A58: E9062 | B58: Soprador de ar quente manual - 1,60 kW | C58: 4563.5123 | D58: 0.6085 | E58: 0.0939 | F58: 0 | G58: 0.3803 | H58: 0 | I58: 0 | J58: 1.0827 | K58: 0.7024
A59: E9063 | B59: Equipamento de estabilização dinâmica da via - 300 kW | C59: 24285889.48 | D59: 971.4356 | E59: 412.0708 | F59: 0 | G59: 971.4356 | H59: 195.0804 | I59: 43.11 | J59: 2593.1324 | K59: 1426.6164
A60: E9064 | B60: Transportador manual gerica com capacidade de 180 l | C60: 1006.1579 | D60: 1.0062 | E60: 0.0621 | F60: 0 | G60: 0.5031 | H60: 0 | I60: 0 | J60: 1.5714 | K60: 1.0683
A61: E9065 | B61: Carro controle ferroviário - 186 kW | C61: 29564083.54 | D61: 1182.5633 | E61: 501.6286 | F61: 0 | G61: 1034.7429 | H61: 120.9498 | I61: 43.11 | J61: 2882.9946 | K61: 1727.3019
A62: E9066 | B62: Grupo gerador - 14 kVA | C62: 68381.2961 | D62: 3.4191 | E62: 1.2055 | F62: 0 | G62: 2.4422 | H62: 11.3255 | I62: 0 | J62: 18.3923 | K62: 4.6246
A63: E9067 | B63: Veículo ferroviário para capina química com capacidade de 12.000 l - 115 kW | C63: 1699604.71 | D63: 67.9842 | E63: 28.838 | F63: 0 | G63: 42.4901 | H63: 74.7808 | I63: 27.0971 | J63: 241.1902 | K63: 123.9193
A64: E9068 | B64: Perfuratriz hidráulica rotopercussiva para CCPH - 123 kW | C64: 3516526.112 | D64: 234.4351 | E64: 63.2828 | F64: 0 | G64: 234.4351 | H64: 99.9787 | I64: 34.4038 | J64: 666.5355 | K64: 332.1217
A65: E9069 | B65: Vibrador de imersão para concreto - 4,10 kW | C65: 3889.0348 | D65: 0.6222 | E65: 0.144 | F65: 0 | G65: 0.3889 | H65: 7.356 | I65: 0 | J65: 8.5111 | K65: 0.7662
A66: E9070 | B66: Ponte rolante com capacidade de 5 t e vão de até 15 m - 10 kW | C66: 333434.3297 | D66: 13.3374 | E66: 5.6575 | F66: 0 | G66: 8.3359 | H66: 0 | I66: 27.0971 | J66: 54.4279 | K66: 46.092
A67: E9071 | B67: Transportador manual carrinho de mão com capacidade de 80 l | C67: 469.9617 | D67: 0.47 | E67: 0.029 | F67: 0 | G67: 0.235 | H67: 0 | I67: 0 | J67: 0.734 | K67: 0.499
A68: E9072 | B68: Martelo hidráulico vibratório com unidade hidráulica - 486 kW | C68: 2863876.1 | D68: 190.9251 | E68: 51.5378 | F68: 0 | G68: 167.0594 | H68: 395.0378 | I68: 43.11 | J68: 847.6701 | K68: 285.5729
A69: E9073 | B69: Bomba de concreto rebocável com capacidade de 30 m³/h - 74 kW | C69: 485087.9297 | D69: 38.807 | E69: 8.979 | F69: 0 | G69: 38.807 | H69: 76.1897 | I69: 27.0971 | J69: 189.8798 | K69: 74.8831
A70: E9074 | B70: Tanque de estocagem de asfalto com agitadores de 60.000 l | C70: 816000 | D70: 34 | E70: 11.8001 | F70: 0 | G70: 21.25 | H70: 0 | I70: 0 | J70: 67.0501 | K70: 45.8001
A71: E9075 | B71: Trado cavadeira de 12" | C71: 144.3371 | D71: 0.0722 | E71: 0.0067 | F71: 0 | G71: 0.0361 | H71: 0 | I71: 0 | J71: 0.115 | K71: 0.0789
A72: E9076 | B72: Equipamento para pintura eletrostática com cabine dupla de 7,00 kW e estufa de 80.000 kCal | C72: 164047.3783 | D72: 10.5459 | E72: 2.8919 | F72: 0 | G72: 5.8588 | H72: 0 | I72: 27.0971 | J72: 46.3937 | K72: 40.5349
A73: E9077 | B73: Perfuratriz de circulação reversa tipo Wirth ou similar com unidade hidráulica (Power Pack) - 273 kW | C73: 4246027.484 | D73: 283.0685 | E73: 76.4108 | F73: 0 | G73: 283.0685 | H73: 147.936 | I73: 34.4038 | J73: 824.8876 | K73: 393.8831
A74: E9078 | B74: Treliça lançadeira com capacidade de carga de 100 a 120 t e vão máximo de 45 m - 110 kW | C74: 3545582.822 | D74: 94.5489 | E74: 58.3367 | F74: 0 | G74: 59.093 | H74: 0 | I74: 43.11 | J74: 255.0886 | K74: 195.9956
A75: E9079 | B75: Bomba submersível com capacidade de 360 m³/h - 23 kW | C75: 179871.1364 | D75: 14.3897 | E75: 3.3294 | F75: 0 | G75: 12.591 | H75: 0 | I75: 0 | J75: 30.3101 | K75: 17.7191
A76: E9080 | B76: Carrelone com capacidade máxima de 70 t | C76: 1766402.012 | D76: 79.4881 | E76: 29.9714 | F76: 0 | G76: 44.1601 | H76: 0 | I76: 27.0971 | J76: 180.7167 | K76: 136.5566
A77: E9081 | B77: Fischietti simples com capacidade de 70 t | C77: 106979.2739 | D77: 4.8141 | E77: 1.8152 | F77: 0 | G77: 2.6745 | H77: 0 | I77: 27.0971 | J77: 36.4009 | K77: 33.7264
A78: E9083 | B78: Vagão fechado FLT com capacidade de 99 t | C78: 800000 | D78: 12.6667 | E78: 12.7513 | F78: 0 | G78: 6.6667 | H78: 0 | I78: 0 | J78: 32.0847 | K78: 25.418
A79: E9084 | B79: Vagão tanque convencional TCT com capacidade de 97 t e 103.000 l | C79: 1195000 | D79: 18.9208 | E79: 19.0473 | F79: 0 | G79: 9.9583 | H79: 0 | I79: 0 | J79: 47.9264 | K79: 37.9681
A80: E9085 | B80: Vagão gôndola GDE com capacidade de 93,5 t / 29 m³ | C80: 620000 | D80: 9.8167 | E80: 9.8823 | F80: 0 | G80: 5.1667 | H80: 0 | I80: 0 | J80: 24.8657 | K80: 19.699
A81: E9086 | B81: Bomba de concreto rebocável com capacidade de 41 m³/h - 74 kW | C81: 535237.9297 | D81: 42.819 | E81: 9.9073 | F81: 0 | G81: 42.819 | H81: 76.1897 | I81: 27.0971 | J81: 198.8321 | K81: 79.8234
A82: E9089 | B82: Roçadeira costal - 1,40 kW | C82: 2862.4304 | D82: 0.4294 | E82: 0.0589 | F82: 0 | G82: 0.334 | H82: 7.8942 | I82: 0 | J82: 8.7165 | K82: 0.4883
A83: E9093 | B83: Veículo leve - 53 kW (sem motorista) | C83: 71552.6012 | D83: 4.2932 | E83: 1.3244 | F83: 0.5366 | G83: 4.2932 | H83: 24.4515 | I83: 0 | J83: 34.8989 | K83: 6.1542
A84: E9094 | B84: Guindaste móvel sobre pneus com 6 eixos com capacidade máxima de 350 t - 450 kW | C84: 16357092.67 | D84: 817.8546 | E84: 288.3522 | F84: 116.8364 | G84: 1051.5274 | H84: 121.9253 | I84: 33.2697 | J84: 2429.7656 | K84: 1256.3129
A85: E9095 | B85: Guindaste móvel sobre pneus com 8 eixos com capacidade máxima de 500 t - 500 kW | C85: 28685331.56 | D85: 1434.2666 | E85: 505.6814 | F85: 204.8952 | G85: 1844.057 | H85: 135.4725 | I85: 33.2697 | J85: 4157.6424 | K85: 2178.1129
A86: E9096 | B86: Minicarregadeira de pneus - 45,50 kW | C86: 406745.4881 | D86: 28.4722 | E86: 7.5289 | F86: 0 | G86: 28.4722 | H86: 61.64 | I86: 34.4038 | J86: 160.5171 | K86: 70.4049
A87: E9101 | B87: Removedora de faixas de sinalização viária - 9,69 kW | C87: 50999.5446 | D87: 4.08 | E87: 0.944 | F87: 0 | G87: 3.57 | H87: 17.3852 | I87: 0 | J87: 25.9792 | K87: 5.024
A88: E9102 | B88: Extrusora para sarjeta de concreto - 10,44 kW | C88: 75367.1958 | D88: 6.0294 | E88: 1.395 | F88: 0 | G88: 5.2757 | H88: 8.486 | I88: 27.0971 | J88: 48.2832 | K88: 34.5215
A89: E9103 | B89: Extrusora para meio-fio de concreto - 10,44 kW | C89: 63954.3888 | D89: 5.1164 | E89: 1.1838 | F89: 0 | G89: 4.4768 | H89: 8.486 | I89: 27.0971 | J89: 46.3601 | K89: 33.3973
A90: E9105 | B90: Embarcação empurradora multipropósito - 2 x 186 kW | C90: 4997303.263 | D90: 65.0691 | E90: 28.9955 | F90: 0 | G90: 144.5979 | H90: 383.0079 | I90: 135.4673 | J90: 757.1377 | K90: 229.5319
A91: E9106 | B91: Balsa de convés com capacidade de 200 t | C91: 1966411.418 | D91: 15.3626 | E91: 11.0585 | F91: 0 | G91: 25.6043 | H91: 0 | I91: 26.7839 | J91: 78.8093 | K91: 53.205
A92: E9107 | B92: Compactador manual com soquete vibratório - 2,24 kW | C92: 9897.94 | D92: 0.6599 | E92: 0.1781 | F92: 0 | G92: 0.6599 | H92: 4.0189 | I92: 0 | J92: 5.5168 | K92: 0.838
A93: E9108 | B93: Soldadora de trilho por caldeamento na via - 400 kW | C93: 9036682.155 | D93: 144.5869 | E93: 144.9665 | F93: 0 | G93: 180.7336 | H93: 260.1072 | I93: 86.22 | J93: 816.6142 | K93: 375.7734
A94: E9110 | B94: Escavadeira hidráulica sobre esteiras para rocha com caçamba com capacidade de 1,56 m³ - 118 kW | C94: 1085154.064 | D94: 108.5154 | E94: 21.5209 | F94: 0 | G94: 108.5154 | H94: 121.4917 | I94: 34.4038 | J94: 394.4472 | K94: 164.4401
A95: E9111 | B95: Jateador abrasivo úmido com capacidade de 350 kg de abrasivo | C95: 248093.3769 | D95: 22.3284 | E95: 4.5922 | F95: 0 | G95: 22.3284 | H95: 0 | I95: 27.0971 | J95: 76.3461 | K95: 54.0177
A96: E9112 | B96: Sinalizador direcional móvel com sistema fotovoltaico de energia e montado em chassi sobre pneus | C96: 22937.3294 | D96: 2.0644 | E96: 0.4246 | F96: 0 | G96: 1.1469 | H96: 0 | I96: 0 | J96: 3.6359 | K96: 2.489
A97: E9113 | B97: Painel de Mensagem Variável - PMV móvel, com sistema fotovoltaico de energia e montado em chassi sobre pneus | C97: 174157.9297 | D97: 15.6742 | E97: 3.2237 | F97: 0 | G97: 8.7079 | H97: 0 | I97: 0 | J97: 27.6058 | K97: 18.8979
A98: E9116 | B98: Semáforo móvel com 3 lentes e bateria - D = 200 mm | C98: 7805.8498 | D98: 0.7025 | E98: 0.1445 | F98: 0 | G98: 0.3903 | H98: 0 | I98: 0 | J98: 1.2373 | K98: 0.847
A99: E9117 | B99: Carregadeira de pneus para rocha com capacidade de 2,50 m³ - 105 kW | C99: 1003960.953 | D99: 100.3961 | E99: 19.9107 | F99: 0 | G99: 100.3961 | H99: 108.1071 | I99: 34.4038 | J99: 363.2138 | K99: 154.7106
A100: E9118 | B100: Cortadora de pavimento com disco diamantado de 450 a 1.500 mm - 55,40 kW | C100: 485944.1681 | D100: 38.8755 | E100: 8.9948 | F100: 0 | G100: 38.8755 | H100: 45.0311 | I100: 27.0971 | J100: 158.874 | K100: 74.9674
A101: E9119 | B101: Minicarregadeira sobre pneus com valetadeira - 55,40 kW | C101: 620946.573 | D101: 43.4663 | E101: 11.4937 | F101: 0 | G101: 43.4663 | H101: 75.0518 | I101: 34.4038 | J101: 207.8819 | K101: 89.3638
A102: E9120 | B102: Equipamento de cravação sobre esteira para geodreno com haste para profundidade de até 20 m - 258 kW | C102: 3289741.427 | D102: 230.2819 | E102: 60.8931 | F102: 0 | G102: 230.2819 | H102: 181.7499 | I102: 27.0971 | J102: 730.3039 | K102: 318.2721
A103: E9122 | B103: Perfuratriz tipo Bottom Feed para coluna de brita - 194 kW | C103: 4535507.356 | D103: 302.3672 | E103: 81.6202 | F103: 0 | G103: 302.3672 | H103: 105.1267 | I103: 34.4038 | J103: 825.8851 | K103: 418.3912
A104: E9125 | B104: Veículo tipo van furgão com capacidade de 1,54 t - 93 kW | C104: 234700.0686 | D104: 11.735 | E104: 4.2236 | F104: 1.7114 | G104: 11.735 | H104: 25.1979 | I104: 29.7488 | J104: 84.3517 | K104: 47.4188
A105: E9126 | B105: Draga backhoe com capacidade de 7 m³ - 1.000 kW | C105: 82197311.58 | D105: 924.7198 | E105: 665.6441 | F105: 0 | G105: 2054.9328 | H105: 1029.591 | I105: 67.4009 | J105: 4742.2886 | K105: 1657.7648
A106: E9127 | B106: Escavadeira hidráulica com martelo hidráulico de 520 kg - 75 kW | C106: 1113903.618 | D106: 127.3033 | E106: 22.0911 | F106: 0 | G106: 159.1291 | H106: 52.8343 | I106: 34.4038 | J106: 395.7616 | K106: 183.7982
A107: E9134 | B107: Miniônibus com capacidade para 30 passageiros - 111 kW | C107: 643737.0656 | D107: 27.5887 | E107: 11.3482 | F107: 4.5981 | G107: 41.3831 | H107: 114.2846 | I107: 32.2887 | J107: 231.4914 | K107: 75.8237
A108: E9141 | B108: Rebarbador hidráulico com bomba manual com capacidade de força de 9.000 kgf | C108: 93434.4354 | D108: 7.4748 | E108: 1.7295 | F108: 0 | G108: 4.6717 | H108: 0 | I108: 0 | J108: 13.876 | K108: 9.2043
A109: E9144 | B109: Pórtico metálico rolante com talha com capacidade de 5 t - 10 kW | C109: 305857.1189 | D109: 12.2343 | E109: 5.1896 | F109: 0 | G109: 7.6464 | H109: 0 | I109: 27.0971 | J109: 52.1674 | K109: 44.521
A110: E9148 | B110: Macaco de protensão de fios com bomba - 3,72 kW | C110: 101550.4648 | D110: 5.8029 | E110: 1.7902 | F110: 0 | G110: 5.8029 | H110: 0 | I110: 43.11 | J110: 56.506 | K110: 50.7031
A111: E9149 | B111: Máquina de aplicação e extração de grampo elástico tipo Pandrol - 6,70 kW | C111: 265471.1969 | D111: 21.2377 | E111: 4.9139 | F111: 0 | G111: 21.2377 | H111: 9.6166 | I111: 0 | J111: 57.0059 | K111: 26.1516
A112: E9151 | B112: Britador de mandíbulas móvel sobre esteiras, sem peneira, com capacidade de 140 m³/h - 170 kW | C112: 2974811.287 | D112: 169.9892 | E112: 52.4417 | F112: 0 | G112: 169.9892 | H112: 165.8183 | I112: 43.11 | J112: 601.3484 | K112: 265.5409
A113: E9152 | B113: Ferramenta de fixação à pólvora de ação direta | C113: 1055.0647 | D113: 0.0897 | E113: 0.0195 | F113: 0 | G113: 0.0844 | H113: 0 | I113: 0 | J113: 0.1936 | K113: 0.1092
A114: E9153 | B114: Ferramenta de fixação à pólvora e sistema à pistão | C114: 997.7331 | D114: 0.0848 | E114: 0.0185 | F114: 0 | G114: 0.0798 | H114: 0 | I114: 0 | J114: 0.1831 | K114: 0.1033
A115: E9154 | B115: Equipamento para selagem com material asfáltico rebocável com capacidade de 370 l - 35 kW | C115: 462796.7028 | D115: 29.7512 | E115: 8.1584 | F115: 0 | G115: 9.9171 | H115: 28.4492 | I115: 27.0971 | J115: 103.373 | K115: 65.0067
A116: E9155 | B116: Caldeira de asfalto rebocável com capacidade de 600 l - 5,20 kW | C116: 137077.5431 | D116: 8.8121 | E116: 2.4165 | F116: 0 | G116: 2.9374 | H116: 3.945 | I116: 0 | J116: 18.111 | K116: 11.2286
A117: E9156 | B117: Soprador de ar costal - 2,6 kW | C117: 2550.8065 | D117: 0.4081 | E117: 0.0944 | F117: 0 | G117: 0.3571 | H117: 4.6648 | I117: 0 | J117: 5.5244 | K117: 0.5025
A118: E9157 | B118: Locomotiva diesel-elétrica CC - bitola métrica - 2.237 kW | C118: 8250000 | D118: 132 | E118: 132.3465 | F118: 0 | G118: 165 | H118: 1454.6495 | I118: 33.9618 | J118: 1917.9578 | K118: 298.3083
A119: E9158 | B119: Locomotiva diesel-elétrica CC - bitola larga - 2.237 kW | C119: 8250000 | D119: 132 | E119: 132.3465 | F119: 0 | G119: 165 | H119: 1454.6495 | I119: 33.9618 | J119: 1917.9578 | K119: 298.3083
A120: E9159 | B120: Vagão plataforma PNE com capacidade de 82 t - bitola métrica | C120: 736000 | D120: 11.6533 | E120: 11.7312 | F120: 0 | G120: 6.1333 | H120: 0 | I120: 0 | J120: 29.5178 | K120: 23.3845
A121: E9160 | B121: Vagão plataforma PNT com capacidade de 98 t - bitola larga | C121: 842000 | D121: 13.3317 | E121: 13.4208 | F121: 0 | G121: 7.0167 | H121: 0 | I121: 0 | J121: 33.7692 | K121: 26.7525
A122: E9161 | B122: Vagão fechado com porta para carga e descarga de paletes FLD com capacidade de 64 t - bitola métrica | C122: 730000 | D122: 11.5583 | E122: 11.6356 | F122: 0 | G122: 6.0833 | H122: 0 | I122: 0 | J122: 29.2772 | K122: 23.1939
A123: E9162 | B123: Vagão fechado com porta para carga e descarga de paletes FLT com capacidade de 99 t - bitola larga | C123: 800000 | D123: 12.6667 | E123: 12.7513 | F123: 0 | G123: 6.6667 | H123: 0 | I123: 0 | J123: 32.0847 | K123: 25.418
A124: E9163 | B124: Vagão hopper aberto com descarga automática HNE com capacidade de 45 m³ - bitola métrica | C124: 880000 | D124: 13.9333 | E124: 14.0265 | F124: 0 | G124: 7.3333 | H124: 0 | I124: 0 | J124: 35.2931 | K124: 27.9598
A125: E9164 | B125: Vagão hopper aberto com descarga automática HNT com capacidade de 63 m³ - bitola larga | C125: 915000 | D125: 14.4875 | E125: 14.5843 | F125: 0 | G125: 7.625 | H125: 0 | I125: 0 | J125: 36.6968 | K125: 29.0718
A126: E9167 | B126: Equipamento para carga e descarga de TLS de até 250 m - 90 kW | C126: 2826821.644 | D126: 45.2291 | E126: 45.3479 | F126: 0 | G126: 56.5364 | H126: 58.5241 | I126: 43.11 | J126: 248.7475 | K126: 133.687
A127: E9168 | B127: Carregadeira de pneus com implemento de garfo - 195 kW | C127: 1736643.657 | D127: 121.5651 | E127: 32.1453 | F127: 0 | G127: 121.5651 | H127: 84.5348 | I127: 34.4038 | J127: 394.2141 | K127: 188.1142
A128: E9200 | B128: Carregadeira de pneus para rocha com capacidade de 2,50 m³ - 105 kW com periculosidade | C128: 1003960.953 | D128: 100.3961 | E128: 19.9107 | F128: 0 | G128: 100.3961 | H128: 108.1071 | I128: 42.5277 | J128: 371.3377 | K128: 162.8345
A129: E9203 | B129: Escavadeira hidráulica com martelo hidráulico de 1.700 kg - 103 kW com periculosidade | C129: 1921603.293 | D129: 219.6118 | E129: 38.1095 | F129: 0 | G129: 274.5148 | H129: 72.5591 | I129: 42.5277 | J129: 647.3229 | K129: 300.249
A130: E9204 | B130: Perfuratriz sobre esteiras - 145 kW com periculosidade | C130: 1702096.679 | D130: 113.4731 | E130: 30.6306 | F130: 0 | G130: 113.4731 | H130: 117.8611 | I130: 42.5277 | J130: 417.9656 | K130: 186.6314
A131: E9205 | B131: Equipamento de corte a plasma CNC - 12.000 x 5.500 mm - 19,5 kW | C131: 1072640.446 | D131: 85.8112 | E131: 19.8546 | F131: 0 | G131: 64.3584 | H131: 0 | I131: 0 | J131: 170.0242 | K131: 105.6658
A132: E9206 | B132: Equipamento de solda MIG automática com acessórios - 14,6 kVA | C132: 83506.7274 | D132: 6.6805 | E132: 1.5457 | F132: 0 | G132: 6.6805 | H132: 0 | I132: 0 | J132: 14.9067 | K132: 8.2262
A133: E9207 | B133: Máquina de solda elétrica retificadora 425 A - 18,70 kW | C133: 5952.781 | D133: 0.4762 | E133: 0.1102 | F133: 0 | G133: 0.4762 | H133: 0 | I133: 0 | J133: 1.0626 | K133: 0.5864
A134: E9209 | B134: Martelete perfurador/rompedor a ar comprimido de 25 kg para rocha, com insalubridade, com capacidade de 2.040 gpm | C134: 27805.5531 | D134: 2.2244 | E134: 0.5147 | F134: 0 | G134: 2.2244 | H134: 0 | I134: 33.7723 | J134: 38.7358 | K134: 36.5114
A135: E9213 | B135: Jumbo eletro-hidráulico com 3 braços - 155 kW/237 kW com periculosidade | C135: 11635904.91 | D135: 775.727 | E135: 209.3978 | F135: 0 | G135: 969.6587 | H135: 176.3852 | I135: 53.8963 | J135: 2185.065 | K135: 1039.0211
A136: E9231 | B136: Maçarico lança-chamas a gás liquefeito de petróleo (GLP) | C136: 86.171 | D136: 0.0069 | E136: 0.0016 | F136: 0 | G136: 0.0069 | H136: 0 | I136: 0 | J136: 0.0154 | K136: 0.0085
A137: E9242 | B137: Estação transmissora de superfície para televisionamento | C137: 12123.6189 | D137: 0.7794 | E137: 0.2137 | F137: 0 | G137: 0.433 | H137: 0 | I137: 0 | J137: 1.4261 | K137: 0.9931
A138: E9243 | B138: Câmara hiperbárica com filtro, serpentina e reservatório de ar para mergulho raso - D = 1,80 m e H = 2,22 m. | C138: 428537.3524 | D138: 7.4994 | E138: 6.9407 | F138: 0 | G138: 10.7134 | H138: 0 | I138: 53.0176 | J138: 78.1711 | K138: 67.4577
A139: E9244 | B139: Estação transmissora de superfície para comunicação sem fio | C139: 38565.8635 | D139: 2.4792 | E139: 0.6799 | F139: 0 | G139: 1.3774 | H139: 0 | I139: 0 | J139: 4.5365 | K139: 3.1591
A140: E9245 | B140: Estação transmissora de superfície para comunicação com fio | C140: 6463.8225 | D140: 0.4155 | E140: 0.1139 | F140: 0 | G140: 0.2309 | H140: 0 | I140: 0 | J140: 0.7603 | K140: 0.5294
A141: E9246 | B141: Painel de controle de ar com manômetros e pneufatômetros | C141: 12404.1952 | D141: 0.7974 | E141: 0.2187 | F141: 0 | G141: 0.443 | H141: 0 | I141: 0 | J141: 1.4591 | K141: 1.0161
A142: E9247 | B142: Sistema de Sino aberto (sinete) para mergulho até 50 m - 33,50 kW | C142: 550152.4773 | D142: 14.6707 | E142: 9.0518 | F142: 0 | G142: 14.6707 | H142: 0 | I142: 53.0176 | J142: 91.4108 | K142: 76.7401
A143: E9248 | B143: Sistema de ar comprimido para mergulho até 30 m com pressão de trabalho de 1,4 MPa - 7,46 kW | C143: 51941.3702 | D143: 3.4628 | E143: 0.9347 | F143: 0 | G143: 3.4628 | H143: 6.8722 | I143: 0 | J143: 14.7325 | K143: 4.3975
A144: E9249 | B144: Sistema de ar comprimido para mergulho até 50 m com pressão de trabalho de 1,7 MPa - 16,18 kW | C144: 78694.0046 | D144: 5.2463 | E144: 1.4162 | F144: 0 | G144: 5.2463 | H144: 14.9052 | I144: 0 | J144: 26.814 | K144: 6.6625
A145: E9251 | B145: Fonte de plasma para corte manual - 65A - 15 kW | C145: 32640.7537 | D145: 2.6113 | E145: 0.6042 | F145: 0 | G145: 2.6113 | H145: 0 | I145: 0 | J145: 5.8268 | K145: 3.2155
A146: E9252 | B146: Serra de esquadria com braço telescópico - D = 250 mm (10") - 1,80 kW | C146: 5330.2216 | D146: 0.4797 | E146: 0.0987 | F146: 0 | G146: 0.2665 | H146: 0 | I146: 0 | J146: 0.8449 | K146: 0.5784
A147: E9253 | B147: Rebordeadeira diâmetro máximo 3,00 m - 4,85 kW | C147: 68991.1855 | D147: 2.7596 | E147: 1.1706 | F147: 0 | G147: 2.4147 | H147: 0 | I147: 0 | J147: 6.3449 | K147: 3.9302
A148: E9254 | B148: Dobradeira viradeira manual comprimento máximo de dobra de até 2.000 mm | C148: 19280.2952 | D148: 0.7712 | E148: 0.3271 | F148: 0 | G148: 0.6748 | H148: 0 | I148: 0 | J148: 1.7731 | K148: 1.0983
A149: E9255 | B149: Fonte de plasma para corte manual - 45A - 10 kW | C149: 21808.3537 | D149: 1.7447 | E149: 0.4037 | F149: 0 | G149: 1.7447 | H149: 0 | I149: 0 | J149: 3.8931 | K149: 2.1484
A150: E9256 | B150: Equipamento para pintura com cal rebocável com dois bicos aplicadores e capacidade de 2.200 l | C150: 71885.9872 | D150: 4.1078 | E150: 1.2672 | F150: 0 | G150: 4.1078 | H150: 0 | I150: 27.0971 | J150: 36.5799 | K150: 32.4721
A151: E9259 | B151: Ventilador centrífugo média pressão com capacidade de 38 m³/min - 2,21 kW | C151: 17180 | D151: 1.5462 | E151: 0.318 | F151: 0 | G151: 1.0308 | H151: 0 | I151: 0 | J151: 2.895 | K151: 1.8642
A152: E9260 | B152: Detector de gases com bomba elétrica para espaço confinado | C152: 4049 | D152: 0.3239 | E152: 0.0749 | F152: 0 | G152: 0.2025 | H152: 0 | I152: 0 | J152: 0.6013 | K152: 0.3988
A153: E9261 | B153: Equipamento de pintura com pistola airless - 0,90 kW | C153: 2439.45 | D153: 0.2196 | E153: 0.0452 | F153: 0 | G153: 0.122 | H153: 0 | I153: 0 | J153: 0.3868 | K153: 0.2648
A154: E9262 | B154: Escova rotativa com cerdas de aço para tratamento de superfície - 0,91 kW | C154: 19452 | D154: 1.5562 | E154: 0.3601 | F154: 0 | G154: 0.9726 | H154: 0 | I154: 27.0971 | J154: 29.986 | K154: 29.0134
A155: E9263 | B155: Tripé com guincho para espaço confinado | C155: 9781.53 | D155: 0.7825 | E155: 0.1811 | F155: 0 | G155: 0.5869 | H155: 0 | I155: 0 | J155: 1.5505 | K155: 0.9636
A156: E9264 | B156: Respirador purificador de ar motorizado | C156: 8510.04 | D156: 0.6808 | E156: 0.1575 | F156: 0 | G156: 0.4255 | H156: 0 | I156: 0 | J156: 1.2638 | K156: 0.8383
A157: E9265 | B157: Respirador de adução de ar tipo linha de ar comprimido para jateamento | C157: 17371.8396 | D157: 1.3897 | E157: 0.3216 | F157: 0 | G157: 0.8686 | H157: 0 | I157: 0 | J157: 2.5799 | K157: 1.7113
A158: E9267 | B158: Exaustor centrífugo alta pressão com capacidade de 35 m³/min - 1,47 kW | C158: 5444.14 | D158: 0.49 | E158: 0.1008 | F158: 0 | G158: 0.3266 | H158: 0 | I158: 0 | J158: 0.9174 | K158: 0.5908
A159: E9501 | B159: Ventilador axial para ventilação forçada com velocidade de saída de 32,8 m/s - D = 1.000 mm - 30 kW | C159: 441441.39 | D159: 39.7297 | E159: 8.1711 | F159: 0 | G159: 26.4865 | H159: 0 | I159: 0 | J159: 74.3873 | K159: 47.9008
A160: E9502 | B160: Bate-estaca de gravidade para 6 t - 119 kW | C160: 938230.532 | D160: 53.6132 | E160: 16.5397 | F160: 0 | G160: 40.2099 | H160: 83.8304 | I160: 34.4038 | J160: 228.597 | K160: 104.5567
A161: E9503 | B161: Guilhotina hidráulica 16 x 6.100 mm - 30 kW | C161: 1298139.544 | D161: 51.9256 | E161: 22.0262 | F161: 0 | G161: 45.4349 | H161: 0 | I161: 27.0971 | J161: 146.4838 | K161: 101.0489
A162: E9505 | B162: Prensa dobradeira capacidade 320 t - comprimento até 3.100 mm - 30 kW | C162: 842156.7624 | D162: 33.6863 | E162: 14.2893 | F162: 0 | G162: 29.4755 | H162: 0 | I162: 27.0971 | J162: 104.5482 | K162: 75.0727
A163: E9507 | B163: Plotadora de recorte com computador e programa computacional | C163: 87575.7031 | D163: 13.1364 | E163: 1.8011 | F163: 0 | G163: 8.7576 | H163: 0 | I163: 0 | J163: 23.6951 | K163: 14.9375
A164: E9510 | B164: Ventilador centrífugo baixa pressão com capacidade de 58 m³/min - 3,68 kW | C164: 13180.9019 | D164: 1.1863 | E164: 0.244 | F164: 0 | G164: 0.7909 | H164: 0 | I164: 0 | J164: 2.2212 | K164: 1.4303
A165: E9511 | B165: Carregadeira de pneus com capacidade de 3,40 m³ - 195 kW | C165: 2048547.834 | D165: 143.3983 | E165: 37.9186 | F165: 0 | G165: 143.3983 | H165: 84.5348 | I165: 34.4038 | J165: 443.6538 | K165: 215.7207
A166: E9512 | B166: Veículo leve - 53 kW | C166: 71552.6012 | D166: 4.2932 | E166: 1.3244 | F166: 0.5366 | G166: 4.2932 | H166: 24.4515 | I166: 29.7488 | J166: 64.6477 | K166: 35.903
A167: E9513 | B167: Compressor de ar portátil de 160,46 l/s (340 PCM) - 81 kW | C167: 322455.0072 | D167: 21.497 | E167: 5.8028 | F167: 0 | G167: 21.497 | H167: 74.6183 | I167: 0 | J167: 123.4151 | K167: 27.2998
A168: E9514 | B168: Distribuidor de agregados sobre pneus autopropelido - 130 kW | C168: 951376.3567 | D168: 54.3644 | E168: 16.7714 | F168: 0 | G168: 47.5688 | H168: 133.8468 | I168: 34.4038 | J168: 286.9552 | K168: 105.5396
A169: E9515 | B169: Escavadeira hidráulica sobre esteiras com caçamba com capacidade de 1,56 m³ - 118 kW | C169: 1085154.064 | D169: 75.9608 | E169: 20.0862 | F169: 0 | G169: 75.9608 | H169: 83.1259 | I169: 34.4038 | J169: 289.5375 | K169: 130.4508
A170: E9516 | B170: Perfuratriz hidráulica sobre esteiras - 283 kW | C170: 5003580.204 | D170: 333.572 | E170: 90.0436 | F170: 0 | G170: 333.572 | H170: 153.3549 | I170: 34.4038 | J170: 944.9463 | K170: 458.0194
A171: E9518 | B171: Grade de 24 discos rebocável de D = 60 cm (24") | C171: 41706.8839 | D171: 2.6812 | E171: 0.7352 | F171: 0 | G171: 1.4895 | H171: 0 | I171: 0 | J171: 4.9059 | K171: 3.4164
A172: E9519 | B172: Betoneira com motor a gasolina com capacidade de 600 l - 10 kW | C172: 37213.306 | D172: 2.9771 | E172: 0.6888 | F172: 0 | G172: 2.2328 | H172: 17.9414 | I172: 27.0971 | J172: 50.9372 | K172: 30.763
A173: E9521 | B173: Grupo gerador - 3,2 kVA | C173: 3571.1866 | D173: 0.1786 | E173: 0.063 | F173: 0 | G173: 0.1275 | H173: 4.2649 | I173: 0 | J173: 4.634 | K173: 0.2416
A174: E9522 | B174: Caldeira de asfalto rebocável com capacidade de 1.500 l - 6,5 kW | C174: 186523.4753 | D174: 11.9908 | E174: 3.2881 | F174: 0 | G174: 3.9969 | H174: 4.9312 | I174: 0 | J174: 24.207 | K174: 15.2789
A175: E9523 | B175: Motoscraper - 304 kW | C175: 5538310.605 | D175: 260.6264 | E175: 95.4788 | F175: 0 | G175: 293.2047 | H175: 263.5753 | I175: 34.4038 | J175: 947.289 | K175: 390.509
A176: E9524 | B176: Motoniveladora - 93 kW | C176: 1364883.65 | D176: 68.2442 | E176: 24.0609 | F176: 0 | G176: 87.7425 | H176: 75.5937 | I176: 34.4038 | J176: 290.0451 | K176: 126.7089
A177: E9525 | B177: Ponte rolante com capacidade de 15 t e vão de até 15 m - 20 kW | C177: 3369751.602 | D177: 134.7901 | E177: 57.1763 | F177: 0 | G177: 84.2438 | H177: 0 | I177: 54.1942 | J177: 330.4044 | K177: 246.1606
A178: E9526 | B178: Retroescavadeira de pneus - capacidade da caçamba da pá-carregadeira de 0,76 m³ e da retroescavadeira de 0,29 m³ - 58 kW | C178: 469523.0983 | D178: 32.8666 | E178: 8.6909 | F178: 0 | G178: 32.8666 | H178: 40.8585 | I178: 34.4038 | J178: 149.6864 | K178: 75.9613
A179: E9527 | B179: Martelete perfurador/rompedor a ar comprimido de 25 kg para rocha com capacidade de 2.040 gpm | C179: 27805.5531 | D179: 2.2244 | E179: 0.5147 | F179: 0 | G179: 2.2244 | H179: 0 | I179: 27.0971 | J179: 32.0606 | K179: 29.8362
A180: E9528 | B180: Empilhadeira a diesel com capacidade de 4 t - 60 kW | C180: 488565.7854 | D180: 39.0853 | E180: 9.0434 | F180: 0 | G180: 34.1996 | H180: 48.7701 | I180: 27.0971 | J180: 158.1955 | K180: 75.2258
A181: E9529 | B181: Jateador para estruturas metálicas com transportador a roletes - 22 kW | C181: 4122118.466 | D181: 274.8079 | E181: 74.181 | F181: 0 | G181: 206.1059 | H181: 0 | I181: 27.0971 | J181: 582.1919 | K181: 376.086
A182: E9530 | B182: Rolo compactador liso vibratório autopropelido por pneus de 11 t - 97 kW | C182: 882253.7818 | D182: 58.8169 | E182: 15.8769 | F182: 0 | G182: 58.8169 | H182: 84.1013 | I182: 34.4038 | J182: 252.0158 | K182: 109.0976
A183: E9532 | B183: Equipamento de solda MIG com acessórios - 14,6 kVA | C183: 80270.8511 | D183: 6.4217 | E183: 1.4858 | F183: 0 | G183: 6.4217 | H183: 0 | I183: 0 | J183: 14.3292 | K183: 7.9075
A184: E9535 | B184: Serra circular com bancada - D = 30 cm - 4 kW | C184: 7224.9909 | D184: 0.6502 | E184: 0.1337 | F184: 0 | G184: 0.3612 | H184: 0 | I184: 27.0971 | J184: 28.2422 | K184: 27.881
A185: E9536 | B185: Embarcação de transporte de pessoal e apoio logístico - 30 kW | C185: 121256.4205 | D185: 1.8946 | E185: 0.7144 | F185: 0 | G185: 2.1051 | H185: 61.5132 | I185: 39.2829 | J185: 105.5102 | K185: 41.8919
A186: E9538 | B186: Conjunto vibratório para meio tubo de concreto com encaixe PB e 3 jogos de fôrmas - D = 0,30 m - 2,20 kW | C186: 16666.1545 | D186: 2.2222 | E186: 0.5142 | F186: 0 | G186: 1.6666 | H186: 0 | I186: 0 | J186: 4.403 | K186: 2.7364
A187: E9539 | B187: Equipamento de batimetria monofeixe | C187: 98829.9647 | D187: 6.3534 | E187: 1.7422 | F187: 0 | G187: 3.5296 | H187: 0 | I187: 38.3925 | J187: 50.0177 | K187: 46.4881
A188: E9540 | B188: Trator sobre esteiras com lâmina - 127 kW | C188: 1729099.743 | D188: 67.2428 | E188: 29.6348 | F188: 0 | G188: 96.0611 | H188: 96.348 | I188: 34.4038 | J188: 323.6905 | K188: 131.2814
A189: E9541 | B189: Trator sobre esteiras com lâmina - 259 kW | C189: 4803509.515 | D189: 186.8031 | E189: 82.3268 | F189: 0 | G189: 266.8616 | H189: 196.4893 | I189: 34.4038 | J189: 766.8846 | K189: 303.5337
A190: E9543 | B190: Compressor de ar respirável com capacidade de até 35 MPa e 3,58 l/s - 5,52 kW | C190: 50676.9205 | D190: 3.3785 | E190: 0.912 | F190: 0 | G190: 3.3785 | H190: 0 | I190: 0 | J190: 7.669 | K190: 4.2905
A191: E9544 | B191: Vassoura mecânica rebocável com largura de 2,44 m | C191: 74961.758 | D191: 6.7466 | E191: 1.3875 | F191: 0 | G191: 4.4977 | H191: 0 | I191: 0 | J191: 12.6318 | K191: 8.1341
A192: E9545 | B192: Vibroacabadora de asfalto sobre esteiras - 82 kW | C192: 3673228.024 | D192: 183.6614 | E192: 64.7538 | F192: 0 | G192: 236.1361 | H192: 84.4265 | I192: 43.11 | J192: 612.0878 | K192: 291.5252
A193: E9547 | B193: Máquina de solda elétrica transformadora 250 A - 9,20 kW | C193: 1381.196 | D193: 0.1105 | E193: 0.0256 | F193: 0 | G193: 0.1105 | H193: 0 | I193: 0 | J193: 0.2466 | K193: 0.1361
A194: E9548 | B194: Bomba centrífuga com capacidade de 7,1 a 22 m³/h - 1,50 kW | C194: 2495.6483 | D194: 0.1997 | E194: 0.0462 | F194: 0 | G194: 0.1747 | H194: 0 | I194: 0 | J194: 0.4206 | K194: 0.2459
A195: E9551 | B195: Obturador mecânico simples com extensão de 12 m | C195: 4897.9636 | D195: 0.4408 | E195: 0.0907 | F195: 0 | G195: 0.2449 | H195: 0 | I195: 0 | J195: 0.7764 | K195: 0.5315
A196: E9552 | B196: Nível ótico com capacidade de aumento de 32x | C196: 15448.9781 | D196: 1.2359 | E196: 0.286 | F196: 0 | G196: 0.7724 | H196: 0 | I196: 0 | J196: 2.2943 | K196: 1.5219
A197: E9553 | B197: Estação total eletrônica com alcance máximo de 3.000 m | C197: 32007.6807 | D197: 2.8807 | E197: 0.5925 | F197: 0 | G197: 1.6004 | H197: 0 | I197: 0 | J197: 5.0736 | K197: 3.4732
A198: E9556 | B198: Compactador manual de placa vibratória - 3,00 kW | C198: 10833.2547 | D198: 0.7222 | E198: 0.195 | F198: 0 | G198: 0.7222 | H198: 5.3824 | I198: 0 | J198: 7.0218 | K198: 0.9172
A199: E9558 | B199: Tanque de estocagem de asfalto com capacidade de 30.000 l | C199: 690907.3348 | D199: 28.7878 | E199: 9.9912 | F199: 0 | G199: 17.9924 | H199: 0 | I199: 0 | J199: 56.7714 | K199: 38.779
A200: E9559 | B200: Aquecedor de fluido térmico - 12 kW | C200: 688280.9214 | D200: 30.9726 | E200: 9.5551 | F200: 0 | G200: 20.6484 | H200: 9.754 | I200: 0 | J200: 70.9301 | K200: 40.5277
... 341 more rows

Sheet SINTÉTICO SICRO
A1: CGCIT | B1: SISTEMA DE CUSTOS REFERENCIAIS DE OBRAS - SICRO | D1: DNIT
B2: Rio Grande do Norte - Abril/2024
A3: Código | B3: Descrição do Serviço | C3: Unidade | D3: Custo Unitário (R$)
A4: 307731 | B4: Aparelho de apoio de neoprene fretado para estruturas moldadas no local - fornecimento e instalação | C4: dm³ | D4: 126.25
A5: 307732 | B5: Aparelho de apoio de neoprene fretado para estruturas pré-moldadas - fornecimento e instalação | C5: dm³ | D5: 102.69
A6: 308308 | B6: Aparelho de apoio metálico elastomérico fixo com capacidade de 1.500 kN - fornecimento e instalação | C6: un | D6: 7330.56
A7: 308313 | B7: Aparelho de apoio metálico elastomérico fixo com capacidade de 10.000 kN - fornecimento e instalação | C7: un | D7: 46817.13
A8: 308309 | B8: Aparelho de apoio metálico elastomérico fixo com capacidade de 2.500 kN - fornecimento e instalação | C8: un | D8: 11910.36
A9: 308310 | B9: Aparelho de apoio metálico elastomérico fixo com capacidade de 4.000 kN - fornecimento e instalação | C9: un | D9: 17920.93
A10: 308311 | B10: Aparelho de apoio metálico elastomérico fixo com capacidade de 5.500 kN - fornecimento e instalação | C10: un | D10: 24621.22
A11: 308312 | B11: Aparelho de apoio metálico elastomérico fixo com capacidade de 7.500 kN - fornecimento e instalação | C11: un | D11: 34063.91
A12: 308307 | B12: Aparelho de apoio metálico elastomérico fixo com capacidade de 700 kN - fornecimento e instalação | C12: un | D12: 4873.4
A13: 308322 | B13: Aparelho de apoio metálico elastomérico multidirecional com capacidade de 1.500 kN - fornecimento e instalação | C13: un | D13: 5800.93
A14: 308327 | B14: Aparelho de apoio metálico elastomérico multidirecional com capacidade de 10.000 kN - fornecimento e instalação | C14: un | D14: 36048.85
A15: 308323 | B15: Aparelho de apoio metálico elastomérico multidirecional com capacidade de 2.500 kN - fornecimento e instalação | C15: un | D15: 8493.19
A16: 308324 | B16: Aparelho de apoio metálico elastomérico multidirecional com capacidade de 4.000 kN - fornecimento e instalação | C16: un | D16: 13320
A17: 308325 | B17: Aparelho de apoio metálico elastomérico multidirecional com capacidade de 5.500 kN - fornecimento e instalação | C17: un | D17: 18859.83
A18: 308326 | B18: Aparelho de apoio metálico elastomérico multidirecional com capacidade de 7.500 kN - fornecimento e instalação | C18: un | D18: 26621.55
A19: 308321 | B19: Aparelho de apoio metálico elastomérico multidirecional com capacidade de 700 kN - fornecimento e instalação | C19: un | D19: 3981.48
A20: 308315 | B20: Aparelho de apoio metálico elastomérico unidirecional com capacidade de 1.500 kN - fornecimento e instalação | C20: un | D20: 7147.64
A21: 308320 | B21: Aparelho de apoio metálico elastomérico unidirecional com capacidade de 10.000 kN - fornecimento e instalação | C21: un | D21: 45694.01
A22: 308316 | B22: Aparelho de apoio metálico elastomérico unidirecional com capacidade de 2.500 kN - fornecimento e instalação | C22: un | D22: 10206.52
A23: 308317 | B23: Aparelho de apoio metálico elastomérico unidirecional com capacidade de 4.000 kN - fornecimento e instalação | C23: un | D23: 17706.06
A24: 308318 | B24: Aparelho de apoio metálico elastomérico unidirecional com capacidade de 5.500 kN - fornecimento e instalação | C24: un | D24: 24042.63
A25: 308319 | B25: Aparelho de apoio metálico elastomérico unidirecional com capacidade de 7.500 kN - fornecimento e instalação | C25: un | D25: 30143.36
A26: 308314 | B26: Aparelho de apoio metálico elastomérico unidirecional com capacidade de 700 kN - fornecimento e instalação | C26: un | D26: 4802.51
A27: 308250 | B27: Aparelho de apoio metálico esférico fixo com capacidade de 1.000 kN - fornecimento e instalação | C27: un | D27: 6117.01
A28: 308251 | B28: Aparelho de apoio metálico esférico fixo com capacidade de 1.500 kN - fornecimento e instalação | C28: un | D28: 9383.87
A29: 308268 | B29: Aparelho de apoio metálico esférico fixo com capacidade de 10.000 kN - fornecimento e instalação | C29: un | D29: 79245.77
A30: 308252 | B30: Aparelho de apoio metálico esférico fixo com capacidade de 2.000 kN - fornecimento e instalação | C30: un | D30: 11535.62
A31: 308253 | B31: Aparelho de apoio metálico esférico fixo com capacidade de 2.500 kN - fornecimento e instalação | C31: un | D31: 14245.96
A32: 308254 | B32: Aparelho de apoio metálico esférico fixo com capacidade de 3.000 kN - fornecimento e instalação | C32: un | D32: 16034.07
A33: 308255 | B33: Aparelho de apoio metálico esférico fixo com capacidade de 3.500 kN - fornecimento e instalação | C33: un | D33: 19665.66
A34: 308256 | B34: Aparelho de apoio metálico esférico fixo com capacidade de 4.000 kN - fornecimento e instalação | C34: un | D34: 25115.94
A35: 308257 | B35: Aparelho de apoio metálico esférico fixo com capacidade de 4.500 kN - fornecimento e instalação | C35: un | D35: 32531.92
A36: 308258 | B36: Aparelho de apoio metálico esférico fixo com capacidade de 5.000 kN - fornecimento e instalação | C36: un | D36: 36254.29
A37: 308259 | B37: Aparelho de apoio metálico esférico fixo com capacidade de 5.500 kN - fornecimento e instalação | C37: un | D37: 41081.53
A38: 308260 | B38: Aparelho de apoio metálico esférico fixo com capacidade de 6.000 kN - fornecimento e instalação | C38: un | D38: 45324.4
A39: 308261 | B39: Aparelho de apoio metálico esférico fixo com capacidade de 6.500 kN - fornecimento e instalação | C39: un | D39: 50109.74
A40: 308262 | B40: Aparelho de apoio metálico esférico fixo com capacidade de 7.000 kN - fornecimento e instalação | C40: un | D40: 55097.34
A41: 308263 | B41: Aparelho de apoio metálico esférico fixo com capacidade de 7.500 kN - fornecimento e instalação | C41: un | D41: 56047.98
A42: 308264 | B42: Aparelho de apoio metálico esférico fixo com capacidade de 8.000 kN - fornecimento e instalação | C42: un | D42: 62014.6
A43: 308265 | B43: Aparelho de apoio metálico esférico fixo com capacidade de 8.500 kN - fornecimento e instalação | C43: un | D43: 63598.65
A44: 308266 | B44: Aparelho de apoio metálico esférico fixo com capacidade de 9.000 kN - fornecimento e instalação | C44: un | D44: 70940.02
A45: 308267 | B45: Aparelho de apoio metálico esférico fixo com capacidade de 9.500 kN - fornecimento e instalação | C45: un | D45: 75048.26
A46: 308288 | B46: Aparelho de apoio metálico esférico multidirecional com capacidade de 1.000 kN - fornecimento e instalação | C46: un | D46: 8801.79
A47: 308289 | B47: Aparelho de apoio metálico esférico multidirecional com capacidade de 1.500 kN - fornecimento e instalação | C47: un | D47: 12520.76
A48: 308306 | B48: Aparelho de apoio metálico esférico multidirecional com capacidade de 10.000 kN - fornecimento e instalação | C48: un | D48: 84071.32
A49: 308290 | B49: Aparelho de apoio metálico esférico multidirecional com capacidade de 2.000 kN - fornecimento e instalação | C49: un | D49: 16242.41
A50: 308291 | B50: Aparelho de apoio metálico esférico multidirecional com capacidade de 2.500 kN - fornecimento e instalação | C50: un | D50: 19729.66
A51: 308292 | B51: Aparelho de apoio metálico esférico multidirecional com capacidade de 3.000 kN - fornecimento e instalação | C51: un | D51: 22213.4
A52: 308293 | B52: Aparelho de apoio metálico esférico multidirecional com capacidade de 3.500 kN - fornecimento e instalação | C52: un | D52: 25559.99
A53: 308294 | B53: Aparelho de apoio metálico esférico multidirecional com capacidade de 4.000 kN - fornecimento e instalação | C53: un | D53: 27851.98
A54: 308295 | B54: Aparelho de apoio metálico esférico multidirecional com capacidade de 4.500 kN - fornecimento e instalação | C54: un | D54: 34214.65
A55: 308296 | B55: Aparelho de apoio metálico esférico multidirecional com capacidade de 5.000 kN - fornecimento e instalação | C55: un | D55: 37418.33
A56: 308297 | B56: Aparelho de apoio metálico esférico multidirecional com capacidade de 5.500 kN - fornecimento e instalação | C56: un | D56: 41272.13
A57: 308298 | B57: Aparelho de apoio metálico esférico multidirecional com capacidade de 6.000 kN - fornecimento e instalação | C57: un | D57: 46891.42
A58: 308299 | B58: Aparelho de apoio metálico esférico multidirecional com capacidade de 6.500 kN - fornecimento e instalação | C58: un | D58: 50650.14
A59: 308300 | B59: Aparelho de apoio metálico esférico multidirecional com capacidade de 7.000 kN - fornecimento e instalação | C59: un | D59: 54511.11
A60: 308301 | B60: Aparelho de apoio metálico esférico multidirecional com capacidade de 7.500 kN - fornecimento e instalação | C60: un | D60: 58804.2
A61: 308302 | B61: Aparelho de apoio metálico esférico multidirecional com capacidade de 8.000 kN - fornecimento e instalação | C61: un | D61: 65241.55
A62: 308303 | B62: Aparelho de apoio metálico esférico multidirecional com capacidade de 8.500 kN - fornecimento e instalação | C62: un | D62: 71499.88
A63: 308304 | B63: Aparelho de apoio metálico esférico multidirecional com capacidade de 9.000 kN - fornecimento e instalação | C63: un | D63: 75414.47
A64: 308305 | B64: Aparelho de apoio metálico esférico multidirecional com capacidade de 9.500 kN - fornecimento e instalação | C64: un | D64: 80064.04
A65: 308269 | B65: Aparelho de apoio metálico esférico unidirecional com capacidade de 1.000 kN - fornecimento e instalação | C65: un | D65: 9364.93
A66: 308270 | B66: Aparelho de apoio metálico esférico unidirecional com capacidade de 1.500 kN - fornecimento e instalação | C66: un | D66: 12884.37
A67: 308287 | B67: Aparelho de apoio metálico esférico unidirecional com capacidade de 10.000 kN - fornecimento e instalação | C67: un | D67: 85212.7
A68: 308271 | B68: Aparelho de apoio metálico esférico unidirecional com capacidade de 2.000 kN - fornecimento e instalação | C68: un | D68: 16083.02
A69: 308272 | B69: Aparelho de apoio metálico esférico unidirecional com capacidade de 2.500 kN - fornecimento e instalação | C69: un | D69: 18674.99
A70: 308273 | B70: Aparelho de apoio metálico esférico unidirecional com capacidade de 3.000 kN - fornecimento e instalação | C70: un | D70: 22319.35
A71: 308274 | B71: Aparelho de apoio metálico esférico unidirecional com capacidade de 3.500 kN - fornecimento e instalação | C71: un | D71: 25792.77
A72: 308275 | B72: Aparelho de apoio metálico esférico unidirecional com capacidade de 4.000 kN - fornecimento e instalação | C72: un | D72: 30420.08
A73: 308276 | B73: Aparelho de apoio metálico esférico unidirecional com capacidade de 4.500 kN - fornecimento e instalação | C73: un | D73: 40477.36
A74: 308277 | B74: Aparelho de apoio metálico esférico unidirecional com capacidade de 5.000 kN - fornecimento e instalação | C74: un | D74: 44789.59
A75: 308278 | B75: Aparelho de apoio metálico esférico unidirecional com capacidade de 5.500 kN - fornecimento e instalação | C75: un | D75: 48568.97
A76: 308279 | B76: Aparelho de apoio metálico esférico unidirecional com capacidade de 6.000 kN - fornecimento e instalação | C76: un | D76: 50499.89
A77: 308280 | B77: Aparelho de apoio metálico esférico unidirecional com capacidade de 6.500 kN - fornecimento e instalação | C77: un | D77: 54601.81
A78: 308281 | B78: Aparelho de apoio metálico esférico unidirecional com capacidade de 7.000 kN - fornecimento e instalação | C78: un | D78: 58657.72
A79: 308282 | B79: Aparelho de apoio metálico esférico unidirecional com capacidade de 7.500 kN - fornecimento e instalação | C79: un | D79: 62979.55
A80: 308283 | B80: Aparelho de apoio metálico esférico unidirecional com capacidade de 8.000 kN - fornecimento e instalação | C80: un | D80: 66952.93
A81: 308284 | B81: Aparelho de apoio metálico esférico unidirecional com capacidade de 8.500 kN - fornecimento e instalação | C81: un | D81: 72230.6
A82: 308285 | B82: Aparelho de apoio metálico esférico unidirecional com capacidade de 9.000 kN - fornecimento e instalação | C82: un | D82: 76558.42
A83: 308286 | B83: Aparelho de apoio metálico esférico unidirecional com capacidade de 9.500 kN - fornecimento e instalação | C83: un | D83: 80993.2
A84: 307733 | B84: Junta de dilatação em elastômero e perfil VV - L = 20 mm e H = 40 mm - fornecimento e instalação | C84: m | D84: 261.54
A85: 307734 | B85: Junta de dilatação em elastômero e perfil VV - L = 25 mm e H = 50 mm - fornecimento e instalação | C85: m | D85: 315.04
A86: 307735 | B86: Junta de dilatação em elastômero e perfil VV - L = 35 mm e H = 60 mm - fornecimento e instalação | C86: m | D86: 413.35
A87: 307736 | B87: Junta de dilatação em elastômero e perfil VV - L = 40 mm e H = 70 mm - fornecimento e instalação | C87: m | D87: 551.8
A88: 307737 | B88: Junta de dilatação em elastômero e perfil VV - L = 50 mm e H = 80 mm - fornecimento e instalação | C88: m | D88: 582.78
A89: 307730 | B89: Junta de dilatação em perfil extrudado de borracha vulcanizada | C89: m | D89: 0
A90: 307084 | B90: Lábios poliméricos em junta de pavimento de concreto - L = 20 mm e H = 30 mm - confecção e assentamento | C90: m | D90: 32.52
A91: 407818 | B91: Armação em aço CA-25 - fornecimento, preparo e colocação | C91: kg | D91: 11.86
A92: 407819 | B92: Armação em aço CA-50 - fornecimento, preparo e colocação | C92: kg | D92: 12.11
A93: 407820 | B93: Armação em aço CA-60 - fornecimento, preparo e colocação | C93: kg | D93: 13.46
A94: 407740 | B94: Chumbador tipo espera em aço CA-25 para fixação de estrutura metálica em concreto - fornecimento e instalação | C94: kg | D94: 16.26
A95: 408037 | B95: Luva de emenda com rosca cônica para aço CA-50 - D = 12,5 mm - fornecimento e instalação | C95: un | D95: 21.86
A96: 408038 | B96: Luva de emenda com rosca cônica para aço CA-50 - D = 16 mm - fornecimento e instalação | C96: un | D96: 35.49
A97: 408039 | B97: Luva de emenda com rosca cônica para aço CA-50 - D = 20 mm - fornecimento e instalação | C97: un | D97: 46.45
A98: 408041 | B98: Luva de emenda com rosca cônica para aço CA-50 - D = 25 mm - fornecimento e instalação | C98: un | D98: 62.86
A99: 408042 | B99: Luva de emenda com rosca cônica para aço CA-50 - D = 32 mm - fornecimento e instalação | C99: un | D99: 88.03
A100: 408031 | B100: Luva de emenda prensada para aço CA-50 - D = 12,5 mm - fornecimento e instalação | C100: un | D100: 23.1
A101: 408032 | B101: Luva de emenda prensada para aço CA-50 - D = 16 mm - fornecimento e instalação | C101: un | D101: 31.37
A102: 408033 | B102: Luva de emenda prensada para aço CA-50 - D = 20 mm - fornecimento e instalação | C102: un | D102: 42.69
A103: 408035 | B103: Luva de emenda prensada para aço CA-50 - D = 25 mm - fornecimento e instalação | C103: un | D103: 78.92
A104: 408036 | B104: Luva de emenda prensada para aço CA-50 - D = 32 mm - fornecimento e instalação | C104: un | D104: 158.8
A105: 408067 | B105: Tela de aço eletrossoldada - fornecimento, preparo e colocação | C105: kg | D105: 11.39
A106: 407743 | B106: Treliça nervurada três barras longitudinais interligadas por duas diagonais sinusoidal - fornecimento e instalação | C106: kg | D106: 11.97
A107: 607137 | B107: Arco metálico galvanizado tipo MP 152S - arco alto - vão = 10,08 m e altura = 6,12 m - aterro rodoviário mínimo = 0,90 m e máximo = 5,00 m - areia e brita comerciais | C107: m | D107: 60595.99
A108: 606785 | B108: Arco metálico galvanizado tipo MP 152S - arco alto - vão = 10,08 m e altura = 6,12 m - aterro rodoviário mínimo = 0,90 m e máximo = 5,00 m - areia extraída e brita produzida | C108: m | D108: 59959.95
A109: 607139 | B109: Arco metálico galvanizado tipo MP 152S - arco alto - vão = 10,31 m e altura = 6,17 m - aterro rodoviário mínimo = 0,90 m e máximo = 4,90 m - areia e brita comerciais | C109: m | D109: 61409.33
A110: 606787 | B110: Arco metálico galvanizado tipo MP 152S - arco alto - vão = 10,31 m e altura = 6,17 m - aterro rodoviário mínimo = 0,90 m e máximo = 4,90 m - areia extraída e brita produzida | C110: m | D110: 60453
A111: 607140 | B111: Arco metálico galvanizado tipo MP 152S - arco alto - vão = 10,36 m e altura = 5,38 m - aterro rodoviário mínimo = 1,20 m e máximo = 3,60 m - areia e brita comerciais | C111: m | D111: 56096.49
A112: 606788 | B112: Arco metálico galvanizado tipo MP 152S - arco alto - vão = 10,36 m e altura = 5,38 m - aterro rodoviário mínimo = 1,20 m e máximo = 3,60 m - areia extraída e brita produzida | C112: m | D112: 55843.14
A113: 607141 | B113: Arco metálico galvanizado tipo MP 152S - arco alto - vão = 10,54 m e altura = 6,05 m - aterro rodoviário mínimo = 1,20 m e máximo = 4,20 m - areia e brita comerciais | C113: m | D113: 62490.81
A114: 606789 | B114: Arco metálico galvanizado tipo MP 152S - arco alto - vão = 10,54 m e altura = 6,05 m - aterro rodoviário mínimo = 1,20 m e máximo = 4,20 m - areia extraída e brita produzida | C114: m | D114: 61829.8
A115: 607144 | B115: Arco metálico galvanizado tipo MP 152S - arco alto - vão = 10,57 m e altura = 5,41 m - aterro rodoviário mínimo = 1,20 m e máximo = 4,10 m - areia e brita comerciais | C115: m | D115: 73289.34
A116: 606792 | B116: Arco metálico galvanizado tipo MP 152S - arco alto - vão = 10,57 m e altura = 5,41 m - aterro rodoviário mínimo = 1,20 m e máximo = 4,10 m - areia extraída e brita produzida | C116: m | D116: 72685.58
A117: 607142 | B117: Arco metálico galvanizado tipo MP 152S - arco alto - vão = 10,74 m e altura = 6,48 m - aterro rodoviário mínimo = 1,20 m e máximo = 4,70 m - areia e brita comerciais | C117: m | D117: 65540.02
A118: 606790 | B118: Arco metálico galvanizado tipo MP 152S - arco alto - vão = 10,74 m e altura = 6,48 m - aterro rodoviário mínimo = 1,20 m e máximo = 4,70 m - areia extraída e brita produzida | C118: m | D118: 64829.03
A119: 607145 | B119: Arco metálico galvanizado tipo MP 152S - arco alto - vão = 10,77 m e altura = 6,10 m - aterro rodoviário mínimo = 1,20 m e máximo = 4,70 m - areia e brita comerciais | C119: m | D119: 80893.51
A120: 606793 | B120: Arco metálico galvanizado tipo MP 152S - arco alto - vão = 10,77 m e altura = 6,10 m - aterro rodoviário mínimo = 1,20 m e máximo = 4,70 m - areia extraída e brita produzida | C120: m | D120: 80218.26
A121: 607146 | B121: Arco metálico galvanizado tipo MP 152S - arco alto - vão = 10,97 m e altura = 6,53 m - aterro rodoviário mínimo = 1,20 m e máximo = 4,70 m - areia e brita comerciais | C121: m | D121: 84384.95
A122: 606794 | B122: Arco metálico galvanizado tipo MP 152S - arco alto - vão = 10,97 m e altura = 6,53 m - aterro rodoviário mínimo = 1,20 m e máximo = 4,70 m - areia extraída e brita produzida | C122: m | D122: 83652.06
A123: 607143 | B123: Arco metálico galvanizado tipo MP 152S - arco alto - vão = 11,35 m e altura = 7,12 m - aterro rodoviário mínimo = 1,20 m e máximo = 4,70 m - areia e brita comerciais | C123: m | D123: 70781.2
A124: 606791 | B124: Arco metálico galvanizado tipo MP 152S - arco alto - vão = 11,35 m e altura = 7,12 m - aterro rodoviário mínimo = 1,20 m e máximo = 4,70 m - areia extraída e brita produzida | C124: m | D124: 69962.66
A125: 607147 | B125: Arco metálico galvanizado tipo MP 152S - arco alto - vão = 11,58 m e altura = 7,16 m - aterro rodoviário mínimo = 1,20 m e máximo = 6,40 m - areia e brita comerciais | C125: m | D125: 91023.71
A126: 606795 | B126: Arco metálico galvanizado tipo MP 152S - arco alto - vão = 11,58 m e altura = 7,16 m - aterro rodoviário mínimo = 1,20 m e máximo = 6,40 m - areia extraída e brita produzida | C126: m | D126: 90179.2
A127: 607112 | B127: Arco metálico galvanizado tipo MP 152S - arco alto - vão = 6,12 m e altura = 2,77 m - aterro rodoviário mínimo = 0,75 m e máximo = 5,40 m - areia e brita comerciais | C127: m | D127: 29625.75
A128: 606760 | B128: Arco metálico galvanizado tipo MP 152S - arco alto - vão = 6,12 m e altura = 2,77 m - aterro rodoviário mínimo = 0,75 m e máximo = 5,40 m - areia extraída e brita produzida | C128: m | D128: 29404.38
A129: 607113 | B129: Arco metálico galvanizado tipo MP 152S - arco alto - vão = 6,30 m e altura = 3,68 m - aterro rodoviário mínimo = 0,75 m e máximo = 7,50 m - areia e brita comerciais | C129: m | D129: 34807.14
A130: 606761 | B130: Arco metálico galvanizado tipo MP 152S - arco alto - vão = 6,30 m e altura = 3,68 m - aterro rodoviário mínimo = 0,75 m e máximo = 7,50 m - areia extraída e brita produzida | C130: m | D130: 34552.68
A131: 606762 | B131: Arco metálico galvanizado tipo MP 152S - arco alto - vão = 6,55 m e altura = 3,56 m - aterro rodoviário mínimo = 0,75 m e máximo = 4,9 m - areia extraída e brita produzida | C131: m | D131: 34334.05
A132: 607114 | B132: Arco metálico galvanizado tipo MP 152S - arco alto - vão = 6,55 m e altura = 3,56 m - aterro rodoviário mínimo = 0,75 m e máximo = 4,90 m - areia e brita comerciais | C132: m | D132: 34593.33
A133: 607116 | B133: Arco metálico galvanizado tipo MP 152S - arco alto - vão = 6,78 m e altura = 3,61 m - aterro rodoviário mínimo = 0,75 m e máximo = 4,80 m - areia e brita comerciais | C133: m | D133: 36506.71
A134: 606764 | B134: Arco metálico galvanizado tipo MP 152S - arco alto - vão = 6,78 m e altura = 3,61 m - aterro rodoviário mínimo = 0,75 m e máximo = 4,80 m - areia extraída e brita produzida | C134: m | D134: 36236.52
A135: 607115 | B135: Arco metálico galvanizado tipo MP 152S - arco alto - vão = 6,96 m e altura = 4,42 m - aterro rodoviário mínimo = 0,75 m e máximo = 8,10 m - areia e brita comerciais | C135: m | D135: 41446
A136: 606763 | B136: Arco metálico galvanizado tipo MP 152S - arco alto - vão = 6,96 m e altura = 4,42 m - aterro rodoviário mínimo = 0,75 m e máximo = 8,10 m - areia extraída e brita produzida | C136: m | D136: 41120.94
A137: 607117 | B137: Arco metálico galvanizado tipo MP 152S - arco alto - vão = 6,99 m e altura = 4,27 m - aterro rodoviário mínimo = 0,75 m e máximo = 5,70 m - areia e brita comerciais | C137: m | D137: 41435.95
A138: 606765 | B138: Arco metálico galvanizado tipo MP 152S - arco alto - vão = 6,99 m e altura = 4,27 m - aterro rodoviário mínimo = 0,75 m e máximo = 5,70 m - areia extraída e brita produzida | C138: m | D138: 41119.82
A139: 607118 | B139: Arco metálico galvanizado tipo MP 152S - arco alto - vão = 7,01 m e altura = 3,63 m - aterro rodoviário mínimo = 0,75 m e máximo = 4,60 m - areia e brita comerciais | C139: m | D139: 37147.26
A140: 606766 | B140: Arco metálico galvanizado tipo MP 152S - arco alto - vão = 7,01 m e altura = 3,63 m - aterro rodoviário mínimo = 0,75 m e máximo = 4,60 m - areia extraída e brita produzida | C140: m | D140: 36868.32
A141: 607120 | B141: Arco metálico galvanizado tipo MP 152S - arco alto - vão = 7,24 m e altura = 3,68 m - aterro rodoviário mínimo = 0,90 m e máximo = 4,4 m - areia e brita comerciais | C141: m | D141: 37825.95
A142: 606768 | B142: Arco metálico galvanizado tipo MP 152S - arco alto - vão = 7,24 m e altura = 3,68 m - aterro rodoviário mínimo = 0,90 m e máximo = 4,40 m - areia extraída e brita produzida | C142: m | D142: 37532.22
A143: 607119 | B143: Arco metálico galvanizado tipo MP 152S - arco alto - vão = 7,42 m e altura = 4,52 m - aterro rodoviário mínimo = 0,90 m e máximo = 6,40 m - areia e brita comerciais | C143: m | D143: 43466.86
A144: 606767 | B144: Arco metálico galvanizado tipo MP 152S - arco alto - vão = 7,42 m e altura = 4,52 m - aterro rodoviário mínimo = 0,90 m e máximo = 6,40 m - areia extraída e brita produzida | C144: m | D144: 43108.65
A145: 607121 | B145: Arco metálico galvanizado tipo MP 152S - arco alto - vão = 7,47 m e altura = 4,19 m - aterro rodoviário mínimo = 0,90 m e máximo = 4,30 m - areia e brita comerciais | C145: m | D145: 40955.43
A146: 606769 | B146: Arco metálico galvanizado tipo MP 152S - arco alto - vão = 7,47 m e altura = 4,19 m - aterro rodoviário mínimo = 0,90 m e máximo = 4,30 m - areia extraída e brita produzida | C146: m | D146: 40620.54
A147: 607123 | B147: Arco metálico galvanizado tipo MP 152S - arco alto - vão = 7,67 m e altura = 3,99 m - aterro rodoviário mínimo = 0,90 m e máximo = 4,10 m - areia e brita comerciais | C147: m | D147: 40408.45
A148: 606771 | B148: Arco metálico galvanizado tipo MP 152S - arco alto - vão = 7,67 m e altura = 3,99 m - aterro rodoviário mínimo = 0,90 m e máximo = 4,10 m - areia extraída e brita produzida | C148: m | D148: 40074.81
A149: 607122 | B149: Arco metálico galvanizado tipo MP 152S - arco alto - vão = 7,85 m e altura = 4,60 m - aterro rodoviário mínimo = 0,90 m e máximo = 6,00 m - areia e brita comerciais | C149: m | D149: 44822.7
A150: 606770 | B150: Arco metálico galvanizado tipo MP 152S - arco alto - vão = 7,85 m e altura = 4,60 m - aterro rodoviário mínimo = 0,90 m e máximo = 6,00 m - areia extraída e brita produzida | C150: m | D150: 44437.92
A151: 607125 | B151: Arco metálico galvanizado tipo MP 152S - arco alto - vão = 7,90 m e altura = 4,04 m - aterro rodoviário mínimo = 0,90 m e máximo = 4,00 m - areia e brita comerciais | C151: m | D151: 41766.18
A152: 606773 | B152: Arco metálico galvanizado tipo MP 152S - arco alto - vão = 7,90 m e altura = 4,04 m - aterro rodoviário mínimo = 0,90 m e máximo = 4,00 m - areia extraída e brita produzida | C152: m | D152: 41415.14
A153: 607124 | B153: Arco metálico galvanizado tipo MP 152S - arco alto - vão = 8,08 m e altura = 4,65 m - aterro rodoviário mínimo = 0,90 m e máximo = 5,80 m - areia e brita comerciais | C153: m | D153: 45494.71
A154: 606772 | B154: Arco metálico galvanizado tipo MP 152S - arco alto - vão = 8,08 m e altura = 4,65 m - aterro rodoviário mínimo = 0,90 m e máximo = 5,80 m - areia extraída e brita produzida | C154: m | D154: 45097.61
A155: 607126 | B155: Arco metálico galvanizado tipo MP 152S - arco alto - vão = 8,31 m e altura = 4,70 m - aterro rodoviário mínimo = 0,90 m e máximo = 5,60 m - areia e brita comerciais | C155: m | D155: 46753.01
A156: 606774 | B156: Arco metálico galvanizado tipo MP 152S - arco alto - vão = 8,31 m e altura = 4,70 m - aterro rodoviário mínimo = 0,90 m e máximo = 5,60 m - areia extraída e brita produzida | C156: m | D156: 46336.78
A157: 607127 | B157: Arco metálico galvanizado tipo MP 152S - arco alto - vão = 8,36 m e altura = 4,11 m - aterro rodoviário mínimo = 0,90 m e máximo = 3,70 m - areia e brita comerciais | C157: m | D157: 43054.65
A158: 606775 | B158: Arco metálico galvanizado tipo MP 152S - arco alto - vão = 8,36 m e altura = 4,11 m - aterro rodoviário mínimo = 0,90 m e máximo = 3,70 m - areia extraída e brita produzida | C158: m | D158: 42682.52
A159: 607129 | B159: Arco metálico galvanizado tipo MP 152S - arco alto - vão = 8,59 m e altura = 4,39 m - aterro rodoviário mínimo = 0,90 m e máximo = 3,60 m - areia e brita comerciais | C159: m | D159: 45051.26
A160: 606777 | B160: Arco metálico galvanizado tipo MP 152S - arco alto - vão = 8,59 m e altura = 4,39 m - aterro rodoviário mínimo = 0,90 m e máximo = 3,60 m - areia extraída e brita produzida | C160: m | D160: 44643.71
A161: 607128 | B161: Arco metálico galvanizado tipo MP 152S - arco alto - vão = 8,97 m e altura = 5,00 m - aterro rodoviário mínimo = 0,90 m e máximo = 5,80 m - areia e brita comerciais | C161: m | D161: 49537
A162: 606776 | B162: Arco metálico galvanizado tipo MP 152S - arco alto - vão = 8,97 m e altura = 5,00 m - aterro rodoviário mínimo = 0,90 m e máximo = 5,80 m - areia extraída e brita produzida | C162: m | D162: 49060.8
A163: 607130 | B163: Arco metálico galvanizado tipo MP 152S - arco alto - vão = 9,17 m e altura = 5,49 m - aterro rodoviário mínimo = 0,90 m e máximo = 5,60 m - areia e brita comerciais | C163: m | D163: 52789.85
A164: 606778 | B164: Arco metálico galvanizado tipo MP 152S - arco alto - vão = 9,17 m e altura = 5,49 m - aterro rodoviário mínimo = 0,90 m e máximo = 5,60 m - areia extraída e brita produzida | C164: m | D164: 52266.43
A165: 607131 | B165: Arco metálico galvanizado tipo MP 152S - arco alto - vão = 9,22 m e altura = 4,70 m - aterro rodoviário mínimo = 0,90 m e máximo = 4,10 m - areia e brita comerciais | C165: m | D165: 49545.02
A166: 606779 | B166: Arco metálico galvanizado tipo MP 152S - arco alto - vão = 9,22 m e altura = 4,70 m - aterro rodoviário mínimo = 0,90 m e máximo = 4,10 m - areia extraída e brita produzida | C166: m | D166: 49081.97
A167: 607133 | B167: Arco metálico galvanizado tipo MP 152S - arco alto - vão = 9,45 m e altura = 4,75 m - aterro rodoviário mínimo = 0,90 m e máximo = 4,00 m - areia e brita comerciais | C167: m | D167: 50290.21
A168: 606781 | B168: Arco metálico galvanizado tipo MP 152S - arco alto - vão = 9,45 m e altura = 4,75 m - aterro rodoviário mínimo = 0,90 m e máximo = 4,00 m - areia extraída e brita produzida | C168: m | D168: 49813.23
A169: 607132 | B169: Arco metálico galvanizado tipo MP 152S - arco alto - vão = 9,63 m e altura = 5,59 m - aterro rodoviário mínimo = 0,90 m e máximo = 5,30 m - areia e brita comerciais | C169: m | D169: 54825.17
A170: 606780 | B170: Arco metálico galvanizado tipo MP 152S - arco alto - vão = 9,63 m e altura = 5,59 m - aterro rodoviário mínimo = 0,90 m e máximo = 5,30 m - areia extraída e brita produzida | C170: m | D170: 54265.07
A171: 607134 | B171: Arco metálico galvanizado tipo MP 152S - arco alto - vão = 9,65 m e altura = 5,41 m - aterro rodoviário mínimo = 0,90 m e máximo = 4,70 m - areia e brita comerciais | C171: m | D171: 54286.52
A172: 606782 | B172: Arco metálico galvanizado tipo MP 152S - arco alto - vão = 9,65 m e altura = 5,41 m - aterro rodoviário mínimo = 0,90 m e máximo = 4,70 m - areia extraída e brita produzida | C172: m | D172: 53739.22
A173: 607136 | B173: Arco metálico galvanizado tipo MP 152S - arco alto - vão = 9,68 m e altura = 5,23 m - aterro rodoviário mínimo = 0,90 m e máximo = 3,90 m - areia e brita comerciais | C173: m | D173: 53562.23
A174: 606784 | B174: Arco metálico galvanizado tipo MP 152S - arco alto - vão = 9,68 m e altura = 5,23 m - aterro rodoviário mínimo = 0,90 m e máximo = 3,90 m - areia extraída e brita produzida | C174: m | D174: 53032.41
A175: 607135 | B175: Arco metálico galvanizado tipo MP 152S - arco alto - vão = 9,86 m e altura = 6,07 m - aterro rodoviário mínimo = 0,90 m e máximo = 5,20 m - areia e brita comerciais | C175: m | D175: 59737.11
A176: 606783 | B176: Arco metálico galvanizado tipo MP 152S - arco alto - vão = 9,86 m e altura = 6,07 m - aterro rodoviário mínimo = 0,90 m e máximo = 5,20 m - areia extraída e brita produzida | C176: m | D176: 59122.91
A177: 607138 | B177: Arco metálico galvanizado tipo MP 152S - arco alto - vão = 9,91 m e altura = 5,28 m - aterro rodoviário mínimo = 0,90 m e máximo = 3,80 m - areia e brita comerciais | C177: m | D177: 54478.43
A178: 606786 | B178: Arco metálico galvanizado tipo MP 152S - arco alto - vão = 9,91 m e altura = 5,28 m - aterro rodoviário mínimo = 0,90 m e máximo = 3,80 m - areia extraída e brita produzida | C178: m | D178: 53914.02
A179: 606842 | B179: Arco metálico galvanizado tipo MP 152S - ovoide - vão = 7,21 m e altura = 7,82 m - aterro rodoviário mínimo = 0,75 m e máximo = 6,70 m - areia e brita comerciais | C179: m | D179: 67867.38
A180: 606832 | B180: Arco metálico galvanizado tipo MP 152S - ovoide - vão = 7,21 m e altura = 7,82 m - aterro rodoviário mínimo = 0,75 m e máximo = 6,70 m - areia extraída e brita produzida | C180: m | D180: 67543.94
A181: 606843 | B181: Arco metálico galvanizado tipo MP 152S - ovoide - vão = 7,31 m e altura = 7,87 m - aterro rodoviário mínimo = 0,90 m e máximo = 6,80 m - areia e brita comerciais | C181: m | D181: 70515.59
A182: 606833 | B182: Arco metálico galvanizado tipo MP 152S - ovoide - vão = 7,31 m e altura = 7,87 m - aterro rodoviário mínimo = 0,90 m e máximo = 6,80 m - areia extraída e brita produzida | C182: m | D182: 70175.89
A183: 606845 | B183: Arco metálico galvanizado tipo MP 152S - ovoide - vão = 7,57 m e altura = 8,44 m - aterro rodoviário mínimo = 0,90 m e máximo = 5,60 m - areia e brita comerciais | C183: m | D183: 73106.53
A184: 606835 | B184: Arco metálico galvanizado tipo MP 152S - ovoide - vão = 7,57 m e altura = 8,44 m - aterro rodoviário mínimo = 0,90 m e máximo = 5,60 m - areia extraída e brita produzida | C184: m | D184: 72767.83
A185: 606844 | B185: Arco metálico galvanizado tipo MP 152S - ovoide - vão = 7,77 m e altura = 7,90 m - aterro rodoviário mínimo = 0,90 m e máximo = 6,80 m - areia e brita comerciais | C185: m | D185: 71609.47
A186: 606834 | B186: Arco metálico galvanizado tipo MP 152S - ovoide - vão = 7,77 m e altura = 7,90 m - aterro rodoviário mínimo = 0,90 m e máximo = 6,80 m - areia extraída e brita produzida | C186: m | D186: 71260.85
A187: 606847 | B187: Arco metálico galvanizado tipo MP 152S - ovoide - vão = 8,13 m e altura = 8,01 m - aterro rodoviário mínimo = 0,90 m e máximo = 3,50 m - areia e brita comerciais | C187: m | D187: 76451.56
A188: 606837 | B188: Arco metálico galvanizado tipo MP 152S - ovoide - vão = 8,13 m e altura = 8,01 m - aterro rodoviário mínimo = 0,90 m e máximo = 3,50 m - areia extraída e brita produzida | C188: m | D188: 76070.73
A189: 606846 | B189: Arco metálico galvanizado tipo MP 152S - ovoide - vão = 8,36 m e altura = 8,23 m - aterro rodoviário mínimo = 0,90 m e máximo = 4,30 m - areia e brita comerciais | C189: m | D189: 77142.23
A190: 606836 | B190: Arco metálico galvanizado tipo MP 152S - ovoide - vão = 8,36 m e altura = 8,23 m - aterro rodoviário mínimo = 0,90 m e máximo = 4,30 m - areia extraída e brita produzida | C190: m | D190: 76757.17
A191: 606848 | B191: Arco metálico galvanizado tipo MP 152S - ovoide - vão = 8,56 m e altura = 8,48 m - aterro rodoviário mínimo = 0,90 m e máximo = 5,30 m - areia e brita comerciais | C191: m | D191: 77210.76
A192: 606838 | B192: Arco metálico galvanizado tipo MP 152S - ovoide - vão = 8,56 m e altura = 8,48 m - aterro rodoviário mínimo = 0,90 m e máximo = 5,30 m - areia extraída e brita produzida | C192: m | D192: 76810.34
A193: 606849 | B193: Arco metálico galvanizado tipo MP 152S - ovoide - vão = 8,71 m e altura = 9,32 m - aterro rodoviário mínimo = 0,90 m e máximo = 6,00 m - areia e brita comerciais | C193: m | D193: 83431.31
A194: 606839 | B194: Arco metálico galvanizado tipo MP 152S - ovoide - vão = 8,71 m e altura = 9,32 m - aterro rodoviário mínimo = 0,90 m e máximo = 6,00 m - areia extraída e brita produzida | C194: m | D194: 83040.56
A195: 606850 | B195: Arco metálico galvanizado tipo MP 152S - ovoide - vão = 9,15 m e altura = 9,04 m - aterro rodoviário mínimo = 0,90 m e máximo = 4,70 m - areia e brita comerciais | C195: m | D195: 84123.91
A196: 606840 | B196: Arco metálico galvanizado tipo MP 152S - ovoide - vão = 9,15 m e altura = 9,04 m - aterro rodoviário mínimo = 0,90 m e máximo = 4,70 m - areia extraída e brita produzida | C196: m | D196: 83696.85
A197: 606851 | B197: Arco metálico galvanizado tipo MP 152S - ovoide - vão = 9,15 m e altura = 9,50 m - aterro rodoviário mínimo = 0,90 m e máximo = 5,70 m - areia e brita comerciais | C197: m | D197: 84918.74
A198: 606841 | B198: Arco metálico galvanizado tipo MP 152S - ovoide - vão = 9,15 m e altura = 9,50 m - aterro rodoviário mínimo = 0,90 m e máximo = 5,70 m - areia extraída e brita produzida | C198: m | D198: 84509.69
A199: 605604 | B199: Argamassa de solo-cimento com 10% de cimento e material de jazida - preparo e injeção em tunnel liner | C199: m³ | D199: 297.5
A200: 605695 | B200: Bueiro metálico com chapas múltiplas MP 100 com revestimento em epóxi - D = 0,60 m - brita comercial | C200: m | D200: 1615
... 6202 more rows

Sheet INSUMOS SINAPI
A1: PRECOS DE INSUMOS - BANCO NACIONAL
A3: MES DE COLETA: 06/2024
A4: LOCALIDADE: 0910 - NATAL
A5: ENCARGOS SOCIAIS (%) HORISTA 116,21 MENSALISTA 71,48
A7: CODIGO | B7: DESCRICAO DO INSUMO | C7: UNIDADE DE MEDIDA | D7: ORIGEM DO PRECO | E7: PRECO MEDIANO R$
A8: 38605 | B8: ABERTURA PARA ENCAIXE DE CUBA OU LAVATORIO EM BANCADA DE MARMORE/ GRANITO OU OUTRO TIPO DE PEDRA NATURAL | C8: UN | D8: AS | E8: 171.43
A9: 11270 | B9: ABRACADEIRA DE LATAO PARA FIXACAO DE CABO PARA-RAIO, DIMENSOES 32 X 24 X 24 MM | C9: UN | D9: AS | E9: 2.73
A10: 412 | B10: ABRACADEIRA DE NYLON PARA AMARRACAO DE CABOS, COMPRIMENTO DE *230* X *7,6* MM | C10: UN | D10: CR | E10: 1.08
A11: 414 | B11: ABRACADEIRA DE NYLON PARA AMARRACAO DE CABOS, COMPRIMENTO DE 100 X 2,5 MM | C11: UN | D11: CR | E11: 0.06
A12: 410 | B12: ABRACADEIRA DE NYLON PARA AMARRACAO DE CABOS, COMPRIMENTO DE 150 X *3,6* MM | C12: UN | D12: CR | E12: 0.16
A13: 411 | B13: ABRACADEIRA DE NYLON PARA AMARRACAO DE CABOS, COMPRIMENTO DE 200 X *4,6* MM | C13: UN | D13: C | E13: 0.21
A14: 408 | B14: ABRACADEIRA DE NYLON PARA AMARRACAO DE CABOS, COMPRIMENTO DE 390 X *4,6* MM | C14: UN | D14: CR | E14: 1.04
A15: 39131 | B15: ABRACADEIRA EM ACO PARA AMARRACAO DE ELETRODUTOS, TIPO D, COM 1 1/2" E CUNHA DE FIXACAO | C15: UN | D15: CR | E15: 4.59
A16: 394 | B16: ABRACADEIRA EM ACO PARA AMARRACAO DE ELETRODUTOS, TIPO D, COM 1 1/2" E PARAFUSO DE FIXACAO | C16: UN | D16: CR | E16: 4.65
A17: 39130 | B17: ABRACADEIRA EM ACO PARA AMARRACAO DE ELETRODUTOS, TIPO D, COM 1 1/4" E CUNHA DE FIXACAO | C17: UN | D17: CR | E17: 4.19
A18: 395 | B18: ABRACADEIRA EM ACO PARA AMARRACAO DE ELETRODUTOS, TIPO D, COM 1 1/4" E PARAFUSO DE FIXACAO | C18: UN | D18: CR | E18: 4.48
A19: 39127 | B19: ABRACADEIRA EM ACO PARA AMARRACAO DE ELETRODUTOS, TIPO D, COM 1/2" E CUNHA DE FIXACAO | C19: UN | D19: CR | E19: 2.21
A20: 392 | B20: ABRACADEIRA EM ACO PARA AMARRACAO DE ELETRODUTOS, TIPO D, COM 1/2" E PARAFUSO DE FIXACAO | C20: UN | D20: CR | E20: 2.26
A21: 39129 | B21: ABRACADEIRA EM ACO PARA AMARRACAO DE ELETRODUTOS, TIPO D, COM 1" E CUNHA DE FIXACAO | C21: UN | D21: CR | E21: 2.58
A22: 393 | B22: ABRACADEIRA EM ACO PARA AMARRACAO DE ELETRODUTOS, TIPO D, COM 1" E PARAFUSO DE FIXACAO | C22: UN | D22: C | E22: 2.7
A23: 39133 | B23: ABRACADEIRA EM ACO PARA AMARRACAO DE ELETRODUTOS, TIPO D, COM 2 1/2" E CUNHA DE FIXACAO | C23: UN | D23: CR | E23: 6.03
A24: 397 | B24: ABRACADEIRA EM ACO PARA AMARRACAO DE ELETRODUTOS, TIPO D, COM 2 1/2" E PARAFUSO DE FIXACAO | C24: UN | D24: CR | E24: 6.66
A25: 39132 | B25: ABRACADEIRA EM ACO PARA AMARRACAO DE ELETRODUTOS, TIPO D, COM 2" E CUNHA DE FIXACAO | C25: UN | D25: CR | E25: 4.82
A26: 396 | B26: ABRACADEIRA EM ACO PARA AMARRACAO DE ELETRODUTOS, TIPO D, COM 2" E PARAFUSO DE FIXACAO | C26: UN | D26: CR | E26: 5.17
A27: 39135 | B27: ABRACADEIRA EM ACO PARA AMARRACAO DE ELETRODUTOS, TIPO D, COM 3 1/2" E CUNHA DE FIXACAO | C27: UN | D27: CR | E27: 9.65
A28: 39128 | B28: ABRACADEIRA EM ACO PARA AMARRACAO DE ELETRODUTOS, TIPO D, COM 3/4" E CUNHA DE FIXACAO | C28: UN | D28: CR | E28: 2.41
A29: 400 | B29: ABRACADEIRA EM ACO PARA AMARRACAO DE ELETRODUTOS, TIPO D, COM 3/4" E PARAFUSO DE FIXACAO | C29: UN | D29: CR | E29: 2.35
A30: 39125 | B30: ABRACADEIRA EM ACO PARA AMARRACAO DE ELETRODUTOS, TIPO D, COM 3/8" E PARAFUSO DE FIXACAO | C30: UN | D30: CR | E30: 2.41
A31: 39134 | B31: ABRACADEIRA EM ACO PARA AMARRACAO DE ELETRODUTOS, TIPO D, COM 3" E CUNHA DE FIXACAO | C31: UN | D31: CR | E31: 8.04
A32: 398 | B32: ABRACADEIRA EM ACO PARA AMARRACAO DE ELETRODUTOS, TIPO D, COM 3" E PARAFUSO DE FIXACAO | C32: UN | D32: CR | E32: 7.41
A33: 39126 | B33: ABRACADEIRA EM ACO PARA AMARRACAO DE ELETRODUTOS, TIPO D, COM 4" E CUNHA DE FIXACAO | C33: UN | D33: CR | E33: 10.85
A34: 399 | B34: ABRACADEIRA EM ACO PARA AMARRACAO DE ELETRODUTOS, TIPO D, COM 4" E PARAFUSO DE FIXACAO | C34: UN | D34: CR | E34: 9.56
A35: 39158 | B35: ABRACADEIRA EM ACO PARA AMARRACAO DE ELETRODUTOS, TIPO ECONOMICA (GOTA), COM 8" | C35: UN | D35: CR | E35: 25.67
A36: 39141 | B36: ABRACADEIRA EM ACO PARA AMARRACAO DE ELETRODUTOS, TIPO U SIMPLES, COM 1 1/2" | C36: UN | D36: CR | E36: 1.86
A37: 39140 | B37: ABRACADEIRA EM ACO PARA AMARRACAO DE ELETRODUTOS, TIPO U SIMPLES, COM 1 1/4" | C37: UN | D37: CR | E37: 1.69
A38: 39137 | B38: ABRACADEIRA EM ACO PARA AMARRACAO DE ELETRODUTOS, TIPO U SIMPLES, COM 1/2" | C38: UN | D38: CR | E38: 0.97
A39: 39139 | B39: ABRACADEIRA EM ACO PARA AMARRACAO DE ELETRODUTOS, TIPO U SIMPLES, COM 1" | C39: UN | D39: CR | E39: 1.4
A40: 39143 | B40: ABRACADEIRA EM ACO PARA AMARRACAO DE ELETRODUTOS, TIPO U SIMPLES, COM 2 1/2" | C40: UN | D40: CR | E40: 3.84
A41: 39142 | B41: ABRACADEIRA EM ACO PARA AMARRACAO DE ELETRODUTOS, TIPO U SIMPLES, COM 2" | C41: UN | D41: CR | E41: 2.75
A42: 39138 | B42: ABRACADEIRA EM ACO PARA AMARRACAO DE ELETRODUTOS, TIPO U SIMPLES, COM 3/4" | C42: UN | D42: CR | E42: 1.03
A43: 39136 | B43: ABRACADEIRA EM ACO PARA AMARRACAO DE ELETRODUTOS, TIPO U SIMPLES, COM 3/8" | C43: UN | D43: CR | E43: 0.68
A44: 39144 | B44: ABRACADEIRA EM ACO PARA AMARRACAO DE ELETRODUTOS, TIPO U SIMPLES, COM 3" | C44: UN | D44: CR | E44: 4.48
A45: 39145 | B45: ABRACADEIRA EM ACO PARA AMARRACAO DE ELETRODUTOS, TIPO U SIMPLES, COM 4" | C45: UN | D45: CR | E45: 7.38
A46: 12615 | B46: ABRACADEIRA PVC, PARA CALHA PLUVIAL, DIAMETRO ENTRE *80 E 100* MM, PARA DRENAGEM PLUVIAL PREDIAL | C46: UN | D46: CR | E46: 11.18
A47: 11927 | B47: ABRACADEIRA, GALVANIZADA/ZINCADA, ROSCA SEM FIM, PARAFUSO INOX, LARGURA FITA *12,6 A *14 MM, D = 2" A 2 1/2" | C47: UN | D47: AS | E47: 8.16
A48: 11928 | B48: ABRACADEIRA, GALVANIZADA/ZINCADA, ROSCA SEM FIM, PARAFUSO INOX, LARGURA FITA *12,6 A *14 MM, D = 3" A 3 3/4" | C48: UN | D48: AS | E48: 9.35
A49: 11929 | B49: ABRACADEIRA, GALVANIZADA/ZINCADA, ROSCA SEM FIM, PARAFUSO INOX, LARGURA FITA *12,6 A *14 MM, D = 4" A 4 3/4" | C49: UN | D49: AS | E49: 14.47
A50: 36801 | B50: ACABAMENTO DE METAL CROMADO PARA REGISTRO PEQUENO, DE PAREDE, 1/2" OU 3/4" | C50: UN | D50: CR | E50: 27.29
A51: 36246 | B51: ACABAMENTO SIMPLES/CONVENCIONAL PARA FORRO PVC, TIPO "U" OU "C", COR BRANCA, COMPRIMENTO 6 M | C51: M | D51: CR | E51: 4.06
A52: 37600 | B52: ACESSORIO DE LIGACAO NAO ELETRICO PARA CARGAS EXPLOSIVAS, TUBO DE 6 M | C52: UN | D52: AS | E52: 107.57
A53: 37599 | B53: ACESSORIO INICIADOR NAO ELETRICO, TUBO DE 6 M, TEMPO DE RETARDO DE *160* MS | C53: UN | D53: AS | E53: 100.12
A54: 1 | B54: ACETILENO (RECARGA DE GAS ACETILENO PARA CILINDRO DE CONJUNTO OXICORTE GRANDE) NAO INCLUI TROCA/MANUTENCAO DO CILINDRO | C54: KG | D54: AS | E54: 89.5
A55: 3 | B55: ACIDO CLORIDRICO / ACIDO MURIATICO, DILUICAO 10% A 12% PARA USO EM LIMPEZA | C55: L | D55: CR | E55: 17.46
A56: 43054 | B56: ACO CA-25, 10,0 MM, OU 12,5 MM, OU 16,0 MM, OU 20,0 MM, OU 25,0 MM, VERGALHAO | C56: KG | D56: CR | E56: 9.39
A57: 42402 | B57: ACO CA-25, 16,0 MM, BARRA DE TRANSFERENCIA | C57: KG | D57: CR | E57: 8.97
A58: 42403 | B58: ACO CA-25, 20,0 MM, BARRA DE TRANSFERENCIA | C58: KG | D58: CR | E58: 11.51
A59: 42404 | B59: ACO CA-25, 25,0 MM, BARRA DE TRANSFERENCIA | C59: KG | D59: CR | E59: 11.45
A60: 42405 | B60: ACO CA-25, 32,0 MM, BARRA DE TRANSFERENCIA | C60: KG | D60: CR | E60: 12.19
A61: 34341 | B61: ACO CA-25, 32,0 MM, VERGALHAO | C61: KG | D61: CR | E61: 10.58
A62: 43053 | B62: ACO CA-25, 6,3 MM OU 8,0 MM, VERGALHAO | C62: KG | D62: CR | E62: 8.39
A63: 43058 | B63: ACO CA-50, 10,0 MM, OU 12,5 MM, OU 16,0 MM, OU 20,0 MM, DOBRADO E CORTADO | C63: KG | D63: CR | E63: 8.7
A64: 34 | B64: ACO CA-50, 10,0 MM, VERGALHAO | C64: KG | D64: CR | E64: 8.74
A65: 43055 | B65: ACO CA-50, 12,5 MM OU 16,0 MM, VERGALHAO | C65: KG | D65: C | E65: 7.57
A66: 43056 | B66: ACO CA-50, 20,0 MM OU 25,0 MM, VERGALHAO | C66: KG | D66: CR | E66: 8.73
A67: 43057 | B67: ACO CA-50, 32,0 MM, VERGALHAO | C67: KG | D67: CR | E67: 9.59
A68: 34449 | B68: ACO CA-50, 6,3 MM, DOBRADO E CORTADO | C68: KG | D68: CR | E68: 10.25
A69: 32 | B69: ACO CA-50, 6,3 MM, VERGALHAO | C69: KG | D69: CR | E69: 9.22
A70: 33 | B70: ACO CA-50, 8,0 MM, VERGALHAO | C70: KG | D70: CR | E70: 9.27
A71: 43061 | B71: ACO CA-60, 4,2 MM OU 5,0 MM, DOBRADO E CORTADO | C71: KG | D71: CR | E71: 8.66
A72: 43059 | B72: ACO CA-60, 4,2 MM, OU 5,0 MM, OU 6,0 MM, OU 7,0 MM, VERGALHAO | C72: KG | D72: CR | E72: 8.27
A73: 43062 | B73: ACO CA-60, 6,0 MM OU 7,0 MM, DOBRADO E CORTADO | C73: KG | D73: CR | E73: 9.16
A74: 43060 | B74: ACO CA-60, 8,0 MM OU 9,5 MM, VERGALHAO | C74: KG | D74: CR | E74: 7.2
A75: 40410 | B75: ACOPLAMENTO RIGIDO EM FERRO FUNDIDO PARA SISTEMA DE TUBULACAO RANHURADA, DN 50 MM (2") | C75: UN | D75: AS | E75: 18
A76: 40411 | B76: ACOPLAMENTO RIGIDO EM FERRO FUNDIDO PARA SISTEMA DE TUBULACAO RANHURADA, DN 65 MM (2 1/2") | C76: UN | D76: AS | E76: 19.53
A77: 40412 | B77: ACOPLAMENTO RIGIDO EM FERRO FUNDIDO PARA SISTEMA DE TUBULACAO RANHURADA, DN 80 MM (3") | C77: UN | D77: AS | E77: 21.92
A78: 44254 | B78: ADAPTADOR CPVC, ROSCAVEL, COM FLANGES E ANEL DE VEDACAO, 15 MM, CAIXA D'AGUA PARA AGUA QUENTE | C78: UN | D78: CR | E78: 25.42
A79: 44255 | B79: ADAPTADOR CPVC, ROSCAVEL, COM FLANGES E ANEL DE VEDACAO, 22 MM, CAIXA D'AGUA PARA AGUA QUENTE | C79: UN | D79: CR | E79: 28.18
A80: 44256 | B80: ADAPTADOR CPVC, ROSCAVEL, COM FLANGES E ANEL DE VEDACAO, 28 MM, CAIXA D'AGUA PARA AGUA QUENTE | C80: UN | D80: CR | E80: 31.83
A81: 44257 | B81: ADAPTADOR CPVC, ROSCAVEL, COM FLANGES E ANEL DE VEDACAO, 35 MM, CAIXA D'AGUA PARA AGUA QUENTE | C81: UN | D81: CR | E81: 50.35
A82: 44258 | B82: ADAPTADOR CPVC, ROSCAVEL, COM FLANGES E ANEL DE VEDACAO, 42 MM, CAIXA D'AGUA PARA AGUA QUENTE | C82: UN | D82: CR | E82: 57.54
A83: 44259 | B83: ADAPTADOR CPVC, ROSCAVEL, COM FLANGES E ANEL DE VEDACAO, 54 MM, CAIXA D'AGUA PARA AGUA QUENTE | C83: UN | D83: CR | E83: 78.98
A84: 37997 | B84: ADAPTADOR CPVC, SOLDAVEL, 15 MM, PARA AGUA QUENTE | C84: UN | D84: CR | E84: 15.15
A85: 37998 | B85: ADAPTADOR CPVC, SOLDAVEL, 22 MM, PARA AGUA QUENTE | C85: UN | D85: CR | E85: 20.27
A86: 55 | B86: ADAPTADOR DE COMPRESSAO EM POLIPROPILENO (PP), PARA TUBO EM PEAD, 20 MM X 1/2", PARA LIGACAO PREDIAL DE AGUA (NTS 179) | C86: UN | D86: AS | E86: 4.17
A87: 61 | B87: ADAPTADOR DE COMPRESSAO EM POLIPROPILENO (PP), PARA TUBO EM PEAD, 20 MM X 3/4", PARA LIGACAO PREDIAL DE AGUA (NTS 179) | C87: UN | D87: AS | E87: 3.94
A88: 62 | B88: ADAPTADOR DE COMPRESSAO EM POLIPROPILENO (PP), PARA TUBO EM PEAD, 32 MM X 1", PARA LIGACAO PREDIAL DE AGUA (NTS 179) | C88: UN | D88: AS | E88: 8.17
A89: 10899 | B89: ADAPTADOR EM LATAO, ENGATE RAPIDO 2 1/2" X ROSCA INTERNA 5 FIOS 2 1/2", PARA INSTALACAO PREDIAL DE COMBATE A INCENDIO | C89: UN | D89: AS | E89: 133.61
A90: 10900 | B90: ADAPTADOR EM LATAO, ENGATE RAPIDO1 1/2" X ROSCA INTERNA 5 FIOS 2 1/2", PARA INSTALACAO PREDIAL DE COMBATE A INCENDIO | C90: UN | D90: AS | E90: 104.57
A91: 47 | B91: ADAPTADOR PVC PBA, BOLSA/ROSCA, JE, DN 100 / DE 110 MM | C91: UN | D91: AS | E91: 64.36
A92: 48 | B92: ADAPTADOR PVC PBA, BOLSA/ROSCA, JE, DN 50 / DE 60 MM | C92: UN | D92: AS | E92: 16.79
A93: 46 | B93: ADAPTADOR PVC PBA, BOLSA/ROSCA, JE, DN 75 / DE 85 MM | C93: UN | D93: AS | E93: 37.64
A94: 52 | B94: ADAPTADOR PVC PBA, PONTA/ROSCA, JE, DN 50 / DE 60 MM | C94: UN | D94: AS | E94: 12.75
A95: 43 | B95: ADAPTADOR PVC PBA, PONTA/ROSCA, JE, DN 75 / DE 85 MM | C95: UN | D95: AS | E95: 43.04
A96: 103 | B96: ADAPTADOR PVC SOLDAVEL CURTO COM BOLSA E ROSCA, 110 MM X 4", PARA AGUA FRIA | C96: UN | D96: CR | E96: 38.22
A97: 107 | B97: ADAPTADOR PVC SOLDAVEL CURTO COM BOLSA E ROSCA, 20 MM X 1/2", PARA AGUA FRIA | C97: UN | D97: CR | E97: 0.72
A98: 65 | B98: ADAPTADOR PVC SOLDAVEL CURTO COM BOLSA E ROSCA, 25 MM X 3/4", PARA AGUA FRIA | C98: UN | D98: CR | E98: 0.79
A99: 108 | B99: ADAPTADOR PVC SOLDAVEL CURTO COM BOLSA E ROSCA, 32 MM X 1", PARA AGUA FRIA | C99: UN | D99: CR | E99: 1.58
A100: 110 | B100: ADAPTADOR PVC SOLDAVEL CURTO COM BOLSA E ROSCA, 40 MM X 1 1/2", PARA AGUA FRIA | C100: UN | D100: CR | E100: 5.5
A101: 109 | B101: ADAPTADOR PVC SOLDAVEL CURTO COM BOLSA E ROSCA, 40 MM X 1 1/4", PARA AGUA FRIA | C101: UN | D101: CR | E101: 3.27
A102: 111 | B102: ADAPTADOR PVC SOLDAVEL CURTO COM BOLSA E ROSCA, 50 MM X 1 1/4", PARA AGUA FRIA | C102: UN | D102: CR | E102: 7.44
A103: 112 | B103: ADAPTADOR PVC SOLDAVEL CURTO COM BOLSA E ROSCA, 50 MM X1 1/2", PARA AGUA FRIA | C103: UN | D103: CR | E103: 3.94
A104: 113 | B104: ADAPTADOR PVC SOLDAVEL CURTO COM BOLSA E ROSCA, 60 MM X 2", PARA AGUA FRIA | C104: UN | D104: CR | E104: 9.87
A105: 104 | B105: ADAPTADOR PVC SOLDAVEL CURTO COM BOLSA E ROSCA, 75 MM X 2 1/2", PARA AGUA FRIA | C105: UN | D105: CR | E105: 17.18
A106: 102 | B106: ADAPTADOR PVC SOLDAVEL CURTO COM BOLSA E ROSCA, 85 MM X 3", PARA AGUA FRIA | C106: UN | D106: CR | E106: 23.68
A107: 95 | B107: ADAPTADOR PVC SOLDAVEL, COM FLANGE E ANEL DE VEDACAO, 20 MM X 1/2", PARA CAIXA D'AGUA | C107: UN | D107: CR | E107: 10.01
A108: 96 | B108: ADAPTADOR PVC SOLDAVEL, COM FLANGE E ANEL DE VEDACAO, 25 MM X 3/4", PARA CAIXA D'AGUA | C108: UN | D108: CR | E108: 10.89
A109: 97 | B109: ADAPTADOR PVC SOLDAVEL, COM FLANGE E ANEL DE VEDACAO, 32 MM X 1", PARA CAIXA D'AGUA | C109: UN | D109: CR | E109: 16.38
A110: 98 | B110: ADAPTADOR PVC SOLDAVEL, COM FLANGE E ANEL DE VEDACAO, 40 MM X 1 1/4", PARA CAIXA D'AGUA | C110: UN | D110: CR | E110: 24.52
A111: 99 | B111: ADAPTADOR PVC SOLDAVEL, COM FLANGE E ANEL DE VEDACAO, 50 MM X 1 1/2", PARA CAIXA D'AGUA | C111: UN | D111: CR | E111: 23.17
A112: 60 | B112: ADAPTADOR PVC, COM REGISTRO, PARA PEAD, 20 MM X 3/4", PARA LIGACAO PREDIAL DE AGUA | C112: UN | D112: AS | E112: 5.41
A113: 72 | B113: ADAPTADOR PVC, ROSCAVEL, COM FLANGES E ANEL DE VEDACAO, 1 1/2", PARA CAIXA D'AGUA | C113: UN | D113: CR | E113: 44.44
A114: 67 | B114: ADAPTADOR PVC, ROSCAVEL, COM FLANGES E ANEL DE VEDACAO, 1/2", PARA CAIXA D'AGUA | C114: UN | D114: CR | E114: 14.37
A115: 71 | B115: ADAPTADOR PVC, ROSCAVEL, COM FLANGES E ANEL DE VEDACAO, 1", PARA CAIXA D'AGUA | C115: UN | D115: CR | E115: 27.45
A116: 73 | B116: ADAPTADOR PVC, ROSCAVEL, COM FLANGES E ANEL DE VEDACAO, 3/4", PARA CAIXA D'AGUA | C116: UN | D116: CR | E116: 13.75
A117: 100 | B117: ADAPTADOR PVC, SOLDAVEL, COM FLANGES E ANEL DE VEDACAO, 60 MM X 2", PARA CAIXA D'AGUA | C117: UN | D117: CR | E117: 40.49
A118: 75 | B118: ADAPTADOR PVC, SOLDAVEL, COM FLANGES LIVRES, 110 MM X 4", PARA CAIXA D'AGUA | C118: UN | D118: CR | E118: 236.05
A119: 83 | B119: ADAPTADOR PVC, SOLDAVEL, COM FLANGES LIVRES, 75 MM X 2 1/2", PARA CAIXA D'AGUA | C119: UN | D119: CR | E119: 188.72
A120: 74 | B120: ADAPTADOR PVC, SOLDAVEL, COM FLANGES LIVRES, 85 MM X 3", PARA CAIXA D'AGUA | C120: UN | D120: CR | E120: 269.82
A121: 106 | B121: ADAPTADOR PVC, SOLDAVEL, LONGO, COM FLANGE LIVRE, 110 MM X 4", PARA CAIXA D'AGUA | C121: UN | D121: CR | E121: 341.19
A122: 88 | B122: ADAPTADOR PVC, SOLDAVEL, LONGO, COM FLANGE LIVRE, 32 MM X 1", PARA CAIXA D'AGUA | C122: UN | D122: CR | E122: 9.59
A123: 82 | B123: ADAPTADOR PVC, SOLDAVEL, LONGO, COM FLANGE LIVRE, 75 MM X 2 1/2", PARA CAIXA D'AGUA | C123: UN | D123: CR | E123: 179.55
A124: 105 | B124: ADAPTADOR PVC, SOLDAVEL, LONGO, COM FLANGE LIVRE, 85 MM X 3", PARA CAIXA D'AGUA | C124: UN | D124: CR | E124: 254.42
A125: 39719 | B125: ADESIVO / COLA DE CONTATO LIQUIDO, A BASE DE RESINAS, PARA COLAGEM DE ESPUMA PARA ISOLAMENTO TERMICO FLEXIVEL | C125: L | D125: CR | E125: 140.11
A126: 3410 | B126: ADESIVO / COLA PARA EPS (ISOPOR) E OUTROS MATERIAIS | C126: KG | D126: CR | E126: 31.51
A127: 4791 | B127: ADESIVO ACRILICO DE BASE AQUOSA / COLA DE CONTATO | C127: KG | D127: CR | E127: 24.08
A128: 157 | B128: ADESIVO ESTRUTURAL A BASE DE RESINA EPOXI PARA INJECAO EM TRINCAS, BICOMPONENTE, BAIXA VISCOSIDADE | C128: KG | D128: CR | E128: 169.23
A129: 156 | B129: ADESIVO ESTRUTURAL A BASE DE RESINA EPOXI, BICOMPONENTE, FLUIDO | C129: KG | D129: CR | E129: 60.25
A130: 131 | B130: ADESIVO ESTRUTURAL A BASE DE RESINA EPOXI, BICOMPONENTE, PASTOSO (TIXOTROPICO) | C130: KG | D130: CR | E130: 51.53
A131: 21114 | B131: ADESIVO PARA TUBOS CPVC, *75* G | C131: UN | D131: CR | E131: 27.62
A132: 119 | B132: ADESIVO PLASTICO PARA PVC, BISNAGA COM 75 GR | C132: UN | D132: C | E132: 7
A133: 122 | B133: ADESIVO PLASTICO PARA PVC, FRASCO COM *850* GR | C133: UN | D133: CR | E133: 53.86
A134: 20080 | B134: ADESIVO PLASTICO PARA PVC, FRASCO COM 175 GR | C134: UN | D134: CR | E134: 17.58
A135: 124 | B135: ADITIVO ACELERADOR DE PEGA E ENDURECIMENTO PARA ARGAMASSAS E CONCRETOS, LIQUIDO E ISENTO DE CLORETOS | C135: L | D135: CR | E135: 19.87
A136: 7334 | B136: ADITIVO ADESIVO LIQUIDO PARA ARGAMASSAS DE REVESTIMENTOS CIMENTICIOS | C136: L | D136: CR | E136: 15.37
A137: 45146 | B137: ADITIVO IMPERMEABILIZANTE CRISTALIZANTE PARA CONCRETO | C137: KG | D137: CR | E137: 38.1
A138: 123 | B138: ADITIVO IMPERMEABILIZANTE DE PEGA NORMAL PARA ARGAMASSAS E CONCRETOS SEM ARMACAO, LIQUIDO E ISENTO DE CLORETOS | C138: L | D138: C | E138: 8.13
A139: 127 | B139: ADITIVO IMPERMEABILIZANTE DE PEGA ULTRARRAPIDA, LIQUIDO E ISENTO DE CLORETOS | C139: L | D139: CR | E139: 19.41
A140: 133 | B140: ADITIVO LIQUIDO INCORPORADOR DE AR PARA CONCRETO E ARGAMASSA, LIQUIDO E ISENTO DE CLORETOS | C140: L | D140: CR | E140: 8.06
A141: 43617 | B141: ADITIVO PLASTIFICANTE E ESTABILIZADOR PARA ARGAMASSAS DE ASSENTAMENTO E REBOCO, LIQUIDO E ISENTO DE CLORETOS | C141: L | D141: CR | E141: 9
A142: 132 | B142: ADITIVO PLASTIFICANTE RETARDADOR DE PEGA E REDUTOR DE AGUA PARA CONCRETO, LIQUIDO E ISENTO DE CLORETOS | C142: L | D142: CR | E142: 8.36
A143: 43618 | B143: ADITIVO SUPERPLASTIFICANTE DE PEGA NORMAL PARA CONCRETO, LIQUIDO E ISENTO DE CLORETOS | C143: KG | D143: CR | E143: 21.04
A144: 37476 | B144: ADUELA/ GALERIA PRE-MOLDADA DE CONCRETO ARMADO, SECAO QUADRADA INTERNA DE 1,50 X 1,50 M (L X A), MISULA DE 20 X 20 CM, C = 1,00 M, ESPESSURA MIN = 15 CM, TB-45 E FCK DO CONCRETO = 30 MPA | C144: UN | D144: CR | E144: 3841.2
A145: 37478 | B145: ADUELA/ GALERIA PRE-MOLDADA DE CONCRETO ARMADO, SECAO RETANGULAR INTERNA DE 2,00 X 2,00 M (L X A), MISULA DE 20 X 20 CM, C = 1,00 M, ESPESSURA MIN = 15 CM, TB-45 E FCK DO CONCRETO = 30 MPA | C145: UN | D145: CR | E145: 4811.19
A146: 37477 | B146: ADUELA/ GALERIA PRE-MOLDADA DE CONCRETO ARMADO, SECAO RETANGULAR INTERNA DE 2,50 X 2,50 M (L X A), MISULA DE 20 X 20 CM, C = 1,00 M, ESPESSURA MIN = 15 CM, TB-45 E FCK DO CONCRETO = 30 MPA | C146: UN | D146: CR | E146: 6518.39
A147: 37479 | B147: ADUELA/ GALERIA PRE-MOLDADA DE CONCRETO ARMADO, SECAO RETANGULAR INTERNA DE 3,00 X 3,00 M (L X A), MISULA DE 20 X 20 CM, C = 1.00 M, ESPESSURA MIN = 20 CM, TB-45 E FCK DO CONCRETO = 30 MPA | C147: UN | D147: CR | E147: 7730.9
A148: 4319 | B148: AFASTADOR PARA TELHA DE FIBROCIMENTO CANALETE 90 OU KALHETAO | C148: UN | D148: CR | E148: 1.78
A149: 42409 | B149: AGENTE DE CURA, PROTETOR DA EVAPORACAO DA AGUA DE HIDRATACAO DO CONCRETO | C149: KG | D149: CR | E149: 13.25
A150: 40553 | B150: AGREGADO RECICLADO, TIPO RACHAO RECICLADO CINZA, CLASSE A | C150: M3 | D150: AS | E150: 60
A151: 6114 | B151: AJUDANTE DE ARMADOR (HORISTA) | C151: H | D151: CR | E151: 15.41
A152: 40912 | B152: AJUDANTE DE ARMADOR (MENSALISTA) | C152: MES | D152: CR | E152: 2692.57
A153: 247 | B153: AJUDANTE DE ELETRICISTA (HORISTA) | C153: H | D153: CR | E153: 15.41
A154: 40919 | B154: AJUDANTE DE ELETRICISTA (MENSALISTA) | C154: MES | D154: CR | E154: 2692.57
A155: 44499 | B155: AJUDANTE DE ESTRUTURAS METALICAS (HORISTA) | C155: H | D155: CR | E155: 15.41
A156: 40984 | B156: AJUDANTE DE ESTRUTURAS METALICAS (MENSALISTA) | C156: MES | D156: CR | E156: 2692.57
A157: 248 | B157: AJUDANTE DE OPERACAO EM GERAL (HORISTA) | C157: H | D157: CR | E157: 14.52
A158: 41086 | B158: AJUDANTE DE OPERACAO EM GERAL (MENSALISTA) | C158: MES | D158: CR | E158: 2535.94
A159: 34466 | B159: AJUDANTE DE PINTOR (HORISTA) | C159: H | D159: CR | E159: 15.41
A160: 41083 | B160: AJUDANTE DE PINTOR (MENSALISTA) | C160: MES | D160: CR | E160: 2692.57
A161: 252 | B161: AJUDANTE DE SERRALHEIRO (HORISTA) | C161: H | D161: CR | E161: 15.41
A162: 40909 | B162: AJUDANTE DE SERRALHEIRO (MENSALISTA) | C162: MES | D162: CR | E162: 2692.57
A163: 242 | B163: AJUDANTE ESPECIALIZADO (HORISTA) | C163: H | D163: CR | E163: 14.52
A164: 41085 | B164: AJUDANTE ESPECIALIZADO (MENSALISTA) | C164: MES | D164: CR | E164: 2535.94
A165: 427 | B165: ALCA PREFORMADA DE CONTRA POSTE, EM ACO GALVANIZADO, PARA CABO 3/16", COMPRIMENTO *860* MM | C165: UN | D165: AS | E165: 6.55
A166: 417 | B166: ALCA PREFORMADA DE DISTRIBUICAO, EM ACO GALVANIZADO, PARA CABO DE ALUMINIO DIAMETRO 16 A 25 MM | C166: UN | D166: AS | E166: 3.08
A167: 11273 | B167: ALCA PREFORMADA DE DISTRIBUICAO, EM ACO GALVANIZADO, PARA CONDUTORES DE ALUMINIO AWG 1/0 (CAA 6/1 OU CA 7 FIOS) | C167: UN | D167: AS | E167: 9.58
A168: 11272 | B168: ALCA PREFORMADA DE DISTRIBUICAO, EM ACO GALVANIZADO, PARA CONDUTORES DE ALUMINIO AWG 2 (CAA 6/1 OU CA 7 FIOS) | C168: UN | D168: AS | E168: 5.78
A169: 11275 | B169: ALCA PREFORMADA DE SERVICO, EM ACO GALVANIZADO, PARA CONDUTORES DE ALUMINIO AWG 4 (CAA 6/1) | C169: UN | D169: AS | E169: 2.32
A170: 11274 | B170: ALCA PREFORMADA DE SERVICO, EM ACO GALVANIZADO, PARA CONDUTORES DE ALUMINIO AWG 6 (CAA 6/1) | C170: UN | D170: AS | E170: 1.77
A171: 38470 | B171: ALICATE DE CORTE DIAGONAL 6" COM ISOLAMENTO | C171: UN | D171: C | E171: 34
A172: 38547 | B172: ALICATE DE CRIMPAR RJ11, RJ12 E RJ45 | C172: UN | D172: CR | E172: 92.78
A173: 38469 | B173: ALICATE DE PRESSAO PARA SOLDA DE CHAPA 18" | C173: UN | D173: CR | E173: 99.76
A174: 38467 | B174: ALICATE DE PRESSAO 11" PARA SOLDA, TIPO C | C174: UN | D174: CR | E174: 56.13
A175: 38468 | B175: ALICATE DE PRESSAO 11" PARA SOLDA, TIPO U | C175: UN | D175: CR | E175: 61.77
A176: 38471 | B176: ALICATE PARA ANEIS DE PISTAO, CAPACIDADE 50 A 100 MM | C176: UN | D176: CR | E176: 80.21
A177: 37370 | B177: ALIMENTACAO - HORISTA (COLETADO CAIXA - ENCARGOS COMPLEMENTARES) | C177: H | D177: C | E177: 2.4
A178: 40862 | B178: ALIMENTACAO - MENSALISTA (COLETADO CAIXA - ENCARGOS COMPLEMENTARES) | C178: MES | D178: C | E178: 453.35
A179: 10658 | B179: ALISADORA DE CONCRETO COM MOTOR A GASOLINA DE 5,5 HP, PESO COM MOTOR DE 78 KG, 4 PAS | C179: UN | D179: AS | E179: 7359
A180: 253 | B180: ALMOXARIFE (HORISTA) | C180: H | D180: C | E180: 27.39
A181: 40809 | B181: ALMOXARIFE (MENSALISTA) | C181: MES | D181: CR | E181: 4779.83
A182: 42428 | B182: ALONGADOR COM TRES ALTURAS, EM TUBO DE ACO CARBONO, PINTURA NO PROCESSO ELETROSTATICO - EQUIPAMENTO DE GINASTICA PARA ACADEMIA AO AR LIVRE / ACADEMIA DA TERCEIRA IDADE - ATI | C182: UN | D182: AS | E182: 2271
A183: 301 | B183: ANEL BORRACHA PARA TUBO ESGOTO PREDIAL, DN 100 MM (NBR 5688) | C183: UN | D183: C | E183: 3.44
A184: 296 | B184: ANEL BORRACHA PARA TUBO ESGOTO PREDIAL, DN 50 MM (NBR 5688) | C184: UN | D184: CR | E184: 1.94
A185: 297 | B185: ANEL BORRACHA PARA TUBO ESGOTO PREDIAL, DN 75 MM (NBR 5688) | C185: UN | D185: CR | E185: 2.86
A186: 299 | B186: ANEL BORRACHA, DN 100 MM, PARA TUBO SERIE REFORCADA ESGOTO PREDIAL | C186: UN | D186: CR | E186: 4.03
A187: 300 | B187: ANEL BORRACHA, DN 150 MM, PARA TUBO SERIE REFORCADA ESGOTO PREDIAL | C187: UN | D187: CR | E187: 13.96
A188: 20085 | B188: ANEL BORRACHA, DN 50 MM, PARA TUBO SERIE REFORCADA ESGOTO PREDIAL | C188: UN | D188: CR | E188: 2.55
A189: 298 | B189: ANEL BORRACHA, DN 75 MM, PARA TUBO SERIE REFORCADA ESGOTO PREDIAL | C189: UN | D189: CR | E189: 3.1
A190: 311 | B190: ANEL BORRACHA, PARA TUBO PVC DEFOFO, DN 100 MM (NBR 7665) | C190: UN | D190: CR | E190: 11.51
A191: 318 | B191: ANEL BORRACHA, PARA TUBO PVC DEFOFO, DN 150 MM (NBR 7665) | C191: UN | D191: CR | E191: 23.19
A192: 319 | B192: ANEL BORRACHA, PARA TUBO PVC DEFOFO, DN 200 MM (NBR 7665) | C192: UN | D192: CR | E192: 36.36
A193: 303 | B193: ANEL BORRACHA, PARA TUBO PVC, REDE COLETOR ESGOTO, DN 100 MM (NBR 7362) | C193: UN | D193: CR | E193: 3.81
A194: 305 | B194: ANEL BORRACHA, PARA TUBO PVC, REDE COLETOR ESGOTO, DN 150 MM (NBR 7362) | C194: UN | D194: CR | E194: 11.99
A195: 306 | B195: ANEL BORRACHA, PARA TUBO PVC, REDE COLETOR ESGOTO, DN 200 MM (NBR 7362) | C195: UN | D195: CR | E195: 18.18
A196: 307 | B196: ANEL BORRACHA, PARA TUBO PVC, REDE COLETOR ESGOTO, DN 250 MM (NBR 7362) | C196: UN | D196: CR | E196: 45.93
A197: 309 | B197: ANEL BORRACHA, PARA TUBO PVC, REDE COLETOR ESGOTO, DN 350 MM (NBR 7362) | C197: UN | D197: CR | E197: 75.24
A198: 310 | B198: ANEL BORRACHA, PARA TUBO PVC, REDE COLETOR ESGOTO, DN 400 MM (NBR 7362) | C198: UN | D198: CR | E198: 104.29
A199: 328 | B199: ANEL BORRACHA, PARA TUBO/CONEXAO PVC PBA, DN 100 MM, PARA REDE AGUA | C199: UN | D199: CR | E199: 9.12
A200: 325 | B200: ANEL BORRACHA, PARA TUBO/CONEXAO PVC PBA, DN 50 MM, PARA REDE AGUA | C200: UN | D200: CR | E200: 2.69
A201: 20326 | B201: ANEL BORRACHA, PARA TUBO/CONEXAO PVC PBA, DN 60 MM, PARA REDE AGUA | C201: UN | D201: CR | E201: 4.92
A202: 329 | B202: ANEL BORRACHA, PARA TUBO/CONEXAO PVC PBA, DN 75 MM, PARA REDE AGUA | C202: UN | D202: CR | E202: 7.62
... 4633 more rows

Sheet COMP Sint. Sinapi
A1: PCI.817.01 - CUSTO DE COMPOSIÇÕES - SINTÉTICO DATA DE EMISSÃO: 13/07/2024 00:05:52 DATA DE RT: 12/07/2024
A2: ENCARGOS SOCIAIS SOBRE PREÇOS DA MÃO-DE-OBRA: 116,21%(HORA) 71,48%(MÊS)
A3: ABRANGÊNCIA : NACIONAL LOCALIDADE : NATAL DATA DE PREÇO : 06/2024 REFERÊNCIA COLETA : MEDIANO
A5: DESCRICAO DA CLASSE | B5: SIGLA DA CLASSE | C5: DESCRICAO DO TIPO 1 | D5: SIGLA DO TIPO 1 | E5: CODIGO DO AGRUPADOR | F5: DESCRICAO DO AGRUPADOR | G5: CODIGO DA COMPOSICAO | H5: DESCRICAO DA COMPOSICAO | I5: UNIDADE | J5: ORIGEM DE PREÇO | K5: CUSTO TOTAL | L5: VINCULO
A7: ASSENTAMENTO DE TUBOS E PECAS | B7: ASTU | C7: FORNEC E/OU ASSENT DE TUBO DE FERRO FUNDIDO JUNTA ELASTICA | D7: 0045 | G7: 97141 | H7: ASSENTAMENTO DE TUBO DE FERRO FUNDIDO PARA REDE DE ÁGUA, DN 80 MM, JUNTA ELÁSTICA, INSTALADO EM LOCAL COM NÍVEL ALTO DE INTERFERÊNCIAS (NÃO INCLUI FORNECIMENTO). AF_05/2024 | I7: M | J7: ATRIBUÍDO SÃO PAULO | K7: 4.71 | L7: CAIXA REFERENCIAL
A8: ASSENTAMENTO DE TUBOS E PECAS | B8: ASTU | C8: FORNEC E/OU ASSENT DE TUBO DE FERRO FUNDIDO JUNTA ELASTICA | D8: 0045 | G8: 97142 | H8: ASSENTAMENTO DE TUBO DE FERRO FUNDIDO PARA REDE DE ÁGUA, DN 100 MM, JUNTA ELÁSTICA, INSTALADO EM LOCAL COM NÍVEL ALTO DE INTERFERÊNCIAS (NÃO INCLUI FORNECIMENTO). AF_05/2024 | I8: M | J8: ATRIBUÍDO SÃO PAULO | K8: 5.43 | L8: CAIXA REFERENCIAL
A9: ASSENTAMENTO DE TUBOS E PECAS | B9: ASTU | C9: FORNEC E/OU ASSENT DE TUBO DE FERRO FUNDIDO JUNTA ELASTICA | D9: 0045 | G9: 97143 | H9: ASSENTAMENTO DE TUBO DE FERRO FUNDIDO PARA REDE DE ÁGUA, DN 150 MM, JUNTA ELÁSTICA, INSTALADO EM LOCAL COM NÍVEL ALTO DE INTERFERÊNCIAS (NÃO INCLUI FORNECIMENTO). AF_05/2024 | I9: M | J9: ATRIBUÍDO SÃO PAULO | K9: 7.19 | L9: CAIXA REFERENCIAL
A10: ASSENTAMENTO DE TUBOS E PECAS | B10: ASTU | C10: FORNEC E/OU ASSENT DE TUBO DE FERRO FUNDIDO JUNTA ELASTICA | D10: 0045 | G10: 97144 | H10: ASSENTAMENTO DE TUBO DE FERRO FUNDIDO PARA REDE DE ÁGUA, DN 200 MM, JUNTA ELÁSTICA, INSTALADO EM LOCAL COM NÍVEL ALTO DE INTERFERÊNCIAS (NÃO INCLUI FORNECIMENTO). AF_05/2024 | I10: M | J10: ATRIBUÍDO SÃO PAULO | K10: 8.96 | L10: CAIXA REFERENCIAL
A11: ASSENTAMENTO DE TUBOS E PECAS | B11: ASTU | C11: FORNEC E/OU ASSENT DE TUBO DE FERRO FUNDIDO JUNTA ELASTICA | D11: 0045 | G11: 97145 | H11: ASSENTAMENTO DE TUBO DE FERRO FUNDIDO PARA REDE DE ÁGUA, DN 250 MM, JUNTA ELÁSTICA, INSTALADO EM LOCAL COM NÍVEL ALTO DE INTERFERÊNCIAS (NÃO INCLUI FORNECIMENTO). AF_05/2024 | I11: M | J11: ATRIBUÍDO SÃO PAULO | K11: 10.75 | L11: CAIXA REFERENCIAL
A12: ASSENTAMENTO DE TUBOS E PECAS | B12: ASTU | C12: FORNEC E/OU ASSENT DE TUBO DE FERRO FUNDIDO JUNTA ELASTICA | D12: 0045 | G12: 97146 | H12: ASSENTAMENTO DE TUBO DE FERRO FUNDIDO PARA REDE DE ÁGUA, DN 300 MM, JUNTA ELÁSTICA, INSTALADO EM LOCAL COM NÍVEL ALTO DE INTERFERÊNCIAS (NÃO INCLUI FORNECIMENTO). AF_05/2024 | I12: M | J12: ATRIBUÍDO SÃO PAULO | K12: 12.53 | L12: CAIXA REFERENCIAL
A13: ASSENTAMENTO DE TUBOS E PECAS | B13: ASTU | C13: FORNEC E/OU ASSENT DE TUBO DE FERRO FUNDIDO JUNTA ELASTICA | D13: 0045 | G13: 97147 | H13: ASSENTAMENTO DE TUBO DE FERRO FUNDIDO PARA REDE DE ÁGUA, DN 350 MM, JUNTA ELÁSTICA, INSTALADO EM LOCAL COM NÍVEL ALTO DE INTERFERÊNCIAS (NÃO INCLUI FORNECIMENTO). AF_05/2024 | I13: M | J13: ATRIBUÍDO SÃO PAULO | K13: 14.32 | L13: CAIXA REFERENCIAL
A14: ASSENTAMENTO DE TUBOS E PECAS | B14: ASTU | C14: FORNEC E/OU ASSENT DE TUBO DE FERRO FUNDIDO JUNTA ELASTICA | D14: 0045 | G14: 97148 | H14: ASSENTAMENTO DE TUBO DE FERRO FUNDIDO PARA REDE DE ÁGUA, DN 400 MM, JUNTA ELÁSTICA, INSTALADO EM LOCAL COM NÍVEL ALTO DE INTERFERÊNCIAS (NÃO INCLUI FORNECIMENTO). AF_05/2024 | I14: M | J14: ATRIBUÍDO SÃO PAULO | K14: 16.1 | L14: CAIXA REFERENCIAL
A15: ASSENTAMENTO DE TUBOS E PECAS | B15: ASTU | C15: FORNEC E/OU ASSENT DE TUBO DE FERRO FUNDIDO JUNTA ELASTICA | D15: 0045 | G15: 97149 | H15: ASSENTAMENTO DE TUBO DE FERRO FUNDIDO PARA REDE DE ÁGUA, DN 450 MM, JUNTA ELÁSTICA, INSTALADO EM LOCAL COM NÍVEL ALTO DE INTERFERÊNCIAS (NÃO INCLUI FORNECIMENTO). AF_05/2024 | I15: M | J15: ATRIBUÍDO SÃO PAULO | K15: 17.92 | L15: CAIXA REFERENCIAL
A16: ASSENTAMENTO DE TUBOS E PECAS | B16: ASTU | C16: FORNEC E/OU ASSENT DE TUBO DE FERRO FUNDIDO JUNTA ELASTICA | D16: 0045 | G16: 97150 | H16: ASSENTAMENTO DE TUBO DE FERRO FUNDIDO PARA REDE DE ÁGUA, DN 500 MM, JUNTA ELÁSTICA, INSTALADO EM LOCAL COM NÍVEL ALTO DE INTERFERÊNCIAS (NÃO INCLUI FORNECIMENTO). AF_05/2024 | I16: M | J16: ATRIBUÍDO SÃO PAULO | K16: 23.15 | L16: CAIXA REFERENCIAL
A17: ASSENTAMENTO DE TUBOS E PECAS | B17: ASTU | C17: FORNEC E/OU ASSENT DE TUBO DE FERRO FUNDIDO JUNTA ELASTICA | D17: 0045 | G17: 97151 | H17: ASSENTAMENTO DE TUBO DE FERRO FUNDIDO PARA REDE DE ÁGUA, DN 600 MM, JUNTA ELÁSTICA, INSTALADO EM LOCAL COM NÍVEL ALTO DE INTERFERÊNCIAS (NÃO INCLUI FORNECIMENTO). AF_05/2024 | I17: M | J17: ATRIBUÍDO SÃO PAULO | K17: 27.27 | L17: CAIXA REFERENCIAL
A18: ASSENTAMENTO DE TUBOS E PECAS | B18: ASTU | C18: FORNEC E/OU ASSENT DE TUBO DE FERRO FUNDIDO JUNTA ELASTICA | D18: 0045 | G18: 97152 | H18: ASSENTAMENTO DE TUBO DE FERRO FUNDIDO PARA REDE DE ÁGUA, DN 700 MM, JUNTA ELÁSTICA, INSTALADO EM LOCAL COM NÍVEL ALTO DE INTERFERÊNCIAS (NÃO INCLUI FORNECIMENTO). AF_05/2024 | I18: M | J18: ATRIBUÍDO SÃO PAULO | K18: 31.18 | L18: CAIXA REFERENCIAL
A19: ASSENTAMENTO DE TUBOS E PECAS | B19: ASTU | C19: FORNEC E/OU ASSENT DE TUBO DE FERRO FUNDIDO JUNTA ELASTICA | D19: 0045 | G19: 97153 | H19: ASSENTAMENTO DE TUBO DE FERRO FUNDIDO PARA REDE DE ÁGUA, DN 800 MM, JUNTA ELÁSTICA, INSTALADO EM LOCAL COM NÍVEL ALTO DE INTERFERÊNCIAS (NÃO INCLUI FORNECIMENTO). AF_05/2024 | I19: M | J19: ATRIBUÍDO SÃO PAULO | K19: 35.24 | L19: CAIXA REFERENCIAL
A20: ASSENTAMENTO DE TUBOS E PECAS | B20: ASTU | C20: FORNEC E/OU ASSENT DE TUBO DE FERRO FUNDIDO JUNTA ELASTICA | D20: 0045 | G20: 97154 | H20: ASSENTAMENTO DE TUBO DE FERRO FUNDIDO PARA REDE DE ÁGUA, DN 900 MM, JUNTA ELÁSTICA, INSTALADO EM LOCAL COM NÍVEL ALTO DE INTERFERÊNCIAS (NÃO INCLUI FORNECIMENTO). AF_05/2024 | I20: M | J20: ATRIBUÍDO SÃO PAULO | K20: 39.3 | L20: CAIXA REFERENCIAL
A21: ASSENTAMENTO DE TUBOS E PECAS | B21: ASTU | C21: FORNEC E/OU ASSENT DE TUBO DE FERRO FUNDIDO JUNTA ELASTICA | D21: 0045 | G21: 97155 | H21: ASSENTAMENTO DE TUBO DE FERRO FUNDIDO PARA REDE DE ÁGUA, DN 1000 MM, JUNTA ELÁSTICA, INSTALADO EM LOCAL COM NÍVEL ALTO DE INTERFERÊNCIAS (NÃO INCLUI FORNECIMENTO). AF_05/2024 | I21: M | J21: ATRIBUÍDO SÃO PAULO | K21: 43.4 | L21: CAIXA REFERENCIAL
A22: ASSENTAMENTO DE TUBOS E PECAS | B22: ASTU | C22: FORNEC E/OU ASSENT DE TUBO DE FERRO FUNDIDO JUNTA ELASTICA | D22: 0045 | G22: 97156 | H22: ASSENTAMENTO DE TUBO DE FERRO FUNDIDO PARA REDE DE ÁGUA, DN 1200 MM, JUNTA ELÁSTICA, INSTALADO EM LOCAL COM NÍVEL ALTO DE INTERFERÊNCIAS (NÃO INCLUI FORNECIMENTO). AF_05/2024 | I22: M | J22: ATRIBUÍDO SÃO PAULO | K22: 51.9 | L22: CAIXA REFERENCIAL
A23: ASSENTAMENTO DE TUBOS E PECAS | B23: ASTU | C23: FORNEC E/OU ASSENT DE TUBO DE FERRO FUNDIDO JUNTA ELASTICA | D23: 0045 | G23: 97157 | H23: ASSENTAMENTO DE TUBO DE FERRO FUNDIDO PARA REDE DE ÁGUA, DN 80 MM, JUNTA ELÁSTICA, INSTALADO EM LOCAL COM NÍVEL BAIXO DE INTERFERÊNCIAS (NÃO INCLUI FORNECIMENTO). AF_05/2024 | I23: M | J23: ATRIBUÍDO SÃO PAULO | K23: 3.55 | L23: CAIXA REFERENCIAL
A24: ASSENTAMENTO DE TUBOS E PECAS | B24: ASTU | C24: FORNEC E/OU ASSENT DE TUBO DE FERRO FUNDIDO JUNTA ELASTICA | D24: 0045 | G24: 97158 | H24: ASSENTAMENTO DE TUBO DE FERRO FUNDIDO PARA REDE DE ÁGUA, DN 100 MM, JUNTA ELÁSTICA, INSTALADO EM LOCAL COM NÍVEL BAIXO DE INTERFERÊNCIAS (NÃO INCLUI FORNECIMENTO). AF_05/2024 | I24: M | J24: ATRIBUÍDO SÃO PAULO | K24: 4.15 | L24: CAIXA REFERENCIAL
A25: ASSENTAMENTO DE TUBOS E PECAS | B25: ASTU | C25: FORNEC E/OU ASSENT DE TUBO DE FERRO FUNDIDO JUNTA ELASTICA | D25: 0045 | G25: 97159 | H25: ASSENTAMENTO DE TUBO DE FERRO FUNDIDO PARA REDE DE ÁGUA, DN 150 MM, JUNTA ELÁSTICA, INSTALADO EM LOCAL COM NÍVEL BAIXO DE INTERFERÊNCIAS (NÃO INCLUI FORNECIMENTO). AF_05/2024 | I25: M | J25: ATRIBUÍDO SÃO PAULO | K25: 5.6 | L25: CAIXA REFERENCIAL
A26: ASSENTAMENTO DE TUBOS E PECAS | B26: ASTU | C26: FORNEC E/OU ASSENT DE TUBO DE FERRO FUNDIDO JUNTA ELASTICA | D26: 0045 | G26: 97160 | H26: ASSENTAMENTO DE TUBO DE FERRO FUNDIDO PARA REDE DE ÁGUA, DN 200 MM, JUNTA ELÁSTICA, INSTALADO EM LOCAL COM NÍVEL BAIXO DE INTERFERÊNCIAS (NÃO INCLUI FORNECIMENTO). AF_05/2024 | I26: M | J26: ATRIBUÍDO SÃO PAULO | K26: 7.07 | L26: CAIXA REFERENCIAL
A27: ASSENTAMENTO DE TUBOS E PECAS | B27: ASTU | C27: FORNEC E/OU ASSENT DE TUBO DE FERRO FUNDIDO JUNTA ELASTICA | D27: 0045 | G27: 97161 | H27: ASSENTAMENTO DE TUBO DE FERRO FUNDIDO PARA REDE DE ÁGUA, DN 250 MM, JUNTA ELÁSTICA, INSTALADO EM LOCAL COM NÍVEL BAIXO DE INTERFERÊNCIAS (NÃO INCLUI FORNECIMENTO). AF_05/2024 | I27: M | J27: ATRIBUÍDO SÃO PAULO | K27: 8.54 | L27: CAIXA REFERENCIAL
A28: ASSENTAMENTO DE TUBOS E PECAS | B28: ASTU | C28: FORNEC E/OU ASSENT DE TUBO DE FERRO FUNDIDO JUNTA ELASTICA | D28: 0045 | G28: 97162 | H28: ASSENTAMENTO DE TUBO DE FERRO FUNDIDO PARA REDE DE ÁGUA, DN 300 MM, JUNTA ELÁSTICA, INSTALADO EM LOCAL COM NÍVEL BAIXO DE INTERFERÊNCIAS (NÃO INCLUI FORNECIMENTO). AF_05/2024 | I28: M | J28: ATRIBUÍDO SÃO PAULO | K28: 10.02 | L28: CAIXA REFERENCIAL
A29: ASSENTAMENTO DE TUBOS E PECAS | B29: ASTU | C29: FORNEC E/OU ASSENT DE TUBO DE FERRO FUNDIDO JUNTA ELASTICA | D29: 0045 | G29: 97163 | H29: ASSENTAMENTO DE TUBO DE FERRO FUNDIDO PARA REDE DE ÁGUA, DN 350 MM, JUNTA ELÁSTICA, INSTALADO EM LOCAL COM NÍVEL BAIXO DE INTERFERÊNCIAS (NÃO INCLUI FORNECIMENTO). AF_05/2024 | I29: M | J29: ATRIBUÍDO SÃO PAULO | K29: 11.5 | L29: CAIXA REFERENCIAL
A30: ASSENTAMENTO DE TUBOS E PECAS | B30: ASTU | C30: FORNEC E/OU ASSENT DE TUBO DE FERRO FUNDIDO JUNTA ELASTICA | D30: 0045 | G30: 97164 | H30: ASSENTAMENTO DE TUBO DE FERRO FUNDIDO PARA REDE DE ÁGUA, DN 400 MM, JUNTA ELÁSTICA, INSTALADO EM LOCAL COM NÍVEL BAIXO DE INTERFERÊNCIAS (NÃO INCLUI FORNECIMENTO). AF_05/2024 | I30: M | J30: ATRIBUÍDO SÃO PAULO | K30: 12.97 | L30: CAIXA REFERENCIAL
A31: ASSENTAMENTO DE TUBOS E PECAS | B31: ASTU | C31: FORNEC E/OU ASSENT DE TUBO DE FERRO FUNDIDO JUNTA ELASTICA | D31: 0045 | G31: 97165 | H31: ASSENTAMENTO DE TUBO DE FERRO FUNDIDO PARA REDE DE ÁGUA, DN 450 MM, JUNTA ELÁSTICA, INSTALADO EM LOCAL COM NÍVEL BAIXO DE INTERFERÊNCIAS (NÃO INCLUI FORNECIMENTO). AF_05/2024 | I31: M | J31: ATRIBUÍDO SÃO PAULO | K31: 14.46 | L31: CAIXA REFERENCIAL
A32: ASSENTAMENTO DE TUBOS E PECAS | B32: ASTU | C32: FORNEC E/OU ASSENT DE TUBO DE FERRO FUNDIDO JUNTA ELASTICA | D32: 0045 | G32: 97166 | H32: ASSENTAMENTO DE TUBO DE FERRO FUNDIDO PARA REDE DE ÁGUA, DN 500 MM, JUNTA ELÁSTICA, INSTALADO EM LOCAL COM NÍVEL BAIXO DE INTERFERÊNCIAS (NÃO INCLUI FORNECIMENTO). AF_05/2024 | I32: M | J32: ATRIBUÍDO SÃO PAULO | K32: 18.27 | L32: CAIXA REFERENCIAL
A33: ASSENTAMENTO DE TUBOS E PECAS | B33: ASTU | C33: FORNEC E/OU ASSENT DE TUBO DE FERRO FUNDIDO JUNTA ELASTICA | D33: 0045 | G33: 97167 | H33: ASSENTAMENTO DE TUBO DE FERRO FUNDIDO PARA REDE DE ÁGUA, DN 600 MM, JUNTA ELÁSTICA, INSTALADO EM LOCAL COM NÍVEL BAIXO DE INTERFERÊNCIAS (NÃO INCLUI FORNECIMENTO). AF_05/2024 | I33: M | J33: ATRIBUÍDO SÃO PAULO | K33: 21.59 | L33: CAIXA REFERENCIAL
A34: ASSENTAMENTO DE TUBOS E PECAS | B34: ASTU | C34: FORNEC E/OU ASSENT DE TUBO DE FERRO FUNDIDO JUNTA ELASTICA | D34: 0045 | G34: 97168 | H34: ASSENTAMENTO DE TUBO DE FERRO FUNDIDO PARA REDE DE ÁGUA, DN 700 MM, JUNTA ELÁSTICA, INSTALADO EM LOCAL COM NÍVEL BAIXO DE INTERFERÊNCIAS (NÃO INCLUI FORNECIMENTO). AF_05/2024 | I34: M | J34: ATRIBUÍDO SÃO PAULO | K34: 24.72 | L34: CAIXA REFERENCIAL
A35: ASSENTAMENTO DE TUBOS E PECAS | B35: ASTU | C35: FORNEC E/OU ASSENT DE TUBO DE FERRO FUNDIDO JUNTA ELASTICA | D35: 0045 | G35: 97169 | H35: ASSENTAMENTO DE TUBO DE FERRO FUNDIDO PARA REDE DE ÁGUA, DN 800 MM, JUNTA ELÁSTICA, INSTALADO EM LOCAL COM NÍVEL BAIXO DE INTERFERÊNCIAS (NÃO INCLUI FORNECIMENTO). AF_05/2024 | I35: M | J35: ATRIBUÍDO SÃO PAULO | K35: 27.98 | L35: CAIXA REFERENCIAL
A36: ASSENTAMENTO DE TUBOS E PECAS | B36: ASTU | C36: FORNEC E/OU ASSENT DE TUBO DE FERRO FUNDIDO JUNTA ELASTICA | D36: 0045 | G36: 97170 | H36: ASSENTAMENTO DE TUBO DE FERRO FUNDIDO PARA REDE DE ÁGUA, DN 900 MM, JUNTA ELÁSTICA, INSTALADO EM LOCAL COM NÍVEL BAIXO DE INTERFERÊNCIAS (NÃO INCLUI FORNECIMENTO). AF_05/2024 | I36: M | J36: ATRIBUÍDO SÃO PAULO | K36: 31.26 | L36: CAIXA REFERENCIAL
A37: ASSENTAMENTO DE TUBOS E PECAS | B37: ASTU | C37: FORNEC E/OU ASSENT DE TUBO DE FERRO FUNDIDO JUNTA ELASTICA | D37: 0045 | G37: 97171 | H37: ASSENTAMENTO DE TUBO DE FERRO FUNDIDO PARA REDE DE ÁGUA, DN 1000 MM, JUNTA ELÁSTICA, INSTALADO EM LOCAL COM NÍVEL BAIXO DE INTERFERÊNCIAS (NÃO INCLUI FORNECIMENTO). AF_05/2024 | I37: M | J37: ATRIBUÍDO SÃO PAULO | K37: 34.57 | L37: CAIXA REFERENCIAL
A38: ASSENTAMENTO DE TUBOS E PECAS | B38: ASTU | C38: FORNEC E/OU ASSENT DE TUBO DE FERRO FUNDIDO JUNTA ELASTICA | D38: 0045 | G38: 97172 | H38: ASSENTAMENTO DE TUBO DE FERRO FUNDIDO PARA REDE DE ÁGUA, DN 1200 MM, JUNTA ELÁSTICA, INSTALADO EM LOCAL COM NÍVEL BAIXO DE INTERFERÊNCIAS (NÃO INCLUI FORNECIMENTO). AF_05/2024 | I38: M | J38: ATRIBUÍDO SÃO PAULO | K38: 41.48 | L38: CAIXA REFERENCIAL
A39: ASSENTAMENTO DE TUBOS E PECAS | B39: ASTU | C39: FORNEC E/OU ASSENT DE TUBO DE FERRO FUNDIDO JUNTA ELASTICA | D39: 0045 | G39: 105249 | H39: ASSENTAMENTO DE CONEXÃO 2 ACESSOS ALINHADOS DE FERRO FUNDIDO PARA REDE DE ÁGUA, DN 1200, JUNTA ELÁSTICA, INSTALADO EM LOCAL COM NÍVEL ALTO DE INTERFERÊNCIAS (NÃO INCLUI FORNECIMENTO). AF_05/2024 | I39: UN | J39: ATRIBUÍDO SÃO PAULO | K39: 113.61 | L39: CAIXA REFERENCIAL
A40: ASSENTAMENTO DE TUBOS E PECAS | B40: ASTU | C40: FORNEC E/OU ASSENT DE TUBO DE FERRO FUNDIDO JUNTA ELASTICA | D40: 0045 | G40: 105250 | H40: ASSENTAMENTO DE CONEXÃO 2 ACESSOS INCLINADOS DE FERRO FUNDIDO PARA REDE DE ÁGUA, DN 80, JUNTA ELÁSTICA, INSTALADO EM LOCAL COM NÍVEL ALTO DE INTERFERÊNCIAS (NÃO INCLUI FORNECIMENTO). AF_05/2024 | I40: UN | J40: ATRIBUÍDO SÃO PAULO | K40: 14.84 | L40: CAIXA REFERENCIAL
A41: ASSENTAMENTO DE TUBOS E PECAS | B41: ASTU | C41: FORNEC E/OU ASSENT DE TUBO DE FERRO FUNDIDO JUNTA ELASTICA | D41: 0045 | G41: 105251 | H41: ASSENTAMENTO DE CONEXÃO 2 ACESSOS INCLINADOS DE FERRO FUNDIDO PARA REDE DE ÁGUA, DN 100, JUNTA ELÁSTICA, INSTALADO EM LOCAL COM NÍVEL ALTO DE INTERFERÊNCIAS (NÃO INCLUI FORNECIMENTO). AF_05/2024 | I41: UN | J41: ATRIBUÍDO SÃO PAULO | K41: 17.07 | L41: CAIXA REFERENCIAL
A42: ASSENTAMENTO DE TUBOS E PECAS | B42: ASTU | C42: FORNEC E/OU ASSENT DE TUBO DE FERRO FUNDIDO JUNTA ELASTICA | D42: 0045 | G42: 105252 | H42: ASSENTAMENTO DE CONEXÃO 2 ACESSOS INCLINADOS DE FERRO FUNDIDO PARA REDE DE ÁGUA, DN 150, JUNTA ELÁSTICA, INSTALADO EM LOCAL COM NÍVEL ALTO DE INTERFERÊNCIAS (NÃO INCLUI FORNECIMENTO). AF_05/2024 | I42: UN | J42: ATRIBUÍDO SÃO PAULO | K42: 22.62 | L42: CAIXA REFERENCIAL
A43: ASSENTAMENTO DE TUBOS E PECAS | B43: ASTU | C43: FORNEC E/OU ASSENT DE TUBO DE FERRO FUNDIDO JUNTA ELASTICA | D43: 0045 | G43: 105253 | H43: ASSENTAMENTO DE CONEXÃO 2 ACESSOS INCLINADOS DE FERRO FUNDIDO PARA REDE DE ÁGUA, DN 200, JUNTA ELÁSTICA, INSTALADO EM LOCAL COM NÍVEL ALTO DE INTERFERÊNCIAS (NÃO INCLUI FORNECIMENTO). AF_05/2024 | I43: UN | J43: ATRIBUÍDO SÃO PAULO | K43: 28.17 | L43: CAIXA REFERENCIAL
A44: ASSENTAMENTO DE TUBOS E PECAS | B44: ASTU | C44: FORNEC E/OU ASSENT DE TUBO DE FERRO FUNDIDO JUNTA ELASTICA | D44: 0045 | G44: 105254 | H44: ASSENTAMENTO DE CONEXÃO 2 ACESSOS INCLINADOS DE FERRO FUNDIDO PARA REDE DE ÁGUA, DN 250, JUNTA ELÁSTICA, INSTALADO EM LOCAL COM NÍVEL ALTO DE INTERFERÊNCIAS (NÃO INCLUI FORNECIMENTO). AF_05/2024 | I44: UN | J44: ATRIBUÍDO SÃO PAULO | K44: 33.84 | L44: CAIXA REFERENCIAL
A45: ASSENTAMENTO DE TUBOS E PECAS | B45: ASTU | C45: FORNEC E/OU ASSENT DE TUBO DE FERRO FUNDIDO JUNTA ELASTICA | D45: 0045 | G45: 105255 | H45: ASSENTAMENTO DE CONEXÃO 2 ACESSOS INCLINADOS DE FERRO FUNDIDO PARA REDE DE ÁGUA, DN 300, JUNTA ELÁSTICA, INSTALADO EM LOCAL COM NÍVEL ALTO DE INTERFERÊNCIAS (NÃO INCLUI FORNECIMENTO). AF_05/2024 | I45: UN | J45: ATRIBUÍDO SÃO PAULO | K45: 39.51 | L45: CAIXA REFERENCIAL
A46: ASSENTAMENTO DE TUBOS E PECAS | B46: ASTU | C46: FORNEC E/OU ASSENT DE TUBO DE FERRO FUNDIDO JUNTA ELASTICA | D46: 0045 | G46: 105256 | H46: ASSENTAMENTO DE CONEXÃO 2 ACESSOS INCLINADOS DE FERRO FUNDIDO PARA REDE DE ÁGUA, DN 350, JUNTA ELÁSTICA, INSTALADO EM LOCAL COM NÍVEL ALTO DE INTERFERÊNCIAS (NÃO INCLUI FORNECIMENTO). AF_05/2024 | I46: UN | J46: ATRIBUÍDO SÃO PAULO | K46: 45.17 | L46: CAIXA REFERENCIAL
A47: ASSENTAMENTO DE TUBOS E PECAS | B47: ASTU | C47: FORNEC E/OU ASSENT DE TUBO DE FERRO FUNDIDO JUNTA ELASTICA | D47: 0045 | G47: 105257 | H47: ASSENTAMENTO DE CONEXÃO 2 ACESSOS INCLINADOS DE FERRO FUNDIDO PARA REDE DE ÁGUA, DN 400, JUNTA ELÁSTICA, INSTALADO EM LOCAL COM NÍVEL ALTO DE INTERFERÊNCIAS (NÃO INCLUI FORNECIMENTO). AF_05/2024 | I47: UN | J47: ATRIBUÍDO SÃO PAULO | K47: 50.82 | L47: CAIXA REFERENCIAL
A48: ASSENTAMENTO DE TUBOS E PECAS | B48: ASTU | C48: FORNEC E/OU ASSENT DE TUBO DE FERRO FUNDIDO JUNTA ELASTICA | D48: 0045 | G48: 105258 | H48: ASSENTAMENTO DE CONEXÃO 2 ACESSOS ALINHADOS DE FERRO FUNDIDO PARA REDE DE ÁGUA, DN 400, JUNTA ELÁSTICA, INSTALADO EM LOCAL COM NÍVEL BAIXO DE INTERFERÊNCIAS (NÃO INCLUI FORNECIMENTO). AF_05/2024 | I48: UN | J48: ATRIBUÍDO SÃO PAULO | K48: 28.28 | L48: CAIXA REFERENCIAL
A49: ASSENTAMENTO DE TUBOS E PECAS | B49: ASTU | C49: FORNEC E/OU ASSENT DE TUBO DE FERRO FUNDIDO JUNTA ELASTICA | D49: 0045 | G49: 105259 | H49: ASSENTAMENTO DE CONEXÃO 3 ACESSOS DE FERRO FUNDIDO PARA REDE DE ÁGUA, DN 100, JUNTA ELÁSTICA, INSTALADO EM LOCAL COM NÍVEL BAIXO DE INTERFERÊNCIAS (NÃO INCLUI FORNECIMENTO). AF_05/2024 | I49: UN | J49: ATRIBUÍDO SÃO PAULO | K49: 18.05 | L49: CAIXA REFERENCIAL
A50: ASSENTAMENTO DE TUBOS E PECAS | B50: ASTU | C50: FORNEC E/OU ASSENT DE TUBO DE FERRO FUNDIDO JUNTA ELASTICA | D50: 0045 | G50: 105261 | H50: ASSENTAMENTO DE CONEXÃO 2 ACESSOS ALINHADOS DE FERRO FUNDIDO PARA REDE DE ÁGUA, DN 450, JUNTA ELÁSTICA, INSTALADO EM LOCAL COM NÍVEL BAIXO DE INTERFERÊNCIAS (NÃO INCLUI FORNECIMENTO). AF_05/2024 | I50: UN | J50: ATRIBUÍDO SÃO PAULO | K50: 31.63 | L50: CAIXA REFERENCIAL
A51: ASSENTAMENTO DE TUBOS E PECAS | B51: ASTU | C51: FORNEC E/OU ASSENT DE TUBO DE FERRO FUNDIDO JUNTA ELASTICA | D51: 0045 | G51: 105262 | H51: ASSENTAMENTO DE CONEXÃO 2 ACESSOS ALINHADOS DE FERRO FUNDIDO PARA REDE DE ÁGUA, DN 500, JUNTA ELÁSTICA, INSTALADO EM LOCAL COM NÍVEL BAIXO DE INTERFERÊNCIAS (NÃO INCLUI FORNECIMENTO). AF_05/2024 | I51: UN | J51: ATRIBUÍDO SÃO PAULO | K51: 39.65 | L51: CAIXA REFERENCIAL
A52: ASSENTAMENTO DE TUBOS E PECAS | B52: ASTU | C52: FORNEC E/OU ASSENT DE TUBO DE FERRO FUNDIDO JUNTA ELASTICA | D52: 0045 | G52: 105263 | H52: ASSENTAMENTO DE CONEXÃO 2 ACESSOS ALINHADOS DE FERRO FUNDIDO PARA REDE DE ÁGUA, DN 600, JUNTA ELÁSTICA, INSTALADO EM LOCAL COM NÍVEL BAIXO DE INTERFERÊNCIAS (NÃO INCLUI FORNECIMENTO). AF_05/2024 | I52: UN | J52: ATRIBUÍDO SÃO PAULO | K52: 47.05 | L52: CAIXA REFERENCIAL
A53: ASSENTAMENTO DE TUBOS E PECAS | B53: ASTU | C53: FORNEC E/OU ASSENT DE TUBO DE FERRO FUNDIDO JUNTA ELASTICA | D53: 0045 | G53: 105264 | H53: ASSENTAMENTO DE CONEXÃO 2 ACESSOS ALINHADOS DE FERRO FUNDIDO PARA REDE DE ÁGUA, DN 700, JUNTA ELÁSTICA, INSTALADO EM LOCAL COM NÍVEL BAIXO DE INTERFERÊNCIAS (NÃO INCLUI FORNECIMENTO). AF_05/2024 | I53: UN | J53: ATRIBUÍDO SÃO PAULO | K53: 53.88 | L53: CAIXA REFERENCIAL
A54: ASSENTAMENTO DE TUBOS E PECAS | B54: ASTU | C54: FORNEC E/OU ASSENT DE TUBO DE FERRO FUNDIDO JUNTA ELASTICA | D54: 0045 | G54: 105265 | H54: ASSENTAMENTO DE CONEXÃO 2 ACESSOS ALINHADOS DE FERRO FUNDIDO PARA REDE DE ÁGUA, DN 800, JUNTA ELÁSTICA, INSTALADO EM LOCAL COM NÍVEL BAIXO DE INTERFERÊNCIAS (NÃO INCLUI FORNECIMENTO). AF_05/2024 | I54: UN | J54: ATRIBUÍDO SÃO PAULO | K54: 60.89 | L54: CAIXA REFERENCIAL
A55: ASSENTAMENTO DE TUBOS E PECAS | B55: ASTU | C55: FORNEC E/OU ASSENT DE TUBO DE FERRO FUNDIDO JUNTA ELASTICA | D55: 0045 | G55: 105266 | H55: ASSENTAMENTO DE CONEXÃO 2 ACESSOS ALINHADOS DE FERRO FUNDIDO PARA REDE DE ÁGUA, DN 900, JUNTA ELÁSTICA, INSTALADO EM LOCAL COM NÍVEL BAIXO DE INTERFERÊNCIAS (NÃO INCLUI FORNECIMENTO). AF_05/2024 | I55: UN | J55: ATRIBUÍDO SÃO PAULO | K55: 68.09 | L55: CAIXA REFERENCIAL
A56: ASSENTAMENTO DE TUBOS E PECAS | B56: ASTU | C56: FORNEC E/OU ASSENT DE TUBO DE FERRO FUNDIDO JUNTA ELASTICA | D56: 0045 | G56: 105267 | H56: ASSENTAMENTO DE CONEXÃO 2 ACESSOS ALINHADOS DE FERRO FUNDIDO PARA REDE DE ÁGUA, DN 1000, JUNTA ELÁSTICA, INSTALADO EM LOCAL COM NÍVEL BAIXO DE INTERFERÊNCIAS (NÃO INCLUI FORNECIMENTO). AF_05/2024 | I56: UN | J56: ATRIBUÍDO SÃO PAULO | K56: 75.35 | L56: CAIXA REFERENCIAL
A57: ASSENTAMENTO DE TUBOS E PECAS | B57: ASTU | C57: FORNEC E/OU ASSENT DE TUBO DE FERRO FUNDIDO JUNTA ELASTICA | D57: 0045 | G57: 105268 | H57: ASSENTAMENTO DE CONEXÃO 2 ACESSOS ALINHADOS DE FERRO FUNDIDO PARA REDE DE ÁGUA, DN 1200, JUNTA ELÁSTICA, INSTALADO EM LOCAL COM NÍVEL BAIXO DE INTERFERÊNCIAS (NÃO INCLUI FORNECIMENTO). AF_05/2024 | I57: UN | J57: ATRIBUÍDO SÃO PAULO | K57: 92.23 | L57: CAIXA REFERENCIAL
A58: ASSENTAMENTO DE TUBOS E PECAS | B58: ASTU | C58: FORNEC E/OU ASSENT DE TUBO DE FERRO FUNDIDO JUNTA ELASTICA | D58: 0045 | G58: 105269 | H58: ASSENTAMENTO DE CONEXÃO 2 ACESSOS INCLINADOS DE FERRO FUNDIDO PARA REDE DE ÁGUA, DN 80, JUNTA ELÁSTICA, INSTALADO EM LOCAL COM NÍVEL BAIXO DE INTERFERÊNCIAS (NÃO INCLUI FORNECIMENTO). AF_05/2024 | I58: UN | J58: ATRIBUÍDO SÃO PAULO | K58: 11.31 | L58: CAIXA REFERENCIAL
A59: ASSENTAMENTO DE TUBOS E PECAS | B59: ASTU | C59: FORNEC E/OU ASSENT DE TUBO DE FERRO FUNDIDO JUNTA ELASTICA | D59: 0045 | G59: 105270 | H59: ASSENTAMENTO DE CONEXÃO 2 ACESSOS INCLINADOS DE FERRO FUNDIDO PARA REDE DE ÁGUA, DN 450, JUNTA ELÁSTICA, INSTALADO EM LOCAL COM NÍVEL ALTO DE INTERFERÊNCIAS (NÃO INCLUI FORNECIMENTO). AF_05/2024 | I59: UN | J59: ATRIBUÍDO SÃO PAULO | K59: 56.58 | L59: CAIXA REFERENCIAL
A60: ASSENTAMENTO DE TUBOS E PECAS | B60: ASTU | C60: FORNEC E/OU ASSENT DE TUBO DE FERRO FUNDIDO JUNTA ELASTICA | D60: 0045 | G60: 105271 | H60: ASSENTAMENTO DE CONEXÃO 2 ACESSOS INCLINADOS DE FERRO FUNDIDO PARA REDE DE ÁGUA, DN 500, JUNTA ELÁSTICA, INSTALADO EM LOCAL COM NÍVEL ALTO DE INTERFERÊNCIAS (NÃO INCLUI FORNECIMENTO). AF_05/2024 | I60: UN | J60: ATRIBUÍDO SÃO PAULO | K60: 72.87 | L60: CAIXA REFERENCIAL
A61: ASSENTAMENTO DE TUBOS E PECAS | B61: ASTU | C61: FORNEC E/OU ASSENT DE TUBO DE FERRO FUNDIDO JUNTA ELASTICA | D61: 0045 | G61: 105272 | H61: ASSENTAMENTO DE CONEXÃO 2 ACESSOS INCLINADOS DE FERRO FUNDIDO PARA REDE DE ÁGUA, DN 600, JUNTA ELÁSTICA, INSTALADO EM LOCAL COM NÍVEL ALTO DE INTERFERÊNCIAS (NÃO INCLUI FORNECIMENTO). AF_05/2024 | I61: UN | J61: ATRIBUÍDO SÃO PAULO | K61: 85.99 | L61: CAIXA REFERENCIAL
A62: ASSENTAMENTO DE TUBOS E PECAS | B62: ASTU | C62: FORNEC E/OU ASSENT DE TUBO DE FERRO FUNDIDO JUNTA ELASTICA | D62: 0045 | G62: 105273 | H62: ASSENTAMENTO DE CONEXÃO 2 ACESSOS INCLINADOS DE FERRO FUNDIDO PARA REDE DE ÁGUA, DN 700, JUNTA ELÁSTICA, INSTALADO EM LOCAL COM NÍVEL ALTO DE INTERFERÊNCIAS (NÃO INCLUI FORNECIMENTO). AF_05/2024 | I62: UN | J62: ATRIBUÍDO SÃO PAULO | K62: 98.48 | L62: CAIXA REFERENCIAL
A63: ASSENTAMENTO DE TUBOS E PECAS | B63: ASTU | C63: FORNEC E/OU ASSENT DE TUBO DE FERRO FUNDIDO JUNTA ELASTICA | D63: 0045 | G63: 105274 | H63: ASSENTAMENTO DE CONEXÃO 2 ACESSOS INCLINADOS DE FERRO FUNDIDO PARA REDE DE ÁGUA, DN 800, JUNTA ELÁSTICA, INSTALADO EM LOCAL COM NÍVEL ALTO DE INTERFERÊNCIAS (NÃO INCLUI FORNECIMENTO). AF_05/2024 | I63: UN | J63: ATRIBUÍDO SÃO PAULO | K63: 111.22 | L63: CAIXA REFERENCIAL
A64: ASSENTAMENTO DE TUBOS E PECAS | B64: ASTU | C64: FORNEC E/OU ASSENT DE TUBO DE FERRO FUNDIDO JUNTA ELASTICA | D64: 0045 | G64: 105275 | H64: ASSENTAMENTO DE CONEXÃO 2 ACESSOS INCLINADOS DE FERRO FUNDIDO PARA REDE DE ÁGUA, DN 900, JUNTA ELÁSTICA, INSTALADO EM LOCAL COM NÍVEL ALTO DE INTERFERÊNCIAS (NÃO INCLUI FORNECIMENTO). AF_05/2024 | I64: UN | J64: ATRIBUÍDO SÃO PAULO | K64: 124.1 | L64: CAIXA REFERENCIAL
A65: ASSENTAMENTO DE TUBOS E PECAS | B65: ASTU | C65: FORNEC E/OU ASSENT DE TUBO DE FERRO FUNDIDO JUNTA ELASTICA | D65: 0045 | G65: 105276 | H65: ASSENTAMENTO DE CONEXÃO 2 ACESSOS INCLINADOS DE FERRO FUNDIDO PARA REDE DE ÁGUA, DN 1000, JUNTA ELÁSTICA, INSTALADO EM LOCAL COM NÍVEL ALTO DE INTERFERÊNCIAS (NÃO INCLUI FORNECIMENTO). AF_05/2024 | I65: UN | J65: ATRIBUÍDO SÃO PAULO | K65: 137.09 | L65: CAIXA REFERENCIAL
A66: ASSENTAMENTO DE TUBOS E PECAS | B66: ASTU | C66: FORNEC E/OU ASSENT DE TUBO DE FERRO FUNDIDO JUNTA ELASTICA | D66: 0045 | G66: 105277 | H66: ASSENTAMENTO DE CONEXÃO 2 ACESSOS INCLINADOS DE FERRO FUNDIDO PARA REDE DE ÁGUA, DN 1200, JUNTA ELÁSTICA, INSTALADO EM LOCAL COM NÍVEL ALTO DE INTERFERÊNCIAS (NÃO INCLUI FORNECIMENTO). AF_05/2024 | I66: UN | J66: ATRIBUÍDO SÃO PAULO | K66: 165.37 | L66: CAIXA REFERENCIAL
A67: ASSENTAMENTO DE TUBOS E PECAS | B67: ASTU | C67: FORNEC E/OU ASSENT DE TUBO DE FERRO FUNDIDO JUNTA ELASTICA | D67: 0045 | G67: 105278 | H67: ASSENTAMENTO DE CONEXÃO 3 ACESSOS DE FERRO FUNDIDO PARA REDE DE ÁGUA, DN 80, JUNTA ELÁSTICA, INSTALADO EM LOCAL COM NÍVEL ALTO DE INTERFERÊNCIAS (NÃO INCLUI FORNECIMENTO). AF_05/2024 | I67: UN | J67: ATRIBUÍDO SÃO PAULO | K67: 20.2 | L67: CAIXA REFERENCIAL
A68: ASSENTAMENTO DE TUBOS E PECAS | B68: ASTU | C68: FORNEC E/OU ASSENT DE TUBO DE FERRO FUNDIDO JUNTA ELASTICA | D68: 0045 | G68: 105279 | H68: ASSENTAMENTO DE CONEXÃO 3 ACESSOS DE FERRO FUNDIDO PARA REDE DE ÁGUA, DN 100, JUNTA ELÁSTICA, INSTALADO EM LOCAL COM NÍVEL ALTO DE INTERFERÊNCIAS (NÃO INCLUI FORNECIMENTO). AF_05/2024 | I68: UN | J68: ATRIBUÍDO SÃO PAULO | K68: 23.26 | L68: CAIXA REFERENCIAL
A69: ASSENTAMENTO DE TUBOS E PECAS | B69: ASTU | C69: FORNEC E/OU ASSENT DE TUBO DE FERRO FUNDIDO JUNTA ELASTICA | D69: 0045 | G69: 105280 | H69: ASSENTAMENTO DE CONEXÃO 3 ACESSOS DE FERRO FUNDIDO PARA REDE DE ÁGUA, DN 150, JUNTA ELÁSTICA, INSTALADO EM LOCAL COM NÍVEL ALTO DE INTERFERÊNCIAS (NÃO INCLUI FORNECIMENTO). AF_05/2024 | I69: UN | J69: ATRIBUÍDO SÃO PAULO | K69: 30.8 | L69: CAIXA REFERENCIAL
A70: ASSENTAMENTO DE TUBOS E PECAS | B70: ASTU | C70: FORNEC E/OU ASSENT DE TUBO DE FERRO FUNDIDO JUNTA ELASTICA | D70: 0045 | G70: 105281 | H70: ASSENTAMENTO DE CONEXÃO 3 ACESSOS DE FERRO FUNDIDO PARA REDE DE ÁGUA, DN 200, JUNTA ELÁSTICA, INSTALADO EM LOCAL COM NÍVEL ALTO DE INTERFERÊNCIAS (NÃO INCLUI FORNECIMENTO). AF_05/2024 | I70: UN | J70: ATRIBUÍDO SÃO PAULO | K70: 38.35 | L70: CAIXA REFERENCIAL
A71: ASSENTAMENTO DE TUBOS E PECAS | B71: ASTU | C71: FORNEC E/OU ASSENT DE TUBO DE FERRO FUNDIDO JUNTA ELASTICA | D71: 0045 | G71: 105282 | H71: ASSENTAMENTO DE CONEXÃO 2 ACESSOS INCLINADOS DE FERRO FUNDIDO PARA REDE DE ÁGUA, DN 100, JUNTA ELÁSTICA, INSTALADO EM LOCAL COM NÍVEL BAIXO DE INTERFERÊNCIAS (NÃO INCLUI FORNECIMENTO). AF_05/2024 | I71: UN | J71: ATRIBUÍDO SÃO PAULO | K71: 13.17 | L71: CAIXA REFERENCIAL
A72: ASSENTAMENTO DE TUBOS E PECAS | B72: ASTU | C72: FORNEC E/OU ASSENT DE TUBO DE FERRO FUNDIDO JUNTA ELASTICA | D72: 0045 | G72: 105283 | H72: ASSENTAMENTO DE CONEXÃO 3 ACESSOS DE FERRO FUNDIDO PARA REDE DE ÁGUA, DN 150, JUNTA ELÁSTICA, INSTALADO EM LOCAL COM NÍVEL BAIXO DE INTERFERÊNCIAS (NÃO INCLUI FORNECIMENTO). AF_05/2024 | I72: UN | J72: ATRIBUÍDO SÃO PAULO | K72: 24.32 | L72: CAIXA REFERENCIAL
A73: ASSENTAMENTO DE TUBOS E PECAS | B73: ASTU | C73: FORNEC E/OU ASSENT DE TUBO DE FERRO FUNDIDO JUNTA ELASTICA | D73: 0045 | G73: 105284 | H73: ASSENTAMENTO DE CONEXÃO 3 ACESSOS DE FERRO FUNDIDO PARA REDE DE ÁGUA, DN 250, JUNTA ELÁSTICA, INSTALADO EM LOCAL COM NÍVEL ALTO DE INTERFERÊNCIAS (NÃO INCLUI FORNECIMENTO). AF_05/2024 | I73: UN | J73: ATRIBUÍDO SÃO PAULO | K73: 46.15 | L73: CAIXA REFERENCIAL
A74: ASSENTAMENTO DE TUBOS E PECAS | B74: ASTU | C74: FORNEC E/OU ASSENT DE TUBO DE FERRO FUNDIDO JUNTA ELASTICA | D74: 0045 | G74: 105297 | H74: ASSENTAMENTO DE CONEXÃO 2 ACESSOS ALINHADOS DE FERRO FUNDIDO PARA REDE DE ÁGUA, DN 80, JUNTA ELÁSTICA, INSTALADO EM LOCAL COM NÍVEL ALTO DE INTERFERÊNCIAS (NÃO INCLUI FORNECIMENTO). AF_05/2024 | I74: UN | J74: ATRIBUÍDO SÃO PAULO | K74: 10.09 | L74: CAIXA REFERENCIAL
A75: ASSENTAMENTO DE TUBOS E PECAS | B75: ASTU | C75: FORNEC E/OU ASSENT DE TUBO DE FERRO FUNDIDO JUNTA ELASTICA | D75: 0045 | G75: 105298 | H75: ASSENTAMENTO DE CONEXÃO 2 ACESSOS INCLINADOS DE FERRO FUNDIDO PARA REDE DE ÁGUA, DN 150, JUNTA ELÁSTICA, INSTALADO EM LOCAL COM NÍVEL BAIXO DE INTERFERÊNCIAS (NÃO INCLUI FORNECIMENTO). AF_05/2024 | I75: UN | J75: ATRIBUÍDO SÃO PAULO | K75: 17.75 | L75: CAIXA REFERENCIAL
A76: ASSENTAMENTO DE TUBOS E PECAS | B76: ASTU | C76: FORNEC E/OU ASSENT DE TUBO DE FERRO FUNDIDO JUNTA ELASTICA | D76: 0045 | G76: 105299 | H76: ASSENTAMENTO DE CONEXÃO 2 ACESSOS INCLINADOS DE FERRO FUNDIDO PARA REDE DE ÁGUA, DN 200, JUNTA ELÁSTICA, INSTALADO EM LOCAL COM NÍVEL BAIXO DE INTERFERÊNCIAS (NÃO INCLUI FORNECIMENTO). AF_05/2024 | I76: UN | J76: ATRIBUÍDO SÃO PAULO | K76: 22.34 | L76: CAIXA REFERENCIAL
A77: ASSENTAMENTO DE TUBOS E PECAS | B77: ASTU | C77: FORNEC E/OU ASSENT DE TUBO DE FERRO FUNDIDO JUNTA ELASTICA | D77: 0045 | G77: 105300 | H77: ASSENTAMENTO DE CONEXÃO 2 ACESSOS INCLINADOS DE FERRO FUNDIDO PARA REDE DE ÁGUA, DN 250, JUNTA ELÁSTICA, INSTALADO EM LOCAL COM NÍVEL BAIXO DE INTERFERÊNCIAS (NÃO INCLUI FORNECIMENTO). AF_05/2024 | I77: UN | J77: ATRIBUÍDO SÃO PAULO | K77: 27.07 | L77: CAIXA REFERENCIAL
A78: ASSENTAMENTO DE TUBOS E PECAS | B78: ASTU | C78: FORNEC E/OU ASSENT DE TUBO DE FERRO FUNDIDO JUNTA ELASTICA | D78: 0045 | G78: 105301 | H78: ASSENTAMENTO DE CONEXÃO 2 ACESSOS INCLINADOS DE FERRO FUNDIDO PARA REDE DE ÁGUA, DN 300, JUNTA ELÁSTICA, INSTALADO EM LOCAL COM NÍVEL BAIXO DE INTERFERÊNCIAS (NÃO INCLUI FORNECIMENTO). AF_05/2024 | I78: UN | J78: ATRIBUÍDO SÃO PAULO | K78: 31.79 | L78: CAIXA REFERENCIAL
A79: ASSENTAMENTO DE TUBOS E PECAS | B79: ASTU | C79: FORNEC E/OU ASSENT DE TUBO DE FERRO FUNDIDO JUNTA ELASTICA | D79: 0045 | G79: 105302 | H79: ASSENTAMENTO DE CONEXÃO 2 ACESSOS INCLINADOS DE FERRO FUNDIDO PARA REDE DE ÁGUA, DN 350, JUNTA ELÁSTICA, INSTALADO EM LOCAL COM NÍVEL BAIXO DE INTERFERÊNCIAS (NÃO INCLUI FORNECIMENTO). AF_05/2024 | I79: UN | J79: ATRIBUÍDO SÃO PAULO | K79: 36.49 | L79: CAIXA REFERENCIAL
A80: ASSENTAMENTO DE TUBOS E PECAS | B80: ASTU | C80: FORNEC E/OU ASSENT DE TUBO DE FERRO FUNDIDO JUNTA ELASTICA | D80: 0045 | G80: 105303 | H80: ASSENTAMENTO DE CONEXÃO 2 ACESSOS INCLINADOS DE FERRO FUNDIDO PARA REDE DE ÁGUA, DN 400, JUNTA ELÁSTICA, INSTALADO EM LOCAL COM NÍVEL BAIXO DE INTERFERÊNCIAS (NÃO INCLUI FORNECIMENTO). AF_05/2024 | I80: UN | J80: ATRIBUÍDO SÃO PAULO | K80: 41.18 | L80: CAIXA REFERENCIAL
A81: ASSENTAMENTO DE TUBOS E PECAS | B81: ASTU | C81: FORNEC E/OU ASSENT DE TUBO DE FERRO FUNDIDO JUNTA ELASTICA | D81: 0045 | G81: 105304 | H81: ASSENTAMENTO DE CONEXÃO 2 ACESSOS INCLINADOS DE FERRO FUNDIDO PARA REDE DE ÁGUA, DN 450, JUNTA ELÁSTICA, INSTALADO EM LOCAL COM NÍVEL BAIXO DE INTERFERÊNCIAS (NÃO INCLUI FORNECIMENTO). AF_05/2024 | I81: UN | J81: ATRIBUÍDO SÃO PAULO | K81: 45.99 | L81: CAIXA REFERENCIAL
A82: ASSENTAMENTO DE TUBOS E PECAS | B82: ASTU | C82: FORNEC E/OU ASSENT DE TUBO DE FERRO FUNDIDO JUNTA ELASTICA | D82: 0045 | G82: 105305 | H82: ASSENTAMENTO DE CONEXÃO 2 ACESSOS INCLINADOS DE FERRO FUNDIDO PARA REDE DE ÁGUA, DN 500, JUNTA ELÁSTICA, INSTALADO EM LOCAL COM NÍVEL BAIXO DE INTERFERÊNCIAS (NÃO INCLUI FORNECIMENTO). AF_05/2024 | I82: UN | J82: ATRIBUÍDO SÃO PAULO | K82: 57.86 | L82: CAIXA REFERENCIAL
A83: ASSENTAMENTO DE TUBOS E PECAS | B83: ASTU | C83: FORNEC E/OU ASSENT DE TUBO DE FERRO FUNDIDO JUNTA ELASTICA | D83: 0045 | G83: 105306 | H83: ASSENTAMENTO DE CONEXÃO 2 ACESSOS INCLINADOS DE FERRO FUNDIDO PARA REDE DE ÁGUA, DN 600, JUNTA ELÁSTICA, INSTALADO EM LOCAL COM NÍVEL BAIXO DE INTERFERÊNCIAS (NÃO INCLUI FORNECIMENTO). AF_05/2024 | I83: UN | J83: ATRIBUÍDO SÃO PAULO | K83: 68.53 | L83: CAIXA REFERENCIAL
A84: ASSENTAMENTO DE TUBOS E PECAS | B84: ASTU | C84: FORNEC E/OU ASSENT DE TUBO DE FERRO FUNDIDO JUNTA ELASTICA | D84: 0045 | G84: 105307 | H84: ASSENTAMENTO DE CONEXÃO 2 ACESSOS INCLINADOS DE FERRO FUNDIDO PARA REDE DE ÁGUA, DN 700, JUNTA ELÁSTICA, INSTALADO EM LOCAL COM NÍVEL BAIXO DE INTERFERÊNCIAS (NÃO INCLUI FORNECIMENTO). AF_05/2024 | I84: UN | J84: ATRIBUÍDO SÃO PAULO | K84: 78.59 | L84: CAIXA REFERENCIAL
A85: ASSENTAMENTO DE TUBOS E PECAS | B85: ASTU | C85: FORNEC E/OU ASSENT DE TUBO DE FERRO FUNDIDO JUNTA ELASTICA | D85: 0045 | G85: 105317 | H85: ASSENTAMENTO DE CONEXÃO 2 ACESSOS ALINHADOS DE FERRO FUNDIDO PARA REDE DE ÁGUA, DN 300, JUNTA ELÁSTICA, INSTALADO EM LOCAL COM NÍVEL BAIXO DE INTERFERÊNCIAS (NÃO INCLUI FORNECIMENTO). AF_05/2024 | I85: UN | J85: ATRIBUÍDO SÃO PAULO | K85: 21.78 | L85: CAIXA REFERENCIAL
A86: ASSENTAMENTO DE TUBOS E PECAS | B86: ASTU | C86: FORNEC E/OU ASSENT DE TUBO DE FERRO FUNDIDO JUNTA ELASTICA | D86: 0045 | G86: 105318 | H86: ASSENTAMENTO DE CONEXÃO 2 ACESSOS ALINHADOS DE FERRO FUNDIDO PARA REDE DE ÁGUA, DN 350, JUNTA ELÁSTICA, INSTALADO EM LOCAL COM NÍVEL BAIXO DE INTERFERÊNCIAS (NÃO INCLUI FORNECIMENTO). AF_05/2024 | I86: UN | J86: ATRIBUÍDO SÃO PAULO | K86: 25.03 | L86: CAIXA REFERENCIAL
A87: ASSENTAMENTO DE TUBOS E PECAS | B87: ASTU | C87: FORNEC E/OU ASSENT DE TUBO DE FERRO FUNDIDO JUNTA ELASTICA | D87: 0045 | G87: 105319 | H87: ASSENTAMENTO DE CONEXÃO 3 ACESSOS DE FERRO FUNDIDO PARA REDE DE ÁGUA, DN 200, JUNTA ELÁSTICA, INSTALADO EM LOCAL COM NÍVEL BAIXO DE INTERFERÊNCIAS (NÃO INCLUI FORNECIMENTO). AF_05/2024 | I87: UN | J87: ATRIBUÍDO SÃO PAULO | K87: 30.58 | L87: CAIXA REFERENCIAL
A88: ASSENTAMENTO DE TUBOS E PECAS | B88: ASTU | C88: FORNEC E/OU ASSENT DE TUBO DE FERRO FUNDIDO JUNTA ELASTICA | D88: 0045 | G88: 105320 | H88: ASSENTAMENTO DE CONEXÃO 3 ACESSOS DE FERRO FUNDIDO PARA REDE DE ÁGUA, DN 250, JUNTA ELÁSTICA, INSTALADO EM LOCAL COM NÍVEL BAIXO DE INTERFERÊNCIAS (NÃO INCLUI FORNECIMENTO). AF_05/2024 | I88: UN | J88: ATRIBUÍDO SÃO PAULO | K88: 37.11 | L88: CAIXA REFERENCIAL
A89: ASSENTAMENTO DE TUBOS E PECAS | B89: ASTU | C89: FORNEC E/OU ASSENT DE TUBO DE FERRO FUNDIDO JUNTA ELASTICA | D89: 0045 | G89: 105321 | H89: ASSENTAMENTO DE CONEXÃO 3 ACESSOS DE FERRO FUNDIDO PARA REDE DE ÁGUA, DN 300, JUNTA ELÁSTICA, INSTALADO EM LOCAL COM NÍVEL BAIXO DE INTERFERÊNCIAS (NÃO INCLUI FORNECIMENTO). AF_05/2024 | I89: UN | J89: ATRIBUÍDO SÃO PAULO | K89: 43.61 | L89: CAIXA REFERENCIAL
A90: ASSENTAMENTO DE TUBOS E PECAS | B90: ASTU | C90: FORNEC E/OU ASSENT DE TUBO DE FERRO FUNDIDO JUNTA ELASTICA | D90: 0045 | G90: 105322 | H90: ASSENTAMENTO DE CONEXÃO 3 ACESSOS DE FERRO FUNDIDO PARA REDE DE ÁGUA, DN 350, JUNTA ELÁSTICA, INSTALADO EM LOCAL COM NÍVEL BAIXO DE INTERFERÊNCIAS (NÃO INCLUI FORNECIMENTO). AF_05/2024 | I90: UN | J90: ATRIBUÍDO SÃO PAULO | K90: 50.1 | L90: CAIXA REFERENCIAL
A91: ASSENTAMENTO DE TUBOS E PECAS | B91: ASTU | C91: FORNEC E/OU ASSENT DE TUBO DE FERRO FUNDIDO JUNTA ELASTICA | D91: 0045 | G91: 105323 | H91: ASSENTAMENTO DE CONEXÃO 3 ACESSOS DE FERRO FUNDIDO PARA REDE DE ÁGUA, DN 400, JUNTA ELÁSTICA, INSTALADO EM LOCAL COM NÍVEL BAIXO DE INTERFERÊNCIAS (NÃO INCLUI FORNECIMENTO). AF_05/2024 | I91: UN | J91: ATRIBUÍDO SÃO PAULO | K91: 56.57 | L91: CAIXA REFERENCIAL
A92: ASSENTAMENTO DE TUBOS E PECAS | B92: ASTU | C92: FORNEC E/OU ASSENT DE TUBO DE FERRO FUNDIDO JUNTA ELASTICA | D92: 0045 | G92: 105324 | H92: ASSENTAMENTO DE CONEXÃO 3 ACESSOS DE FERRO FUNDIDO PARA REDE DE ÁGUA, DN 450, JUNTA ELÁSTICA, INSTALADO EM LOCAL COM NÍVEL BAIXO DE INTERFERÊNCIAS (NÃO INCLUI FORNECIMENTO). AF_05/2024 | I92: UN | J92: ATRIBUÍDO SÃO PAULO | K92: 63.28 | L92: CAIXA REFERENCIAL
A93: ASSENTAMENTO DE TUBOS E PECAS | B93: ASTU | C93: FORNEC E/OU ASSENT DE TUBO DE FERRO FUNDIDO JUNTA ELASTICA | D93: 0045 | G93: 105325 | H93: ASSENTAMENTO DE CONEXÃO 3 ACESSOS DE FERRO FUNDIDO PARA REDE DE ÁGUA, DN 500, JUNTA ELÁSTICA, INSTALADO EM LOCAL COM NÍVEL BAIXO DE INTERFERÊNCIAS (NÃO INCLUI FORNECIMENTO). AF_05/2024 | I93: UN | J93: ATRIBUÍDO SÃO PAULO | K93: 79.34 | L93: CAIXA REFERENCIAL
A94: ASSENTAMENTO DE TUBOS E PECAS | B94: ASTU | C94: FORNEC E/OU ASSENT DE TUBO DE FERRO FUNDIDO JUNTA ELASTICA | D94: 0045 | G94: 105326 | H94: ASSENTAMENTO DE CONEXÃO 3 ACESSOS DE FERRO FUNDIDO PARA REDE DE ÁGUA, DN 600, JUNTA ELÁSTICA, INSTALADO EM LOCAL COM NÍVEL BAIXO DE INTERFERÊNCIAS (NÃO INCLUI FORNECIMENTO). AF_05/2024 | I94: UN | J94: ATRIBUÍDO SÃO PAULO | K94: 94.16 | L94: CAIXA REFERENCIAL
A95: ASSENTAMENTO DE TUBOS E PECAS | B95: ASTU | C95: FORNEC E/OU ASSENT DE TUBO DE FERRO FUNDIDO JUNTA ELASTICA | D95: 0045 | G95: 105340 | H95: ASSENTAMENTO DE CONEXÃO 2 ACESSOS INCLINADOS DE FERRO FUNDIDO PARA REDE DE ÁGUA, DN 800, JUNTA ELÁSTICA, INSTALADO EM LOCAL COM NÍVEL BAIXO DE INTERFERÊNCIAS (NÃO INCLUI FORNECIMENTO). AF_05/2024 | I95: UN | J95: ATRIBUÍDO SÃO PAULO | K95: 88.89 | L95: CAIXA REFERENCIAL
A96: ASSENTAMENTO DE TUBOS E PECAS | B96: ASTU | C96: FORNEC E/OU ASSENT DE TUBO DE FERRO FUNDIDO JUNTA ELASTICA | D96: 0045 | G96: 105341 | H96: ASSENTAMENTO DE CONEXÃO 2 ACESSOS INCLINADOS DE FERRO FUNDIDO PARA REDE DE ÁGUA, DN 1000, JUNTA ELÁSTICA, INSTALADO EM LOCAL COM NÍVEL BAIXO DE INTERFERÊNCIAS (NÃO INCLUI FORNECIMENTO). AF_05/2024 | I96: UN | J96: ATRIBUÍDO SÃO PAULO | K96: 109.9 | L96: CAIXA REFERENCIAL
A97: ASSENTAMENTO DE TUBOS E PECAS | B97: ASTU | C97: FORNEC E/OU ASSENT DE TUBO DE FERRO FUNDIDO JUNTA ELASTICA | D97: 0045 | G97: 105342 | H97: ASSENTAMENTO DE CONEXÃO 2 ACESSOS INCLINADOS DE FERRO FUNDIDO PARA REDE DE ÁGUA, DN 1200, JUNTA ELÁSTICA, INSTALADO EM LOCAL COM NÍVEL BAIXO DE INTERFERÊNCIAS (NÃO INCLUI FORNECIMENTO). AF_05/2024 | I97: UN | J97: ATRIBUÍDO SÃO PAULO | K97: 133.31 | L97: CAIXA REFERENCIAL
A98: ASSENTAMENTO DE TUBOS E PECAS | B98: ASTU | C98: FORNEC E/OU ASSENT DE TUBO DE FERRO FUNDIDO JUNTA ELASTICA | D98: 0045 | G98: 105343 | H98: ASSENTAMENTO DE CONEXÃO 3 ACESSOS DE FERRO FUNDIDO PARA REDE DE ÁGUA, DN 80, JUNTA ELÁSTICA, INSTALADO EM LOCAL COM NÍVEL BAIXO DE INTERFERÊNCIAS (NÃO INCLUI FORNECIMENTO). AF_05/2024 | I98: UN | J98: ATRIBUÍDO SÃO PAULO | K98: 15.49 | L98: CAIXA REFERENCIAL
A99: ASSENTAMENTO DE TUBOS E PECAS | B99: ASTU | C99: FORNEC E/OU ASSENT DE TUBO DE FERRO FUNDIDO JUNTA ELASTICA | D99: 0045 | G99: 105344 | H99: ASSENTAMENTO DE CONEXÃO 3 ACESSOS DE FERRO FUNDIDO PARA REDE DE ÁGUA, DN 700, JUNTA ELÁSTICA, INSTALADO EM LOCAL COM NÍVEL BAIXO DE INTERFERÊNCIAS (NÃO INCLUI FORNECIMENTO). AF_05/2024 | I99: UN | J99: ATRIBUÍDO SÃO PAULO | K99: 107.76 | L99: CAIXA REFERENCIAL
A100: ASSENTAMENTO DE TUBOS E PECAS | B100: ASTU | C100: FORNEC E/OU ASSENT DE TUBO DE FERRO FUNDIDO JUNTA ELASTICA | D100: 0045 | G100: 105345 | H100: ASSENTAMENTO DE CONEXÃO 3 ACESSOS DE FERRO FUNDIDO PARA REDE DE ÁGUA, DN 900, JUNTA ELÁSTICA, INSTALADO EM LOCAL COM NÍVEL BAIXO DE INTERFERÊNCIAS (NÃO INCLUI FORNECIMENTO). AF_05/2024 | I100: UN | J100: ATRIBUÍDO SÃO PAULO | K100: 136.15 | L100: CAIXA REFERENCIAL
A101: ASSENTAMENTO DE TUBOS E PECAS | B101: ASTU | C101: FORNEC E/OU ASSENT DE TUBO DE FERRO FUNDIDO JUNTA ELASTICA | D101: 0045 | G101: 105346 | H101: ASSENTAMENTO DE CONEXÃO 3 ACESSOS DE FERRO FUNDIDO PARA REDE DE ÁGUA, DN 1000, JUNTA ELÁSTICA, INSTALADO EM LOCAL COM NÍVEL BAIXO DE INTERFERÊNCIAS (NÃO INCLUI FORNECIMENTO). AF_05/2024 | I101: UN | J101: ATRIBUÍDO SÃO PAULO | K101: 150.73 | L101: CAIXA REFERENCIAL
A102: ASSENTAMENTO DE TUBOS E PECAS | B102: ASTU | C102: FORNEC E/OU ASSENT DE TUBO DE FERRO FUNDIDO JUNTA ELASTICA | D102: 0045 | G102: 105347 | H102: ASSENTAMENTO DE CONEXÃO 3 ACESSOS DE FERRO FUNDIDO PARA REDE DE ÁGUA, DN 1200, JUNTA ELÁSTICA, INSTALADO EM LOCAL COM NÍVEL BAIXO DE INTERFERÊNCIAS (NÃO INCLUI FORNECIMENTO). AF_05/2024 | I102: UN | J102: ATRIBUÍDO SÃO PAULO | K102: 184.47 | L102: CAIXA REFERENCIAL
A103: ASSENTAMENTO DE TUBOS E PECAS | B103: ASTU | C103: FORNEC E/OU ASSENT DE TUBO DE FERRO FUNDIDO JUNTA ELASTICA | D103: 0045 | G103: 105348 | H103: ASSENTAMENTO DE CONEXÃO 3 ACESSOS DE FERRO FUNDIDO PARA REDE DE ÁGUA, DN 300, JUNTA ELÁSTICA, INSTALADO EM LOCAL COM NÍVEL ALTO DE INTERFERÊNCIAS (NÃO INCLUI FORNECIMENTO). AF_05/2024 | I103: UN | J103: ATRIBUÍDO SÃO PAULO | K103: 53.91 | L103: CAIXA REFERENCIAL
A104: ASSENTAMENTO DE TUBOS E PECAS | B104: ASTU | C104: FORNEC E/OU ASSENT DE TUBO DE FERRO FUNDIDO JUNTA ELASTICA | D104: 0045 | G104: 105349 | H104: ASSENTAMENTO DE CONEXÃO 3 ACESSOS DE FERRO FUNDIDO PARA REDE DE ÁGUA, DN 350, JUNTA ELÁSTICA, INSTALADO EM LOCAL COM NÍVEL ALTO DE INTERFERÊNCIAS (NÃO INCLUI FORNECIMENTO). AF_05/2024 | I104: UN | J104: ATRIBUÍDO SÃO PAULO | K104: 61.68 | L104: CAIXA REFERENCIAL
A105: ASSENTAMENTO DE TUBOS E PECAS | B105: ASTU | C105: FORNEC E/OU ASSENT DE TUBO DE FERRO FUNDIDO JUNTA ELASTICA | D105: 0045 | G105: 105350 | H105: ASSENTAMENTO DE CONEXÃO 3 ACESSOS DE FERRO FUNDIDO PARA REDE DE ÁGUA, DN 400, JUNTA ELÁSTICA, INSTALADO EM LOCAL COM NÍVEL ALTO DE INTERFERÊNCIAS (NÃO INCLUI FORNECIMENTO). AF_05/2024 | I105: UN | J105: ATRIBUÍDO SÃO PAULO | K105: 69.44 | L105: CAIXA REFERENCIAL
A106: ASSENTAMENTO DE TUBOS E PECAS | B106: ASTU | C106: FORNEC E/OU ASSENT DE TUBO DE FERRO FUNDIDO JUNTA ELASTICA | D106: 0045 | G106: 105351 | H106: ASSENTAMENTO DE CONEXÃO 3 ACESSOS DE FERRO FUNDIDO PARA REDE DE ÁGUA, DN 450, JUNTA ELÁSTICA, INSTALADO EM LOCAL COM NÍVEL ALTO DE INTERFERÊNCIAS (NÃO INCLUI FORNECIMENTO). AF_05/2024 | I106: UN | J106: ATRIBUÍDO SÃO PAULO | K106: 77.42 | L106: CAIXA REFERENCIAL
A107: ASSENTAMENTO DE TUBOS E PECAS | B107: ASTU | C107: FORNEC E/OU ASSENT DE TUBO DE FERRO FUNDIDO JUNTA ELASTICA | D107: 0045 | G107: 105352 | H107: ASSENTAMENTO DE CONEXÃO 3 ACESSOS DE FERRO FUNDIDO PARA REDE DE ÁGUA, DN 500, JUNTA ELÁSTICA, INSTALADO EM LOCAL COM NÍVEL ALTO DE INTERFERÊNCIAS (NÃO INCLUI FORNECIMENTO). AF_05/2024 | I107: UN | J107: ATRIBUÍDO SÃO PAULO | K107: 99.38 | L107: CAIXA REFERENCIAL
A108: ASSENTAMENTO DE TUBOS E PECAS | B108: ASTU | C108: FORNEC E/OU ASSENT DE TUBO DE FERRO FUNDIDO JUNTA ELASTICA | D108: 0045 | G108: 105353 | H108: ASSENTAMENTO DE CONEXÃO 3 ACESSOS DE FERRO FUNDIDO PARA REDE DE ÁGUA, DN 600, JUNTA ELÁSTICA, INSTALADO EM LOCAL COM NÍVEL ALTO DE INTERFERÊNCIAS (NÃO INCLUI FORNECIMENTO). AF_05/2024 | I108: UN | J108: ATRIBUÍDO SÃO PAULO | K108: 117.45 | L108: CAIXA REFERENCIAL
A109: ASSENTAMENTO DE TUBOS E PECAS | B109: ASTU | C109: FORNEC E/OU ASSENT DE TUBO DE FERRO FUNDIDO JUNTA ELASTICA | D109: 0045 | G109: 105354 | H109: ASSENTAMENTO DE CONEXÃO 3 ACESSOS DE FERRO FUNDIDO PARA REDE DE ÁGUA, DN 700, JUNTA ELÁSTICA, INSTALADO EM LOCAL COM NÍVEL ALTO DE INTERFERÊNCIAS (NÃO INCLUI FORNECIMENTO). AF_05/2024 | I109: UN | J109: ATRIBUÍDO SÃO PAULO | K109: 134.28 | L109: CAIXA REFERENCIAL
A110: ASSENTAMENTO DE TUBOS E PECAS | B110: ASTU | C110: FORNEC E/OU ASSENT DE TUBO DE FERRO FUNDIDO JUNTA ELASTICA | D110: 0045 | G110: 105355 | H110: ASSENTAMENTO DE CONEXÃO 3 ACESSOS DE FERRO FUNDIDO PARA REDE DE ÁGUA, DN 800, JUNTA ELÁSTICA, INSTALADO EM LOCAL COM NÍVEL ALTO DE INTERFERÊNCIAS (NÃO INCLUI FORNECIMENTO). AF_05/2024 | I110: UN | J110: ATRIBUÍDO SÃO PAULO | K110: 151.56 | L110: CAIXA REFERENCIAL
A111: ASSENTAMENTO DE TUBOS E PECAS | B111: ASTU | C111: FORNEC E/OU ASSENT DE TUBO DE FERRO FUNDIDO JUNTA ELASTICA | D111: 0045 | G111: 105356 | H111: ASSENTAMENTO DE CONEXÃO 3 ACESSOS DE FERRO FUNDIDO PARA REDE DE ÁGUA, DN 900, JUNTA ELÁSTICA, INSTALADO EM LOCAL COM NÍVEL ALTO DE INTERFERÊNCIAS (NÃO INCLUI FORNECIMENTO). AF_05/2024 | I111: UN | J111: ATRIBUÍDO SÃO PAULO | K111: 169.17 | L111: CAIXA REFERENCIAL
A112: ASSENTAMENTO DE TUBOS E PECAS | B112: ASTU | C112: FORNEC E/OU ASSENT DE TUBO DE FERRO FUNDIDO JUNTA ELASTICA | D112: 0045 | G112: 105357 | H112: ASSENTAMENTO DE CONEXÃO 3 ACESSOS DE FERRO FUNDIDO PARA REDE DE ÁGUA, DN 1000, JUNTA ELÁSTICA, INSTALADO EM LOCAL COM NÍVEL ALTO DE INTERFERÊNCIAS (NÃO INCLUI FORNECIMENTO). AF_05/2024 | I112: UN | J112: ATRIBUÍDO SÃO PAULO | K112: 186.98 | L112: CAIXA REFERENCIAL
A113: ASSENTAMENTO DE TUBOS E PECAS | B113: ASTU | C113: FORNEC E/OU ASSENT DE TUBO DE FERRO FUNDIDO JUNTA ELASTICA | D113: 0045 | G113: 105358 | H113: ASSENTAMENTO DE CONEXÃO 3 ACESSOS DE FERRO FUNDIDO PARA REDE DE ÁGUA, DN 1200, JUNTA ELÁSTICA, INSTALADO EM LOCAL COM NÍVEL ALTO DE INTERFERÊNCIAS (NÃO INCLUI FORNECIMENTO). AF_05/2024 | I113: UN | J113: ATRIBUÍDO SÃO PAULO | K113: 227.23 | L113: CAIXA REFERENCIAL
A114: ASSENTAMENTO DE TUBOS E PECAS | B114: ASTU | C114: FORNEC E/OU ASSENT DE TUBO DE FERRO FUNDIDO JUNTA ELASTICA | D114: 0045 | G114: 105369 | H114: FORNECIMENTO E ASSENTAMENTO DE TE RANHURADO EM FERRO FUNDIDO, DN 80 (3") PARA REDE DE ÁGUA, INSTALADO EM LOCAL COM NÍVEL ALTO DE INTERFERÊNCIAS (INCLUI FORNECIMENTO). AF_05/2024 | I114: UN | J114: ATRIBUÍDO SÃO PAULO | K114: 63.75 | L114: CAIXA REFERENCIAL
A115: ASSENTAMENTO DE TUBOS E PECAS | B115: ASTU | C115: FORNEC E/OU ASSENT DE TUBO DE FERRO FUNDIDO JUNTA ELASTICA | D115: 0045 | G115: 105377 | H115: FORNECIMENTO E ASSENTAMENTO DE CURVA 45 GRAUS RANHURADA EM FERRO FUNDIDO, DN 80 MM (3") PARA REDE DE ÁGUA, INSTALADO EM LOCAL COM NÍVEL ALTO DE INTERFERÊNCIAS (INCLUI FORNECIMENTO). AF_05/2024 | I115: UN | J115: ATRIBUÍDO SÃO PAULO | K115: 40.82 | L115: CAIXA REFERENCIAL
A116: ASSENTAMENTO DE TUBOS E PECAS | B116: ASTU | C116: FORNEC E/OU ASSENT DE TUBO DE FERRO FUNDIDO JUNTA ELASTICA | D116: 0045 | G116: 105378 | H116: ASSENTAMENTO DE CONEXÃO 2 ACESSOS ALINHADOS DE FERRO FUNDIDO PARA REDE DE ÁGUA, DN 100, JUNTA ELÁSTICA, INSTALADO EM LOCAL COM NÍVEL ALTO DE INTERFERÊNCIAS (NÃO INCLUI FORNECIMENTO). AF_05/2024 | I116: UN | J116: ATRIBUÍDO SÃO PAULO | K116: 11.63 | L116: CAIXA REFERENCIAL
A117: ASSENTAMENTO DE TUBOS E PECAS | B117: ASTU | C117: FORNEC E/OU ASSENT DE TUBO DE FERRO FUNDIDO JUNTA ELASTICA | D117: 0045 | G117: 105379 | H117: ASSENTAMENTO DE CONEXÃO 2 ACESSOS ALINHADOS DE FERRO FUNDIDO PARA REDE DE ÁGUA, DN 150, JUNTA ELÁSTICA, INSTALADO EM LOCAL COM NÍVEL ALTO DE INTERFERÊNCIAS (NÃO INCLUI FORNECIMENTO). AF_05/2024 | I117: UN | J117: ATRIBUÍDO SÃO PAULO | K117: 15.39 | L117: CAIXA REFERENCIAL
A118: ASSENTAMENTO DE TUBOS E PECAS | B118: ASTU | C118: FORNEC E/OU ASSENT DE TUBO DE FERRO FUNDIDO JUNTA ELASTICA | D118: 0045 | G118: 105380 | H118: ASSENTAMENTO DE CONEXÃO 2 ACESSOS ALINHADOS DE FERRO FUNDIDO PARA REDE DE ÁGUA, DN 1000, JUNTA ELÁSTICA, INSTALADO EM LOCAL COM NÍVEL ALTO DE INTERFERÊNCIAS (NÃO INCLUI FORNECIMENTO). AF_05/2024 | I118: UN | J118: ATRIBUÍDO SÃO PAULO | K118: 93.48 | L118: CAIXA REFERENCIAL
A119: ASSENTAMENTO DE TUBOS E PECAS | B119: ASTU | C119: FORNEC E/OU ASSENT DE TUBO DE FERRO FUNDIDO JUNTA ELASTICA | D119: 0045 | G119: 105388 | H119: ASSENTAMENTO DE CONEXÃO 2 ACESSOS ALINHADOS DE FERRO FUNDIDO PARA REDE DE ÁGUA, DN 150, JUNTA ELÁSTICA, INSTALADO EM LOCAL COM NÍVEL BAIXO DE INTERFERÊNCIAS (NÃO INCLUI FORNECIMENTO). AF_05/2024 | I119: UN | J119: ATRIBUÍDO SÃO PAULO | K119: 12.14 | L119: CAIXA REFERENCIAL
A120: ASSENTAMENTO DE TUBOS E PECAS | B120: ASTU | C120: FORNEC E/OU ASSENT DE TUBO DE FERRO FUNDIDO JUNTA ELASTICA | D120: 0045 | G120: 105389 | H120: ASSENTAMENTO DE CONEXÃO 2 ACESSOS ALINHADOS DE FERRO FUNDIDO PARA REDE DE ÁGUA, DN 200, JUNTA ELÁSTICA, INSTALADO EM LOCAL COM NÍVEL BAIXO DE INTERFERÊNCIAS (NÃO INCLUI FORNECIMENTO). AF_05/2024 | I120: UN | J120: ATRIBUÍDO SÃO PAULO | K120: 15.27 | L120: CAIXA REFERENCIAL
A121: ASSENTAMENTO DE TUBOS E PECAS | B121: ASTU | C121: FORNEC E/OU ASSENT DE TUBO DE FERRO FUNDIDO JUNTA ELASTICA | D121: 0045 | G121: 105390 | H121: ASSENTAMENTO DE CONEXÃO 2 ACESSOS INCLINADOS DE FERRO FUNDIDO PARA REDE DE ÁGUA, DN 900, JUNTA ELÁSTICA, INSTALADO EM LOCAL COM NÍVEL BAIXO DE INTERFERÊNCIAS (NÃO INCLUI FORNECIMENTO). AF_05/2024 | I121: UN | J121: ATRIBUÍDO SÃO PAULO | K121: 99.35 | L121: CAIXA REFERENCIAL
A122: ASSENTAMENTO DE TUBOS E PECAS | B122: ASTU | C122: FORNEC E/OU ASSENT DE TUBO DE FERRO FUNDIDO JUNTA ELASTICA | D122: 0045 | G122: 105391 | H122: ASSENTAMENTO DE CONEXÃO 3 ACESSOS DE FERRO FUNDIDO PARA REDE DE ÁGUA, DN 800, JUNTA ELÁSTICA, INSTALADO EM LOCAL COM NÍVEL BAIXO DE INTERFERÊNCIAS (NÃO INCLUI FORNECIMENTO). AF_05/2024 | I122: UN | J122: ATRIBUÍDO SÃO PAULO | K122: 121.78 | L122: CAIXA REFERENCIAL
A123: ASSENTAMENTO DE TUBOS E PECAS | B123: ASTU | C123: FORNEC E/OU ASSENT DE TUBO DE FERRO FUNDIDO JUNTA ELASTICA | D123: 0045 | G123: 105392 | H123: ASSENTAMENTO DE CONEXÃO 2 ACESSOS ALINHADOS DE FERRO FUNDIDO PARA REDE DE ÁGUA, DN 200, JUNTA ELÁSTICA, INSTALADO EM LOCAL COM NÍVEL ALTO DE INTERFERÊNCIAS (NÃO INCLUI FORNECIMENTO). AF_05/2024 | I123: UN | J123: ATRIBUÍDO SÃO PAULO | K123: 19.16 | L123: CAIXA REFERENCIAL
A124: ASSENTAMENTO DE TUBOS E PECAS | B124: ASTU | C124: FORNEC E/OU ASSENT DE TUBO DE FERRO FUNDIDO JUNTA ELASTICA | D124: 0045 | G124: 105393 | H124: ASSENTAMENTO DE CONEXÃO 2 ACESSOS ALINHADOS DE FERRO FUNDIDO PARA REDE DE ÁGUA, DN 250, JUNTA ELÁSTICA, INSTALADO EM LOCAL COM NÍVEL ALTO DE INTERFERÊNCIAS (NÃO INCLUI FORNECIMENTO). AF_05/2024 | I124: UN | J124: ATRIBUÍDO SÃO PAULO | K124: 23.06 | L124: CAIXA REFERENCIAL
A125: ASSENTAMENTO DE TUBOS E PECAS | B125: ASTU | C125: FORNEC E/OU ASSENT DE TUBO DE FERRO FUNDIDO JUNTA ELASTICA | D125: 0045 | G125: 105394 | H125: ASSENTAMENTO DE CONEXÃO 2 ACESSOS ALINHADOS DE FERRO FUNDIDO PARA REDE DE ÁGUA, DN 300, JUNTA ELÁSTICA, INSTALADO EM LOCAL COM NÍVEL ALTO DE INTERFERÊNCIAS (NÃO INCLUI FORNECIMENTO). AF_05/2024 | I125: UN | J125: ATRIBUÍDO SÃO PAULO | K125: 26.93 | L125: CAIXA REFERENCIAL
A126: ASSENTAMENTO DE TUBOS E PECAS | B126: ASTU | C126: FORNEC E/OU ASSENT DE TUBO DE FERRO FUNDIDO JUNTA ELASTICA | D126: 0045 | G126: 105395 | H126: ASSENTAMENTO DE CONEXÃO 2 ACESSOS ALINHADOS DE FERRO FUNDIDO PARA REDE DE ÁGUA, DN 350, JUNTA ELÁSTICA, INSTALADO EM LOCAL COM NÍVEL ALTO DE INTERFERÊNCIAS (NÃO INCLUI FORNECIMENTO). AF_05/2024 | I126: UN | J126: ATRIBUÍDO SÃO PAULO | K126: 30.83 | L126: CAIXA REFERENCIAL
A127: ASSENTAMENTO DE TUBOS E PECAS | B127: ASTU | C127: FORNEC E/OU ASSENT DE TUBO DE FERRO FUNDIDO JUNTA ELASTICA | D127: 0045 | G127: 105396 | H127: ASSENTAMENTO DE CONEXÃO 2 ACESSOS ALINHADOS DE FERRO FUNDIDO PARA REDE DE ÁGUA, DN 400, JUNTA ELÁSTICA, INSTALADO EM LOCAL COM NÍVEL ALTO DE INTERFERÊNCIAS (NÃO INCLUI FORNECIMENTO). AF_05/2024 | I127: UN | J127: ATRIBUÍDO SÃO PAULO | K127: 34.71 | L127: CAIXA REFERENCIAL
A128: ASSENTAMENTO DE TUBOS E PECAS | B128: ASTU | C128: FORNEC E/OU ASSENT DE TUBO DE FERRO FUNDIDO JUNTA ELASTICA | D128: 0045 | G128: 105397 | H128: ASSENTAMENTO DE CONEXÃO 2 ACESSOS ALINHADOS DE FERRO FUNDIDO PARA REDE DE ÁGUA, DN 450, JUNTA ELÁSTICA, INSTALADO EM LOCAL COM NÍVEL ALTO DE INTERFERÊNCIAS (NÃO INCLUI FORNECIMENTO). AF_05/2024 | I128: UN | J128: ATRIBUÍDO SÃO PAULO | K128: 38.7 | L128: CAIXA REFERENCIAL
A129: ASSENTAMENTO DE TUBOS E PECAS | B129: ASTU | C129: FORNEC E/OU ASSENT DE TUBO DE FERRO FUNDIDO JUNTA ELASTICA | D129: 0045 | G129: 105398 | H129: ASSENTAMENTO DE CONEXÃO 2 ACESSOS ALINHADOS DE FERRO FUNDIDO PARA REDE DE ÁGUA, DN 500, JUNTA ELÁSTICA, INSTALADO EM LOCAL COM NÍVEL ALTO DE INTERFERÊNCIAS (NÃO INCLUI FORNECIMENTO). AF_05/2024 | I129: UN | J129: ATRIBUÍDO SÃO PAULO | K129: 49.67 | L129: CAIXA REFERENCIAL
A130: ASSENTAMENTO DE TUBOS E PECAS | B130: ASTU | C130: FORNEC E/OU ASSENT DE TUBO DE FERRO FUNDIDO JUNTA ELASTICA | D130: 0045 | G130: 105399 | H130: ASSENTAMENTO DE CONEXÃO 2 ACESSOS ALINHADOS DE FERRO FUNDIDO PARA REDE DE ÁGUA, DN 600, JUNTA ELÁSTICA, INSTALADO EM LOCAL COM NÍVEL ALTO DE INTERFERÊNCIAS (NÃO INCLUI FORNECIMENTO). AF_05/2024 | I130: UN | J130: ATRIBUÍDO SÃO PAULO | K130: 58.69 | L130: CAIXA REFERENCIAL
A131: ASSENTAMENTO DE TUBOS E PECAS | B131: ASTU | C131: FORNEC E/OU ASSENT DE TUBO DE FERRO FUNDIDO JUNTA ELASTICA | D131: 0045 | G131: 105400 | H131: ASSENTAMENTO DE CONEXÃO 2 ACESSOS ALINHADOS DE FERRO FUNDIDO PARA REDE DE ÁGUA, DN 700, JUNTA ELÁSTICA, INSTALADO EM LOCAL COM NÍVEL ALTO DE INTERFERÊNCIAS (NÃO INCLUI FORNECIMENTO). AF_05/2024 | I131: UN | J131: ATRIBUÍDO SÃO PAULO | K131: 67.13 | L131: CAIXA REFERENCIAL
A132: ASSENTAMENTO DE TUBOS E PECAS | B132: ASTU | C132: FORNEC E/OU ASSENT DE TUBO DE FERRO FUNDIDO JUNTA ELASTICA | D132: 0045 | G132: 105401 | H132: ASSENTAMENTO DE CONEXÃO 2 ACESSOS ALINHADOS DE FERRO FUNDIDO PARA REDE DE ÁGUA, DN 800, JUNTA ELÁSTICA, INSTALADO EM LOCAL COM NÍVEL ALTO DE INTERFERÊNCIAS (NÃO INCLUI FORNECIMENTO). AF_05/2024 | I132: UN | J132: ATRIBUÍDO SÃO PAULO | K132: 75.78 | L132: CAIXA REFERENCIAL
A133: ASSENTAMENTO DE TUBOS E PECAS | B133: ASTU | C133: FORNEC E/OU ASSENT DE TUBO DE FERRO FUNDIDO JUNTA ELASTICA | D133: 0045 | G133: 105402 | H133: ASSENTAMENTO DE CONEXÃO 2 ACESSOS ALINHADOS DE FERRO FUNDIDO PARA REDE DE ÁGUA, DN 900, JUNTA ELÁSTICA, INSTALADO EM LOCAL COM NÍVEL ALTO DE INTERFERÊNCIAS (NÃO INCLUI FORNECIMENTO). AF_05/2024 | I133: UN | J133: ATRIBUÍDO SÃO PAULO | K133: 84.59 | L133: CAIXA REFERENCIAL
